{"text_format":"1","workbook":"xlsx","n_sheets":5,"sheets":["Ventes","Localisations","Objectifs","Analyses","Tableau de Bord"],"not_rendered":{"charts":5,"images":2,"macros":1,"external_links":0,"defined_names":8,"comments":0,"pivot_tables":7},"unopened":[],"bounds":{"document_bytes":16777216,"sheet_cells":100000,"rows_first":2000,"rows_last":500,"rows_between":2000,"halvings":0,"cell_chars":16384,"cell_head_chars":4096},"cells_cut":0,"cells_raw":0,"read":"whole","date_system":"1900"}

{"sheet":"Ventes","index":0,"n_rows":832,"n_cols":10,"rows_kept":832,"cut":false,"hidden":false,"merged":[]}
[]
["DATES","CLIENTS","PRODUITS","PRIX UNITAIRE (FCFA)","QUANTITE","Prix d'achat","Pays","Région","mois","semaine"]
["2021-01-01","client33","Produit24",156.96,9,{"$f":"ventes[[#This Row],[PRIX UNITAIRE (FCFA)]]*ventes[[#This Row],[QUANTITE]]","v":1412.64},{"$f":"VLOOKUP(ventes[[#This Row],[CLIENTS]],localisations[],2,0)","v":"Philippines"},{"$f":"VLOOKUP(ventes[[#This Row],[CLIENTS]],localisations[],3,0)","v":"Asie"},{"$f":"TEXT(ventes[[#This Row],[DATES]],\"mmm\")","v":"janv"},{"$f":"WEEKNUM(ventes[[#This Row],[DATES]])","v":1}]
["2021-01-01","client29","Produit22",141.57,1,{"$f":"ventes[[#This Row],[PRIX UNITAIRE (FCFA)]]*ventes[[#This Row],[QUANTITE]]","v":141.57},{"$f":"VLOOKUP(ventes[[#This Row],[CLIENTS]],localisations[],2,0)","v":"Chili"},{"$f":"VLOOKUP(ventes[[#This Row],[CLIENTS]],localisations[],3,0)","v":"Amérique"},{"$f":"TEXT(ventes[[#This Row],[DATES]],\"mmm\")","v":"janv"},{"$f":"WEEKNUM(ventes[[#This Row],[DATES]])","v":1}]
["2021-01-02","client31","Produit38",79.92,15,{"$f":"ventes[[#This Row],[PRIX UNITAIRE (FCFA)]]*ventes[[#This Row],[QUANTITE]]","v":1198.8},{"$f":"VLOOKUP(ventes[[#This Row],[CLIENTS]],localisations[],2,0)","v":"Corée du Sud"},{"$f":"VLOOKUP(ventes[[#This Row],[CLIENTS]],localisations[],3,0)","v":"Asie"},{"$f":"TEXT(ventes[[#This Row],[DATES]],\"mmm\")","v":"janv"},{"$f":"WEEKNUM(ventes[[#This Row],[DATES]])","v":1}]
["2021-01-02","client03","Produit33",119.7,1,{"$f":"ventes[[#This Row],[PRIX UNITAIRE (FCFA)]]*ventes[[#This Row],[QUANTITE]]","v":119.7},{"$f":"VLOOKUP(ventes[[#This Row],[CLIENTS]],localisations[],2,0)","v":"Côte d'Ivoire"},{"$f":"VLOOKUP(ventes[[#This Row],[CLIENTS]],localisations[],3,0)","v":"Afrique"},{"$f":"TEXT(ventes[[#This Row],[DATES]],\"mmm\")","v":"janv"},{"$f":"WEEKNUM(ventes[[#This Row],[DATES]])","v":1}]
["2021-01-02","client05","Produit15",15.719999999999999,2,{"$f":"ventes[[#This Row],[PRIX UNITAIRE (FCFA)]]*ventes[[#This Row],[QUANTITE]]","v":31.439999999999998},{"$f":"VLOOKUP(ventes[[#This Row],[CLIENTS]],localisations[],2,0)","v":"Algérie"},{"$f":"VLOOKUP(ventes[[#This Row],[CLIENTS]],localisations[],3,0)","v":"Afrique"},{"$f":"TEXT(ventes[[#This Row],[DATES]],\"mmm\")","v":"janv"},{"$f":"WEEKNUM(ventes[[#This Row],[DATES]])","v":1}]
["2021-01-02","client35","Produit10",164.28,7,{"$f":"ventes[[#This Row],[PRIX UNITAIRE (FCFA)]]*ventes[[#This Row],[QUANTITE]]","v":1149.96},{"$f":"VLOOKUP(ventes[[#This Row],[CLIENTS]],localisations[],2,0)","v":"Malaisie"},{"$f":"VLOOKUP(ventes[[#This Row],[CLIENTS]],localisations[],3,0)","v":"Asie"},{"$f":"TEXT(ventes[[#This Row],[DATES]],\"mmm\")","v":"janv"},{"$f":"WEEKNUM(ventes[[#This Row],[DATES]])","v":1}]
["2021-01-02","client38","Produit13",122.08,6,{"$f":"ventes[[#This Row],[PRIX UNITAIRE (FCFA)]]*ventes[[#This Row],[QUANTITE]]","v":732.48},{"$f":"VLOOKUP(ventes[[#This Row],[CLIENTS]],localisations[],2,0)","v":"Pakistan"},{"$f":"VLOOKUP(ventes[[#This Row],[CLIENTS]],localisations[],3,0)","v":"Asie"},{"$f":"TEXT(ventes[[#This Row],[DATES]],\"mmm\")","v":"janv"},{"$f":"WEEKNUM(ventes[[#This Row],[DATES]])","v":1}]
["2021-01-02","client39","Produit15",15.719999999999999,25,{"$f":"ventes[[#This Row],[PRIX UNITAIRE (FCFA)]]*ventes[[#This Row],[QUANTITE]]","v":393},{"$f":"VLOOKUP(ventes[[#This Row],[CLIENTS]],localisations[],2,0)","v":"Pakistan"},{"$f":"VLOOKUP(ventes[[#This Row],[CLIENTS]],localisations[],3,0)","v":"Asie"},{"$f":"TEXT(ventes[[#This Row],[DATES]],\"mmm\")","v":"janv"},{"$f":"WEEKNUM(ventes[[#This Row],[DATES]])","v":1}]
["2021-01-03","client34","Produit14",146.72,21,{"$f":"ventes[[#This Row],[PRIX UNITAIRE (FCFA)]]*ventes[[#This Row],[QUANTITE]]","v":3081.12},{"$f":"VLOOKUP(ventes[[#This Row],[CLIENTS]],localisations[],2,0)","v":"Japon"},{"$f":"VLOOKUP(ventes[[#This Row],[CLIENTS]],localisations[],3,0)","v":"Asie"},{"$f":"TEXT(ventes[[#This Row],[DATES]],\"mmm\")","v":"janv"},{"$f":"WEEKNUM(ventes[[#This Row],[DATES]])","v":2}]
["2021-01-03","client18","Produit43",83.08,9,{"$f":"ventes[[#This Row],[PRIX UNITAIRE (FCFA)]]*ventes[[#This Row],[QUANTITE]]","v":747.72},{"$f":"VLOOKUP(ventes[[#This Row],[CLIENTS]],localisations[],2,0)","v":"Belgique"},{"$f":"VLOOKUP(ventes[[#This Row],[CLIENTS]],localisations[],3,0)","v":"Europe"},{"$f":"TEXT(ventes[[#This Row],[DATES]],\"mmm\")","v":"janv"},{"$f":"WEEKNUM(ventes[[#This Row],[DATES]])","v":2}]
["2021-01-03","client20","Produit38",79.92,31,{"$f":"ventes[[#This Row],[PRIX UNITAIRE (FCFA)]]*ventes[[#This Row],[QUANTITE]]","v":2477.52},{"$f":"VLOOKUP(ventes[[#This Row],[CLIENTS]],localisations[],2,0)","v":"France"},{"$f":"VLOOKUP(ventes[[#This Row],[CLIENTS]],localisations[],3,0)","v":"Europe"},{"$f":"TEXT(ventes[[#This Row],[DATES]],\"mmm\")","v":"janv"},{"$f":"WEEKNUM(ventes[[#This Row],[DATES]])","v":2}]
["2021-01-03","client37","Produit04",48.84,5,{"$f":"ventes[[#This Row],[PRIX UNITAIRE (FCFA)]]*ventes[[#This Row],[QUANTITE]]","v":244.20000000000002},{"$f":"VLOOKUP(ventes[[#This Row],[CLIENTS]],localisations[],2,0)","v":"Inde"},{"$f":"VLOOKUP(ventes[[#This Row],[CLIENTS]],localisations[],3,0)","v":"Asie"},{"$f":"TEXT(ventes[[#This Row],[DATES]],\"mmm\")","v":"janv"},{"$f":"WEEKNUM(ventes[[#This Row],[DATES]])","v":2}]
["2021-01-04","client32","Produit29",53.11,1,{"$f":"ventes[[#This Row],[PRIX UNITAIRE (FCFA)]]*ventes[[#This Row],[QUANTITE]]","v":53.11},{"$f":"VLOOKUP(ventes[[#This Row],[CLIENTS]],localisations[],2,0)","v":"Indonésie"},{"$f":"VLOOKUP(ventes[[#This Row],[CLIENTS]],localisations[],3,0)","v":"Asie"},{"$f":"TEXT(ventes[[#This Row],[DATES]],\"mmm\")","v":"janv"},{"$f":"WEEKNUM(ventes[[#This Row],[DATES]])","v":2}]
["2021-01-04","client09","Produit12",94.17,8,{"$f":"ventes[[#This Row],[PRIX UNITAIRE (FCFA)]]*ventes[[#This Row],[QUANTITE]]","v":753.36},{"$f":"VLOOKUP(ventes[[#This Row],[CLIENTS]],localisations[],2,0)","v":"Égypte"},{"$f":"VLOOKUP(ventes[[#This Row],[CLIENTS]],localisations[],3,0)","v":"Afrique"},{"$f":"TEXT(ventes[[#This Row],[DATES]],\"mmm\")","v":"janv"},{"$f":"WEEKNUM(ventes[[#This Row],[DATES]])","v":2}]
["2021-01-04","client26","Produit35",6.7,12,{"$f":"ventes[[#This Row],[PRIX UNITAIRE (FCFA)]]*ventes[[#This Row],[QUANTITE]]","v":80.400000000000006},{"$f":"VLOOKUP(ventes[[#This Row],[CLIENTS]],localisations[],2,0)","v":"Pérou"},{"$f":"VLOOKUP(ventes[[#This Row],[CLIENTS]],localisations[],3,0)","v":"Amérique"},{"$f":"TEXT(ventes[[#This Row],[DATES]],\"mmm\")","v":"janv"},{"$f":"WEEKNUM(ventes[[#This Row],[DATES]])","v":2}]
["2021-01-06","client06","Produit32",117.48,9,{"$f":"ventes[[#This Row],[PRIX UNITAIRE (FCFA)]]*ventes[[#This Row],[QUANTITE]]","v":1057.32},{"$f":"VLOOKUP(ventes[[#This Row],[CLIENTS]],localisations[],2,0)","v":"Afrique du Sud"},{"$f":"VLOOKUP(ventes[[#This Row],[CLIENTS]],localisations[],3,0)","v":"Afrique"},{"$f":"TEXT(ventes[[#This Row],[DATES]],\"mmm\")","v":"janv"},{"$f":"WEEKNUM(ventes[[#This Row],[DATES]])","v":2}]
["2021-01-08","client09","Produit19",210,14,{"$f":"ventes[[#This Row],[PRIX UNITAIRE (FCFA)]]*ventes[[#This Row],[QUANTITE]]","v":2940},{"$f":"VLOOKUP(ventes[[#This Row],[CLIENTS]],localisations[],2,0)","v":"Égypte"},{"$f":"VLOOKUP(ventes[[#This Row],[CLIENTS]],localisations[],3,0)","v":"Afrique"},{"$f":"TEXT(ventes[[#This Row],[DATES]],\"mmm\")","v":"janv"},{"$f":"WEEKNUM(ventes[[#This Row],[DATES]])","v":2}]
["2021-01-09","client01","Produit07",47.730000000000004,26,{"$f":"ventes[[#This Row],[PRIX UNITAIRE (FCFA)]]*ventes[[#This Row],[QUANTITE]]","v":1240.98},{"$f":"VLOOKUP(ventes[[#This Row],[CLIENTS]],localisations[],2,0)","v":"Tunisie"},{"$f":"VLOOKUP(ventes[[#This Row],[CLIENTS]],localisations[],3,0)","v":"Afrique"},{"$f":"TEXT(ventes[[#This Row],[DATES]],\"mmm\")","v":"janv"},{"$f":"WEEKNUM(ventes[[#This Row],[DATES]])","v":2}]
["2021-01-09","client05","Produit31",104.16,1,{"$f":"ventes[[#This Row],[PRIX UNITAIRE (FCFA)]]*ventes[[#This Row],[QUANTITE]]","v":104.16},{"$f":"VLOOKUP(ventes[[#This Row],[CLIENTS]],localisations[],2,0)","v":"Algérie"},{"$f":"VLOOKUP(ventes[[#This Row],[CLIENTS]],localisations[],3,0)","v":"Afrique"},{"$f":"TEXT(ventes[[#This Row],[DATES]],\"mmm\")","v":"janv"},{"$f":"WEEKNUM(ventes[[#This Row],[DATES]])","v":2}]
["2021-01-09","client34","Produit25",8.33,4,{"$f":"ventes[[#This Row],[PRIX UNITAIRE (FCFA)]]*ventes[[#This Row],[QUANTITE]]","v":33.32},{"$f":"VLOOKUP(ventes[[#This Row],[CLIENTS]],localisations[],2,0)","v":"Japon"},{"$f":"VLOOKUP(ventes[[#This Row],[CLIENTS]],localisations[],3,0)","v":"Asie"},{"$f":"TEXT(ventes[[#This Row],[DATES]],\"mmm\")","v":"janv"},{"$f":"WEEKNUM(ventes[[#This Row],[DATES]])","v":2}]
["2021-01-09","client16","Produit31",104.16,29,{"$f":"ventes[[#This Row],[PRIX UNITAIRE (FCFA)]]*ventes[[#This Row],[QUANTITE]]","v":3020.64},{"$f":"VLOOKUP(ventes[[#This Row],[CLIENTS]],localisations[],2,0)","v":"Royaume-Uni"},{"$f":"VLOOKUP(ventes[[#This Row],[CLIENTS]],localisations[],3,0)","v":"Europe"},{"$f":"TEXT(ventes[[#This Row],[DATES]],\"mmm\")","v":"janv"},{"$f":"WEEKNUM(ventes[[#This Row],[DATES]])","v":2}]
["2021-01-09","client19","Produit40",115.2,28,{"$f":"ventes[[#This Row],[PRIX UNITAIRE (FCFA)]]*ventes[[#This Row],[QUANTITE]]","v":3225.6},{"$f":"VLOOKUP(ventes[[#This Row],[CLIENTS]],localisations[],2,0)","v":"Suisse"},{"$f":"VLOOKUP(ventes[[#This Row],[CLIENTS]],localisations[],3,0)","v":"Europe"},{"$f":"TEXT(ventes[[#This Row],[DATES]],\"mmm\")","v":"janv"},{"$f":"WEEKNUM(ventes[[#This Row],[DATES]])","v":2}]
["2021-01-09","client20","Produit03",80.94,8,{"$f":"ventes[[#This Row],[PRIX UNITAIRE (FCFA)]]*ventes[[#This Row],[QUANTITE]]","v":647.52},{"$f":"VLOOKUP(ventes[[#This Row],[CLIENTS]],localisations[],2,0)","v":"France"},{"$f":"VLOOKUP(ventes[[#This Row],[CLIENTS]],localisations[],3,0)","v":"Europe"},{"$f":"TEXT(ventes[[#This Row],[DATES]],\"mmm\")","v":"janv"},{"$f":"WEEKNUM(ventes[[#This Row],[DATES]])","v":2}]
["2021-01-09","client36","Produit32",117.48,12,{"$f":"ventes[[#This Row],[PRIX UNITAIRE (FCFA)]]*ventes[[#This Row],[QUANTITE]]","v":1409.76},{"$f":"VLOOKUP(ventes[[#This Row],[CLIENTS]],localisations[],2,0)","v":"Vietnam"},{"$f":"VLOOKUP(ventes[[#This Row],[CLIENTS]],localisations[],3,0)","v":"Asie"},{"$f":"TEXT(ventes[[#This Row],[DATES]],\"mmm\")","v":"janv"},{"$f":"WEEKNUM(ventes[[#This Row],[DATES]])","v":2}]
["2021-01-10","client03","Produit02",142.80000000000001,24,{"$f":"ventes[[#This Row],[PRIX UNITAIRE (FCFA)]]*ventes[[#This Row],[QUANTITE]]","v":3427.2000000000003},{"$f":"VLOOKUP(ventes[[#This Row],[CLIENTS]],localisations[],2,0)","v":"Côte d'Ivoire"},{"$f":"VLOOKUP(ventes[[#This Row],[CLIENTS]],localisations[],3,0)","v":"Afrique"},{"$f":"TEXT(ventes[[#This Row],[DATES]],\"mmm\")","v":"janv"},{"$f":"WEEKNUM(ventes[[#This Row],[DATES]])","v":3}]
["2021-01-10","client21","Produit34",58.3,14,{"$f":"ventes[[#This Row],[PRIX UNITAIRE (FCFA)]]*ventes[[#This Row],[QUANTITE]]","v":816.19999999999993},{"$f":"VLOOKUP(ventes[[#This Row],[CLIENTS]],localisations[],2,0)","v":"Venezuela"},{"$f":"VLOOKUP(ventes[[#This Row],[CLIENTS]],localisations[],3,0)","v":"Amérique"},{"$f":"TEXT(ventes[[#This Row],[DATES]],\"mmm\")","v":"janv"},{"$f":"WEEKNUM(ventes[[#This Row],[DATES]])","v":3}]
["2021-01-10","client36","Produit35",6.7,9,{"$f":"ventes[[#This Row],[PRIX UNITAIRE (FCFA)]]*ventes[[#This Row],[QUANTITE]]","v":60.300000000000004},{"$f":"VLOOKUP(ventes[[#This Row],[CLIENTS]],localisations[],2,0)","v":"Vietnam"},{"$f":"VLOOKUP(ventes[[#This Row],[CLIENTS]],localisations[],3,0)","v":"Asie"},{"$f":"TEXT(ventes[[#This Row],[DATES]],\"mmm\")","v":"janv"},{"$f":"WEEKNUM(ventes[[#This Row],[DATES]])","v":3}]
["2021-01-11","client03","Produit37",85.76,3,{"$f":"ventes[[#This Row],[PRIX UNITAIRE (FCFA)]]*ventes[[#This Row],[QUANTITE]]","v":257.28000000000003},{"$f":"VLOOKUP(ventes[[#This Row],[CLIENTS]],localisations[],2,0)","v":"Côte d'Ivoire"},{"$f":"VLOOKUP(ventes[[#This Row],[CLIENTS]],localisations[],3,0)","v":"Afrique"},{"$f":"TEXT(ventes[[#This Row],[DATES]],\"mmm\")","v":"janv"},{"$f":"WEEKNUM(ventes[[#This Row],[DATES]])","v":3}]
["2021-01-11","client11","Produit14",146.72,4,{"$f":"ventes[[#This Row],[PRIX UNITAIRE (FCFA)]]*ventes[[#This Row],[QUANTITE]]","v":586.88},{"$f":"VLOOKUP(ventes[[#This Row],[CLIENTS]],localisations[],2,0)","v":"Espagne"},{"$f":"VLOOKUP(ventes[[#This Row],[CLIENTS]],localisations[],3,0)","v":"Europe"},{"$f":"TEXT(ventes[[#This Row],[DATES]],\"mmm\")","v":"janv"},{"$f":"WEEKNUM(ventes[[#This Row],[DATES]])","v":3}]
["2021-01-11","client34","Produit11",48.4,14,{"$f":"ventes[[#This Row],[PRIX UNITAIRE (FCFA)]]*ventes[[#This Row],[QUANTITE]]","v":677.6},{"$f":"VLOOKUP(ventes[[#This Row],[CLIENTS]],localisations[],2,0)","v":"Japon"},{"$f":"VLOOKUP(ventes[[#This Row],[CLIENTS]],localisations[],3,0)","v":"Asie"},{"$f":"TEXT(ventes[[#This Row],[DATES]],\"mmm\")","v":"janv"},{"$f":"WEEKNUM(ventes[[#This Row],[DATES]])","v":3}]
["2021-01-11","client17","Produit42",162,4,{"$f":"ventes[[#This Row],[PRIX UNITAIRE (FCFA)]]*ventes[[#This Row],[QUANTITE]]","v":648},{"$f":"VLOOKUP(ventes[[#This Row],[CLIENTS]],localisations[],2,0)","v":"Suède"},{"$f":"VLOOKUP(ventes[[#This Row],[CLIENTS]],localisations[],3,0)","v":"Europe"},{"$f":"TEXT(ventes[[#This Row],[DATES]],\"mmm\")","v":"janv"},{"$f":"WEEKNUM(ventes[[#This Row],[DATES]])","v":3}]
["2021-01-11","client20","Produit32",117.48,2,{"$f":"ventes[[#This Row],[PRIX UNITAIRE (FCFA)]]*ventes[[#This Row],[QUANTITE]]","v":234.96},{"$f":"VLOOKUP(ventes[[#This Row],[CLIENTS]],localisations[],2,0)","v":"France"},{"$f":"VLOOKUP(ventes[[#This Row],[CLIENTS]],localisations[],3,0)","v":"Europe"},{"$f":"TEXT(ventes[[#This Row],[DATES]],\"mmm\")","v":"janv"},{"$f":"WEEKNUM(ventes[[#This Row],[DATES]])","v":3}]
["2021-01-12","client05","Produit42",162,10,{"$f":"ventes[[#This Row],[PRIX UNITAIRE (FCFA)]]*ventes[[#This Row],[QUANTITE]]","v":1620},{"$f":"VLOOKUP(ventes[[#This Row],[CLIENTS]],localisations[],2,0)","v":"Algérie"},{"$f":"VLOOKUP(ventes[[#This Row],[CLIENTS]],localisations[],3,0)","v":"Afrique"},{"$f":"TEXT(ventes[[#This Row],[DATES]],\"mmm\")","v":"janv"},{"$f":"WEEKNUM(ventes[[#This Row],[DATES]])","v":3}]
["2021-01-13","client31","Produit16",16.64,15,{"$f":"ventes[[#This Row],[PRIX UNITAIRE (FCFA)]]*ventes[[#This Row],[QUANTITE]]","v":249.60000000000002},{"$f":"VLOOKUP(ventes[[#This Row],[CLIENTS]],localisations[],2,0)","v":"Corée du Sud"},{"$f":"VLOOKUP(ventes[[#This Row],[CLIENTS]],localisations[],3,0)","v":"Asie"},{"$f":"TEXT(ventes[[#This Row],[DATES]],\"mmm\")","v":"janv"},{"$f":"WEEKNUM(ventes[[#This Row],[DATES]])","v":3}]
["2021-01-13","client06","Produit19",210,6,{"$f":"ventes[[#This Row],[PRIX UNITAIRE (FCFA)]]*ventes[[#This Row],[QUANTITE]]","v":1260},{"$f":"VLOOKUP(ventes[[#This Row],[CLIENTS]],localisations[],2,0)","v":"Afrique du Sud"},{"$f":"VLOOKUP(ventes[[#This Row],[CLIENTS]],localisations[],3,0)","v":"Afrique"},{"$f":"TEXT(ventes[[#This Row],[DATES]],\"mmm\")","v":"janv"},{"$f":"WEEKNUM(ventes[[#This Row],[DATES]])","v":3}]
["2021-01-14","client38","Produit11",48.4,14,{"$f":"ventes[[#This Row],[PRIX UNITAIRE (FCFA)]]*ventes[[#This Row],[QUANTITE]]","v":677.6},{"$f":"VLOOKUP(ventes[[#This Row],[CLIENTS]],localisations[],2,0)","v":"Pakistan"},{"$f":"VLOOKUP(ventes[[#This Row],[CLIENTS]],localisations[],3,0)","v":"Asie"},{"$f":"TEXT(ventes[[#This Row],[DATES]],\"mmm\")","v":"janv"},{"$f":"WEEKNUM(ventes[[#This Row],[DATES]])","v":3}]
["2021-01-15","client14","Produit07",47.730000000000004,15,{"$f":"ventes[[#This Row],[PRIX UNITAIRE (FCFA)]]*ventes[[#This Row],[QUANTITE]]","v":715.95},{"$f":"VLOOKUP(ventes[[#This Row],[CLIENTS]],localisations[],2,0)","v":"Pays-Bas"},{"$f":"VLOOKUP(ventes[[#This Row],[CLIENTS]],localisations[],3,0)","v":"Europe"},{"$f":"TEXT(ventes[[#This Row],[DATES]],\"mmm\")","v":"janv"},{"$f":"WEEKNUM(ventes[[#This Row],[DATES]])","v":3}]
["2021-01-15","client20","Produit22",141.57,10,{"$f":"ventes[[#This Row],[PRIX UNITAIRE (FCFA)]]*ventes[[#This Row],[QUANTITE]]","v":1415.6999999999998},{"$f":"VLOOKUP(ventes[[#This Row],[CLIENTS]],localisations[],2,0)","v":"France"},{"$f":"VLOOKUP(ventes[[#This Row],[CLIENTS]],localisations[],3,0)","v":"Europe"},{"$f":"TEXT(ventes[[#This Row],[DATES]],\"mmm\")","v":"janv"},{"$f":"WEEKNUM(ventes[[#This Row],[DATES]])","v":3}]
["2021-01-16","client32","Produit14",146.72,11,{"$f":"ventes[[#This Row],[PRIX UNITAIRE (FCFA)]]*ventes[[#This Row],[QUANTITE]]","v":1613.92},{"$f":"VLOOKUP(ventes[[#This Row],[CLIENTS]],localisations[],2,0)","v":"Indonésie"},{"$f":"VLOOKUP(ventes[[#This Row],[CLIENTS]],localisations[],3,0)","v":"Asie"},{"$f":"TEXT(ventes[[#This Row],[DATES]],\"mmm\")","v":"janv"},{"$f":"WEEKNUM(ventes[[#This Row],[DATES]])","v":3}]
["2021-01-17","client08","Produit40",115.2,4,{"$f":"ventes[[#This Row],[PRIX UNITAIRE (FCFA)]]*ventes[[#This Row],[QUANTITE]]","v":460.8},{"$f":"VLOOKUP(ventes[[#This Row],[CLIENTS]],localisations[],2,0)","v":"Maroc"},{"$f":"VLOOKUP(ventes[[#This Row],[CLIENTS]],localisations[],3,0)","v":"Afrique"},{"$f":"TEXT(ventes[[#This Row],[DATES]],\"mmm\")","v":"janv"},{"$f":"WEEKNUM(ventes[[#This Row],[DATES]])","v":4}]
["2021-01-18","client06","Produit08",94.62,9,{"$f":"ventes[[#This Row],[PRIX UNITAIRE (FCFA)]]*ventes[[#This Row],[QUANTITE]]","v":851.58},{"$f":"VLOOKUP(ventes[[#This Row],[CLIENTS]],localisations[],2,0)","v":"Afrique du Sud"},{"$f":"VLOOKUP(ventes[[#This Row],[CLIENTS]],localisations[],3,0)","v":"Afrique"},{"$f":"TEXT(ventes[[#This Row],[DATES]],\"mmm\")","v":"janv"},{"$f":"WEEKNUM(ventes[[#This Row],[DATES]])","v":4}]
["2021-01-18","client19","Produit23",149.46,3,{"$f":"ventes[[#This Row],[PRIX UNITAIRE (FCFA)]]*ventes[[#This Row],[QUANTITE]]","v":448.38},{"$f":"VLOOKUP(ventes[[#This Row],[CLIENTS]],localisations[],2,0)","v":"Suisse"},{"$f":"VLOOKUP(ventes[[#This Row],[CLIENTS]],localisations[],3,0)","v":"Europe"},{"$f":"TEXT(ventes[[#This Row],[DATES]],\"mmm\")","v":"janv"},{"$f":"WEEKNUM(ventes[[#This Row],[DATES]])","v":4}]
["2021-01-18","client24","Produit44",82.08,13,{"$f":"ventes[[#This Row],[PRIX UNITAIRE (FCFA)]]*ventes[[#This Row],[QUANTITE]]","v":1067.04},{"$f":"VLOOKUP(ventes[[#This Row],[CLIENTS]],localisations[],2,0)","v":"Équateur"},{"$f":"VLOOKUP(ventes[[#This Row],[CLIENTS]],localisations[],3,0)","v":"Amérique"},{"$f":"TEXT(ventes[[#This Row],[DATES]],\"mmm\")","v":"janv"},{"$f":"WEEKNUM(ventes[[#This Row],[DATES]])","v":4}]
["2021-01-19","client20","Produit35",6.7,6,{"$f":"ventes[[#This Row],[PRIX UNITAIRE (FCFA)]]*ventes[[#This Row],[QUANTITE]]","v":40.200000000000003},{"$f":"VLOOKUP(ventes[[#This Row],[CLIENTS]],localisations[],2,0)","v":"France"},{"$f":"VLOOKUP(ventes[[#This Row],[CLIENTS]],localisations[],3,0)","v":"Europe"},{"$f":"TEXT(ventes[[#This Row],[DATES]],\"mmm\")","v":"janv"},{"$f":"WEEKNUM(ventes[[#This Row],[DATES]])","v":4}]
["2021-01-20","client09","Produit34",58.3,4,{"$f":"ventes[[#This Row],[PRIX UNITAIRE (FCFA)]]*ventes[[#This Row],[QUANTITE]]","v":233.2},{"$f":"VLOOKUP(ventes[[#This Row],[CLIENTS]],localisations[],2,0)","v":"Égypte"},{"$f":"VLOOKUP(ventes[[#This Row],[CLIENTS]],localisations[],3,0)","v":"Afrique"},{"$f":"TEXT(ventes[[#This Row],[DATES]],\"mmm\")","v":"janv"},{"$f":"WEEKNUM(ventes[[#This Row],[DATES]])","v":4}]
["2021-01-20","client35","Produit20",76.25,4,{"$f":"ventes[[#This Row],[PRIX UNITAIRE (FCFA)]]*ventes[[#This Row],[QUANTITE]]","v":305},{"$f":"VLOOKUP(ventes[[#This Row],[CLIENTS]],localisations[],2,0)","v":"Malaisie"},{"$f":"VLOOKUP(ventes[[#This Row],[CLIENTS]],localisations[],3,0)","v":"Asie"},{"$f":"TEXT(ventes[[#This Row],[DATES]],\"mmm\")","v":"janv"},{"$f":"WEEKNUM(ventes[[#This Row],[DATES]])","v":4}]
["2021-01-20","client18","Produit21",162.54,2,{"$f":"ventes[[#This Row],[PRIX UNITAIRE (FCFA)]]*ventes[[#This Row],[QUANTITE]]","v":325.08},{"$f":"VLOOKUP(ventes[[#This Row],[CLIENTS]],localisations[],2,0)","v":"Belgique"},{"$f":"VLOOKUP(ventes[[#This Row],[CLIENTS]],localisations[],3,0)","v":"Europe"},{"$f":"TEXT(ventes[[#This Row],[DATES]],\"mmm\")","v":"janv"},{"$f":"WEEKNUM(ventes[[#This Row],[DATES]])","v":4}]
["2021-01-20","client25","Produit14",146.72,7,{"$f":"ventes[[#This Row],[PRIX UNITAIRE (FCFA)]]*ventes[[#This Row],[QUANTITE]]","v":1027.04},{"$f":"VLOOKUP(ventes[[#This Row],[CLIENTS]],localisations[],2,0)","v":"Brésil"},{"$f":"VLOOKUP(ventes[[#This Row],[CLIENTS]],localisations[],3,0)","v":"Amérique"},{"$f":"TEXT(ventes[[#This Row],[DATES]],\"mmm\")","v":"janv"},{"$f":"WEEKNUM(ventes[[#This Row],[DATES]])","v":4}]
["2021-01-21","client36","Produit04",48.84,15,{"$f":"ventes[[#This Row],[PRIX UNITAIRE (FCFA)]]*ventes[[#This Row],[QUANTITE]]","v":732.6},{"$f":"VLOOKUP(ventes[[#This Row],[CLIENTS]],localisations[],2,0)","v":"Vietnam"},{"$f":"VLOOKUP(ventes[[#This Row],[CLIENTS]],localisations[],3,0)","v":"Asie"},{"$f":"TEXT(ventes[[#This Row],[DATES]],\"mmm\")","v":"janv"},{"$f":"WEEKNUM(ventes[[#This Row],[DATES]])","v":4}]
["2021-01-21","client38","Produit42",162,6,{"$f":"ventes[[#This Row],[PRIX UNITAIRE (FCFA)]]*ventes[[#This Row],[QUANTITE]]","v":972},{"$f":"VLOOKUP(ventes[[#This Row],[CLIENTS]],localisations[],2,0)","v":"Pakistan"},{"$f":"VLOOKUP(ventes[[#This Row],[CLIENTS]],localisations[],3,0)","v":"Asie"},{"$f":"TEXT(ventes[[#This Row],[DATES]],\"mmm\")","v":"janv"},{"$f":"WEEKNUM(ventes[[#This Row],[DATES]])","v":4}]
["2021-01-21","client29","Produit03",80.94,9,{"$f":"ventes[[#This Row],[PRIX UNITAIRE (FCFA)]]*ventes[[#This Row],[QUANTITE]]","v":728.46},{"$f":"VLOOKUP(ventes[[#This Row],[CLIENTS]],localisations[],2,0)","v":"Chili"},{"$f":"VLOOKUP(ventes[[#This Row],[CLIENTS]],localisations[],3,0)","v":"Amérique"},{"$f":"TEXT(ventes[[#This Row],[DATES]],\"mmm\")","v":"janv"},{"$f":"WEEKNUM(ventes[[#This Row],[DATES]])","v":4}]
["2021-01-22","client27","Produit01",103.88,6,{"$f":"ventes[[#This Row],[PRIX UNITAIRE (FCFA)]]*ventes[[#This Row],[QUANTITE]]","v":623.28},{"$f":"VLOOKUP(ventes[[#This Row],[CLIENTS]],localisations[],2,0)","v":"Mexique"},{"$f":"VLOOKUP(ventes[[#This Row],[CLIENTS]],localisations[],3,0)","v":"Amérique"},{"$f":"TEXT(ventes[[#This Row],[DATES]],\"mmm\")","v":"janv"},{"$f":"WEEKNUM(ventes[[#This Row],[DATES]])","v":4}]
["2021-01-23","client11","Produit02",142.80000000000001,5,{"$f":"ventes[[#This Row],[PRIX UNITAIRE (FCFA)]]*ventes[[#This Row],[QUANTITE]]","v":714},{"$f":"VLOOKUP(ventes[[#This Row],[CLIENTS]],localisations[],2,0)","v":"Espagne"},{"$f":"VLOOKUP(ventes[[#This Row],[CLIENTS]],localisations[],3,0)","v":"Europe"},{"$f":"TEXT(ventes[[#This Row],[DATES]],\"mmm\")","v":"janv"},{"$f":"WEEKNUM(ventes[[#This Row],[DATES]])","v":4}]
["2021-01-23","client18","Produit08",94.62,17,{"$f":"ventes[[#This Row],[PRIX UNITAIRE (FCFA)]]*ventes[[#This Row],[QUANTITE]]","v":1608.54},{"$f":"VLOOKUP(ventes[[#This Row],[CLIENTS]],localisations[],2,0)","v":"Belgique"},{"$f":"VLOOKUP(ventes[[#This Row],[CLIENTS]],localisations[],3,0)","v":"Europe"},{"$f":"TEXT(ventes[[#This Row],[DATES]],\"mmm\")","v":"janv"},{"$f":"WEEKNUM(ventes[[#This Row],[DATES]])","v":4}]
["2021-01-23","client19","Produit42",162,8,{"$f":"ventes[[#This Row],[PRIX UNITAIRE (FCFA)]]*ventes[[#This Row],[QUANTITE]]","v":1296},{"$f":"VLOOKUP(ventes[[#This Row],[CLIENTS]],localisations[],2,0)","v":"Suisse"},{"$f":"VLOOKUP(ventes[[#This Row],[CLIENTS]],localisations[],3,0)","v":"Europe"},{"$f":"TEXT(ventes[[#This Row],[DATES]],\"mmm\")","v":"janv"},{"$f":"WEEKNUM(ventes[[#This Row],[DATES]])","v":4}]
["2021-01-24","client26","Produit30",201.28,15,{"$f":"ventes[[#This Row],[PRIX UNITAIRE (FCFA)]]*ventes[[#This Row],[QUANTITE]]","v":3019.2},{"$f":"VLOOKUP(ventes[[#This Row],[CLIENTS]],localisations[],2,0)","v":"Pérou"},{"$f":"VLOOKUP(ventes[[#This Row],[CLIENTS]],localisations[],3,0)","v":"Amérique"},{"$f":"TEXT(ventes[[#This Row],[DATES]],\"mmm\")","v":"janv"},{"$f":"WEEKNUM(ventes[[#This Row],[DATES]])","v":5}]
["2021-01-25","client01","Produit31",104.16,14,{"$f":"ventes[[#This Row],[PRIX UNITAIRE (FCFA)]]*ventes[[#This Row],[QUANTITE]]","v":1458.24},{"$f":"VLOOKUP(ventes[[#This Row],[CLIENTS]],localisations[],2,0)","v":"Tunisie"},{"$f":"VLOOKUP(ventes[[#This Row],[CLIENTS]],localisations[],3,0)","v":"Afrique"},{"$f":"TEXT(ventes[[#This Row],[DATES]],\"mmm\")","v":"janv"},{"$f":"WEEKNUM(ventes[[#This Row],[DATES]])","v":5}]
["2021-01-25","client31","Produit35",6.7,7,{"$f":"ventes[[#This Row],[PRIX UNITAIRE (FCFA)]]*ventes[[#This Row],[QUANTITE]]","v":46.9},{"$f":"VLOOKUP(ventes[[#This Row],[CLIENTS]],localisations[],2,0)","v":"Corée du Sud"},{"$f":"VLOOKUP(ventes[[#This Row],[CLIENTS]],localisations[],3,0)","v":"Asie"},{"$f":"TEXT(ventes[[#This Row],[DATES]],\"mmm\")","v":"janv"},{"$f":"WEEKNUM(ventes[[#This Row],[DATES]])","v":5}]
["2021-01-25","client08","Produit34",58.3,6,{"$f":"ventes[[#This Row],[PRIX UNITAIRE (FCFA)]]*ventes[[#This Row],[QUANTITE]]","v":349.79999999999995},{"$f":"VLOOKUP(ventes[[#This Row],[CLIENTS]],localisations[],2,0)","v":"Maroc"},{"$f":"VLOOKUP(ventes[[#This Row],[CLIENTS]],localisations[],3,0)","v":"Afrique"},{"$f":"TEXT(ventes[[#This Row],[DATES]],\"mmm\")","v":"janv"},{"$f":"WEEKNUM(ventes[[#This Row],[DATES]])","v":5}]
["2021-01-25","client21","Produit17",156.78,14,{"$f":"ventes[[#This Row],[PRIX UNITAIRE (FCFA)]]*ventes[[#This Row],[QUANTITE]]","v":2194.92},{"$f":"VLOOKUP(ventes[[#This Row],[CLIENTS]],localisations[],2,0)","v":"Venezuela"},{"$f":"VLOOKUP(ventes[[#This Row],[CLIENTS]],localisations[],3,0)","v":"Amérique"},{"$f":"TEXT(ventes[[#This Row],[DATES]],\"mmm\")","v":"janv"},{"$f":"WEEKNUM(ventes[[#This Row],[DATES]])","v":5}]
["2021-01-26","client31","Produit24",156.96,29,{"$f":"ventes[[#This Row],[PRIX UNITAIRE (FCFA)]]*ventes[[#This Row],[QUANTITE]]","v":4551.84},{"$f":"VLOOKUP(ventes[[#This Row],[CLIENTS]],localisations[],2,0)","v":"Corée du Sud"},{"$f":"VLOOKUP(ventes[[#This Row],[CLIENTS]],localisations[],3,0)","v":"Asie"},{"$f":"TEXT(ventes[[#This Row],[DATES]],\"mmm\")","v":"janv"},{"$f":"WEEKNUM(ventes[[#This Row],[DATES]])","v":5}]
["2021-01-26","client06","Produit44",82.08,9,{"$f":"ventes[[#This Row],[PRIX UNITAIRE (FCFA)]]*ventes[[#This Row],[QUANTITE]]","v":738.72},{"$f":"VLOOKUP(ventes[[#This Row],[CLIENTS]],localisations[],2,0)","v":"Afrique du Sud"},{"$f":"VLOOKUP(ventes[[#This Row],[CLIENTS]],localisations[],3,0)","v":"Afrique"},{"$f":"TEXT(ventes[[#This Row],[DATES]],\"mmm\")","v":"janv"},{"$f":"WEEKNUM(ventes[[#This Row],[DATES]])","v":5}]
["2021-01-26","client34","Produit01",103.88,7,{"$f":"ventes[[#This Row],[PRIX UNITAIRE (FCFA)]]*ventes[[#This Row],[QUANTITE]]","v":727.16},{"$f":"VLOOKUP(ventes[[#This Row],[CLIENTS]],localisations[],2,0)","v":"Japon"},{"$f":"VLOOKUP(ventes[[#This Row],[CLIENTS]],localisations[],3,0)","v":"Asie"},{"$f":"TEXT(ventes[[#This Row],[DATES]],\"mmm\")","v":"janv"},{"$f":"WEEKNUM(ventes[[#This Row],[DATES]])","v":5}]
["2021-01-26","client17","Produit06",85.5,7,{"$f":"ventes[[#This Row],[PRIX UNITAIRE (FCFA)]]*ventes[[#This Row],[QUANTITE]]","v":598.5},{"$f":"VLOOKUP(ventes[[#This Row],[CLIENTS]],localisations[],2,0)","v":"Suède"},{"$f":"VLOOKUP(ventes[[#This Row],[CLIENTS]],localisations[],3,0)","v":"Europe"},{"$f":"TEXT(ventes[[#This Row],[DATES]],\"mmm\")","v":"janv"},{"$f":"WEEKNUM(ventes[[#This Row],[DATES]])","v":5}]
["2021-01-26","client18","Produit10",164.28,1,{"$f":"ventes[[#This Row],[PRIX UNITAIRE (FCFA)]]*ventes[[#This Row],[QUANTITE]]","v":164.28},{"$f":"VLOOKUP(ventes[[#This Row],[CLIENTS]],localisations[],2,0)","v":"Belgique"},{"$f":"VLOOKUP(ventes[[#This Row],[CLIENTS]],localisations[],3,0)","v":"Europe"},{"$f":"TEXT(ventes[[#This Row],[DATES]],\"mmm\")","v":"janv"},{"$f":"WEEKNUM(ventes[[#This Row],[DATES]])","v":5}]
["2021-01-27","client08","Produit32",117.48,3,{"$f":"ventes[[#This Row],[PRIX UNITAIRE (FCFA)]]*ventes[[#This Row],[QUANTITE]]","v":352.44},{"$f":"VLOOKUP(ventes[[#This Row],[CLIENTS]],localisations[],2,0)","v":"Maroc"},{"$f":"VLOOKUP(ventes[[#This Row],[CLIENTS]],localisations[],3,0)","v":"Afrique"},{"$f":"TEXT(ventes[[#This Row],[DATES]],\"mmm\")","v":"janv"},{"$f":"WEEKNUM(ventes[[#This Row],[DATES]])","v":5}]
["2021-01-27","client15","Produit40",115.2,7,{"$f":"ventes[[#This Row],[PRIX UNITAIRE (FCFA)]]*ventes[[#This Row],[QUANTITE]]","v":806.4},{"$f":"VLOOKUP(ventes[[#This Row],[CLIENTS]],localisations[],2,0)","v":"Allemagne"},{"$f":"VLOOKUP(ventes[[#This Row],[CLIENTS]],localisations[],3,0)","v":"Europe"},{"$f":"TEXT(ventes[[#This Row],[DATES]],\"mmm\")","v":"janv"},{"$f":"WEEKNUM(ventes[[#This Row],[DATES]])","v":5}]
["2021-01-27","client16","Produit05",155.61000000000001,37,{"$f":"ventes[[#This Row],[PRIX UNITAIRE (FCFA)]]*ventes[[#This Row],[QUANTITE]]","v":5757.5700000000006},{"$f":"VLOOKUP(ventes[[#This Row],[CLIENTS]],localisations[],2,0)","v":"Royaume-Uni"},{"$f":"VLOOKUP(ventes[[#This Row],[CLIENTS]],localisations[],3,0)","v":"Europe"},{"$f":"TEXT(ventes[[#This Row],[DATES]],\"mmm\")","v":"janv"},{"$f":"WEEKNUM(ventes[[#This Row],[DATES]])","v":5}]
["2021-01-27","client25","Produit19",210,21,{"$f":"ventes[[#This Row],[PRIX UNITAIRE (FCFA)]]*ventes[[#This Row],[QUANTITE]]","v":4410},{"$f":"VLOOKUP(ventes[[#This Row],[CLIENTS]],localisations[],2,0)","v":"Brésil"},{"$f":"VLOOKUP(ventes[[#This Row],[CLIENTS]],localisations[],3,0)","v":"Amérique"},{"$f":"TEXT(ventes[[#This Row],[DATES]],\"mmm\")","v":"janv"},{"$f":"WEEKNUM(ventes[[#This Row],[DATES]])","v":5}]
["2021-01-28","client31","Produit16",16.64,11,{"$f":"ventes[[#This Row],[PRIX UNITAIRE (FCFA)]]*ventes[[#This Row],[QUANTITE]]","v":183.04000000000002},{"$f":"VLOOKUP(ventes[[#This Row],[CLIENTS]],localisations[],2,0)","v":"Corée du Sud"},{"$f":"VLOOKUP(ventes[[#This Row],[CLIENTS]],localisations[],3,0)","v":"Asie"},{"$f":"TEXT(ventes[[#This Row],[DATES]],\"mmm\")","v":"janv"},{"$f":"WEEKNUM(ventes[[#This Row],[DATES]])","v":5}]
["2021-01-28","client03","Produit29",53.11,2,{"$f":"ventes[[#This Row],[PRIX UNITAIRE (FCFA)]]*ventes[[#This Row],[QUANTITE]]","v":106.22},{"$f":"VLOOKUP(ventes[[#This Row],[CLIENTS]],localisations[],2,0)","v":"Côte d'Ivoire"},{"$f":"VLOOKUP(ventes[[#This Row],[CLIENTS]],localisations[],3,0)","v":"Afrique"},{"$f":"TEXT(ventes[[#This Row],[DATES]],\"mmm\")","v":"janv"},{"$f":"WEEKNUM(ventes[[#This Row],[DATES]])","v":5}]
["2021-01-28","client39","Produit04",48.84,10,{"$f":"ventes[[#This Row],[PRIX UNITAIRE (FCFA)]]*ventes[[#This Row],[QUANTITE]]","v":488.40000000000003},{"$f":"VLOOKUP(ventes[[#This Row],[CLIENTS]],localisations[],2,0)","v":"Pakistan"},{"$f":"VLOOKUP(ventes[[#This Row],[CLIENTS]],localisations[],3,0)","v":"Asie"},{"$f":"TEXT(ventes[[#This Row],[DATES]],\"mmm\")","v":"janv"},{"$f":"WEEKNUM(ventes[[#This Row],[DATES]])","v":5}]
["2021-01-29","client33","Produit04",48.84,10,{"$f":"ventes[[#This Row],[PRIX UNITAIRE (FCFA)]]*ventes[[#This Row],[QUANTITE]]","v":488.40000000000003},{"$f":"VLOOKUP(ventes[[#This Row],[CLIENTS]],localisations[],2,0)","v":"Philippines"},{"$f":"VLOOKUP(ventes[[#This Row],[CLIENTS]],localisations[],3,0)","v":"Asie"},{"$f":"TEXT(ventes[[#This Row],[DATES]],\"mmm\")","v":"janv"},{"$f":"WEEKNUM(ventes[[#This Row],[DATES]])","v":5}]
["2021-01-29","client19","Produit24",156.96,25,{"$f":"ventes[[#This Row],[PRIX UNITAIRE (FCFA)]]*ventes[[#This Row],[QUANTITE]]","v":3924},{"$f":"VLOOKUP(ventes[[#This Row],[CLIENTS]],localisations[],2,0)","v":"Suisse"},{"$f":"VLOOKUP(ventes[[#This Row],[CLIENTS]],localisations[],3,0)","v":"Europe"},{"$f":"TEXT(ventes[[#This Row],[DATES]],\"mmm\")","v":"janv"},{"$f":"WEEKNUM(ventes[[#This Row],[DATES]])","v":5}]
["2021-01-29","client36","Produit14",146.72,21,{"$f":"ventes[[#This Row],[PRIX UNITAIRE (FCFA)]]*ventes[[#This Row],[QUANTITE]]","v":3081.12},{"$f":"VLOOKUP(ventes[[#This Row],[CLIENTS]],localisations[],2,0)","v":"Vietnam"},{"$f":"VLOOKUP(ventes[[#This Row],[CLIENTS]],localisations[],3,0)","v":"Asie"},{"$f":"TEXT(ventes[[#This Row],[DATES]],\"mmm\")","v":"janv"},{"$f":"WEEKNUM(ventes[[#This Row],[DATES]])","v":5}]
["2021-01-30","client35","Produit43",83.08,2,{"$f":"ventes[[#This Row],[PRIX UNITAIRE (FCFA)]]*ventes[[#This Row],[QUANTITE]]","v":166.16},{"$f":"VLOOKUP(ventes[[#This Row],[CLIENTS]],localisations[],2,0)","v":"Malaisie"},{"$f":"VLOOKUP(ventes[[#This Row],[CLIENTS]],localisations[],3,0)","v":"Asie"},{"$f":"TEXT(ventes[[#This Row],[DATES]],\"mmm\")","v":"janv"},{"$f":"WEEKNUM(ventes[[#This Row],[DATES]])","v":5}]
["2021-01-30","client21","Produit27",57.120000000000005,2,{"$f":"ventes[[#This Row],[PRIX UNITAIRE (FCFA)]]*ventes[[#This Row],[QUANTITE]]","v":114.24000000000001},{"$f":"VLOOKUP(ventes[[#This Row],[CLIENTS]],localisations[],2,0)","v":"Venezuela"},{"$f":"VLOOKUP(ventes[[#This Row],[CLIENTS]],localisations[],3,0)","v":"Amérique"},{"$f":"TEXT(ventes[[#This Row],[DATES]],\"mmm\")","v":"janv"},{"$f":"WEEKNUM(ventes[[#This Row],[DATES]])","v":5}]
["2021-01-31","client33","Produit27",57.120000000000005,20,{"$f":"ventes[[#This Row],[PRIX UNITAIRE (FCFA)]]*ventes[[#This Row],[QUANTITE]]","v":1142.4000000000001},{"$f":"VLOOKUP(ventes[[#This Row],[CLIENTS]],localisations[],2,0)","v":"Philippines"},{"$f":"VLOOKUP(ventes[[#This Row],[CLIENTS]],localisations[],3,0)","v":"Asie"},{"$f":"TEXT(ventes[[#This Row],[DATES]],\"mmm\")","v":"janv"},{"$f":"WEEKNUM(ventes[[#This Row],[DATES]])","v":6}]
["2021-01-31","client33","Produit28",41.81,3,{"$f":"ventes[[#This Row],[PRIX UNITAIRE (FCFA)]]*ventes[[#This Row],[QUANTITE]]","v":125.43},{"$f":"VLOOKUP(ventes[[#This Row],[CLIENTS]],localisations[],2,0)","v":"Philippines"},{"$f":"VLOOKUP(ventes[[#This Row],[CLIENTS]],localisations[],3,0)","v":"Asie"},{"$f":"TEXT(ventes[[#This Row],[DATES]],\"mmm\")","v":"janv"},{"$f":"WEEKNUM(ventes[[#This Row],[DATES]])","v":6}]
["2021-01-31","client22","Produit41",173.88,9,{"$f":"ventes[[#This Row],[PRIX UNITAIRE (FCFA)]]*ventes[[#This Row],[QUANTITE]]","v":1564.92},{"$f":"VLOOKUP(ventes[[#This Row],[CLIENTS]],localisations[],2,0)","v":"Canada"},{"$f":"VLOOKUP(ventes[[#This Row],[CLIENTS]],localisations[],3,0)","v":"Amérique"},{"$f":"TEXT(ventes[[#This Row],[DATES]],\"mmm\")","v":"janv"},{"$f":"WEEKNUM(ventes[[#This Row],[DATES]])","v":6}]
["2021-01-31","client39","Produit03",80.94,33,{"$f":"ventes[[#This Row],[PRIX UNITAIRE (FCFA)]]*ventes[[#This Row],[QUANTITE]]","v":2671.02},{"$f":"VLOOKUP(ventes[[#This Row],[CLIENTS]],localisations[],2,0)","v":"Pakistan"},{"$f":"VLOOKUP(ventes[[#This Row],[CLIENTS]],localisations[],3,0)","v":"Asie"},{"$f":"TEXT(ventes[[#This Row],[DATES]],\"mmm\")","v":"janv"},{"$f":"WEEKNUM(ventes[[#This Row],[DATES]])","v":6}]
["2021-01-31","client30","Produit23",149.46,6,{"$f":"ventes[[#This Row],[PRIX UNITAIRE (FCFA)]]*ventes[[#This Row],[QUANTITE]]","v":896.76},{"$f":"VLOOKUP(ventes[[#This Row],[CLIENTS]],localisations[],2,0)","v":"Colombie"},{"$f":"VLOOKUP(ventes[[#This Row],[CLIENTS]],localisations[],3,0)","v":"Amérique"},{"$f":"TEXT(ventes[[#This Row],[DATES]],\"mmm\")","v":"janv"},{"$f":"WEEKNUM(ventes[[#This Row],[DATES]])","v":6}]
["2021-02-01","client01","Produit05",155.61000000000001,9,{"$f":"ventes[[#This Row],[PRIX UNITAIRE (FCFA)]]*ventes[[#This Row],[QUANTITE]]","v":1400.4900000000002},{"$f":"VLOOKUP(ventes[[#This Row],[CLIENTS]],localisations[],2,0)","v":"Tunisie"},{"$f":"VLOOKUP(ventes[[#This Row],[CLIENTS]],localisations[],3,0)","v":"Afrique"},{"$f":"TEXT(ventes[[#This Row],[DATES]],\"mmm\")","v":"févr"},{"$f":"WEEKNUM(ventes[[#This Row],[DATES]])","v":6}]
["2021-02-02","client35","Produit10",164.28,7,{"$f":"ventes[[#This Row],[PRIX UNITAIRE (FCFA)]]*ventes[[#This Row],[QUANTITE]]","v":1149.96},{"$f":"VLOOKUP(ventes[[#This Row],[CLIENTS]],localisations[],2,0)","v":"Malaisie"},{"$f":"VLOOKUP(ventes[[#This Row],[CLIENTS]],localisations[],3,0)","v":"Asie"},{"$f":"TEXT(ventes[[#This Row],[DATES]],\"mmm\")","v":"févr"},{"$f":"WEEKNUM(ventes[[#This Row],[DATES]])","v":6}]
["2021-02-03","client31","Produit22",141.57,2,{"$f":"ventes[[#This Row],[PRIX UNITAIRE (FCFA)]]*ventes[[#This Row],[QUANTITE]]","v":283.14},{"$f":"VLOOKUP(ventes[[#This Row],[CLIENTS]],localisations[],2,0)","v":"Corée du Sud"},{"$f":"VLOOKUP(ventes[[#This Row],[CLIENTS]],localisations[],3,0)","v":"Asie"},{"$f":"TEXT(ventes[[#This Row],[DATES]],\"mmm\")","v":"févr"},{"$f":"WEEKNUM(ventes[[#This Row],[DATES]])","v":6}]
["2021-02-03","client33","Produit19",210,39,{"$f":"ventes[[#This Row],[PRIX UNITAIRE (FCFA)]]*ventes[[#This Row],[QUANTITE]]","v":8190},{"$f":"VLOOKUP(ventes[[#This Row],[CLIENTS]],localisations[],2,0)","v":"Philippines"},{"$f":"VLOOKUP(ventes[[#This Row],[CLIENTS]],localisations[],3,0)","v":"Asie"},{"$f":"TEXT(ventes[[#This Row],[DATES]],\"mmm\")","v":"févr"},{"$f":"WEEKNUM(ventes[[#This Row],[DATES]])","v":6}]
["2021-02-03","client25","Produit38",79.92,27,{"$f":"ventes[[#This Row],[PRIX UNITAIRE (FCFA)]]*ventes[[#This Row],[QUANTITE]]","v":2157.84},{"$f":"VLOOKUP(ventes[[#This Row],[CLIENTS]],localisations[],2,0)","v":"Brésil"},{"$f":"VLOOKUP(ventes[[#This Row],[CLIENTS]],localisations[],3,0)","v":"Amérique"},{"$f":"TEXT(ventes[[#This Row],[DATES]],\"mmm\")","v":"févr"},{"$f":"WEEKNUM(ventes[[#This Row],[DATES]])","v":6}]
["2021-02-03","client27","Produit14",146.72,8,{"$f":"ventes[[#This Row],[PRIX UNITAIRE (FCFA)]]*ventes[[#This Row],[QUANTITE]]","v":1173.76},{"$f":"VLOOKUP(ventes[[#This Row],[CLIENTS]],localisations[],2,0)","v":"Mexique"},{"$f":"VLOOKUP(ventes[[#This Row],[CLIENTS]],localisations[],3,0)","v":"Amérique"},{"$f":"TEXT(ventes[[#This Row],[DATES]],\"mmm\")","v":"févr"},{"$f":"WEEKNUM(ventes[[#This Row],[DATES]])","v":6}]
["2021-02-03","client29","Produit16",16.64,13,{"$f":"ventes[[#This Row],[PRIX UNITAIRE (FCFA)]]*ventes[[#This Row],[QUANTITE]]","v":216.32},{"$f":"VLOOKUP(ventes[[#This Row],[CLIENTS]],localisations[],2,0)","v":"Chili"},{"$f":"VLOOKUP(ventes[[#This Row],[CLIENTS]],localisations[],3,0)","v":"Amérique"},{"$f":"TEXT(ventes[[#This Row],[DATES]],\"mmm\")","v":"févr"},{"$f":"WEEKNUM(ventes[[#This Row],[DATES]])","v":6}]
["2021-02-04","client36","Produit44",82.08,39,{"$f":"ventes[[#This Row],[PRIX UNITAIRE (FCFA)]]*ventes[[#This Row],[QUANTITE]]","v":3201.12},{"$f":"VLOOKUP(ventes[[#This Row],[CLIENTS]],localisations[],2,0)","v":"Vietnam"},{"$f":"VLOOKUP(ventes[[#This Row],[CLIENTS]],localisations[],3,0)","v":"Asie"},{"$f":"TEXT(ventes[[#This Row],[DATES]],\"mmm\")","v":"févr"},{"$f":"WEEKNUM(ventes[[#This Row],[DATES]])","v":6}]
["2021-02-04","client25","Produit37",85.76,4,{"$f":"ventes[[#This Row],[PRIX UNITAIRE (FCFA)]]*ventes[[#This Row],[QUANTITE]]","v":343.04},{"$f":"VLOOKUP(ventes[[#This Row],[CLIENTS]],localisations[],2,0)","v":"Brésil"},{"$f":"VLOOKUP(ventes[[#This Row],[CLIENTS]],localisations[],3,0)","v":"Amérique"},{"$f":"TEXT(ventes[[#This Row],[DATES]],\"mmm\")","v":"févr"},{"$f":"WEEKNUM(ventes[[#This Row],[DATES]])","v":6}]
["2021-02-04","client26","Produit14",146.72,26,{"$f":"ventes[[#This Row],[PRIX UNITAIRE (FCFA)]]*ventes[[#This Row],[QUANTITE]]","v":3814.72},{"$f":"VLOOKUP(ventes[[#This Row],[CLIENTS]],localisations[],2,0)","v":"Pérou"},{"$f":"VLOOKUP(ventes[[#This Row],[CLIENTS]],localisations[],3,0)","v":"Amérique"},{"$f":"TEXT(ventes[[#This Row],[DATES]],\"mmm\")","v":"févr"},{"$f":"WEEKNUM(ventes[[#This Row],[DATES]])","v":6}]
["2021-02-04","client27","Produit25",8.33,3,{"$f":"ventes[[#This Row],[PRIX UNITAIRE (FCFA)]]*ventes[[#This Row],[QUANTITE]]","v":24.990000000000002},{"$f":"VLOOKUP(ventes[[#This Row],[CLIENTS]],localisations[],2,0)","v":"Mexique"},{"$f":"VLOOKUP(ventes[[#This Row],[CLIENTS]],localisations[],3,0)","v":"Amérique"},{"$f":"TEXT(ventes[[#This Row],[DATES]],\"mmm\")","v":"févr"},{"$f":"WEEKNUM(ventes[[#This Row],[DATES]])","v":6}]
["2021-02-05","client01","Produit03",80.94,24,{"$f":"ventes[[#This Row],[PRIX UNITAIRE (FCFA)]]*ventes[[#This Row],[QUANTITE]]","v":1942.56},{"$f":"VLOOKUP(ventes[[#This Row],[CLIENTS]],localisations[],2,0)","v":"Tunisie"},{"$f":"VLOOKUP(ventes[[#This Row],[CLIENTS]],localisations[],3,0)","v":"Afrique"},{"$f":"TEXT(ventes[[#This Row],[DATES]],\"mmm\")","v":"févr"},{"$f":"WEEKNUM(ventes[[#This Row],[DATES]])","v":6}]
["2021-02-05","client32","Produit39",42.55,38,{"$f":"ventes[[#This Row],[PRIX UNITAIRE (FCFA)]]*ventes[[#This Row],[QUANTITE]]","v":1616.8999999999999},{"$f":"VLOOKUP(ventes[[#This Row],[CLIENTS]],localisations[],2,0)","v":"Indonésie"},{"$f":"VLOOKUP(ventes[[#This Row],[CLIENTS]],localisations[],3,0)","v":"Asie"},{"$f":"TEXT(ventes[[#This Row],[DATES]],\"mmm\")","v":"févr"},{"$f":"WEEKNUM(ventes[[#This Row],[DATES]])","v":6}]
["2021-02-05","client11","Produit05",155.61000000000001,1,{"$f":"ventes[[#This Row],[PRIX UNITAIRE (FCFA)]]*ventes[[#This Row],[QUANTITE]]","v":155.61000000000001},{"$f":"VLOOKUP(ventes[[#This Row],[CLIENTS]],localisations[],2,0)","v":"Espagne"},{"$f":"VLOOKUP(ventes[[#This Row],[CLIENTS]],localisations[],3,0)","v":"Europe"},{"$f":"TEXT(ventes[[#This Row],[DATES]],\"mmm\")","v":"févr"},{"$f":"WEEKNUM(ventes[[#This Row],[DATES]])","v":6}]
["2021-02-05","client16","Produit43",83.08,7,{"$f":"ventes[[#This Row],[PRIX UNITAIRE (FCFA)]]*ventes[[#This Row],[QUANTITE]]","v":581.55999999999995},{"$f":"VLOOKUP(ventes[[#This Row],[CLIENTS]],localisations[],2,0)","v":"Royaume-Uni"},{"$f":"VLOOKUP(ventes[[#This Row],[CLIENTS]],localisations[],3,0)","v":"Europe"},{"$f":"TEXT(ventes[[#This Row],[DATES]],\"mmm\")","v":"févr"},{"$f":"WEEKNUM(ventes[[#This Row],[DATES]])","v":6}]
["2021-02-05","client20","Produit43",83.08,9,{"$f":"ventes[[#This Row],[PRIX UNITAIRE (FCFA)]]*ventes[[#This Row],[QUANTITE]]","v":747.72},{"$f":"VLOOKUP(ventes[[#This Row],[CLIENTS]],localisations[],2,0)","v":"France"},{"$f":"VLOOKUP(ventes[[#This Row],[CLIENTS]],localisations[],3,0)","v":"Europe"},{"$f":"TEXT(ventes[[#This Row],[DATES]],\"mmm\")","v":"févr"},{"$f":"WEEKNUM(ventes[[#This Row],[DATES]])","v":6}]
["2021-02-05","client30","Produit18",49.21,6,{"$f":"ventes[[#This Row],[PRIX UNITAIRE (FCFA)]]*ventes[[#This Row],[QUANTITE]]","v":295.26},{"$f":"VLOOKUP(ventes[[#This Row],[CLIENTS]],localisations[],2,0)","v":"Colombie"},{"$f":"VLOOKUP(ventes[[#This Row],[CLIENTS]],localisations[],3,0)","v":"Amérique"},{"$f":"TEXT(ventes[[#This Row],[DATES]],\"mmm\")","v":"févr"},{"$f":"WEEKNUM(ventes[[#This Row],[DATES]])","v":6}]
["2021-02-06","client31","Produit09",7.8599999999999994,30,{"$f":"ventes[[#This Row],[PRIX UNITAIRE (FCFA)]]*ventes[[#This Row],[QUANTITE]]","v":235.79999999999998},{"$f":"VLOOKUP(ventes[[#This Row],[CLIENTS]],localisations[],2,0)","v":"Corée du Sud"},{"$f":"VLOOKUP(ventes[[#This Row],[CLIENTS]],localisations[],3,0)","v":"Asie"},{"$f":"TEXT(ventes[[#This Row],[DATES]],\"mmm\")","v":"févr"},{"$f":"WEEKNUM(ventes[[#This Row],[DATES]])","v":6}]
["2021-02-06","client22","Produit02",142.80000000000001,6,{"$f":"ventes[[#This Row],[PRIX UNITAIRE (FCFA)]]*ventes[[#This Row],[QUANTITE]]","v":856.80000000000007},{"$f":"VLOOKUP(ventes[[#This Row],[CLIENTS]],localisations[],2,0)","v":"Canada"},{"$f":"VLOOKUP(ventes[[#This Row],[CLIENTS]],localisations[],3,0)","v":"Amérique"},{"$f":"TEXT(ventes[[#This Row],[DATES]],\"mmm\")","v":"févr"},{"$f":"WEEKNUM(ventes[[#This Row],[DATES]])","v":6}]
["2021-02-06","client29","Produit35",6.7,1,{"$f":"ventes[[#This Row],[PRIX UNITAIRE (FCFA)]]*ventes[[#This Row],[QUANTITE]]","v":6.7},{"$f":"VLOOKUP(ventes[[#This Row],[CLIENTS]],localisations[],2,0)","v":"Chili"},{"$f":"VLOOKUP(ventes[[#This Row],[CLIENTS]],localisations[],3,0)","v":"Amérique"},{"$f":"TEXT(ventes[[#This Row],[DATES]],\"mmm\")","v":"févr"},{"$f":"WEEKNUM(ventes[[#This Row],[DATES]])","v":6}]
["2021-02-07","client08","Produit35",6.7,29,{"$f":"ventes[[#This Row],[PRIX UNITAIRE (FCFA)]]*ventes[[#This Row],[QUANTITE]]","v":194.3},{"$f":"VLOOKUP(ventes[[#This Row],[CLIENTS]],localisations[],2,0)","v":"Maroc"},{"$f":"VLOOKUP(ventes[[#This Row],[CLIENTS]],localisations[],3,0)","v":"Afrique"},{"$f":"TEXT(ventes[[#This Row],[DATES]],\"mmm\")","v":"févr"},{"$f":"WEEKNUM(ventes[[#This Row],[DATES]])","v":7}]
["2021-02-07","client25","Produit16",16.64,5,{"$f":"ventes[[#This Row],[PRIX UNITAIRE (FCFA)]]*ventes[[#This Row],[QUANTITE]]","v":83.2},{"$f":"VLOOKUP(ventes[[#This Row],[CLIENTS]],localisations[],2,0)","v":"Brésil"},{"$f":"VLOOKUP(ventes[[#This Row],[CLIENTS]],localisations[],3,0)","v":"Amérique"},{"$f":"TEXT(ventes[[#This Row],[DATES]],\"mmm\")","v":"févr"},{"$f":"WEEKNUM(ventes[[#This Row],[DATES]])","v":7}]
["2021-02-08","client03","Produit04",48.84,3,{"$f":"ventes[[#This Row],[PRIX UNITAIRE (FCFA)]]*ventes[[#This Row],[QUANTITE]]","v":146.52000000000001},{"$f":"VLOOKUP(ventes[[#This Row],[CLIENTS]],localisations[],2,0)","v":"Côte d'Ivoire"},{"$f":"VLOOKUP(ventes[[#This Row],[CLIENTS]],localisations[],3,0)","v":"Afrique"},{"$f":"TEXT(ventes[[#This Row],[DATES]],\"mmm\")","v":"févr"},{"$f":"WEEKNUM(ventes[[#This Row],[DATES]])","v":7}]
["2021-02-08","client32","Produit05",155.61000000000001,11,{"$f":"ventes[[#This Row],[PRIX UNITAIRE (FCFA)]]*ventes[[#This Row],[QUANTITE]]","v":1711.71},{"$f":"VLOOKUP(ventes[[#This Row],[CLIENTS]],localisations[],2,0)","v":"Indonésie"},{"$f":"VLOOKUP(ventes[[#This Row],[CLIENTS]],localisations[],3,0)","v":"Asie"},{"$f":"TEXT(ventes[[#This Row],[DATES]],\"mmm\")","v":"févr"},{"$f":"WEEKNUM(ventes[[#This Row],[DATES]])","v":7}]
["2021-02-08","client06","Produit40",115.2,39,{"$f":"ventes[[#This Row],[PRIX UNITAIRE (FCFA)]]*ventes[[#This Row],[QUANTITE]]","v":4492.8},{"$f":"VLOOKUP(ventes[[#This Row],[CLIENTS]],localisations[],2,0)","v":"Afrique du Sud"},{"$f":"VLOOKUP(ventes[[#This Row],[CLIENTS]],localisations[],3,0)","v":"Afrique"},{"$f":"TEXT(ventes[[#This Row],[DATES]],\"mmm\")","v":"févr"},{"$f":"WEEKNUM(ventes[[#This Row],[DATES]])","v":7}]
["2021-02-08","client06","Produit30",201.28,12,{"$f":"ventes[[#This Row],[PRIX UNITAIRE (FCFA)]]*ventes[[#This Row],[QUANTITE]]","v":2415.36},{"$f":"VLOOKUP(ventes[[#This Row],[CLIENTS]],localisations[],2,0)","v":"Afrique du Sud"},{"$f":"VLOOKUP(ventes[[#This Row],[CLIENTS]],localisations[],3,0)","v":"Afrique"},{"$f":"TEXT(ventes[[#This Row],[DATES]],\"mmm\")","v":"févr"},{"$f":"WEEKNUM(ventes[[#This Row],[DATES]])","v":7}]
["2021-02-09","client16","Produit34",58.3,14,{"$f":"ventes[[#This Row],[PRIX UNITAIRE (FCFA)]]*ventes[[#This Row],[QUANTITE]]","v":816.19999999999993},{"$f":"VLOOKUP(ventes[[#This Row],[CLIENTS]],localisations[],2,0)","v":"Royaume-Uni"},{"$f":"VLOOKUP(ventes[[#This Row],[CLIENTS]],localisations[],3,0)","v":"Europe"},{"$f":"TEXT(ventes[[#This Row],[DATES]],\"mmm\")","v":"févr"},{"$f":"WEEKNUM(ventes[[#This Row],[DATES]])","v":7}]
["2021-02-09","client16","Produit21",162.54,32,{"$f":"ventes[[#This Row],[PRIX UNITAIRE (FCFA)]]*ventes[[#This Row],[QUANTITE]]","v":5201.28},{"$f":"VLOOKUP(ventes[[#This Row],[CLIENTS]],localisations[],2,0)","v":"Royaume-Uni"},{"$f":"VLOOKUP(ventes[[#This Row],[CLIENTS]],localisations[],3,0)","v":"Europe"},{"$f":"TEXT(ventes[[#This Row],[DATES]],\"mmm\")","v":"févr"},{"$f":"WEEKNUM(ventes[[#This Row],[DATES]])","v":7}]
["2021-02-09","client30","Produit32",117.48,14,{"$f":"ventes[[#This Row],[PRIX UNITAIRE (FCFA)]]*ventes[[#This Row],[QUANTITE]]","v":1644.72},{"$f":"VLOOKUP(ventes[[#This Row],[CLIENTS]],localisations[],2,0)","v":"Colombie"},{"$f":"VLOOKUP(ventes[[#This Row],[CLIENTS]],localisations[],3,0)","v":"Amérique"},{"$f":"TEXT(ventes[[#This Row],[DATES]],\"mmm\")","v":"févr"},{"$f":"WEEKNUM(ventes[[#This Row],[DATES]])","v":7}]
["2021-02-10","client04","Produit19",210,4,{"$f":"ventes[[#This Row],[PRIX UNITAIRE (FCFA)]]*ventes[[#This Row],[QUANTITE]]","v":840},{"$f":"VLOOKUP(ventes[[#This Row],[CLIENTS]],localisations[],2,0)","v":"Sénégal"},{"$f":"VLOOKUP(ventes[[#This Row],[CLIENTS]],localisations[],3,0)","v":"Afrique"},{"$f":"TEXT(ventes[[#This Row],[DATES]],\"mmm\")","v":"févr"},{"$f":"WEEKNUM(ventes[[#This Row],[DATES]])","v":7}]
["2021-02-10","client19","Produit08",94.62,38,{"$f":"ventes[[#This Row],[PRIX UNITAIRE (FCFA)]]*ventes[[#This Row],[QUANTITE]]","v":3595.5600000000004},{"$f":"VLOOKUP(ventes[[#This Row],[CLIENTS]],localisations[],2,0)","v":"Suisse"},{"$f":"VLOOKUP(ventes[[#This Row],[CLIENTS]],localisations[],3,0)","v":"Europe"},{"$f":"TEXT(ventes[[#This Row],[DATES]],\"mmm\")","v":"févr"},{"$f":"WEEKNUM(ventes[[#This Row],[DATES]])","v":7}]
["2021-02-12","client01","Produit23",149.46,9,{"$f":"ventes[[#This Row],[PRIX UNITAIRE (FCFA)]]*ventes[[#This Row],[QUANTITE]]","v":1345.14},{"$f":"VLOOKUP(ventes[[#This Row],[CLIENTS]],localisations[],2,0)","v":"Tunisie"},{"$f":"VLOOKUP(ventes[[#This Row],[CLIENTS]],localisations[],3,0)","v":"Afrique"},{"$f":"TEXT(ventes[[#This Row],[DATES]],\"mmm\")","v":"févr"},{"$f":"WEEKNUM(ventes[[#This Row],[DATES]])","v":7}]
["2021-02-12","client33","Produit10",164.28,13,{"$f":"ventes[[#This Row],[PRIX UNITAIRE (FCFA)]]*ventes[[#This Row],[QUANTITE]]","v":2135.64},{"$f":"VLOOKUP(ventes[[#This Row],[CLIENTS]],localisations[],2,0)","v":"Philippines"},{"$f":"VLOOKUP(ventes[[#This Row],[CLIENTS]],localisations[],3,0)","v":"Asie"},{"$f":"TEXT(ventes[[#This Row],[DATES]],\"mmm\")","v":"févr"},{"$f":"WEEKNUM(ventes[[#This Row],[DATES]])","v":7}]
["2021-02-12","client15","Produit08",94.62,7,{"$f":"ventes[[#This Row],[PRIX UNITAIRE (FCFA)]]*ventes[[#This Row],[QUANTITE]]","v":662.34},{"$f":"VLOOKUP(ventes[[#This Row],[CLIENTS]],localisations[],2,0)","v":"Allemagne"},{"$f":"VLOOKUP(ventes[[#This Row],[CLIENTS]],localisations[],3,0)","v":"Europe"},{"$f":"TEXT(ventes[[#This Row],[DATES]],\"mmm\")","v":"févr"},{"$f":"WEEKNUM(ventes[[#This Row],[DATES]])","v":7}]
["2021-02-13","client33","Produit03",80.94,17,{"$f":"ventes[[#This Row],[PRIX UNITAIRE (FCFA)]]*ventes[[#This Row],[QUANTITE]]","v":1375.98},{"$f":"VLOOKUP(ventes[[#This Row],[CLIENTS]],localisations[],2,0)","v":"Philippines"},{"$f":"VLOOKUP(ventes[[#This Row],[CLIENTS]],localisations[],3,0)","v":"Asie"},{"$f":"TEXT(ventes[[#This Row],[DATES]],\"mmm\")","v":"févr"},{"$f":"WEEKNUM(ventes[[#This Row],[DATES]])","v":7}]
["2021-02-13","client36","Produit05",155.61000000000001,35,{"$f":"ventes[[#This Row],[PRIX UNITAIRE (FCFA)]]*ventes[[#This Row],[QUANTITE]]","v":5446.35},{"$f":"VLOOKUP(ventes[[#This Row],[CLIENTS]],localisations[],2,0)","v":"Vietnam"},{"$f":"VLOOKUP(ventes[[#This Row],[CLIENTS]],localisations[],3,0)","v":"Asie"},{"$f":"TEXT(ventes[[#This Row],[DATES]],\"mmm\")","v":"févr"},{"$f":"WEEKNUM(ventes[[#This Row],[DATES]])","v":7}]
["2021-02-14","client01","Produit28",41.81,3,{"$f":"ventes[[#This Row],[PRIX UNITAIRE (FCFA)]]*ventes[[#This Row],[QUANTITE]]","v":125.43},{"$f":"VLOOKUP(ventes[[#This Row],[CLIENTS]],localisations[],2,0)","v":"Tunisie"},{"$f":"VLOOKUP(ventes[[#This Row],[CLIENTS]],localisations[],3,0)","v":"Afrique"},{"$f":"TEXT(ventes[[#This Row],[DATES]],\"mmm\")","v":"févr"},{"$f":"WEEKNUM(ventes[[#This Row],[DATES]])","v":8}]
["2021-02-14","client21","Produit34",58.3,8,{"$f":"ventes[[#This Row],[PRIX UNITAIRE (FCFA)]]*ventes[[#This Row],[QUANTITE]]","v":466.4},{"$f":"VLOOKUP(ventes[[#This Row],[CLIENTS]],localisations[],2,0)","v":"Venezuela"},{"$f":"VLOOKUP(ventes[[#This Row],[CLIENTS]],localisations[],3,0)","v":"Amérique"},{"$f":"TEXT(ventes[[#This Row],[DATES]],\"mmm\")","v":"févr"},{"$f":"WEEKNUM(ventes[[#This Row],[DATES]])","v":8}]
["2021-02-14","client30","Produit26",24.66,8,{"$f":"ventes[[#This Row],[PRIX UNITAIRE (FCFA)]]*ventes[[#This Row],[QUANTITE]]","v":197.28},{"$f":"VLOOKUP(ventes[[#This Row],[CLIENTS]],localisations[],2,0)","v":"Colombie"},{"$f":"VLOOKUP(ventes[[#This Row],[CLIENTS]],localisations[],3,0)","v":"Amérique"},{"$f":"TEXT(ventes[[#This Row],[DATES]],\"mmm\")","v":"févr"},{"$f":"WEEKNUM(ventes[[#This Row],[DATES]])","v":8}]
["2021-02-15","client01","Produit29",53.11,28,{"$f":"ventes[[#This Row],[PRIX UNITAIRE (FCFA)]]*ventes[[#This Row],[QUANTITE]]","v":1487.08},{"$f":"VLOOKUP(ventes[[#This Row],[CLIENTS]],localisations[],2,0)","v":"Tunisie"},{"$f":"VLOOKUP(ventes[[#This Row],[CLIENTS]],localisations[],3,0)","v":"Afrique"},{"$f":"TEXT(ventes[[#This Row],[DATES]],\"mmm\")","v":"févr"},{"$f":"WEEKNUM(ventes[[#This Row],[DATES]])","v":8}]
["2021-02-15","client06","Produit27",57.120000000000005,4,{"$f":"ventes[[#This Row],[PRIX UNITAIRE (FCFA)]]*ventes[[#This Row],[QUANTITE]]","v":228.48000000000002},{"$f":"VLOOKUP(ventes[[#This Row],[CLIENTS]],localisations[],2,0)","v":"Afrique du Sud"},{"$f":"VLOOKUP(ventes[[#This Row],[CLIENTS]],localisations[],3,0)","v":"Afrique"},{"$f":"TEXT(ventes[[#This Row],[DATES]],\"mmm\")","v":"févr"},{"$f":"WEEKNUM(ventes[[#This Row],[DATES]])","v":8}]
["2021-02-16","client33","Produit15",15.719999999999999,26,{"$f":"ventes[[#This Row],[PRIX UNITAIRE (FCFA)]]*ventes[[#This Row],[QUANTITE]]","v":408.71999999999997},{"$f":"VLOOKUP(ventes[[#This Row],[CLIENTS]],localisations[],2,0)","v":"Philippines"},{"$f":"VLOOKUP(ventes[[#This Row],[CLIENTS]],localisations[],3,0)","v":"Asie"},{"$f":"TEXT(ventes[[#This Row],[DATES]],\"mmm\")","v":"févr"},{"$f":"WEEKNUM(ventes[[#This Row],[DATES]])","v":8}]
["2021-02-16","client39","Produit32",117.48,1,{"$f":"ventes[[#This Row],[PRIX UNITAIRE (FCFA)]]*ventes[[#This Row],[QUANTITE]]","v":117.48},{"$f":"VLOOKUP(ventes[[#This Row],[CLIENTS]],localisations[],2,0)","v":"Pakistan"},{"$f":"VLOOKUP(ventes[[#This Row],[CLIENTS]],localisations[],3,0)","v":"Asie"},{"$f":"TEXT(ventes[[#This Row],[DATES]],\"mmm\")","v":"févr"},{"$f":"WEEKNUM(ventes[[#This Row],[DATES]])","v":8}]
["2021-02-17","client15","Produit43",83.08,19,{"$f":"ventes[[#This Row],[PRIX UNITAIRE (FCFA)]]*ventes[[#This Row],[QUANTITE]]","v":1578.52},{"$f":"VLOOKUP(ventes[[#This Row],[CLIENTS]],localisations[],2,0)","v":"Allemagne"},{"$f":"VLOOKUP(ventes[[#This Row],[CLIENTS]],localisations[],3,0)","v":"Europe"},{"$f":"TEXT(ventes[[#This Row],[DATES]],\"mmm\")","v":"févr"},{"$f":"WEEKNUM(ventes[[#This Row],[DATES]])","v":8}]
["2021-02-17","client15","Produit33",119.7,19,{"$f":"ventes[[#This Row],[PRIX UNITAIRE (FCFA)]]*ventes[[#This Row],[QUANTITE]]","v":2274.3000000000002},{"$f":"VLOOKUP(ventes[[#This Row],[CLIENTS]],localisations[],2,0)","v":"Allemagne"},{"$f":"VLOOKUP(ventes[[#This Row],[CLIENTS]],localisations[],3,0)","v":"Europe"},{"$f":"TEXT(ventes[[#This Row],[DATES]],\"mmm\")","v":"févr"},{"$f":"WEEKNUM(ventes[[#This Row],[DATES]])","v":8}]
["2021-02-17","client24","Produit44",82.08,2,{"$f":"ventes[[#This Row],[PRIX UNITAIRE (FCFA)]]*ventes[[#This Row],[QUANTITE]]","v":164.16},{"$f":"VLOOKUP(ventes[[#This Row],[CLIENTS]],localisations[],2,0)","v":"Équateur"},{"$f":"VLOOKUP(ventes[[#This Row],[CLIENTS]],localisations[],3,0)","v":"Amérique"},{"$f":"TEXT(ventes[[#This Row],[DATES]],\"mmm\")","v":"févr"},{"$f":"WEEKNUM(ventes[[#This Row],[DATES]])","v":8}]
["2021-02-18","client15","Produit15",15.719999999999999,6,{"$f":"ventes[[#This Row],[PRIX UNITAIRE (FCFA)]]*ventes[[#This Row],[QUANTITE]]","v":94.32},{"$f":"VLOOKUP(ventes[[#This Row],[CLIENTS]],localisations[],2,0)","v":"Allemagne"},{"$f":"VLOOKUP(ventes[[#This Row],[CLIENTS]],localisations[],3,0)","v":"Europe"},{"$f":"TEXT(ventes[[#This Row],[DATES]],\"mmm\")","v":"févr"},{"$f":"WEEKNUM(ventes[[#This Row],[DATES]])","v":8}]
["2021-02-19","client33","Produit02",142.80000000000001,13,{"$f":"ventes[[#This Row],[PRIX UNITAIRE (FCFA)]]*ventes[[#This Row],[QUANTITE]]","v":1856.4},{"$f":"VLOOKUP(ventes[[#This Row],[CLIENTS]],localisations[],2,0)","v":"Philippines"},{"$f":"VLOOKUP(ventes[[#This Row],[CLIENTS]],localisations[],3,0)","v":"Asie"},{"$f":"TEXT(ventes[[#This Row],[DATES]],\"mmm\")","v":"févr"},{"$f":"WEEKNUM(ventes[[#This Row],[DATES]])","v":8}]
["2021-02-20","client22","Produit12",94.17,6,{"$f":"ventes[[#This Row],[PRIX UNITAIRE (FCFA)]]*ventes[[#This Row],[QUANTITE]]","v":565.02},{"$f":"VLOOKUP(ventes[[#This Row],[CLIENTS]],localisations[],2,0)","v":"Canada"},{"$f":"VLOOKUP(ventes[[#This Row],[CLIENTS]],localisations[],3,0)","v":"Amérique"},{"$f":"TEXT(ventes[[#This Row],[DATES]],\"mmm\")","v":"févr"},{"$f":"WEEKNUM(ventes[[#This Row],[DATES]])","v":8}]
["2021-02-20","client36","Produit30",201.28,11,{"$f":"ventes[[#This Row],[PRIX UNITAIRE (FCFA)]]*ventes[[#This Row],[QUANTITE]]","v":2214.08},{"$f":"VLOOKUP(ventes[[#This Row],[CLIENTS]],localisations[],2,0)","v":"Vietnam"},{"$f":"VLOOKUP(ventes[[#This Row],[CLIENTS]],localisations[],3,0)","v":"Asie"},{"$f":"TEXT(ventes[[#This Row],[DATES]],\"mmm\")","v":"févr"},{"$f":"WEEKNUM(ventes[[#This Row],[DATES]])","v":8}]
["2021-02-21","client04","Produit18",49.21,30,{"$f":"ventes[[#This Row],[PRIX UNITAIRE (FCFA)]]*ventes[[#This Row],[QUANTITE]]","v":1476.3},{"$f":"VLOOKUP(ventes[[#This Row],[CLIENTS]],localisations[],2,0)","v":"Sénégal"},{"$f":"VLOOKUP(ventes[[#This Row],[CLIENTS]],localisations[],3,0)","v":"Afrique"},{"$f":"TEXT(ventes[[#This Row],[DATES]],\"mmm\")","v":"févr"},{"$f":"WEEKNUM(ventes[[#This Row],[DATES]])","v":9}]
["2021-02-22","client20","Produit13",122.08,5,{"$f":"ventes[[#This Row],[PRIX UNITAIRE (FCFA)]]*ventes[[#This Row],[QUANTITE]]","v":610.4},{"$f":"VLOOKUP(ventes[[#This Row],[CLIENTS]],localisations[],2,0)","v":"France"},{"$f":"VLOOKUP(ventes[[#This Row],[CLIENTS]],localisations[],3,0)","v":"Europe"},{"$f":"TEXT(ventes[[#This Row],[DATES]],\"mmm\")","v":"févr"},{"$f":"WEEKNUM(ventes[[#This Row],[DATES]])","v":9}]
["2021-02-23","client01","Produit13",122.08,6,{"$f":"ventes[[#This Row],[PRIX UNITAIRE (FCFA)]]*ventes[[#This Row],[QUANTITE]]","v":732.48},{"$f":"VLOOKUP(ventes[[#This Row],[CLIENTS]],localisations[],2,0)","v":"Tunisie"},{"$f":"VLOOKUP(ventes[[#This Row],[CLIENTS]],localisations[],3,0)","v":"Afrique"},{"$f":"TEXT(ventes[[#This Row],[DATES]],\"mmm\")","v":"févr"},{"$f":"WEEKNUM(ventes[[#This Row],[DATES]])","v":9}]
["2021-02-23","client09","Produit25",8.33,3,{"$f":"ventes[[#This Row],[PRIX UNITAIRE (FCFA)]]*ventes[[#This Row],[QUANTITE]]","v":24.990000000000002},{"$f":"VLOOKUP(ventes[[#This Row],[CLIENTS]],localisations[],2,0)","v":"Égypte"},{"$f":"VLOOKUP(ventes[[#This Row],[CLIENTS]],localisations[],3,0)","v":"Afrique"},{"$f":"TEXT(ventes[[#This Row],[DATES]],\"mmm\")","v":"févr"},{"$f":"WEEKNUM(ventes[[#This Row],[DATES]])","v":9}]
["2021-02-23","client35","Produit16",16.64,15,{"$f":"ventes[[#This Row],[PRIX UNITAIRE (FCFA)]]*ventes[[#This Row],[QUANTITE]]","v":249.60000000000002},{"$f":"VLOOKUP(ventes[[#This Row],[CLIENTS]],localisations[],2,0)","v":"Malaisie"},{"$f":"VLOOKUP(ventes[[#This Row],[CLIENTS]],localisations[],3,0)","v":"Asie"},{"$f":"TEXT(ventes[[#This Row],[DATES]],\"mmm\")","v":"févr"},{"$f":"WEEKNUM(ventes[[#This Row],[DATES]])","v":9}]
["2021-02-23","client14","Produit05",155.61000000000001,2,{"$f":"ventes[[#This Row],[PRIX UNITAIRE (FCFA)]]*ventes[[#This Row],[QUANTITE]]","v":311.22000000000003},{"$f":"VLOOKUP(ventes[[#This Row],[CLIENTS]],localisations[],2,0)","v":"Pays-Bas"},{"$f":"VLOOKUP(ventes[[#This Row],[CLIENTS]],localisations[],3,0)","v":"Europe"},{"$f":"TEXT(ventes[[#This Row],[DATES]],\"mmm\")","v":"févr"},{"$f":"WEEKNUM(ventes[[#This Row],[DATES]])","v":9}]
["2021-02-23","client36","Produit36",96.3,8,{"$f":"ventes[[#This Row],[PRIX UNITAIRE (FCFA)]]*ventes[[#This Row],[QUANTITE]]","v":770.4},{"$f":"VLOOKUP(ventes[[#This Row],[CLIENTS]],localisations[],2,0)","v":"Vietnam"},{"$f":"VLOOKUP(ventes[[#This Row],[CLIENTS]],localisations[],3,0)","v":"Asie"},{"$f":"TEXT(ventes[[#This Row],[DATES]],\"mmm\")","v":"févr"},{"$f":"WEEKNUM(ventes[[#This Row],[DATES]])","v":9}]
["2021-02-25","client14","Produit13",122.08,10,{"$f":"ventes[[#This Row],[PRIX UNITAIRE (FCFA)]]*ventes[[#This Row],[QUANTITE]]","v":1220.8},{"$f":"VLOOKUP(ventes[[#This Row],[CLIENTS]],localisations[],2,0)","v":"Pays-Bas"},{"$f":"VLOOKUP(ventes[[#This Row],[CLIENTS]],localisations[],3,0)","v":"Europe"},{"$f":"TEXT(ventes[[#This Row],[DATES]],\"mmm\")","v":"févr"},{"$f":"WEEKNUM(ventes[[#This Row],[DATES]])","v":9}]
["2021-02-25","client22","Produit39",42.55,38,{"$f":"ventes[[#This Row],[PRIX UNITAIRE (FCFA)]]*ventes[[#This Row],[QUANTITE]]","v":1616.8999999999999},{"$f":"VLOOKUP(ventes[[#This Row],[CLIENTS]],localisations[],2,0)","v":"Canada"},{"$f":"VLOOKUP(ventes[[#This Row],[CLIENTS]],localisations[],3,0)","v":"Amérique"},{"$f":"TEXT(ventes[[#This Row],[DATES]],\"mmm\")","v":"févr"},{"$f":"WEEKNUM(ventes[[#This Row],[DATES]])","v":9}]
["2021-02-25","client25","Produit32",117.48,11,{"$f":"ventes[[#This Row],[PRIX UNITAIRE (FCFA)]]*ventes[[#This Row],[QUANTITE]]","v":1292.28},{"$f":"VLOOKUP(ventes[[#This Row],[CLIENTS]],localisations[],2,0)","v":"Brésil"},{"$f":"VLOOKUP(ventes[[#This Row],[CLIENTS]],localisations[],3,0)","v":"Amérique"},{"$f":"TEXT(ventes[[#This Row],[DATES]],\"mmm\")","v":"févr"},{"$f":"WEEKNUM(ventes[[#This Row],[DATES]])","v":9}]
["2021-02-25","client27","Produit30",201.28,2,{"$f":"ventes[[#This Row],[PRIX UNITAIRE (FCFA)]]*ventes[[#This Row],[QUANTITE]]","v":402.56},{"$f":"VLOOKUP(ventes[[#This Row],[CLIENTS]],localisations[],2,0)","v":"Mexique"},{"$f":"VLOOKUP(ventes[[#This Row],[CLIENTS]],localisations[],3,0)","v":"Amérique"},{"$f":"TEXT(ventes[[#This Row],[DATES]],\"mmm\")","v":"févr"},{"$f":"WEEKNUM(ventes[[#This Row],[DATES]])","v":9}]
["2021-02-25","client29","Produit02",142.80000000000001,4,{"$f":"ventes[[#This Row],[PRIX UNITAIRE (FCFA)]]*ventes[[#This Row],[QUANTITE]]","v":571.20000000000005},{"$f":"VLOOKUP(ventes[[#This Row],[CLIENTS]],localisations[],2,0)","v":"Chili"},{"$f":"VLOOKUP(ventes[[#This Row],[CLIENTS]],localisations[],3,0)","v":"Amérique"},{"$f":"TEXT(ventes[[#This Row],[DATES]],\"mmm\")","v":"févr"},{"$f":"WEEKNUM(ventes[[#This Row],[DATES]])","v":9}]
["2021-02-26","client15","Produit24",156.96,28,{"$f":"ventes[[#This Row],[PRIX UNITAIRE (FCFA)]]*ventes[[#This Row],[QUANTITE]]","v":4394.88},{"$f":"VLOOKUP(ventes[[#This Row],[CLIENTS]],localisations[],2,0)","v":"Allemagne"},{"$f":"VLOOKUP(ventes[[#This Row],[CLIENTS]],localisations[],3,0)","v":"Europe"},{"$f":"TEXT(ventes[[#This Row],[DATES]],\"mmm\")","v":"févr"},{"$f":"WEEKNUM(ventes[[#This Row],[DATES]])","v":9}]
["2021-02-26","client20","Produit09",7.8599999999999994,2,{"$f":"ventes[[#This Row],[PRIX UNITAIRE (FCFA)]]*ventes[[#This Row],[QUANTITE]]","v":15.719999999999999},{"$f":"VLOOKUP(ventes[[#This Row],[CLIENTS]],localisations[],2,0)","v":"France"},{"$f":"VLOOKUP(ventes[[#This Row],[CLIENTS]],localisations[],3,0)","v":"Europe"},{"$f":"TEXT(ventes[[#This Row],[DATES]],\"mmm\")","v":"févr"},{"$f":"WEEKNUM(ventes[[#This Row],[DATES]])","v":9}]
["2021-02-27","client12","Produit25",8.33,7,{"$f":"ventes[[#This Row],[PRIX UNITAIRE (FCFA)]]*ventes[[#This Row],[QUANTITE]]","v":58.31},{"$f":"VLOOKUP(ventes[[#This Row],[CLIENTS]],localisations[],2,0)","v":"Pologne"},{"$f":"VLOOKUP(ventes[[#This Row],[CLIENTS]],localisations[],3,0)","v":"Europe"},{"$f":"TEXT(ventes[[#This Row],[DATES]],\"mmm\")","v":"févr"},{"$f":"WEEKNUM(ventes[[#This Row],[DATES]])","v":9}]
["2021-02-27","client35","Produit36",96.3,3,{"$f":"ventes[[#This Row],[PRIX UNITAIRE (FCFA)]]*ventes[[#This Row],[QUANTITE]]","v":288.89999999999998},{"$f":"VLOOKUP(ventes[[#This Row],[CLIENTS]],localisations[],2,0)","v":"Malaisie"},{"$f":"VLOOKUP(ventes[[#This Row],[CLIENTS]],localisations[],3,0)","v":"Asie"},{"$f":"TEXT(ventes[[#This Row],[DATES]],\"mmm\")","v":"févr"},{"$f":"WEEKNUM(ventes[[#This Row],[DATES]])","v":9}]
["2021-02-27","client22","Produit18",49.21,11,{"$f":"ventes[[#This Row],[PRIX UNITAIRE (FCFA)]]*ventes[[#This Row],[QUANTITE]]","v":541.31000000000006},{"$f":"VLOOKUP(ventes[[#This Row],[CLIENTS]],localisations[],2,0)","v":"Canada"},{"$f":"VLOOKUP(ventes[[#This Row],[CLIENTS]],localisations[],3,0)","v":"Amérique"},{"$f":"TEXT(ventes[[#This Row],[DATES]],\"mmm\")","v":"févr"},{"$f":"WEEKNUM(ventes[[#This Row],[DATES]])","v":9}]
["2021-02-27","client36","Produit05",155.61000000000001,15,{"$f":"ventes[[#This Row],[PRIX UNITAIRE (FCFA)]]*ventes[[#This Row],[QUANTITE]]","v":2334.15},{"$f":"VLOOKUP(ventes[[#This Row],[CLIENTS]],localisations[],2,0)","v":"Vietnam"},{"$f":"VLOOKUP(ventes[[#This Row],[CLIENTS]],localisations[],3,0)","v":"Asie"},{"$f":"TEXT(ventes[[#This Row],[DATES]],\"mmm\")","v":"févr"},{"$f":"WEEKNUM(ventes[[#This Row],[DATES]])","v":9}]
["2021-02-27","client30","Produit12",94.17,7,{"$f":"ventes[[#This Row],[PRIX UNITAIRE (FCFA)]]*ventes[[#This Row],[QUANTITE]]","v":659.19},{"$f":"VLOOKUP(ventes[[#This Row],[CLIENTS]],localisations[],2,0)","v":"Colombie"},{"$f":"VLOOKUP(ventes[[#This Row],[CLIENTS]],localisations[],3,0)","v":"Amérique"},{"$f":"TEXT(ventes[[#This Row],[DATES]],\"mmm\")","v":"févr"},{"$f":"WEEKNUM(ventes[[#This Row],[DATES]])","v":9}]
["2021-02-28","client39","Produit37",85.76,15,{"$f":"ventes[[#This Row],[PRIX UNITAIRE (FCFA)]]*ventes[[#This Row],[QUANTITE]]","v":1286.4000000000001},{"$f":"VLOOKUP(ventes[[#This Row],[CLIENTS]],localisations[],2,0)","v":"Pakistan"},{"$f":"VLOOKUP(ventes[[#This Row],[CLIENTS]],localisations[],3,0)","v":"Asie"},{"$f":"TEXT(ventes[[#This Row],[DATES]],\"mmm\")","v":"févr"},{"$f":"WEEKNUM(ventes[[#This Row],[DATES]])","v":10}]
["2021-03-01","client24","Produit28",41.81,28,{"$f":"ventes[[#This Row],[PRIX UNITAIRE (FCFA)]]*ventes[[#This Row],[QUANTITE]]","v":1170.68},{"$f":"VLOOKUP(ventes[[#This Row],[CLIENTS]],localisations[],2,0)","v":"Équateur"},{"$f":"VLOOKUP(ventes[[#This Row],[CLIENTS]],localisations[],3,0)","v":"Amérique"},{"$f":"TEXT(ventes[[#This Row],[DATES]],\"mmm\")","v":"mars"},{"$f":"WEEKNUM(ventes[[#This Row],[DATES]])","v":10}]
["2021-03-02","client15","Produit24",156.96,21,{"$f":"ventes[[#This Row],[PRIX UNITAIRE (FCFA)]]*ventes[[#This Row],[QUANTITE]]","v":3296.1600000000003},{"$f":"VLOOKUP(ventes[[#This Row],[CLIENTS]],localisations[],2,0)","v":"Allemagne"},{"$f":"VLOOKUP(ventes[[#This Row],[CLIENTS]],localisations[],3,0)","v":"Europe"},{"$f":"TEXT(ventes[[#This Row],[DATES]],\"mmm\")","v":"mars"},{"$f":"WEEKNUM(ventes[[#This Row],[DATES]])","v":10}]
["2021-03-02","client18","Produit02",142.80000000000001,1,{"$f":"ventes[[#This Row],[PRIX UNITAIRE (FCFA)]]*ventes[[#This Row],[QUANTITE]]","v":142.80000000000001},{"$f":"VLOOKUP(ventes[[#This Row],[CLIENTS]],localisations[],2,0)","v":"Belgique"},{"$f":"VLOOKUP(ventes[[#This Row],[CLIENTS]],localisations[],3,0)","v":"Europe"},{"$f":"TEXT(ventes[[#This Row],[DATES]],\"mmm\")","v":"mars"},{"$f":"WEEKNUM(ventes[[#This Row],[DATES]])","v":10}]
["2021-03-02","client22","Produit01",103.88,30,{"$f":"ventes[[#This Row],[PRIX UNITAIRE (FCFA)]]*ventes[[#This Row],[QUANTITE]]","v":3116.3999999999996},{"$f":"VLOOKUP(ventes[[#This Row],[CLIENTS]],localisations[],2,0)","v":"Canada"},{"$f":"VLOOKUP(ventes[[#This Row],[CLIENTS]],localisations[],3,0)","v":"Amérique"},{"$f":"TEXT(ventes[[#This Row],[DATES]],\"mmm\")","v":"mars"},{"$f":"WEEKNUM(ventes[[#This Row],[DATES]])","v":10}]
["2021-03-03","client09","Produit11",48.4,1,{"$f":"ventes[[#This Row],[PRIX UNITAIRE (FCFA)]]*ventes[[#This Row],[QUANTITE]]","v":48.4},{"$f":"VLOOKUP(ventes[[#This Row],[CLIENTS]],localisations[],2,0)","v":"Égypte"},{"$f":"VLOOKUP(ventes[[#This Row],[CLIENTS]],localisations[],3,0)","v":"Afrique"},{"$f":"TEXT(ventes[[#This Row],[DATES]],\"mmm\")","v":"mars"},{"$f":"WEEKNUM(ventes[[#This Row],[DATES]])","v":10}]
["2021-03-03","client12","Produit36",96.3,29,{"$f":"ventes[[#This Row],[PRIX UNITAIRE (FCFA)]]*ventes[[#This Row],[QUANTITE]]","v":2792.7},{"$f":"VLOOKUP(ventes[[#This Row],[CLIENTS]],localisations[],2,0)","v":"Pologne"},{"$f":"VLOOKUP(ventes[[#This Row],[CLIENTS]],localisations[],3,0)","v":"Europe"},{"$f":"TEXT(ventes[[#This Row],[DATES]],\"mmm\")","v":"mars"},{"$f":"WEEKNUM(ventes[[#This Row],[DATES]])","v":10}]
["2021-03-04","client18","Produit26",24.66,13,{"$f":"ventes[[#This Row],[PRIX UNITAIRE (FCFA)]]*ventes[[#This Row],[QUANTITE]]","v":320.58},{"$f":"VLOOKUP(ventes[[#This Row],[CLIENTS]],localisations[],2,0)","v":"Belgique"},{"$f":"VLOOKUP(ventes[[#This Row],[CLIENTS]],localisations[],3,0)","v":"Europe"},{"$f":"TEXT(ventes[[#This Row],[DATES]],\"mmm\")","v":"mars"},{"$f":"WEEKNUM(ventes[[#This Row],[DATES]])","v":10}]
["2021-03-04","client24","Produit04",48.84,23,{"$f":"ventes[[#This Row],[PRIX UNITAIRE (FCFA)]]*ventes[[#This Row],[QUANTITE]]","v":1123.3200000000002},{"$f":"VLOOKUP(ventes[[#This Row],[CLIENTS]],localisations[],2,0)","v":"Équateur"},{"$f":"VLOOKUP(ventes[[#This Row],[CLIENTS]],localisations[],3,0)","v":"Amérique"},{"$f":"TEXT(ventes[[#This Row],[DATES]],\"mmm\")","v":"mars"},{"$f":"WEEKNUM(ventes[[#This Row],[DATES]])","v":10}]
["2021-03-04","client25","Produit25",8.33,26,{"$f":"ventes[[#This Row],[PRIX UNITAIRE (FCFA)]]*ventes[[#This Row],[QUANTITE]]","v":216.58},{"$f":"VLOOKUP(ventes[[#This Row],[CLIENTS]],localisations[],2,0)","v":"Brésil"},{"$f":"VLOOKUP(ventes[[#This Row],[CLIENTS]],localisations[],3,0)","v":"Amérique"},{"$f":"TEXT(ventes[[#This Row],[DATES]],\"mmm\")","v":"mars"},{"$f":"WEEKNUM(ventes[[#This Row],[DATES]])","v":10}]
["2021-03-05","client22","Produit40",115.2,33,{"$f":"ventes[[#This Row],[PRIX UNITAIRE (FCFA)]]*ventes[[#This Row],[QUANTITE]]","v":3801.6},{"$f":"VLOOKUP(ventes[[#This Row],[CLIENTS]],localisations[],2,0)","v":"Canada"},{"$f":"VLOOKUP(ventes[[#This Row],[CLIENTS]],localisations[],3,0)","v":"Amérique"},{"$f":"TEXT(ventes[[#This Row],[DATES]],\"mmm\")","v":"mars"},{"$f":"WEEKNUM(ventes[[#This Row],[DATES]])","v":10}]
["2021-03-06","client18","Produit04",48.84,2,{"$f":"ventes[[#This Row],[PRIX UNITAIRE (FCFA)]]*ventes[[#This Row],[QUANTITE]]","v":97.68},{"$f":"VLOOKUP(ventes[[#This Row],[CLIENTS]],localisations[],2,0)","v":"Belgique"},{"$f":"VLOOKUP(ventes[[#This Row],[CLIENTS]],localisations[],3,0)","v":"Europe"},{"$f":"TEXT(ventes[[#This Row],[DATES]],\"mmm\")","v":"mars"},{"$f":"WEEKNUM(ventes[[#This Row],[DATES]])","v":10}]
["2021-03-07","client01","Produit03",80.94,1,{"$f":"ventes[[#This Row],[PRIX UNITAIRE (FCFA)]]*ventes[[#This Row],[QUANTITE]]","v":80.94},{"$f":"VLOOKUP(ventes[[#This Row],[CLIENTS]],localisations[],2,0)","v":"Tunisie"},{"$f":"VLOOKUP(ventes[[#This Row],[CLIENTS]],localisations[],3,0)","v":"Afrique"},{"$f":"TEXT(ventes[[#This Row],[DATES]],\"mmm\")","v":"mars"},{"$f":"WEEKNUM(ventes[[#This Row],[DATES]])","v":11}]
["2021-03-07","client33","Produit21",162.54,9,{"$f":"ventes[[#This Row],[PRIX UNITAIRE (FCFA)]]*ventes[[#This Row],[QUANTITE]]","v":1462.86},{"$f":"VLOOKUP(ventes[[#This Row],[CLIENTS]],localisations[],2,0)","v":"Philippines"},{"$f":"VLOOKUP(ventes[[#This Row],[CLIENTS]],localisations[],3,0)","v":"Asie"},{"$f":"TEXT(ventes[[#This Row],[DATES]],\"mmm\")","v":"mars"},{"$f":"WEEKNUM(ventes[[#This Row],[DATES]])","v":11}]
["2021-03-07","client12","Produit17",156.78,25,{"$f":"ventes[[#This Row],[PRIX UNITAIRE (FCFA)]]*ventes[[#This Row],[QUANTITE]]","v":3919.5},{"$f":"VLOOKUP(ventes[[#This Row],[CLIENTS]],localisations[],2,0)","v":"Pologne"},{"$f":"VLOOKUP(ventes[[#This Row],[CLIENTS]],localisations[],3,0)","v":"Europe"},{"$f":"TEXT(ventes[[#This Row],[DATES]],\"mmm\")","v":"mars"},{"$f":"WEEKNUM(ventes[[#This Row],[DATES]])","v":11}]
["2021-03-08","client31","Produit22",141.57,22,{"$f":"ventes[[#This Row],[PRIX UNITAIRE (FCFA)]]*ventes[[#This Row],[QUANTITE]]","v":3114.54},{"$f":"VLOOKUP(ventes[[#This Row],[CLIENTS]],localisations[],2,0)","v":"Corée du Sud"},{"$f":"VLOOKUP(ventes[[#This Row],[CLIENTS]],localisations[],3,0)","v":"Asie"},{"$f":"TEXT(ventes[[#This Row],[DATES]],\"mmm\")","v":"mars"},{"$f":"WEEKNUM(ventes[[#This Row],[DATES]])","v":11}]
["2021-03-08","client18","Produit44",82.08,9,{"$f":"ventes[[#This Row],[PRIX UNITAIRE (FCFA)]]*ventes[[#This Row],[QUANTITE]]","v":738.72},{"$f":"VLOOKUP(ventes[[#This Row],[CLIENTS]],localisations[],2,0)","v":"Belgique"},{"$f":"VLOOKUP(ventes[[#This Row],[CLIENTS]],localisations[],3,0)","v":"Europe"},{"$f":"TEXT(ventes[[#This Row],[DATES]],\"mmm\")","v":"mars"},{"$f":"WEEKNUM(ventes[[#This Row],[DATES]])","v":11}]
["2021-03-08","client25","Produit27",57.120000000000005,6,{"$f":"ventes[[#This Row],[PRIX UNITAIRE (FCFA)]]*ventes[[#This Row],[QUANTITE]]","v":342.72},{"$f":"VLOOKUP(ventes[[#This Row],[CLIENTS]],localisations[],2,0)","v":"Brésil"},{"$f":"VLOOKUP(ventes[[#This Row],[CLIENTS]],localisations[],3,0)","v":"Amérique"},{"$f":"TEXT(ventes[[#This Row],[DATES]],\"mmm\")","v":"mars"},{"$f":"WEEKNUM(ventes[[#This Row],[DATES]])","v":11}]
["2021-03-08","client30","Produit44",82.08,6,{"$f":"ventes[[#This Row],[PRIX UNITAIRE (FCFA)]]*ventes[[#This Row],[QUANTITE]]","v":492.48},{"$f":"VLOOKUP(ventes[[#This Row],[CLIENTS]],localisations[],2,0)","v":"Colombie"},{"$f":"VLOOKUP(ventes[[#This Row],[CLIENTS]],localisations[],3,0)","v":"Amérique"},{"$f":"TEXT(ventes[[#This Row],[DATES]],\"mmm\")","v":"mars"},{"$f":"WEEKNUM(ventes[[#This Row],[DATES]])","v":11}]
["2021-03-09","client04","Produit30",201.28,3,{"$f":"ventes[[#This Row],[PRIX UNITAIRE (FCFA)]]*ventes[[#This Row],[QUANTITE]]","v":603.84},{"$f":"VLOOKUP(ventes[[#This Row],[CLIENTS]],localisations[],2,0)","v":"Sénégal"},{"$f":"VLOOKUP(ventes[[#This Row],[CLIENTS]],localisations[],3,0)","v":"Afrique"},{"$f":"TEXT(ventes[[#This Row],[DATES]],\"mmm\")","v":"mars"},{"$f":"WEEKNUM(ventes[[#This Row],[DATES]])","v":11}]
["2021-03-09","client16","Produit04",48.84,11,{"$f":"ventes[[#This Row],[PRIX UNITAIRE (FCFA)]]*ventes[[#This Row],[QUANTITE]]","v":537.24},{"$f":"VLOOKUP(ventes[[#This Row],[CLIENTS]],localisations[],2,0)","v":"Royaume-Uni"},{"$f":"VLOOKUP(ventes[[#This Row],[CLIENTS]],localisations[],3,0)","v":"Europe"},{"$f":"TEXT(ventes[[#This Row],[DATES]],\"mmm\")","v":"mars"},{"$f":"WEEKNUM(ventes[[#This Row],[DATES]])","v":11}]
["2021-03-09","client18","Produit29",53.11,6,{"$f":"ventes[[#This Row],[PRIX UNITAIRE (FCFA)]]*ventes[[#This Row],[QUANTITE]]","v":318.65999999999997},{"$f":"VLOOKUP(ventes[[#This Row],[CLIENTS]],localisations[],2,0)","v":"Belgique"},{"$f":"VLOOKUP(ventes[[#This Row],[CLIENTS]],localisations[],3,0)","v":"Europe"},{"$f":"TEXT(ventes[[#This Row],[DATES]],\"mmm\")","v":"mars"},{"$f":"WEEKNUM(ventes[[#This Row],[DATES]])","v":11}]
["2021-03-10","client02","Produit33",119.7,12,{"$f":"ventes[[#This Row],[PRIX UNITAIRE (FCFA)]]*ventes[[#This Row],[QUANTITE]]","v":1436.4},{"$f":"VLOOKUP(ventes[[#This Row],[CLIENTS]],localisations[],2,0)","v":"Ghana"},{"$f":"VLOOKUP(ventes[[#This Row],[CLIENTS]],localisations[],3,0)","v":"Afrique"},{"$f":"TEXT(ventes[[#This Row],[DATES]],\"mmm\")","v":"mars"},{"$f":"WEEKNUM(ventes[[#This Row],[DATES]])","v":11}]
["2021-03-10","client16","Produit02",142.80000000000001,6,{"$f":"ventes[[#This Row],[PRIX UNITAIRE (FCFA)]]*ventes[[#This Row],[QUANTITE]]","v":856.80000000000007},{"$f":"VLOOKUP(ventes[[#This Row],[CLIENTS]],localisations[],2,0)","v":"Royaume-Uni"},{"$f":"VLOOKUP(ventes[[#This Row],[CLIENTS]],localisations[],3,0)","v":"Europe"},{"$f":"TEXT(ventes[[#This Row],[DATES]],\"mmm\")","v":"mars"},{"$f":"WEEKNUM(ventes[[#This Row],[DATES]])","v":11}]
["2021-03-11","client17","Produit32",117.48,8,{"$f":"ventes[[#This Row],[PRIX UNITAIRE (FCFA)]]*ventes[[#This Row],[QUANTITE]]","v":939.84},{"$f":"VLOOKUP(ventes[[#This Row],[CLIENTS]],localisations[],2,0)","v":"Suède"},{"$f":"VLOOKUP(ventes[[#This Row],[CLIENTS]],localisations[],3,0)","v":"Europe"},{"$f":"TEXT(ventes[[#This Row],[DATES]],\"mmm\")","v":"mars"},{"$f":"WEEKNUM(ventes[[#This Row],[DATES]])","v":11}]
["2021-03-11","client18","Produit25",8.33,11,{"$f":"ventes[[#This Row],[PRIX UNITAIRE (FCFA)]]*ventes[[#This Row],[QUANTITE]]","v":91.63},{"$f":"VLOOKUP(ventes[[#This Row],[CLIENTS]],localisations[],2,0)","v":"Belgique"},{"$f":"VLOOKUP(ventes[[#This Row],[CLIENTS]],localisations[],3,0)","v":"Europe"},{"$f":"TEXT(ventes[[#This Row],[DATES]],\"mmm\")","v":"mars"},{"$f":"WEEKNUM(ventes[[#This Row],[DATES]])","v":11}]
["2021-03-11","client29","Produit12",94.17,36,{"$f":"ventes[[#This Row],[PRIX UNITAIRE (FCFA)]]*ventes[[#This Row],[QUANTITE]]","v":3390.12},{"$f":"VLOOKUP(ventes[[#This Row],[CLIENTS]],localisations[],2,0)","v":"Chili"},{"$f":"VLOOKUP(ventes[[#This Row],[CLIENTS]],localisations[],3,0)","v":"Amérique"},{"$f":"TEXT(ventes[[#This Row],[DATES]],\"mmm\")","v":"mars"},{"$f":"WEEKNUM(ventes[[#This Row],[DATES]])","v":11}]
["2021-03-13","client09","Produit35",6.7,10,{"$f":"ventes[[#This Row],[PRIX UNITAIRE (FCFA)]]*ventes[[#This Row],[QUANTITE]]","v":67},{"$f":"VLOOKUP(ventes[[#This Row],[CLIENTS]],localisations[],2,0)","v":"Égypte"},{"$f":"VLOOKUP(ventes[[#This Row],[CLIENTS]],localisations[],3,0)","v":"Afrique"},{"$f":"TEXT(ventes[[#This Row],[DATES]],\"mmm\")","v":"mars"},{"$f":"WEEKNUM(ventes[[#This Row],[DATES]])","v":11}]
["2021-03-13","client14","Produit28",41.81,10,{"$f":"ventes[[#This Row],[PRIX UNITAIRE (FCFA)]]*ventes[[#This Row],[QUANTITE]]","v":418.1},{"$f":"VLOOKUP(ventes[[#This Row],[CLIENTS]],localisations[],2,0)","v":"Pays-Bas"},{"$f":"VLOOKUP(ventes[[#This Row],[CLIENTS]],localisations[],3,0)","v":"Europe"},{"$f":"TEXT(ventes[[#This Row],[DATES]],\"mmm\")","v":"mars"},{"$f":"WEEKNUM(ventes[[#This Row],[DATES]])","v":11}]
["2021-03-14","client04","Produit22",141.57,15,{"$f":"ventes[[#This Row],[PRIX UNITAIRE (FCFA)]]*ventes[[#This Row],[QUANTITE]]","v":2123.5499999999997},{"$f":"VLOOKUP(ventes[[#This Row],[CLIENTS]],localisations[],2,0)","v":"Sénégal"},{"$f":"VLOOKUP(ventes[[#This Row],[CLIENTS]],localisations[],3,0)","v":"Afrique"},{"$f":"TEXT(ventes[[#This Row],[DATES]],\"mmm\")","v":"mars"},{"$f":"WEEKNUM(ventes[[#This Row],[DATES]])","v":12}]
["2021-03-14","client15","Produit16",16.64,2,{"$f":"ventes[[#This Row],[PRIX UNITAIRE (FCFA)]]*ventes[[#This Row],[QUANTITE]]","v":33.28},{"$f":"VLOOKUP(ventes[[#This Row],[CLIENTS]],localisations[],2,0)","v":"Allemagne"},{"$f":"VLOOKUP(ventes[[#This Row],[CLIENTS]],localisations[],3,0)","v":"Europe"},{"$f":"TEXT(ventes[[#This Row],[DATES]],\"mmm\")","v":"mars"},{"$f":"WEEKNUM(ventes[[#This Row],[DATES]])","v":12}]
["2021-03-14","client20","Produit42",162,32,{"$f":"ventes[[#This Row],[PRIX UNITAIRE (FCFA)]]*ventes[[#This Row],[QUANTITE]]","v":5184},{"$f":"VLOOKUP(ventes[[#This Row],[CLIENTS]],localisations[],2,0)","v":"France"},{"$f":"VLOOKUP(ventes[[#This Row],[CLIENTS]],localisations[],3,0)","v":"Europe"},{"$f":"TEXT(ventes[[#This Row],[DATES]],\"mmm\")","v":"mars"},{"$f":"WEEKNUM(ventes[[#This Row],[DATES]])","v":12}]
["2021-03-14","client39","Produit26",24.66,13,{"$f":"ventes[[#This Row],[PRIX UNITAIRE (FCFA)]]*ventes[[#This Row],[QUANTITE]]","v":320.58},{"$f":"VLOOKUP(ventes[[#This Row],[CLIENTS]],localisations[],2,0)","v":"Pakistan"},{"$f":"VLOOKUP(ventes[[#This Row],[CLIENTS]],localisations[],3,0)","v":"Asie"},{"$f":"TEXT(ventes[[#This Row],[DATES]],\"mmm\")","v":"mars"},{"$f":"WEEKNUM(ventes[[#This Row],[DATES]])","v":12}]
["2021-03-15","client14","Produit36",96.3,9,{"$f":"ventes[[#This Row],[PRIX UNITAIRE (FCFA)]]*ventes[[#This Row],[QUANTITE]]","v":866.69999999999993},{"$f":"VLOOKUP(ventes[[#This Row],[CLIENTS]],localisations[],2,0)","v":"Pays-Bas"},{"$f":"VLOOKUP(ventes[[#This Row],[CLIENTS]],localisations[],3,0)","v":"Europe"},{"$f":"TEXT(ventes[[#This Row],[DATES]],\"mmm\")","v":"mars"},{"$f":"WEEKNUM(ventes[[#This Row],[DATES]])","v":12}]
["2021-03-15","client22","Produit39",42.55,11,{"$f":"ventes[[#This Row],[PRIX UNITAIRE (FCFA)]]*ventes[[#This Row],[QUANTITE]]","v":468.04999999999995},{"$f":"VLOOKUP(ventes[[#This Row],[CLIENTS]],localisations[],2,0)","v":"Canada"},{"$f":"VLOOKUP(ventes[[#This Row],[CLIENTS]],localisations[],3,0)","v":"Amérique"},{"$f":"TEXT(ventes[[#This Row],[DATES]],\"mmm\")","v":"mars"},{"$f":"WEEKNUM(ventes[[#This Row],[DATES]])","v":12}]
["2021-03-16","client04","Produit12",94.17,14,{"$f":"ventes[[#This Row],[PRIX UNITAIRE (FCFA)]]*ventes[[#This Row],[QUANTITE]]","v":1318.38},{"$f":"VLOOKUP(ventes[[#This Row],[CLIENTS]],localisations[],2,0)","v":"Sénégal"},{"$f":"VLOOKUP(ventes[[#This Row],[CLIENTS]],localisations[],3,0)","v":"Afrique"},{"$f":"TEXT(ventes[[#This Row],[DATES]],\"mmm\")","v":"mars"},{"$f":"WEEKNUM(ventes[[#This Row],[DATES]])","v":12}]
["2021-03-16","client30","Produit22",141.57,29,{"$f":"ventes[[#This Row],[PRIX UNITAIRE (FCFA)]]*ventes[[#This Row],[QUANTITE]]","v":4105.53},{"$f":"VLOOKUP(ventes[[#This Row],[CLIENTS]],localisations[],2,0)","v":"Colombie"},{"$f":"VLOOKUP(ventes[[#This Row],[CLIENTS]],localisations[],3,0)","v":"Amérique"},{"$f":"TEXT(ventes[[#This Row],[DATES]],\"mmm\")","v":"mars"},{"$f":"WEEKNUM(ventes[[#This Row],[DATES]])","v":12}]
["2021-03-18","client04","Produit42",162,8,{"$f":"ventes[[#This Row],[PRIX UNITAIRE (FCFA)]]*ventes[[#This Row],[QUANTITE]]","v":1296},{"$f":"VLOOKUP(ventes[[#This Row],[CLIENTS]],localisations[],2,0)","v":"Sénégal"},{"$f":"VLOOKUP(ventes[[#This Row],[CLIENTS]],localisations[],3,0)","v":"Afrique"},{"$f":"TEXT(ventes[[#This Row],[DATES]],\"mmm\")","v":"mars"},{"$f":"WEEKNUM(ventes[[#This Row],[DATES]])","v":12}]
["2021-03-18","client08","Produit19",210,2,{"$f":"ventes[[#This Row],[PRIX UNITAIRE (FCFA)]]*ventes[[#This Row],[QUANTITE]]","v":420},{"$f":"VLOOKUP(ventes[[#This Row],[CLIENTS]],localisations[],2,0)","v":"Maroc"},{"$f":"VLOOKUP(ventes[[#This Row],[CLIENTS]],localisations[],3,0)","v":"Afrique"},{"$f":"TEXT(ventes[[#This Row],[DATES]],\"mmm\")","v":"mars"},{"$f":"WEEKNUM(ventes[[#This Row],[DATES]])","v":12}]
["2021-03-18","client09","Produit27",57.120000000000005,10,{"$f":"ventes[[#This Row],[PRIX UNITAIRE (FCFA)]]*ventes[[#This Row],[QUANTITE]]","v":571.20000000000005},{"$f":"VLOOKUP(ventes[[#This Row],[CLIENTS]],localisations[],2,0)","v":"Égypte"},{"$f":"VLOOKUP(ventes[[#This Row],[CLIENTS]],localisations[],3,0)","v":"Afrique"},{"$f":"TEXT(ventes[[#This Row],[DATES]],\"mmm\")","v":"mars"},{"$f":"WEEKNUM(ventes[[#This Row],[DATES]])","v":12}]
["2021-03-19","client06","Produit39",42.55,18,{"$f":"ventes[[#This Row],[PRIX UNITAIRE (FCFA)]]*ventes[[#This Row],[QUANTITE]]","v":765.9},{"$f":"VLOOKUP(ventes[[#This Row],[CLIENTS]],localisations[],2,0)","v":"Afrique du Sud"},{"$f":"VLOOKUP(ventes[[#This Row],[CLIENTS]],localisations[],3,0)","v":"Afrique"},{"$f":"TEXT(ventes[[#This Row],[DATES]],\"mmm\")","v":"mars"},{"$f":"WEEKNUM(ventes[[#This Row],[DATES]])","v":12}]
["2021-03-19","client15","Produit06",85.5,17,{"$f":"ventes[[#This Row],[PRIX UNITAIRE (FCFA)]]*ventes[[#This Row],[QUANTITE]]","v":1453.5},{"$f":"VLOOKUP(ventes[[#This Row],[CLIENTS]],localisations[],2,0)","v":"Allemagne"},{"$f":"VLOOKUP(ventes[[#This Row],[CLIENTS]],localisations[],3,0)","v":"Europe"},{"$f":"TEXT(ventes[[#This Row],[DATES]],\"mmm\")","v":"mars"},{"$f":"WEEKNUM(ventes[[#This Row],[DATES]])","v":12}]
["2021-03-19","client21","Produit28",41.81,9,{"$f":"ventes[[#This Row],[PRIX UNITAIRE (FCFA)]]*ventes[[#This Row],[QUANTITE]]","v":376.29},{"$f":"VLOOKUP(ventes[[#This Row],[CLIENTS]],localisations[],2,0)","v":"Venezuela"},{"$f":"VLOOKUP(ventes[[#This Row],[CLIENTS]],localisations[],3,0)","v":"Amérique"},{"$f":"TEXT(ventes[[#This Row],[DATES]],\"mmm\")","v":"mars"},{"$f":"WEEKNUM(ventes[[#This Row],[DATES]])","v":12}]
["2021-03-19","client24","Produit06",85.5,17,{"$f":"ventes[[#This Row],[PRIX UNITAIRE (FCFA)]]*ventes[[#This Row],[QUANTITE]]","v":1453.5},{"$f":"VLOOKUP(ventes[[#This Row],[CLIENTS]],localisations[],2,0)","v":"Équateur"},{"$f":"VLOOKUP(ventes[[#This Row],[CLIENTS]],localisations[],3,0)","v":"Amérique"},{"$f":"TEXT(ventes[[#This Row],[DATES]],\"mmm\")","v":"mars"},{"$f":"WEEKNUM(ventes[[#This Row],[DATES]])","v":12}]
["2021-03-19","client26","Produit02",142.80000000000001,15,{"$f":"ventes[[#This Row],[PRIX UNITAIRE (FCFA)]]*ventes[[#This Row],[QUANTITE]]","v":2142},{"$f":"VLOOKUP(ventes[[#This Row],[CLIENTS]],localisations[],2,0)","v":"Pérou"},{"$f":"VLOOKUP(ventes[[#This Row],[CLIENTS]],localisations[],3,0)","v":"Amérique"},{"$f":"TEXT(ventes[[#This Row],[DATES]],\"mmm\")","v":"mars"},{"$f":"WEEKNUM(ventes[[#This Row],[DATES]])","v":12}]
["2021-03-19","client27","Produit41",173.88,6,{"$f":"ventes[[#This Row],[PRIX UNITAIRE (FCFA)]]*ventes[[#This Row],[QUANTITE]]","v":1043.28},{"$f":"VLOOKUP(ventes[[#This Row],[CLIENTS]],localisations[],2,0)","v":"Mexique"},{"$f":"VLOOKUP(ventes[[#This Row],[CLIENTS]],localisations[],3,0)","v":"Amérique"},{"$f":"TEXT(ventes[[#This Row],[DATES]],\"mmm\")","v":"mars"},{"$f":"WEEKNUM(ventes[[#This Row],[DATES]])","v":12}]
["2021-03-20","client02","Produit24",156.96,23,{"$f":"ventes[[#This Row],[PRIX UNITAIRE (FCFA)]]*ventes[[#This Row],[QUANTITE]]","v":3610.0800000000004},{"$f":"VLOOKUP(ventes[[#This Row],[CLIENTS]],localisations[],2,0)","v":"Ghana"},{"$f":"VLOOKUP(ventes[[#This Row],[CLIENTS]],localisations[],3,0)","v":"Afrique"},{"$f":"TEXT(ventes[[#This Row],[DATES]],\"mmm\")","v":"mars"},{"$f":"WEEKNUM(ventes[[#This Row],[DATES]])","v":12}]
["2021-03-20","client05","Produit38",79.92,21,{"$f":"ventes[[#This Row],[PRIX UNITAIRE (FCFA)]]*ventes[[#This Row],[QUANTITE]]","v":1678.32},{"$f":"VLOOKUP(ventes[[#This Row],[CLIENTS]],localisations[],2,0)","v":"Algérie"},{"$f":"VLOOKUP(ventes[[#This Row],[CLIENTS]],localisations[],3,0)","v":"Afrique"},{"$f":"TEXT(ventes[[#This Row],[DATES]],\"mmm\")","v":"mars"},{"$f":"WEEKNUM(ventes[[#This Row],[DATES]])","v":12}]
["2021-03-20","client35","Produit16",16.64,13,{"$f":"ventes[[#This Row],[PRIX UNITAIRE (FCFA)]]*ventes[[#This Row],[QUANTITE]]","v":216.32},{"$f":"VLOOKUP(ventes[[#This Row],[CLIENTS]],localisations[],2,0)","v":"Malaisie"},{"$f":"VLOOKUP(ventes[[#This Row],[CLIENTS]],localisations[],3,0)","v":"Asie"},{"$f":"TEXT(ventes[[#This Row],[DATES]],\"mmm\")","v":"mars"},{"$f":"WEEKNUM(ventes[[#This Row],[DATES]])","v":12}]
["2021-03-21","client09","Produit39",42.55,7,{"$f":"ventes[[#This Row],[PRIX UNITAIRE (FCFA)]]*ventes[[#This Row],[QUANTITE]]","v":297.84999999999997},{"$f":"VLOOKUP(ventes[[#This Row],[CLIENTS]],localisations[],2,0)","v":"Égypte"},{"$f":"VLOOKUP(ventes[[#This Row],[CLIENTS]],localisations[],3,0)","v":"Afrique"},{"$f":"TEXT(ventes[[#This Row],[DATES]],\"mmm\")","v":"mars"},{"$f":"WEEKNUM(ventes[[#This Row],[DATES]])","v":13}]
["2021-03-21","client12","Produit01",103.88,18,{"$f":"ventes[[#This Row],[PRIX UNITAIRE (FCFA)]]*ventes[[#This Row],[QUANTITE]]","v":1869.84},{"$f":"VLOOKUP(ventes[[#This Row],[CLIENTS]],localisations[],2,0)","v":"Pologne"},{"$f":"VLOOKUP(ventes[[#This Row],[CLIENTS]],localisations[],3,0)","v":"Europe"},{"$f":"TEXT(ventes[[#This Row],[DATES]],\"mmm\")","v":"mars"},{"$f":"WEEKNUM(ventes[[#This Row],[DATES]])","v":13}]
["2021-03-21","client35","Produit20",76.25,13,{"$f":"ventes[[#This Row],[PRIX UNITAIRE (FCFA)]]*ventes[[#This Row],[QUANTITE]]","v":991.25},{"$f":"VLOOKUP(ventes[[#This Row],[CLIENTS]],localisations[],2,0)","v":"Malaisie"},{"$f":"VLOOKUP(ventes[[#This Row],[CLIENTS]],localisations[],3,0)","v":"Asie"},{"$f":"TEXT(ventes[[#This Row],[DATES]],\"mmm\")","v":"mars"},{"$f":"WEEKNUM(ventes[[#This Row],[DATES]])","v":13}]
["2021-03-22","client12","Produit02",142.80000000000001,8,{"$f":"ventes[[#This Row],[PRIX UNITAIRE (FCFA)]]*ventes[[#This Row],[QUANTITE]]","v":1142.4000000000001},{"$f":"VLOOKUP(ventes[[#This Row],[CLIENTS]],localisations[],2,0)","v":"Pologne"},{"$f":"VLOOKUP(ventes[[#This Row],[CLIENTS]],localisations[],3,0)","v":"Europe"},{"$f":"TEXT(ventes[[#This Row],[DATES]],\"mmm\")","v":"mars"},{"$f":"WEEKNUM(ventes[[#This Row],[DATES]])","v":13}]
["2021-03-22","client14","Produit12",94.17,4,{"$f":"ventes[[#This Row],[PRIX UNITAIRE (FCFA)]]*ventes[[#This Row],[QUANTITE]]","v":376.68},{"$f":"VLOOKUP(ventes[[#This Row],[CLIENTS]],localisations[],2,0)","v":"Pays-Bas"},{"$f":"VLOOKUP(ventes[[#This Row],[CLIENTS]],localisations[],3,0)","v":"Europe"},{"$f":"TEXT(ventes[[#This Row],[DATES]],\"mmm\")","v":"mars"},{"$f":"WEEKNUM(ventes[[#This Row],[DATES]])","v":13}]
["2021-03-22","client25","Produit27",57.120000000000005,30,{"$f":"ventes[[#This Row],[PRIX UNITAIRE (FCFA)]]*ventes[[#This Row],[QUANTITE]]","v":1713.6000000000001},{"$f":"VLOOKUP(ventes[[#This Row],[CLIENTS]],localisations[],2,0)","v":"Brésil"},{"$f":"VLOOKUP(ventes[[#This Row],[CLIENTS]],localisations[],3,0)","v":"Amérique"},{"$f":"TEXT(ventes[[#This Row],[DATES]],\"mmm\")","v":"mars"},{"$f":"WEEKNUM(ventes[[#This Row],[DATES]])","v":13}]
["2021-03-23","client27","Produit32",117.48,9,{"$f":"ventes[[#This Row],[PRIX UNITAIRE (FCFA)]]*ventes[[#This Row],[QUANTITE]]","v":1057.32},{"$f":"VLOOKUP(ventes[[#This Row],[CLIENTS]],localisations[],2,0)","v":"Mexique"},{"$f":"VLOOKUP(ventes[[#This Row],[CLIENTS]],localisations[],3,0)","v":"Amérique"},{"$f":"TEXT(ventes[[#This Row],[DATES]],\"mmm\")","v":"mars"},{"$f":"WEEKNUM(ventes[[#This Row],[DATES]])","v":13}]
["2021-03-25","client03","Produit29",53.11,8,{"$f":"ventes[[#This Row],[PRIX UNITAIRE (FCFA)]]*ventes[[#This Row],[QUANTITE]]","v":424.88},{"$f":"VLOOKUP(ventes[[#This Row],[CLIENTS]],localisations[],2,0)","v":"Côte d'Ivoire"},{"$f":"VLOOKUP(ventes[[#This Row],[CLIENTS]],localisations[],3,0)","v":"Afrique"},{"$f":"TEXT(ventes[[#This Row],[DATES]],\"mmm\")","v":"mars"},{"$f":"WEEKNUM(ventes[[#This Row],[DATES]])","v":13}]
["2021-03-25","client04","Produit01",103.88,2,{"$f":"ventes[[#This Row],[PRIX UNITAIRE (FCFA)]]*ventes[[#This Row],[QUANTITE]]","v":207.76},{"$f":"VLOOKUP(ventes[[#This Row],[CLIENTS]],localisations[],2,0)","v":"Sénégal"},{"$f":"VLOOKUP(ventes[[#This Row],[CLIENTS]],localisations[],3,0)","v":"Afrique"},{"$f":"TEXT(ventes[[#This Row],[DATES]],\"mmm\")","v":"mars"},{"$f":"WEEKNUM(ventes[[#This Row],[DATES]])","v":13}]
["2021-03-25","client04","Produit17",156.78,26,{"$f":"ventes[[#This Row],[PRIX UNITAIRE (FCFA)]]*ventes[[#This Row],[QUANTITE]]","v":4076.28},{"$f":"VLOOKUP(ventes[[#This Row],[CLIENTS]],localisations[],2,0)","v":"Sénégal"},{"$f":"VLOOKUP(ventes[[#This Row],[CLIENTS]],localisations[],3,0)","v":"Afrique"},{"$f":"TEXT(ventes[[#This Row],[DATES]],\"mmm\")","v":"mars"},{"$f":"WEEKNUM(ventes[[#This Row],[DATES]])","v":13}]
["2021-03-25","client09","Produit30",201.28,11,{"$f":"ventes[[#This Row],[PRIX UNITAIRE (FCFA)]]*ventes[[#This Row],[QUANTITE]]","v":2214.08},{"$f":"VLOOKUP(ventes[[#This Row],[CLIENTS]],localisations[],2,0)","v":"Égypte"},{"$f":"VLOOKUP(ventes[[#This Row],[CLIENTS]],localisations[],3,0)","v":"Afrique"},{"$f":"TEXT(ventes[[#This Row],[DATES]],\"mmm\")","v":"mars"},{"$f":"WEEKNUM(ventes[[#This Row],[DATES]])","v":13}]
["2021-03-25","client14","Produit24",156.96,14,{"$f":"ventes[[#This Row],[PRIX UNITAIRE (FCFA)]]*ventes[[#This Row],[QUANTITE]]","v":2197.44},{"$f":"VLOOKUP(ventes[[#This Row],[CLIENTS]],localisations[],2,0)","v":"Pays-Bas"},{"$f":"VLOOKUP(ventes[[#This Row],[CLIENTS]],localisations[],3,0)","v":"Europe"},{"$f":"TEXT(ventes[[#This Row],[DATES]],\"mmm\")","v":"mars"},{"$f":"WEEKNUM(ventes[[#This Row],[DATES]])","v":13}]
["2021-03-25","client15","Produit06",85.5,4,{"$f":"ventes[[#This Row],[PRIX UNITAIRE (FCFA)]]*ventes[[#This Row],[QUANTITE]]","v":342},{"$f":"VLOOKUP(ventes[[#This Row],[CLIENTS]],localisations[],2,0)","v":"Allemagne"},{"$f":"VLOOKUP(ventes[[#This Row],[CLIENTS]],localisations[],3,0)","v":"Europe"},{"$f":"TEXT(ventes[[#This Row],[DATES]],\"mmm\")","v":"mars"},{"$f":"WEEKNUM(ventes[[#This Row],[DATES]])","v":13}]
["2021-03-25","client22","Produit38",79.92,2,{"$f":"ventes[[#This Row],[PRIX UNITAIRE (FCFA)]]*ventes[[#This Row],[QUANTITE]]","v":159.84},{"$f":"VLOOKUP(ventes[[#This Row],[CLIENTS]],localisations[],2,0)","v":"Canada"},{"$f":"VLOOKUP(ventes[[#This Row],[CLIENTS]],localisations[],3,0)","v":"Amérique"},{"$f":"TEXT(ventes[[#This Row],[DATES]],\"mmm\")","v":"mars"},{"$f":"WEEKNUM(ventes[[#This Row],[DATES]])","v":13}]
["2021-03-26","client06","Produit10",164.28,9,{"$f":"ventes[[#This Row],[PRIX UNITAIRE (FCFA)]]*ventes[[#This Row],[QUANTITE]]","v":1478.52},{"$f":"VLOOKUP(ventes[[#This Row],[CLIENTS]],localisations[],2,0)","v":"Afrique du Sud"},{"$f":"VLOOKUP(ventes[[#This Row],[CLIENTS]],localisations[],3,0)","v":"Afrique"},{"$f":"TEXT(ventes[[#This Row],[DATES]],\"mmm\")","v":"mars"},{"$f":"WEEKNUM(ventes[[#This Row],[DATES]])","v":13}]
["2021-03-26","client33","Produit01",103.88,4,{"$f":"ventes[[#This Row],[PRIX UNITAIRE (FCFA)]]*ventes[[#This Row],[QUANTITE]]","v":415.52},{"$f":"VLOOKUP(ventes[[#This Row],[CLIENTS]],localisations[],2,0)","v":"Philippines"},{"$f":"VLOOKUP(ventes[[#This Row],[CLIENTS]],localisations[],3,0)","v":"Asie"},{"$f":"TEXT(ventes[[#This Row],[DATES]],\"mmm\")","v":"mars"},{"$f":"WEEKNUM(ventes[[#This Row],[DATES]])","v":13}]
["2021-03-26","client35","Produit42",162,1,{"$f":"ventes[[#This Row],[PRIX UNITAIRE (FCFA)]]*ventes[[#This Row],[QUANTITE]]","v":162},{"$f":"VLOOKUP(ventes[[#This Row],[CLIENTS]],localisations[],2,0)","v":"Malaisie"},{"$f":"VLOOKUP(ventes[[#This Row],[CLIENTS]],localisations[],3,0)","v":"Asie"},{"$f":"TEXT(ventes[[#This Row],[DATES]],\"mmm\")","v":"mars"},{"$f":"WEEKNUM(ventes[[#This Row],[DATES]])","v":13}]
["2021-03-26","client30","Produit33",119.7,25,{"$f":"ventes[[#This Row],[PRIX UNITAIRE (FCFA)]]*ventes[[#This Row],[QUANTITE]]","v":2992.5},{"$f":"VLOOKUP(ventes[[#This Row],[CLIENTS]],localisations[],2,0)","v":"Colombie"},{"$f":"VLOOKUP(ventes[[#This Row],[CLIENTS]],localisations[],3,0)","v":"Amérique"},{"$f":"TEXT(ventes[[#This Row],[DATES]],\"mmm\")","v":"mars"},{"$f":"WEEKNUM(ventes[[#This Row],[DATES]])","v":13}]
["2021-03-27","client36","Produit30",201.28,3,{"$f":"ventes[[#This Row],[PRIX UNITAIRE (FCFA)]]*ventes[[#This Row],[QUANTITE]]","v":603.84},{"$f":"VLOOKUP(ventes[[#This Row],[CLIENTS]],localisations[],2,0)","v":"Vietnam"},{"$f":"VLOOKUP(ventes[[#This Row],[CLIENTS]],localisations[],3,0)","v":"Asie"},{"$f":"TEXT(ventes[[#This Row],[DATES]],\"mmm\")","v":"mars"},{"$f":"WEEKNUM(ventes[[#This Row],[DATES]])","v":13}]
["2021-03-28","client01","Produit40",115.2,13,{"$f":"ventes[[#This Row],[PRIX UNITAIRE (FCFA)]]*ventes[[#This Row],[QUANTITE]]","v":1497.6000000000001},{"$f":"VLOOKUP(ventes[[#This Row],[CLIENTS]],localisations[],2,0)","v":"Tunisie"},{"$f":"VLOOKUP(ventes[[#This Row],[CLIENTS]],localisations[],3,0)","v":"Afrique"},{"$f":"TEXT(ventes[[#This Row],[DATES]],\"mmm\")","v":"mars"},{"$f":"WEEKNUM(ventes[[#This Row],[DATES]])","v":14}]
["2021-03-28","client02","Produit37",85.76,3,{"$f":"ventes[[#This Row],[PRIX UNITAIRE (FCFA)]]*ventes[[#This Row],[QUANTITE]]","v":257.28000000000003},{"$f":"VLOOKUP(ventes[[#This Row],[CLIENTS]],localisations[],2,0)","v":"Ghana"},{"$f":"VLOOKUP(ventes[[#This Row],[CLIENTS]],localisations[],3,0)","v":"Afrique"},{"$f":"TEXT(ventes[[#This Row],[DATES]],\"mmm\")","v":"mars"},{"$f":"WEEKNUM(ventes[[#This Row],[DATES]])","v":14}]
["2021-03-28","client26","Produit07",47.730000000000004,8,{"$f":"ventes[[#This Row],[PRIX UNITAIRE (FCFA)]]*ventes[[#This Row],[QUANTITE]]","v":381.84000000000003},{"$f":"VLOOKUP(ventes[[#This Row],[CLIENTS]],localisations[],2,0)","v":"Pérou"},{"$f":"VLOOKUP(ventes[[#This Row],[CLIENTS]],localisations[],3,0)","v":"Amérique"},{"$f":"TEXT(ventes[[#This Row],[DATES]],\"mmm\")","v":"mars"},{"$f":"WEEKNUM(ventes[[#This Row],[DATES]])","v":14}]
["2021-03-29","client02","Produit32",117.48,12,{"$f":"ventes[[#This Row],[PRIX UNITAIRE (FCFA)]]*ventes[[#This Row],[QUANTITE]]","v":1409.76},{"$f":"VLOOKUP(ventes[[#This Row],[CLIENTS]],localisations[],2,0)","v":"Ghana"},{"$f":"VLOOKUP(ventes[[#This Row],[CLIENTS]],localisations[],3,0)","v":"Afrique"},{"$f":"TEXT(ventes[[#This Row],[DATES]],\"mmm\")","v":"mars"},{"$f":"WEEKNUM(ventes[[#This Row],[DATES]])","v":14}]
["2021-03-29","client25","Produit35",6.7,32,{"$f":"ventes[[#This Row],[PRIX UNITAIRE (FCFA)]]*ventes[[#This Row],[QUANTITE]]","v":214.4},{"$f":"VLOOKUP(ventes[[#This Row],[CLIENTS]],localisations[],2,0)","v":"Brésil"},{"$f":"VLOOKUP(ventes[[#This Row],[CLIENTS]],localisations[],3,0)","v":"Amérique"},{"$f":"TEXT(ventes[[#This Row],[DATES]],\"mmm\")","v":"mars"},{"$f":"WEEKNUM(ventes[[#This Row],[DATES]])","v":14}]
["2021-03-30","client04","Produit38",79.92,1,{"$f":"ventes[[#This Row],[PRIX UNITAIRE (FCFA)]]*ventes[[#This Row],[QUANTITE]]","v":79.92},{"$f":"VLOOKUP(ventes[[#This Row],[CLIENTS]],localisations[],2,0)","v":"Sénégal"},{"$f":"VLOOKUP(ventes[[#This Row],[CLIENTS]],localisations[],3,0)","v":"Afrique"},{"$f":"TEXT(ventes[[#This Row],[DATES]],\"mmm\")","v":"mars"},{"$f":"WEEKNUM(ventes[[#This Row],[DATES]])","v":14}]
["2021-03-30","client14","Produit01",103.88,13,{"$f":"ventes[[#This Row],[PRIX UNITAIRE (FCFA)]]*ventes[[#This Row],[QUANTITE]]","v":1350.44},{"$f":"VLOOKUP(ventes[[#This Row],[CLIENTS]],localisations[],2,0)","v":"Pays-Bas"},{"$f":"VLOOKUP(ventes[[#This Row],[CLIENTS]],localisations[],3,0)","v":"Europe"},{"$f":"TEXT(ventes[[#This Row],[DATES]],\"mmm\")","v":"mars"},{"$f":"WEEKNUM(ventes[[#This Row],[DATES]])","v":14}]
["2021-03-31","client18","Produit42",162,3,{"$f":"ventes[[#This Row],[PRIX UNITAIRE (FCFA)]]*ventes[[#This Row],[QUANTITE]]","v":486},{"$f":"VLOOKUP(ventes[[#This Row],[CLIENTS]],localisations[],2,0)","v":"Belgique"},{"$f":"VLOOKUP(ventes[[#This Row],[CLIENTS]],localisations[],3,0)","v":"Europe"},{"$f":"TEXT(ventes[[#This Row],[DATES]],\"mmm\")","v":"mars"},{"$f":"WEEKNUM(ventes[[#This Row],[DATES]])","v":14}]
["2021-03-31","client30","Produit05",155.61000000000001,33,{"$f":"ventes[[#This Row],[PRIX UNITAIRE (FCFA)]]*ventes[[#This Row],[QUANTITE]]","v":5135.13},{"$f":"VLOOKUP(ventes[[#This Row],[CLIENTS]],localisations[],2,0)","v":"Colombie"},{"$f":"VLOOKUP(ventes[[#This Row],[CLIENTS]],localisations[],3,0)","v":"Amérique"},{"$f":"TEXT(ventes[[#This Row],[DATES]],\"mmm\")","v":"mars"},{"$f":"WEEKNUM(ventes[[#This Row],[DATES]])","v":14}]
["2021-04-01","client08","Produit11",48.4,3,{"$f":"ventes[[#This Row],[PRIX UNITAIRE (FCFA)]]*ventes[[#This Row],[QUANTITE]]","v":145.19999999999999},{"$f":"VLOOKUP(ventes[[#This Row],[CLIENTS]],localisations[],2,0)","v":"Maroc"},{"$f":"VLOOKUP(ventes[[#This Row],[CLIENTS]],localisations[],3,0)","v":"Afrique"},{"$f":"TEXT(ventes[[#This Row],[DATES]],\"mmm\")","v":"avr"},{"$f":"WEEKNUM(ventes[[#This Row],[DATES]])","v":14}]
["2021-04-01","client29","Produit02",142.80000000000001,2,{"$f":"ventes[[#This Row],[PRIX UNITAIRE (FCFA)]]*ventes[[#This Row],[QUANTITE]]","v":285.60000000000002},{"$f":"VLOOKUP(ventes[[#This Row],[CLIENTS]],localisations[],2,0)","v":"Chili"},{"$f":"VLOOKUP(ventes[[#This Row],[CLIENTS]],localisations[],3,0)","v":"Amérique"},{"$f":"TEXT(ventes[[#This Row],[DATES]],\"mmm\")","v":"avr"},{"$f":"WEEKNUM(ventes[[#This Row],[DATES]])","v":14}]
["2021-04-02","client02","Produit37",85.76,24,{"$f":"ventes[[#This Row],[PRIX UNITAIRE (FCFA)]]*ventes[[#This Row],[QUANTITE]]","v":2058.2400000000002},{"$f":"VLOOKUP(ventes[[#This Row],[CLIENTS]],localisations[],2,0)","v":"Ghana"},{"$f":"VLOOKUP(ventes[[#This Row],[CLIENTS]],localisations[],3,0)","v":"Afrique"},{"$f":"TEXT(ventes[[#This Row],[DATES]],\"mmm\")","v":"avr"},{"$f":"WEEKNUM(ventes[[#This Row],[DATES]])","v":14}]
["2021-04-02","client12","Produit02",142.80000000000001,3,{"$f":"ventes[[#This Row],[PRIX UNITAIRE (FCFA)]]*ventes[[#This Row],[QUANTITE]]","v":428.40000000000003},{"$f":"VLOOKUP(ventes[[#This Row],[CLIENTS]],localisations[],2,0)","v":"Pologne"},{"$f":"VLOOKUP(ventes[[#This Row],[CLIENTS]],localisations[],3,0)","v":"Europe"},{"$f":"TEXT(ventes[[#This Row],[DATES]],\"mmm\")","v":"avr"},{"$f":"WEEKNUM(ventes[[#This Row],[DATES]])","v":14}]
["2021-04-04","client02","Produit09",7.8599999999999994,9,{"$f":"ventes[[#This Row],[PRIX UNITAIRE (FCFA)]]*ventes[[#This Row],[QUANTITE]]","v":70.739999999999995},{"$f":"VLOOKUP(ventes[[#This Row],[CLIENTS]],localisations[],2,0)","v":"Ghana"},{"$f":"VLOOKUP(ventes[[#This Row],[CLIENTS]],localisations[],3,0)","v":"Afrique"},{"$f":"TEXT(ventes[[#This Row],[DATES]],\"mmm\")","v":"avr"},{"$f":"WEEKNUM(ventes[[#This Row],[DATES]])","v":15}]
["2021-04-04","client04","Produit34",58.3,20,{"$f":"ventes[[#This Row],[PRIX UNITAIRE (FCFA)]]*ventes[[#This Row],[QUANTITE]]","v":1166},{"$f":"VLOOKUP(ventes[[#This Row],[CLIENTS]],localisations[],2,0)","v":"Sénégal"},{"$f":"VLOOKUP(ventes[[#This Row],[CLIENTS]],localisations[],3,0)","v":"Afrique"},{"$f":"TEXT(ventes[[#This Row],[DATES]],\"mmm\")","v":"avr"},{"$f":"WEEKNUM(ventes[[#This Row],[DATES]])","v":15}]
["2021-04-04","client36","Produit40",115.2,4,{"$f":"ventes[[#This Row],[PRIX UNITAIRE (FCFA)]]*ventes[[#This Row],[QUANTITE]]","v":460.8},{"$f":"VLOOKUP(ventes[[#This Row],[CLIENTS]],localisations[],2,0)","v":"Vietnam"},{"$f":"VLOOKUP(ventes[[#This Row],[CLIENTS]],localisations[],3,0)","v":"Asie"},{"$f":"TEXT(ventes[[#This Row],[DATES]],\"mmm\")","v":"avr"},{"$f":"WEEKNUM(ventes[[#This Row],[DATES]])","v":15}]
["2021-04-05","client33","Produit01",103.88,34,{"$f":"ventes[[#This Row],[PRIX UNITAIRE (FCFA)]]*ventes[[#This Row],[QUANTITE]]","v":3531.92},{"$f":"VLOOKUP(ventes[[#This Row],[CLIENTS]],localisations[],2,0)","v":"Philippines"},{"$f":"VLOOKUP(ventes[[#This Row],[CLIENTS]],localisations[],3,0)","v":"Asie"},{"$f":"TEXT(ventes[[#This Row],[DATES]],\"mmm\")","v":"avr"},{"$f":"WEEKNUM(ventes[[#This Row],[DATES]])","v":15}]
["2021-04-05","client21","Produit31",104.16,15,{"$f":"ventes[[#This Row],[PRIX UNITAIRE (FCFA)]]*ventes[[#This Row],[QUANTITE]]","v":1562.3999999999999},{"$f":"VLOOKUP(ventes[[#This Row],[CLIENTS]],localisations[],2,0)","v":"Venezuela"},{"$f":"VLOOKUP(ventes[[#This Row],[CLIENTS]],localisations[],3,0)","v":"Amérique"},{"$f":"TEXT(ventes[[#This Row],[DATES]],\"mmm\")","v":"avr"},{"$f":"WEEKNUM(ventes[[#This Row],[DATES]])","v":15}]
["2021-04-05","client36","Produit08",94.62,29,{"$f":"ventes[[#This Row],[PRIX UNITAIRE (FCFA)]]*ventes[[#This Row],[QUANTITE]]","v":2743.98},{"$f":"VLOOKUP(ventes[[#This Row],[CLIENTS]],localisations[],2,0)","v":"Vietnam"},{"$f":"VLOOKUP(ventes[[#This Row],[CLIENTS]],localisations[],3,0)","v":"Asie"},{"$f":"TEXT(ventes[[#This Row],[DATES]],\"mmm\")","v":"avr"},{"$f":"WEEKNUM(ventes[[#This Row],[DATES]])","v":15}]
["2021-04-06","client33","Produit21",162.54,39,{"$f":"ventes[[#This Row],[PRIX UNITAIRE (FCFA)]]*ventes[[#This Row],[QUANTITE]]","v":6339.0599999999995},{"$f":"VLOOKUP(ventes[[#This Row],[CLIENTS]],localisations[],2,0)","v":"Philippines"},{"$f":"VLOOKUP(ventes[[#This Row],[CLIENTS]],localisations[],3,0)","v":"Asie"},{"$f":"TEXT(ventes[[#This Row],[DATES]],\"mmm\")","v":"avr"},{"$f":"WEEKNUM(ventes[[#This Row],[DATES]])","v":15}]
["2021-04-06","client17","Produit40",115.2,2,{"$f":"ventes[[#This Row],[PRIX UNITAIRE (FCFA)]]*ventes[[#This Row],[QUANTITE]]","v":230.4},{"$f":"VLOOKUP(ventes[[#This Row],[CLIENTS]],localisations[],2,0)","v":"Suède"},{"$f":"VLOOKUP(ventes[[#This Row],[CLIENTS]],localisations[],3,0)","v":"Europe"},{"$f":"TEXT(ventes[[#This Row],[DATES]],\"mmm\")","v":"avr"},{"$f":"WEEKNUM(ventes[[#This Row],[DATES]])","v":15}]
["2021-04-07","client14","Produit26",24.66,7,{"$f":"ventes[[#This Row],[PRIX UNITAIRE (FCFA)]]*ventes[[#This Row],[QUANTITE]]","v":172.62},{"$f":"VLOOKUP(ventes[[#This Row],[CLIENTS]],localisations[],2,0)","v":"Pays-Bas"},{"$f":"VLOOKUP(ventes[[#This Row],[CLIENTS]],localisations[],3,0)","v":"Europe"},{"$f":"TEXT(ventes[[#This Row],[DATES]],\"mmm\")","v":"avr"},{"$f":"WEEKNUM(ventes[[#This Row],[DATES]])","v":15}]
["2021-04-09","client08","Produit02",142.80000000000001,9,{"$f":"ventes[[#This Row],[PRIX UNITAIRE (FCFA)]]*ventes[[#This Row],[QUANTITE]]","v":1285.2},{"$f":"VLOOKUP(ventes[[#This Row],[CLIENTS]],localisations[],2,0)","v":"Maroc"},{"$f":"VLOOKUP(ventes[[#This Row],[CLIENTS]],localisations[],3,0)","v":"Afrique"},{"$f":"TEXT(ventes[[#This Row],[DATES]],\"mmm\")","v":"avr"},{"$f":"WEEKNUM(ventes[[#This Row],[DATES]])","v":15}]
["2021-04-09","client17","Produit05",155.61000000000001,3,{"$f":"ventes[[#This Row],[PRIX UNITAIRE (FCFA)]]*ventes[[#This Row],[QUANTITE]]","v":466.83000000000004},{"$f":"VLOOKUP(ventes[[#This Row],[CLIENTS]],localisations[],2,0)","v":"Suède"},{"$f":"VLOOKUP(ventes[[#This Row],[CLIENTS]],localisations[],3,0)","v":"Europe"},{"$f":"TEXT(ventes[[#This Row],[DATES]],\"mmm\")","v":"avr"},{"$f":"WEEKNUM(ventes[[#This Row],[DATES]])","v":15}]
["2021-04-09","client17","Produit39",42.55,12,{"$f":"ventes[[#This Row],[PRIX UNITAIRE (FCFA)]]*ventes[[#This Row],[QUANTITE]]","v":510.59999999999997},{"$f":"VLOOKUP(ventes[[#This Row],[CLIENTS]],localisations[],2,0)","v":"Suède"},{"$f":"VLOOKUP(ventes[[#This Row],[CLIENTS]],localisations[],3,0)","v":"Europe"},{"$f":"TEXT(ventes[[#This Row],[DATES]],\"mmm\")","v":"avr"},{"$f":"WEEKNUM(ventes[[#This Row],[DATES]])","v":15}]
["2021-04-09","client23","Produit17",156.78,8,{"$f":"ventes[[#This Row],[PRIX UNITAIRE (FCFA)]]*ventes[[#This Row],[QUANTITE]]","v":1254.24},{"$f":"VLOOKUP(ventes[[#This Row],[CLIENTS]],localisations[],2,0)","v":"Argentine"},{"$f":"VLOOKUP(ventes[[#This Row],[CLIENTS]],localisations[],3,0)","v":"Amérique"},{"$f":"TEXT(ventes[[#This Row],[DATES]],\"mmm\")","v":"avr"},{"$f":"WEEKNUM(ventes[[#This Row],[DATES]])","v":15}]
["2021-04-10","client33","Produit22",141.57,14,{"$f":"ventes[[#This Row],[PRIX UNITAIRE (FCFA)]]*ventes[[#This Row],[QUANTITE]]","v":1981.98},{"$f":"VLOOKUP(ventes[[#This Row],[CLIENTS]],localisations[],2,0)","v":"Philippines"},{"$f":"VLOOKUP(ventes[[#This Row],[CLIENTS]],localisations[],3,0)","v":"Asie"},{"$f":"TEXT(ventes[[#This Row],[DATES]],\"mmm\")","v":"avr"},{"$f":"WEEKNUM(ventes[[#This Row],[DATES]])","v":15}]
["2021-04-10","client12","Produit41",173.88,17,{"$f":"ventes[[#This Row],[PRIX UNITAIRE (FCFA)]]*ventes[[#This Row],[QUANTITE]]","v":2955.96},{"$f":"VLOOKUP(ventes[[#This Row],[CLIENTS]],localisations[],2,0)","v":"Pologne"},{"$f":"VLOOKUP(ventes[[#This Row],[CLIENTS]],localisations[],3,0)","v":"Europe"},{"$f":"TEXT(ventes[[#This Row],[DATES]],\"mmm\")","v":"avr"},{"$f":"WEEKNUM(ventes[[#This Row],[DATES]])","v":15}]
["2021-04-10","client20","Produit37",85.76,36,{"$f":"ventes[[#This Row],[PRIX UNITAIRE (FCFA)]]*ventes[[#This Row],[QUANTITE]]","v":3087.36},{"$f":"VLOOKUP(ventes[[#This Row],[CLIENTS]],localisations[],2,0)","v":"France"},{"$f":"VLOOKUP(ventes[[#This Row],[CLIENTS]],localisations[],3,0)","v":"Europe"},{"$f":"TEXT(ventes[[#This Row],[DATES]],\"mmm\")","v":"avr"},{"$f":"WEEKNUM(ventes[[#This Row],[DATES]])","v":15}]
["2021-04-11","client28","Produit09",7.8599999999999994,8,{"$f":"ventes[[#This Row],[PRIX UNITAIRE (FCFA)]]*ventes[[#This Row],[QUANTITE]]","v":62.879999999999995},{"$f":"VLOOKUP(ventes[[#This Row],[CLIENTS]],localisations[],2,0)","v":"États-Unis"},{"$f":"VLOOKUP(ventes[[#This Row],[CLIENTS]],localisations[],3,0)","v":"Amérique"},{"$f":"TEXT(ventes[[#This Row],[DATES]],\"mmm\")","v":"avr"},{"$f":"WEEKNUM(ventes[[#This Row],[DATES]])","v":16}]
["2021-04-12","client04","Produit27",57.120000000000005,9,{"$f":"ventes[[#This Row],[PRIX UNITAIRE (FCFA)]]*ventes[[#This Row],[QUANTITE]]","v":514.08000000000004},{"$f":"VLOOKUP(ventes[[#This Row],[CLIENTS]],localisations[],2,0)","v":"Sénégal"},{"$f":"VLOOKUP(ventes[[#This Row],[CLIENTS]],localisations[],3,0)","v":"Afrique"},{"$f":"TEXT(ventes[[#This Row],[DATES]],\"mmm\")","v":"avr"},{"$f":"WEEKNUM(ventes[[#This Row],[DATES]])","v":16}]
["2021-04-12","client05","Produit15",15.719999999999999,14,{"$f":"ventes[[#This Row],[PRIX UNITAIRE (FCFA)]]*ventes[[#This Row],[QUANTITE]]","v":220.07999999999998},{"$f":"VLOOKUP(ventes[[#This Row],[CLIENTS]],localisations[],2,0)","v":"Algérie"},{"$f":"VLOOKUP(ventes[[#This Row],[CLIENTS]],localisations[],3,0)","v":"Afrique"},{"$f":"TEXT(ventes[[#This Row],[DATES]],\"mmm\")","v":"avr"},{"$f":"WEEKNUM(ventes[[#This Row],[DATES]])","v":16}]
["2021-04-12","client08","Produit37",85.76,3,{"$f":"ventes[[#This Row],[PRIX UNITAIRE (FCFA)]]*ventes[[#This Row],[QUANTITE]]","v":257.28000000000003},{"$f":"VLOOKUP(ventes[[#This Row],[CLIENTS]],localisations[],2,0)","v":"Maroc"},{"$f":"VLOOKUP(ventes[[#This Row],[CLIENTS]],localisations[],3,0)","v":"Afrique"},{"$f":"TEXT(ventes[[#This Row],[DATES]],\"mmm\")","v":"avr"},{"$f":"WEEKNUM(ventes[[#This Row],[DATES]])","v":16}]
["2021-04-12","client14","Produit33",119.7,13,{"$f":"ventes[[#This Row],[PRIX UNITAIRE (FCFA)]]*ventes[[#This Row],[QUANTITE]]","v":1556.1000000000001},{"$f":"VLOOKUP(ventes[[#This Row],[CLIENTS]],localisations[],2,0)","v":"Pays-Bas"},{"$f":"VLOOKUP(ventes[[#This Row],[CLIENTS]],localisations[],3,0)","v":"Europe"},{"$f":"TEXT(ventes[[#This Row],[DATES]],\"mmm\")","v":"avr"},{"$f":"WEEKNUM(ventes[[#This Row],[DATES]])","v":16}]
["2021-04-12","client22","Produit29",53.11,4,{"$f":"ventes[[#This Row],[PRIX UNITAIRE (FCFA)]]*ventes[[#This Row],[QUANTITE]]","v":212.44},{"$f":"VLOOKUP(ventes[[#This Row],[CLIENTS]],localisations[],2,0)","v":"Canada"},{"$f":"VLOOKUP(ventes[[#This Row],[CLIENTS]],localisations[],3,0)","v":"Amérique"},{"$f":"TEXT(ventes[[#This Row],[DATES]],\"mmm\")","v":"avr"},{"$f":"WEEKNUM(ventes[[#This Row],[DATES]])","v":16}]
["2021-04-13","client03","Produit04",48.84,8,{"$f":"ventes[[#This Row],[PRIX UNITAIRE (FCFA)]]*ventes[[#This Row],[QUANTITE]]","v":390.72},{"$f":"VLOOKUP(ventes[[#This Row],[CLIENTS]],localisations[],2,0)","v":"Côte d'Ivoire"},{"$f":"VLOOKUP(ventes[[#This Row],[CLIENTS]],localisations[],3,0)","v":"Afrique"},{"$f":"TEXT(ventes[[#This Row],[DATES]],\"mmm\")","v":"avr"},{"$f":"WEEKNUM(ventes[[#This Row],[DATES]])","v":16}]
["2021-04-13","client06","Produit16",16.64,14,{"$f":"ventes[[#This Row],[PRIX UNITAIRE (FCFA)]]*ventes[[#This Row],[QUANTITE]]","v":232.96},{"$f":"VLOOKUP(ventes[[#This Row],[CLIENTS]],localisations[],2,0)","v":"Afrique du Sud"},{"$f":"VLOOKUP(ventes[[#This Row],[CLIENTS]],localisations[],3,0)","v":"Afrique"},{"$f":"TEXT(ventes[[#This Row],[DATES]],\"mmm\")","v":"avr"},{"$f":"WEEKNUM(ventes[[#This Row],[DATES]])","v":16}]
["2021-04-13","client11","Produit36",96.3,35,{"$f":"ventes[[#This Row],[PRIX UNITAIRE (FCFA)]]*ventes[[#This Row],[QUANTITE]]","v":3370.5},{"$f":"VLOOKUP(ventes[[#This Row],[CLIENTS]],localisations[],2,0)","v":"Espagne"},{"$f":"VLOOKUP(ventes[[#This Row],[CLIENTS]],localisations[],3,0)","v":"Europe"},{"$f":"TEXT(ventes[[#This Row],[DATES]],\"mmm\")","v":"avr"},{"$f":"WEEKNUM(ventes[[#This Row],[DATES]])","v":16}]
["2021-04-14","client21","Produit37",85.76,7,{"$f":"ventes[[#This Row],[PRIX UNITAIRE (FCFA)]]*ventes[[#This Row],[QUANTITE]]","v":600.32000000000005},{"$f":"VLOOKUP(ventes[[#This Row],[CLIENTS]],localisations[],2,0)","v":"Venezuela"},{"$f":"VLOOKUP(ventes[[#This Row],[CLIENTS]],localisations[],3,0)","v":"Amérique"},{"$f":"TEXT(ventes[[#This Row],[DATES]],\"mmm\")","v":"avr"},{"$f":"WEEKNUM(ventes[[#This Row],[DATES]])","v":16}]
["2021-04-15","client27","Produit17",156.78,3,{"$f":"ventes[[#This Row],[PRIX UNITAIRE (FCFA)]]*ventes[[#This Row],[QUANTITE]]","v":470.34000000000003},{"$f":"VLOOKUP(ventes[[#This Row],[CLIENTS]],localisations[],2,0)","v":"Mexique"},{"$f":"VLOOKUP(ventes[[#This Row],[CLIENTS]],localisations[],3,0)","v":"Amérique"},{"$f":"TEXT(ventes[[#This Row],[DATES]],\"mmm\")","v":"avr"},{"$f":"WEEKNUM(ventes[[#This Row],[DATES]])","v":16}]
["2021-04-16","client35","Produit16",16.64,38,{"$f":"ventes[[#This Row],[PRIX UNITAIRE (FCFA)]]*ventes[[#This Row],[QUANTITE]]","v":632.32000000000005},{"$f":"VLOOKUP(ventes[[#This Row],[CLIENTS]],localisations[],2,0)","v":"Malaisie"},{"$f":"VLOOKUP(ventes[[#This Row],[CLIENTS]],localisations[],3,0)","v":"Asie"},{"$f":"TEXT(ventes[[#This Row],[DATES]],\"mmm\")","v":"avr"},{"$f":"WEEKNUM(ventes[[#This Row],[DATES]])","v":16}]
["2021-04-16","client30","Produit18",49.21,15,{"$f":"ventes[[#This Row],[PRIX UNITAIRE (FCFA)]]*ventes[[#This Row],[QUANTITE]]","v":738.15},{"$f":"VLOOKUP(ventes[[#This Row],[CLIENTS]],localisations[],2,0)","v":"Colombie"},{"$f":"VLOOKUP(ventes[[#This Row],[CLIENTS]],localisations[],3,0)","v":"Amérique"},{"$f":"TEXT(ventes[[#This Row],[DATES]],\"mmm\")","v":"avr"},{"$f":"WEEKNUM(ventes[[#This Row],[DATES]])","v":16}]
["2021-04-17","client16","Produit09",7.8599999999999994,19,{"$f":"ventes[[#This Row],[PRIX UNITAIRE (FCFA)]]*ventes[[#This Row],[QUANTITE]]","v":149.33999999999997},{"$f":"VLOOKUP(ventes[[#This Row],[CLIENTS]],localisations[],2,0)","v":"Royaume-Uni"},{"$f":"VLOOKUP(ventes[[#This Row],[CLIENTS]],localisations[],3,0)","v":"Europe"},{"$f":"TEXT(ventes[[#This Row],[DATES]],\"mmm\")","v":"avr"},{"$f":"WEEKNUM(ventes[[#This Row],[DATES]])","v":16}]
["2021-04-18","client33","Produit41",173.88,9,{"$f":"ventes[[#This Row],[PRIX UNITAIRE (FCFA)]]*ventes[[#This Row],[QUANTITE]]","v":1564.92},{"$f":"VLOOKUP(ventes[[#This Row],[CLIENTS]],localisations[],2,0)","v":"Philippines"},{"$f":"VLOOKUP(ventes[[#This Row],[CLIENTS]],localisations[],3,0)","v":"Asie"},{"$f":"TEXT(ventes[[#This Row],[DATES]],\"mmm\")","v":"avr"},{"$f":"WEEKNUM(ventes[[#This Row],[DATES]])","v":17}]
["2021-04-18","client15","Produit19",210,13,{"$f":"ventes[[#This Row],[PRIX UNITAIRE (FCFA)]]*ventes[[#This Row],[QUANTITE]]","v":2730},{"$f":"VLOOKUP(ventes[[#This Row],[CLIENTS]],localisations[],2,0)","v":"Allemagne"},{"$f":"VLOOKUP(ventes[[#This Row],[CLIENTS]],localisations[],3,0)","v":"Europe"},{"$f":"TEXT(ventes[[#This Row],[DATES]],\"mmm\")","v":"avr"},{"$f":"WEEKNUM(ventes[[#This Row],[DATES]])","v":17}]
["2021-04-18","client28","Produit11",48.4,2,{"$f":"ventes[[#This Row],[PRIX UNITAIRE (FCFA)]]*ventes[[#This Row],[QUANTITE]]","v":96.8},{"$f":"VLOOKUP(ventes[[#This Row],[CLIENTS]],localisations[],2,0)","v":"États-Unis"},{"$f":"VLOOKUP(ventes[[#This Row],[CLIENTS]],localisations[],3,0)","v":"Amérique"},{"$f":"TEXT(ventes[[#This Row],[DATES]],\"mmm\")","v":"avr"},{"$f":"WEEKNUM(ventes[[#This Row],[DATES]])","v":17}]
["2021-04-18","client29","Produit38",79.92,9,{"$f":"ventes[[#This Row],[PRIX UNITAIRE (FCFA)]]*ventes[[#This Row],[QUANTITE]]","v":719.28},{"$f":"VLOOKUP(ventes[[#This Row],[CLIENTS]],localisations[],2,0)","v":"Chili"},{"$f":"VLOOKUP(ventes[[#This Row],[CLIENTS]],localisations[],3,0)","v":"Amérique"},{"$f":"TEXT(ventes[[#This Row],[DATES]],\"mmm\")","v":"avr"},{"$f":"WEEKNUM(ventes[[#This Row],[DATES]])","v":17}]
["2021-04-19","client28","Produit11",48.4,17,{"$f":"ventes[[#This Row],[PRIX UNITAIRE (FCFA)]]*ventes[[#This Row],[QUANTITE]]","v":822.8},{"$f":"VLOOKUP(ventes[[#This Row],[CLIENTS]],localisations[],2,0)","v":"États-Unis"},{"$f":"VLOOKUP(ventes[[#This Row],[CLIENTS]],localisations[],3,0)","v":"Amérique"},{"$f":"TEXT(ventes[[#This Row],[DATES]],\"mmm\")","v":"avr"},{"$f":"WEEKNUM(ventes[[#This Row],[DATES]])","v":17}]
["2021-04-20","client33","Produit18",49.21,2,{"$f":"ventes[[#This Row],[PRIX UNITAIRE (FCFA)]]*ventes[[#This Row],[QUANTITE]]","v":98.42},{"$f":"VLOOKUP(ventes[[#This Row],[CLIENTS]],localisations[],2,0)","v":"Philippines"},{"$f":"VLOOKUP(ventes[[#This Row],[CLIENTS]],localisations[],3,0)","v":"Asie"},{"$f":"TEXT(ventes[[#This Row],[DATES]],\"mmm\")","v":"avr"},{"$f":"WEEKNUM(ventes[[#This Row],[DATES]])","v":17}]
["2021-04-20","client18","Produit12",94.17,4,{"$f":"ventes[[#This Row],[PRIX UNITAIRE (FCFA)]]*ventes[[#This Row],[QUANTITE]]","v":376.68},{"$f":"VLOOKUP(ventes[[#This Row],[CLIENTS]],localisations[],2,0)","v":"Belgique"},{"$f":"VLOOKUP(ventes[[#This Row],[CLIENTS]],localisations[],3,0)","v":"Europe"},{"$f":"TEXT(ventes[[#This Row],[DATES]],\"mmm\")","v":"avr"},{"$f":"WEEKNUM(ventes[[#This Row],[DATES]])","v":17}]
["2021-04-21","client23","Produit30",201.28,2,{"$f":"ventes[[#This Row],[PRIX UNITAIRE (FCFA)]]*ventes[[#This Row],[QUANTITE]]","v":402.56},{"$f":"VLOOKUP(ventes[[#This Row],[CLIENTS]],localisations[],2,0)","v":"Argentine"},{"$f":"VLOOKUP(ventes[[#This Row],[CLIENTS]],localisations[],3,0)","v":"Amérique"},{"$f":"TEXT(ventes[[#This Row],[DATES]],\"mmm\")","v":"avr"},{"$f":"WEEKNUM(ventes[[#This Row],[DATES]])","v":17}]
["2021-04-21","client24","Produit26",24.66,14,{"$f":"ventes[[#This Row],[PRIX UNITAIRE (FCFA)]]*ventes[[#This Row],[QUANTITE]]","v":345.24},{"$f":"VLOOKUP(ventes[[#This Row],[CLIENTS]],localisations[],2,0)","v":"Équateur"},{"$f":"VLOOKUP(ventes[[#This Row],[CLIENTS]],localisations[],3,0)","v":"Amérique"},{"$f":"TEXT(ventes[[#This Row],[DATES]],\"mmm\")","v":"avr"},{"$f":"WEEKNUM(ventes[[#This Row],[DATES]])","v":17}]
["2021-04-22","client05","Produit43",83.08,22,{"$f":"ventes[[#This Row],[PRIX UNITAIRE (FCFA)]]*ventes[[#This Row],[QUANTITE]]","v":1827.76},{"$f":"VLOOKUP(ventes[[#This Row],[CLIENTS]],localisations[],2,0)","v":"Algérie"},{"$f":"VLOOKUP(ventes[[#This Row],[CLIENTS]],localisations[],3,0)","v":"Afrique"},{"$f":"TEXT(ventes[[#This Row],[DATES]],\"mmm\")","v":"avr"},{"$f":"WEEKNUM(ventes[[#This Row],[DATES]])","v":17}]
["2021-04-22","client21","Produit36",96.3,36,{"$f":"ventes[[#This Row],[PRIX UNITAIRE (FCFA)]]*ventes[[#This Row],[QUANTITE]]","v":3466.7999999999997},{"$f":"VLOOKUP(ventes[[#This Row],[CLIENTS]],localisations[],2,0)","v":"Venezuela"},{"$f":"VLOOKUP(ventes[[#This Row],[CLIENTS]],localisations[],3,0)","v":"Amérique"},{"$f":"TEXT(ventes[[#This Row],[DATES]],\"mmm\")","v":"avr"},{"$f":"WEEKNUM(ventes[[#This Row],[DATES]])","v":17}]
["2021-04-23","client03","Produit28",41.81,10,{"$f":"ventes[[#This Row],[PRIX UNITAIRE (FCFA)]]*ventes[[#This Row],[QUANTITE]]","v":418.1},{"$f":"VLOOKUP(ventes[[#This Row],[CLIENTS]],localisations[],2,0)","v":"Côte d'Ivoire"},{"$f":"VLOOKUP(ventes[[#This Row],[CLIENTS]],localisations[],3,0)","v":"Afrique"},{"$f":"TEXT(ventes[[#This Row],[DATES]],\"mmm\")","v":"avr"},{"$f":"WEEKNUM(ventes[[#This Row],[DATES]])","v":17}]
["2021-04-23","client21","Produit44",82.08,15,{"$f":"ventes[[#This Row],[PRIX UNITAIRE (FCFA)]]*ventes[[#This Row],[QUANTITE]]","v":1231.2},{"$f":"VLOOKUP(ventes[[#This Row],[CLIENTS]],localisations[],2,0)","v":"Venezuela"},{"$f":"VLOOKUP(ventes[[#This Row],[CLIENTS]],localisations[],3,0)","v":"Amérique"},{"$f":"TEXT(ventes[[#This Row],[DATES]],\"mmm\")","v":"avr"},{"$f":"WEEKNUM(ventes[[#This Row],[DATES]])","v":17}]
["2021-04-23","client29","Produit42",162,6,{"$f":"ventes[[#This Row],[PRIX UNITAIRE (FCFA)]]*ventes[[#This Row],[QUANTITE]]","v":972},{"$f":"VLOOKUP(ventes[[#This Row],[CLIENTS]],localisations[],2,0)","v":"Chili"},{"$f":"VLOOKUP(ventes[[#This Row],[CLIENTS]],localisations[],3,0)","v":"Amérique"},{"$f":"TEXT(ventes[[#This Row],[DATES]],\"mmm\")","v":"avr"},{"$f":"WEEKNUM(ventes[[#This Row],[DATES]])","v":17}]
["2021-04-24","client03","Produit34",58.3,4,{"$f":"ventes[[#This Row],[PRIX UNITAIRE (FCFA)]]*ventes[[#This Row],[QUANTITE]]","v":233.2},{"$f":"VLOOKUP(ventes[[#This Row],[CLIENTS]],localisations[],2,0)","v":"Côte d'Ivoire"},{"$f":"VLOOKUP(ventes[[#This Row],[CLIENTS]],localisations[],3,0)","v":"Afrique"},{"$f":"TEXT(ventes[[#This Row],[DATES]],\"mmm\")","v":"avr"},{"$f":"WEEKNUM(ventes[[#This Row],[DATES]])","v":17}]
["2021-04-24","client11","Produit38",79.92,1,{"$f":"ventes[[#This Row],[PRIX UNITAIRE (FCFA)]]*ventes[[#This Row],[QUANTITE]]","v":79.92},{"$f":"VLOOKUP(ventes[[#This Row],[CLIENTS]],localisations[],2,0)","v":"Espagne"},{"$f":"VLOOKUP(ventes[[#This Row],[CLIENTS]],localisations[],3,0)","v":"Europe"},{"$f":"TEXT(ventes[[#This Row],[DATES]],\"mmm\")","v":"avr"},{"$f":"WEEKNUM(ventes[[#This Row],[DATES]])","v":17}]
["2021-04-24","client28","Produit30",201.28,2,{"$f":"ventes[[#This Row],[PRIX UNITAIRE (FCFA)]]*ventes[[#This Row],[QUANTITE]]","v":402.56},{"$f":"VLOOKUP(ventes[[#This Row],[CLIENTS]],localisations[],2,0)","v":"États-Unis"},{"$f":"VLOOKUP(ventes[[#This Row],[CLIENTS]],localisations[],3,0)","v":"Amérique"},{"$f":"TEXT(ventes[[#This Row],[DATES]],\"mmm\")","v":"avr"},{"$f":"WEEKNUM(ventes[[#This Row],[DATES]])","v":17}]
["2021-04-24","client29","Produit21",162.54,39,{"$f":"ventes[[#This Row],[PRIX UNITAIRE (FCFA)]]*ventes[[#This Row],[QUANTITE]]","v":6339.0599999999995},{"$f":"VLOOKUP(ventes[[#This Row],[CLIENTS]],localisations[],2,0)","v":"Chili"},{"$f":"VLOOKUP(ventes[[#This Row],[CLIENTS]],localisations[],3,0)","v":"Amérique"},{"$f":"TEXT(ventes[[#This Row],[DATES]],\"mmm\")","v":"avr"},{"$f":"WEEKNUM(ventes[[#This Row],[DATES]])","v":17}]
["2021-04-25","client03","Produit03",80.94,8,{"$f":"ventes[[#This Row],[PRIX UNITAIRE (FCFA)]]*ventes[[#This Row],[QUANTITE]]","v":647.52},{"$f":"VLOOKUP(ventes[[#This Row],[CLIENTS]],localisations[],2,0)","v":"Côte d'Ivoire"},{"$f":"VLOOKUP(ventes[[#This Row],[CLIENTS]],localisations[],3,0)","v":"Afrique"},{"$f":"TEXT(ventes[[#This Row],[DATES]],\"mmm\")","v":"avr"},{"$f":"WEEKNUM(ventes[[#This Row],[DATES]])","v":18}]
["2021-04-25","client23","Produit04",48.84,9,{"$f":"ventes[[#This Row],[PRIX UNITAIRE (FCFA)]]*ventes[[#This Row],[QUANTITE]]","v":439.56000000000006},{"$f":"VLOOKUP(ventes[[#This Row],[CLIENTS]],localisations[],2,0)","v":"Argentine"},{"$f":"VLOOKUP(ventes[[#This Row],[CLIENTS]],localisations[],3,0)","v":"Amérique"},{"$f":"TEXT(ventes[[#This Row],[DATES]],\"mmm\")","v":"avr"},{"$f":"WEEKNUM(ventes[[#This Row],[DATES]])","v":18}]
["2021-04-26","client14","Produit37",85.76,3,{"$f":"ventes[[#This Row],[PRIX UNITAIRE (FCFA)]]*ventes[[#This Row],[QUANTITE]]","v":257.28000000000003},{"$f":"VLOOKUP(ventes[[#This Row],[CLIENTS]],localisations[],2,0)","v":"Pays-Bas"},{"$f":"VLOOKUP(ventes[[#This Row],[CLIENTS]],localisations[],3,0)","v":"Europe"},{"$f":"TEXT(ventes[[#This Row],[DATES]],\"mmm\")","v":"avr"},{"$f":"WEEKNUM(ventes[[#This Row],[DATES]])","v":18}]
["2021-04-26","client26","Produit27",57.120000000000005,2,{"$f":"ventes[[#This Row],[PRIX UNITAIRE (FCFA)]]*ventes[[#This Row],[QUANTITE]]","v":114.24000000000001},{"$f":"VLOOKUP(ventes[[#This Row],[CLIENTS]],localisations[],2,0)","v":"Pérou"},{"$f":"VLOOKUP(ventes[[#This Row],[CLIENTS]],localisations[],3,0)","v":"Amérique"},{"$f":"TEXT(ventes[[#This Row],[DATES]],\"mmm\")","v":"avr"},{"$f":"WEEKNUM(ventes[[#This Row],[DATES]])","v":18}]
["2021-04-28","client02","Produit14",146.72,14,{"$f":"ventes[[#This Row],[PRIX UNITAIRE (FCFA)]]*ventes[[#This Row],[QUANTITE]]","v":2054.08},{"$f":"VLOOKUP(ventes[[#This Row],[CLIENTS]],localisations[],2,0)","v":"Ghana"},{"$f":"VLOOKUP(ventes[[#This Row],[CLIENTS]],localisations[],3,0)","v":"Afrique"},{"$f":"TEXT(ventes[[#This Row],[DATES]],\"mmm\")","v":"avr"},{"$f":"WEEKNUM(ventes[[#This Row],[DATES]])","v":18}]
["2021-04-28","client30","Produit20",76.25,30,{"$f":"ventes[[#This Row],[PRIX UNITAIRE (FCFA)]]*ventes[[#This Row],[QUANTITE]]","v":2287.5},{"$f":"VLOOKUP(ventes[[#This Row],[CLIENTS]],localisations[],2,0)","v":"Colombie"},{"$f":"VLOOKUP(ventes[[#This Row],[CLIENTS]],localisations[],3,0)","v":"Amérique"},{"$f":"TEXT(ventes[[#This Row],[DATES]],\"mmm\")","v":"avr"},{"$f":"WEEKNUM(ventes[[#This Row],[DATES]])","v":18}]
["2021-04-29","client12","Produit21",162.54,13,{"$f":"ventes[[#This Row],[PRIX UNITAIRE (FCFA)]]*ventes[[#This Row],[QUANTITE]]","v":2113.02},{"$f":"VLOOKUP(ventes[[#This Row],[CLIENTS]],localisations[],2,0)","v":"Pologne"},{"$f":"VLOOKUP(ventes[[#This Row],[CLIENTS]],localisations[],3,0)","v":"Europe"},{"$f":"TEXT(ventes[[#This Row],[DATES]],\"mmm\")","v":"avr"},{"$f":"WEEKNUM(ventes[[#This Row],[DATES]])","v":18}]
["2021-04-29","client29","Produit30",201.28,7,{"$f":"ventes[[#This Row],[PRIX UNITAIRE (FCFA)]]*ventes[[#This Row],[QUANTITE]]","v":1408.96},{"$f":"VLOOKUP(ventes[[#This Row],[CLIENTS]],localisations[],2,0)","v":"Chili"},{"$f":"VLOOKUP(ventes[[#This Row],[CLIENTS]],localisations[],3,0)","v":"Amérique"},{"$f":"TEXT(ventes[[#This Row],[DATES]],\"mmm\")","v":"avr"},{"$f":"WEEKNUM(ventes[[#This Row],[DATES]])","v":18}]
["2021-04-30","client35","Produit16",16.64,13,{"$f":"ventes[[#This Row],[PRIX UNITAIRE (FCFA)]]*ventes[[#This Row],[QUANTITE]]","v":216.32},{"$f":"VLOOKUP(ventes[[#This Row],[CLIENTS]],localisations[],2,0)","v":"Malaisie"},{"$f":"VLOOKUP(ventes[[#This Row],[CLIENTS]],localisations[],3,0)","v":"Asie"},{"$f":"TEXT(ventes[[#This Row],[DATES]],\"mmm\")","v":"avr"},{"$f":"WEEKNUM(ventes[[#This Row],[DATES]])","v":18}]
["2021-04-30","client15","Produit29",53.11,1,{"$f":"ventes[[#This Row],[PRIX UNITAIRE (FCFA)]]*ventes[[#This Row],[QUANTITE]]","v":53.11},{"$f":"VLOOKUP(ventes[[#This Row],[CLIENTS]],localisations[],2,0)","v":"Allemagne"},{"$f":"VLOOKUP(ventes[[#This Row],[CLIENTS]],localisations[],3,0)","v":"Europe"},{"$f":"TEXT(ventes[[#This Row],[DATES]],\"mmm\")","v":"avr"},{"$f":"WEEKNUM(ventes[[#This Row],[DATES]])","v":18}]
["2021-04-30","client21","Produit27",57.120000000000005,8,{"$f":"ventes[[#This Row],[PRIX UNITAIRE (FCFA)]]*ventes[[#This Row],[QUANTITE]]","v":456.96000000000004},{"$f":"VLOOKUP(ventes[[#This Row],[CLIENTS]],localisations[],2,0)","v":"Venezuela"},{"$f":"VLOOKUP(ventes[[#This Row],[CLIENTS]],localisations[],3,0)","v":"Amérique"},{"$f":"TEXT(ventes[[#This Row],[DATES]],\"mmm\")","v":"avr"},{"$f":"WEEKNUM(ventes[[#This Row],[DATES]])","v":18}]
["2021-05-01","client09","Produit31",104.16,2,{"$f":"ventes[[#This Row],[PRIX UNITAIRE (FCFA)]]*ventes[[#This Row],[QUANTITE]]","v":208.32},{"$f":"VLOOKUP(ventes[[#This Row],[CLIENTS]],localisations[],2,0)","v":"Égypte"},{"$f":"VLOOKUP(ventes[[#This Row],[CLIENTS]],localisations[],3,0)","v":"Afrique"},{"$f":"TEXT(ventes[[#This Row],[DATES]],\"mmm\")","v":"mai"},{"$f":"WEEKNUM(ventes[[#This Row],[DATES]])","v":18}]
["2021-05-01","client12","Produit34",58.3,9,{"$f":"ventes[[#This Row],[PRIX UNITAIRE (FCFA)]]*ventes[[#This Row],[QUANTITE]]","v":524.69999999999993},{"$f":"VLOOKUP(ventes[[#This Row],[CLIENTS]],localisations[],2,0)","v":"Pologne"},{"$f":"VLOOKUP(ventes[[#This Row],[CLIENTS]],localisations[],3,0)","v":"Europe"},{"$f":"TEXT(ventes[[#This Row],[DATES]],\"mmm\")","v":"mai"},{"$f":"WEEKNUM(ventes[[#This Row],[DATES]])","v":18}]
["2021-05-01","client35","Produit33",119.7,6,{"$f":"ventes[[#This Row],[PRIX UNITAIRE (FCFA)]]*ventes[[#This Row],[QUANTITE]]","v":718.2},{"$f":"VLOOKUP(ventes[[#This Row],[CLIENTS]],localisations[],2,0)","v":"Malaisie"},{"$f":"VLOOKUP(ventes[[#This Row],[CLIENTS]],localisations[],3,0)","v":"Asie"},{"$f":"TEXT(ventes[[#This Row],[DATES]],\"mmm\")","v":"mai"},{"$f":"WEEKNUM(ventes[[#This Row],[DATES]])","v":18}]
["2021-05-01","client22","Produit42",162,1,{"$f":"ventes[[#This Row],[PRIX UNITAIRE (FCFA)]]*ventes[[#This Row],[QUANTITE]]","v":162},{"$f":"VLOOKUP(ventes[[#This Row],[CLIENTS]],localisations[],2,0)","v":"Canada"},{"$f":"VLOOKUP(ventes[[#This Row],[CLIENTS]],localisations[],3,0)","v":"Amérique"},{"$f":"TEXT(ventes[[#This Row],[DATES]],\"mmm\")","v":"mai"},{"$f":"WEEKNUM(ventes[[#This Row],[DATES]])","v":18}]
["2021-05-01","client24","Produit18",49.21,3,{"$f":"ventes[[#This Row],[PRIX UNITAIRE (FCFA)]]*ventes[[#This Row],[QUANTITE]]","v":147.63},{"$f":"VLOOKUP(ventes[[#This Row],[CLIENTS]],localisations[],2,0)","v":"Équateur"},{"$f":"VLOOKUP(ventes[[#This Row],[CLIENTS]],localisations[],3,0)","v":"Amérique"},{"$f":"TEXT(ventes[[#This Row],[DATES]],\"mmm\")","v":"mai"},{"$f":"WEEKNUM(ventes[[#This Row],[DATES]])","v":18}]
["2021-05-02","client14","Produit13",122.08,4,{"$f":"ventes[[#This Row],[PRIX UNITAIRE (FCFA)]]*ventes[[#This Row],[QUANTITE]]","v":488.32},{"$f":"VLOOKUP(ventes[[#This Row],[CLIENTS]],localisations[],2,0)","v":"Pays-Bas"},{"$f":"VLOOKUP(ventes[[#This Row],[CLIENTS]],localisations[],3,0)","v":"Europe"},{"$f":"TEXT(ventes[[#This Row],[DATES]],\"mmm\")","v":"mai"},{"$f":"WEEKNUM(ventes[[#This Row],[DATES]])","v":19}]
["2021-05-03","client01","Produit34",58.3,3,{"$f":"ventes[[#This Row],[PRIX UNITAIRE (FCFA)]]*ventes[[#This Row],[QUANTITE]]","v":174.89999999999998},{"$f":"VLOOKUP(ventes[[#This Row],[CLIENTS]],localisations[],2,0)","v":"Tunisie"},{"$f":"VLOOKUP(ventes[[#This Row],[CLIENTS]],localisations[],3,0)","v":"Afrique"},{"$f":"TEXT(ventes[[#This Row],[DATES]],\"mmm\")","v":"mai"},{"$f":"WEEKNUM(ventes[[#This Row],[DATES]])","v":19}]
["2021-05-03","client27","Produit13",122.08,13,{"$f":"ventes[[#This Row],[PRIX UNITAIRE (FCFA)]]*ventes[[#This Row],[QUANTITE]]","v":1587.04},{"$f":"VLOOKUP(ventes[[#This Row],[CLIENTS]],localisations[],2,0)","v":"Mexique"},{"$f":"VLOOKUP(ventes[[#This Row],[CLIENTS]],localisations[],3,0)","v":"Amérique"},{"$f":"TEXT(ventes[[#This Row],[DATES]],\"mmm\")","v":"mai"},{"$f":"WEEKNUM(ventes[[#This Row],[DATES]])","v":19}]
["2021-05-04","client12","Produit14",146.72,4,{"$f":"ventes[[#This Row],[PRIX UNITAIRE (FCFA)]]*ventes[[#This Row],[QUANTITE]]","v":586.88},{"$f":"VLOOKUP(ventes[[#This Row],[CLIENTS]],localisations[],2,0)","v":"Pologne"},{"$f":"VLOOKUP(ventes[[#This Row],[CLIENTS]],localisations[],3,0)","v":"Europe"},{"$f":"TEXT(ventes[[#This Row],[DATES]],\"mmm\")","v":"mai"},{"$f":"WEEKNUM(ventes[[#This Row],[DATES]])","v":19}]
["2021-05-04","client15","Produit15",15.719999999999999,13,{"$f":"ventes[[#This Row],[PRIX UNITAIRE (FCFA)]]*ventes[[#This Row],[QUANTITE]]","v":204.35999999999999},{"$f":"VLOOKUP(ventes[[#This Row],[CLIENTS]],localisations[],2,0)","v":"Allemagne"},{"$f":"VLOOKUP(ventes[[#This Row],[CLIENTS]],localisations[],3,0)","v":"Europe"},{"$f":"TEXT(ventes[[#This Row],[DATES]],\"mmm\")","v":"mai"},{"$f":"WEEKNUM(ventes[[#This Row],[DATES]])","v":19}]
["2021-05-04","client27","Produit20",76.25,10,{"$f":"ventes[[#This Row],[PRIX UNITAIRE (FCFA)]]*ventes[[#This Row],[QUANTITE]]","v":762.5},{"$f":"VLOOKUP(ventes[[#This Row],[CLIENTS]],localisations[],2,0)","v":"Mexique"},{"$f":"VLOOKUP(ventes[[#This Row],[CLIENTS]],localisations[],3,0)","v":"Amérique"},{"$f":"TEXT(ventes[[#This Row],[DATES]],\"mmm\")","v":"mai"},{"$f":"WEEKNUM(ventes[[#This Row],[DATES]])","v":19}]
["2021-05-05","client04","Produit09",7.8599999999999994,13,{"$f":"ventes[[#This Row],[PRIX UNITAIRE (FCFA)]]*ventes[[#This Row],[QUANTITE]]","v":102.17999999999999},{"$f":"VLOOKUP(ventes[[#This Row],[CLIENTS]],localisations[],2,0)","v":"Sénégal"},{"$f":"VLOOKUP(ventes[[#This Row],[CLIENTS]],localisations[],3,0)","v":"Afrique"},{"$f":"TEXT(ventes[[#This Row],[DATES]],\"mmm\")","v":"mai"},{"$f":"WEEKNUM(ventes[[#This Row],[DATES]])","v":19}]
["2021-05-05","client25","Produit32",117.48,22,{"$f":"ventes[[#This Row],[PRIX UNITAIRE (FCFA)]]*ventes[[#This Row],[QUANTITE]]","v":2584.56},{"$f":"VLOOKUP(ventes[[#This Row],[CLIENTS]],localisations[],2,0)","v":"Brésil"},{"$f":"VLOOKUP(ventes[[#This Row],[CLIENTS]],localisations[],3,0)","v":"Amérique"},{"$f":"TEXT(ventes[[#This Row],[DATES]],\"mmm\")","v":"mai"},{"$f":"WEEKNUM(ventes[[#This Row],[DATES]])","v":19}]
["2021-05-06","client33","Produit09",7.8599999999999994,6,{"$f":"ventes[[#This Row],[PRIX UNITAIRE (FCFA)]]*ventes[[#This Row],[QUANTITE]]","v":47.16},{"$f":"VLOOKUP(ventes[[#This Row],[CLIENTS]],localisations[],2,0)","v":"Philippines"},{"$f":"VLOOKUP(ventes[[#This Row],[CLIENTS]],localisations[],3,0)","v":"Asie"},{"$f":"TEXT(ventes[[#This Row],[DATES]],\"mmm\")","v":"mai"},{"$f":"WEEKNUM(ventes[[#This Row],[DATES]])","v":19}]
["2021-05-06","client33","Produit34",58.3,7,{"$f":"ventes[[#This Row],[PRIX UNITAIRE (FCFA)]]*ventes[[#This Row],[QUANTITE]]","v":408.09999999999997},{"$f":"VLOOKUP(ventes[[#This Row],[CLIENTS]],localisations[],2,0)","v":"Philippines"},{"$f":"VLOOKUP(ventes[[#This Row],[CLIENTS]],localisations[],3,0)","v":"Asie"},{"$f":"TEXT(ventes[[#This Row],[DATES]],\"mmm\")","v":"mai"},{"$f":"WEEKNUM(ventes[[#This Row],[DATES]])","v":19}]
["2021-05-06","client26","Produit08",94.62,15,{"$f":"ventes[[#This Row],[PRIX UNITAIRE (FCFA)]]*ventes[[#This Row],[QUANTITE]]","v":1419.3000000000002},{"$f":"VLOOKUP(ventes[[#This Row],[CLIENTS]],localisations[],2,0)","v":"Pérou"},{"$f":"VLOOKUP(ventes[[#This Row],[CLIENTS]],localisations[],3,0)","v":"Amérique"},{"$f":"TEXT(ventes[[#This Row],[DATES]],\"mmm\")","v":"mai"},{"$f":"WEEKNUM(ventes[[#This Row],[DATES]])","v":19}]
["2021-05-07","client01","Produit15",15.719999999999999,4,{"$f":"ventes[[#This Row],[PRIX UNITAIRE (FCFA)]]*ventes[[#This Row],[QUANTITE]]","v":62.879999999999995},{"$f":"VLOOKUP(ventes[[#This Row],[CLIENTS]],localisations[],2,0)","v":"Tunisie"},{"$f":"VLOOKUP(ventes[[#This Row],[CLIENTS]],localisations[],3,0)","v":"Afrique"},{"$f":"TEXT(ventes[[#This Row],[DATES]],\"mmm\")","v":"mai"},{"$f":"WEEKNUM(ventes[[#This Row],[DATES]])","v":19}]
["2021-05-07","client06","Produit18",49.21,1,{"$f":"ventes[[#This Row],[PRIX UNITAIRE (FCFA)]]*ventes[[#This Row],[QUANTITE]]","v":49.21},{"$f":"VLOOKUP(ventes[[#This Row],[CLIENTS]],localisations[],2,0)","v":"Afrique du Sud"},{"$f":"VLOOKUP(ventes[[#This Row],[CLIENTS]],localisations[],3,0)","v":"Afrique"},{"$f":"TEXT(ventes[[#This Row],[DATES]],\"mmm\")","v":"mai"},{"$f":"WEEKNUM(ventes[[#This Row],[DATES]])","v":19}]
["2021-05-07","client12","Produit27",57.120000000000005,1,{"$f":"ventes[[#This Row],[PRIX UNITAIRE (FCFA)]]*ventes[[#This Row],[QUANTITE]]","v":57.120000000000005},{"$f":"VLOOKUP(ventes[[#This Row],[CLIENTS]],localisations[],2,0)","v":"Pologne"},{"$f":"VLOOKUP(ventes[[#This Row],[CLIENTS]],localisations[],3,0)","v":"Europe"},{"$f":"TEXT(ventes[[#This Row],[DATES]],\"mmm\")","v":"mai"},{"$f":"WEEKNUM(ventes[[#This Row],[DATES]])","v":19}]
["2021-05-07","client21","Produit16",16.64,39,{"$f":"ventes[[#This Row],[PRIX UNITAIRE (FCFA)]]*ventes[[#This Row],[QUANTITE]]","v":648.96},{"$f":"VLOOKUP(ventes[[#This Row],[CLIENTS]],localisations[],2,0)","v":"Venezuela"},{"$f":"VLOOKUP(ventes[[#This Row],[CLIENTS]],localisations[],3,0)","v":"Amérique"},{"$f":"TEXT(ventes[[#This Row],[DATES]],\"mmm\")","v":"mai"},{"$f":"WEEKNUM(ventes[[#This Row],[DATES]])","v":19}]
["2021-05-07","client22","Produit27",57.120000000000005,29,{"$f":"ventes[[#This Row],[PRIX UNITAIRE (FCFA)]]*ventes[[#This Row],[QUANTITE]]","v":1656.48},{"$f":"VLOOKUP(ventes[[#This Row],[CLIENTS]],localisations[],2,0)","v":"Canada"},{"$f":"VLOOKUP(ventes[[#This Row],[CLIENTS]],localisations[],3,0)","v":"Amérique"},{"$f":"TEXT(ventes[[#This Row],[DATES]],\"mmm\")","v":"mai"},{"$f":"WEEKNUM(ventes[[#This Row],[DATES]])","v":19}]
["2021-05-08","client33","Produit11",48.4,19,{"$f":"ventes[[#This Row],[PRIX UNITAIRE (FCFA)]]*ventes[[#This Row],[QUANTITE]]","v":919.6},{"$f":"VLOOKUP(ventes[[#This Row],[CLIENTS]],localisations[],2,0)","v":"Philippines"},{"$f":"VLOOKUP(ventes[[#This Row],[CLIENTS]],localisations[],3,0)","v":"Asie"},{"$f":"TEXT(ventes[[#This Row],[DATES]],\"mmm\")","v":"mai"},{"$f":"WEEKNUM(ventes[[#This Row],[DATES]])","v":19}]
["2021-05-08","client24","Produit22",141.57,7,{"$f":"ventes[[#This Row],[PRIX UNITAIRE (FCFA)]]*ventes[[#This Row],[QUANTITE]]","v":990.99},{"$f":"VLOOKUP(ventes[[#This Row],[CLIENTS]],localisations[],2,0)","v":"Équateur"},{"$f":"VLOOKUP(ventes[[#This Row],[CLIENTS]],localisations[],3,0)","v":"Amérique"},{"$f":"TEXT(ventes[[#This Row],[DATES]],\"mmm\")","v":"mai"},{"$f":"WEEKNUM(ventes[[#This Row],[DATES]])","v":19}]
["2021-05-09","client01","Produit28",41.81,8,{"$f":"ventes[[#This Row],[PRIX UNITAIRE (FCFA)]]*ventes[[#This Row],[QUANTITE]]","v":334.48},{"$f":"VLOOKUP(ventes[[#This Row],[CLIENTS]],localisations[],2,0)","v":"Tunisie"},{"$f":"VLOOKUP(ventes[[#This Row],[CLIENTS]],localisations[],3,0)","v":"Afrique"},{"$f":"TEXT(ventes[[#This Row],[DATES]],\"mmm\")","v":"mai"},{"$f":"WEEKNUM(ventes[[#This Row],[DATES]])","v":20}]
["2021-05-09","client11","Produit16",16.64,6,{"$f":"ventes[[#This Row],[PRIX UNITAIRE (FCFA)]]*ventes[[#This Row],[QUANTITE]]","v":99.84},{"$f":"VLOOKUP(ventes[[#This Row],[CLIENTS]],localisations[],2,0)","v":"Espagne"},{"$f":"VLOOKUP(ventes[[#This Row],[CLIENTS]],localisations[],3,0)","v":"Europe"},{"$f":"TEXT(ventes[[#This Row],[DATES]],\"mmm\")","v":"mai"},{"$f":"WEEKNUM(ventes[[#This Row],[DATES]])","v":20}]
["2021-05-09","client12","Produit17",156.78,12,{"$f":"ventes[[#This Row],[PRIX UNITAIRE (FCFA)]]*ventes[[#This Row],[QUANTITE]]","v":1881.3600000000001},{"$f":"VLOOKUP(ventes[[#This Row],[CLIENTS]],localisations[],2,0)","v":"Pologne"},{"$f":"VLOOKUP(ventes[[#This Row],[CLIENTS]],localisations[],3,0)","v":"Europe"},{"$f":"TEXT(ventes[[#This Row],[DATES]],\"mmm\")","v":"mai"},{"$f":"WEEKNUM(ventes[[#This Row],[DATES]])","v":20}]
["2021-05-09","client23","Produit24",156.96,37,{"$f":"ventes[[#This Row],[PRIX UNITAIRE (FCFA)]]*ventes[[#This Row],[QUANTITE]]","v":5807.52},{"$f":"VLOOKUP(ventes[[#This Row],[CLIENTS]],localisations[],2,0)","v":"Argentine"},{"$f":"VLOOKUP(ventes[[#This Row],[CLIENTS]],localisations[],3,0)","v":"Amérique"},{"$f":"TEXT(ventes[[#This Row],[DATES]],\"mmm\")","v":"mai"},{"$f":"WEEKNUM(ventes[[#This Row],[DATES]])","v":20}]
["2021-05-09","client29","Produit28",41.81,4,{"$f":"ventes[[#This Row],[PRIX UNITAIRE (FCFA)]]*ventes[[#This Row],[QUANTITE]]","v":167.24},{"$f":"VLOOKUP(ventes[[#This Row],[CLIENTS]],localisations[],2,0)","v":"Chili"},{"$f":"VLOOKUP(ventes[[#This Row],[CLIENTS]],localisations[],3,0)","v":"Amérique"},{"$f":"TEXT(ventes[[#This Row],[DATES]],\"mmm\")","v":"mai"},{"$f":"WEEKNUM(ventes[[#This Row],[DATES]])","v":20}]
["2021-05-10","client33","Produit09",7.8599999999999994,6,{"$f":"ventes[[#This Row],[PRIX UNITAIRE (FCFA)]]*ventes[[#This Row],[QUANTITE]]","v":47.16},{"$f":"VLOOKUP(ventes[[#This Row],[CLIENTS]],localisations[],2,0)","v":"Philippines"},{"$f":"VLOOKUP(ventes[[#This Row],[CLIENTS]],localisations[],3,0)","v":"Asie"},{"$f":"TEXT(ventes[[#This Row],[DATES]],\"mmm\")","v":"mai"},{"$f":"WEEKNUM(ventes[[#This Row],[DATES]])","v":20}]
["2021-05-10","client17","Produit26",24.66,9,{"$f":"ventes[[#This Row],[PRIX UNITAIRE (FCFA)]]*ventes[[#This Row],[QUANTITE]]","v":221.94},{"$f":"VLOOKUP(ventes[[#This Row],[CLIENTS]],localisations[],2,0)","v":"Suède"},{"$f":"VLOOKUP(ventes[[#This Row],[CLIENTS]],localisations[],3,0)","v":"Europe"},{"$f":"TEXT(ventes[[#This Row],[DATES]],\"mmm\")","v":"mai"},{"$f":"WEEKNUM(ventes[[#This Row],[DATES]])","v":20}]
["2021-05-12","client02","Produit36",96.3,3,{"$f":"ventes[[#This Row],[PRIX UNITAIRE (FCFA)]]*ventes[[#This Row],[QUANTITE]]","v":288.89999999999998},{"$f":"VLOOKUP(ventes[[#This Row],[CLIENTS]],localisations[],2,0)","v":"Ghana"},{"$f":"VLOOKUP(ventes[[#This Row],[CLIENTS]],localisations[],3,0)","v":"Afrique"},{"$f":"TEXT(ventes[[#This Row],[DATES]],\"mmm\")","v":"mai"},{"$f":"WEEKNUM(ventes[[#This Row],[DATES]])","v":20}]
["2021-05-12","client14","Produit11",48.4,7,{"$f":"ventes[[#This Row],[PRIX UNITAIRE (FCFA)]]*ventes[[#This Row],[QUANTITE]]","v":338.8},{"$f":"VLOOKUP(ventes[[#This Row],[CLIENTS]],localisations[],2,0)","v":"Pays-Bas"},{"$f":"VLOOKUP(ventes[[#This Row],[CLIENTS]],localisations[],3,0)","v":"Europe"},{"$f":"TEXT(ventes[[#This Row],[DATES]],\"mmm\")","v":"mai"},{"$f":"WEEKNUM(ventes[[#This Row],[DATES]])","v":20}]
["2021-05-12","client25","Produit10",164.28,30,{"$f":"ventes[[#This Row],[PRIX UNITAIRE (FCFA)]]*ventes[[#This Row],[QUANTITE]]","v":4928.3999999999996},{"$f":"VLOOKUP(ventes[[#This Row],[CLIENTS]],localisations[],2,0)","v":"Brésil"},{"$f":"VLOOKUP(ventes[[#This Row],[CLIENTS]],localisations[],3,0)","v":"Amérique"},{"$f":"TEXT(ventes[[#This Row],[DATES]],\"mmm\")","v":"mai"},{"$f":"WEEKNUM(ventes[[#This Row],[DATES]])","v":20}]
["2021-05-12","client26","Produit16",16.64,3,{"$f":"ventes[[#This Row],[PRIX UNITAIRE (FCFA)]]*ventes[[#This Row],[QUANTITE]]","v":49.92},{"$f":"VLOOKUP(ventes[[#This Row],[CLIENTS]],localisations[],2,0)","v":"Pérou"},{"$f":"VLOOKUP(ventes[[#This Row],[CLIENTS]],localisations[],3,0)","v":"Amérique"},{"$f":"TEXT(ventes[[#This Row],[DATES]],\"mmm\")","v":"mai"},{"$f":"WEEKNUM(ventes[[#This Row],[DATES]])","v":20}]
["2021-05-12","client29","Produit35",6.7,15,{"$f":"ventes[[#This Row],[PRIX UNITAIRE (FCFA)]]*ventes[[#This Row],[QUANTITE]]","v":100.5},{"$f":"VLOOKUP(ventes[[#This Row],[CLIENTS]],localisations[],2,0)","v":"Chili"},{"$f":"VLOOKUP(ventes[[#This Row],[CLIENTS]],localisations[],3,0)","v":"Amérique"},{"$f":"TEXT(ventes[[#This Row],[DATES]],\"mmm\")","v":"mai"},{"$f":"WEEKNUM(ventes[[#This Row],[DATES]])","v":20}]
["2021-05-13","client11","Produit29",53.11,4,{"$f":"ventes[[#This Row],[PRIX UNITAIRE (FCFA)]]*ventes[[#This Row],[QUANTITE]]","v":212.44},{"$f":"VLOOKUP(ventes[[#This Row],[CLIENTS]],localisations[],2,0)","v":"Espagne"},{"$f":"VLOOKUP(ventes[[#This Row],[CLIENTS]],localisations[],3,0)","v":"Europe"},{"$f":"TEXT(ventes[[#This Row],[DATES]],\"mmm\")","v":"mai"},{"$f":"WEEKNUM(ventes[[#This Row],[DATES]])","v":20}]
["2021-05-13","client27","Produit12",94.17,5,{"$f":"ventes[[#This Row],[PRIX UNITAIRE (FCFA)]]*ventes[[#This Row],[QUANTITE]]","v":470.85},{"$f":"VLOOKUP(ventes[[#This Row],[CLIENTS]],localisations[],2,0)","v":"Mexique"},{"$f":"VLOOKUP(ventes[[#This Row],[CLIENTS]],localisations[],3,0)","v":"Amérique"},{"$f":"TEXT(ventes[[#This Row],[DATES]],\"mmm\")","v":"mai"},{"$f":"WEEKNUM(ventes[[#This Row],[DATES]])","v":20}]
["2021-05-14","client05","Produit40",115.2,20,{"$f":"ventes[[#This Row],[PRIX UNITAIRE (FCFA)]]*ventes[[#This Row],[QUANTITE]]","v":2304},{"$f":"VLOOKUP(ventes[[#This Row],[CLIENTS]],localisations[],2,0)","v":"Algérie"},{"$f":"VLOOKUP(ventes[[#This Row],[CLIENTS]],localisations[],3,0)","v":"Afrique"},{"$f":"TEXT(ventes[[#This Row],[DATES]],\"mmm\")","v":"mai"},{"$f":"WEEKNUM(ventes[[#This Row],[DATES]])","v":20}]
["2021-05-14","client16","Produit08",94.62,14,{"$f":"ventes[[#This Row],[PRIX UNITAIRE (FCFA)]]*ventes[[#This Row],[QUANTITE]]","v":1324.68},{"$f":"VLOOKUP(ventes[[#This Row],[CLIENTS]],localisations[],2,0)","v":"Royaume-Uni"},{"$f":"VLOOKUP(ventes[[#This Row],[CLIENTS]],localisations[],3,0)","v":"Europe"},{"$f":"TEXT(ventes[[#This Row],[DATES]],\"mmm\")","v":"mai"},{"$f":"WEEKNUM(ventes[[#This Row],[DATES]])","v":20}]
["2021-05-15","client06","Produit13",122.08,6,{"$f":"ventes[[#This Row],[PRIX UNITAIRE (FCFA)]]*ventes[[#This Row],[QUANTITE]]","v":732.48},{"$f":"VLOOKUP(ventes[[#This Row],[CLIENTS]],localisations[],2,0)","v":"Afrique du Sud"},{"$f":"VLOOKUP(ventes[[#This Row],[CLIENTS]],localisations[],3,0)","v":"Afrique"},{"$f":"TEXT(ventes[[#This Row],[DATES]],\"mmm\")","v":"mai"},{"$f":"WEEKNUM(ventes[[#This Row],[DATES]])","v":20}]
["2021-05-15","client11","Produit20",76.25,5,{"$f":"ventes[[#This Row],[PRIX UNITAIRE (FCFA)]]*ventes[[#This Row],[QUANTITE]]","v":381.25},{"$f":"VLOOKUP(ventes[[#This Row],[CLIENTS]],localisations[],2,0)","v":"Espagne"},{"$f":"VLOOKUP(ventes[[#This Row],[CLIENTS]],localisations[],3,0)","v":"Europe"},{"$f":"TEXT(ventes[[#This Row],[DATES]],\"mmm\")","v":"mai"},{"$f":"WEEKNUM(ventes[[#This Row],[DATES]])","v":20}]
["2021-05-16","client09","Produit10",164.28,13,{"$f":"ventes[[#This Row],[PRIX UNITAIRE (FCFA)]]*ventes[[#This Row],[QUANTITE]]","v":2135.64},{"$f":"VLOOKUP(ventes[[#This Row],[CLIENTS]],localisations[],2,0)","v":"Égypte"},{"$f":"VLOOKUP(ventes[[#This Row],[CLIENTS]],localisations[],3,0)","v":"Afrique"},{"$f":"TEXT(ventes[[#This Row],[DATES]],\"mmm\")","v":"mai"},{"$f":"WEEKNUM(ventes[[#This Row],[DATES]])","v":21}]
["2021-05-16","client27","Produit31",104.16,13,{"$f":"ventes[[#This Row],[PRIX UNITAIRE (FCFA)]]*ventes[[#This Row],[QUANTITE]]","v":1354.08},{"$f":"VLOOKUP(ventes[[#This Row],[CLIENTS]],localisations[],2,0)","v":"Mexique"},{"$f":"VLOOKUP(ventes[[#This Row],[CLIENTS]],localisations[],3,0)","v":"Amérique"},{"$f":"TEXT(ventes[[#This Row],[DATES]],\"mmm\")","v":"mai"},{"$f":"WEEKNUM(ventes[[#This Row],[DATES]])","v":21}]
["2021-05-17","client22","Produit32",117.48,34,{"$f":"ventes[[#This Row],[PRIX UNITAIRE (FCFA)]]*ventes[[#This Row],[QUANTITE]]","v":3994.32},{"$f":"VLOOKUP(ventes[[#This Row],[CLIENTS]],localisations[],2,0)","v":"Canada"},{"$f":"VLOOKUP(ventes[[#This Row],[CLIENTS]],localisations[],3,0)","v":"Amérique"},{"$f":"TEXT(ventes[[#This Row],[DATES]],\"mmm\")","v":"mai"},{"$f":"WEEKNUM(ventes[[#This Row],[DATES]])","v":21}]
["2021-05-17","client30","Produit27",57.120000000000005,8,{"$f":"ventes[[#This Row],[PRIX UNITAIRE (FCFA)]]*ventes[[#This Row],[QUANTITE]]","v":456.96000000000004},{"$f":"VLOOKUP(ventes[[#This Row],[CLIENTS]],localisations[],2,0)","v":"Colombie"},{"$f":"VLOOKUP(ventes[[#This Row],[CLIENTS]],localisations[],3,0)","v":"Amérique"},{"$f":"TEXT(ventes[[#This Row],[DATES]],\"mmm\")","v":"mai"},{"$f":"WEEKNUM(ventes[[#This Row],[DATES]])","v":21}]
["2021-05-18","client06","Produit27",57.120000000000005,4,{"$f":"ventes[[#This Row],[PRIX UNITAIRE (FCFA)]]*ventes[[#This Row],[QUANTITE]]","v":228.48000000000002},{"$f":"VLOOKUP(ventes[[#This Row],[CLIENTS]],localisations[],2,0)","v":"Afrique du Sud"},{"$f":"VLOOKUP(ventes[[#This Row],[CLIENTS]],localisations[],3,0)","v":"Afrique"},{"$f":"TEXT(ventes[[#This Row],[DATES]],\"mmm\")","v":"mai"},{"$f":"WEEKNUM(ventes[[#This Row],[DATES]])","v":21}]
["2021-05-18","client11","Produit38",79.92,8,{"$f":"ventes[[#This Row],[PRIX UNITAIRE (FCFA)]]*ventes[[#This Row],[QUANTITE]]","v":639.36},{"$f":"VLOOKUP(ventes[[#This Row],[CLIENTS]],localisations[],2,0)","v":"Espagne"},{"$f":"VLOOKUP(ventes[[#This Row],[CLIENTS]],localisations[],3,0)","v":"Europe"},{"$f":"TEXT(ventes[[#This Row],[DATES]],\"mmm\")","v":"mai"},{"$f":"WEEKNUM(ventes[[#This Row],[DATES]])","v":21}]
["2021-05-18","client20","Produit06",85.5,1,{"$f":"ventes[[#This Row],[PRIX UNITAIRE (FCFA)]]*ventes[[#This Row],[QUANTITE]]","v":85.5},{"$f":"VLOOKUP(ventes[[#This Row],[CLIENTS]],localisations[],2,0)","v":"France"},{"$f":"VLOOKUP(ventes[[#This Row],[CLIENTS]],localisations[],3,0)","v":"Europe"},{"$f":"TEXT(ventes[[#This Row],[DATES]],\"mmm\")","v":"mai"},{"$f":"WEEKNUM(ventes[[#This Row],[DATES]])","v":21}]
["2021-05-19","client18","Produit39",42.55,9,{"$f":"ventes[[#This Row],[PRIX UNITAIRE (FCFA)]]*ventes[[#This Row],[QUANTITE]]","v":382.95},{"$f":"VLOOKUP(ventes[[#This Row],[CLIENTS]],localisations[],2,0)","v":"Belgique"},{"$f":"VLOOKUP(ventes[[#This Row],[CLIENTS]],localisations[],3,0)","v":"Europe"},{"$f":"TEXT(ventes[[#This Row],[DATES]],\"mmm\")","v":"mai"},{"$f":"WEEKNUM(ventes[[#This Row],[DATES]])","v":21}]
["2021-05-20","client33","Produit13",122.08,11,{"$f":"ventes[[#This Row],[PRIX UNITAIRE (FCFA)]]*ventes[[#This Row],[QUANTITE]]","v":1342.8799999999999},{"$f":"VLOOKUP(ventes[[#This Row],[CLIENTS]],localisations[],2,0)","v":"Philippines"},{"$f":"VLOOKUP(ventes[[#This Row],[CLIENTS]],localisations[],3,0)","v":"Asie"},{"$f":"TEXT(ventes[[#This Row],[DATES]],\"mmm\")","v":"mai"},{"$f":"WEEKNUM(ventes[[#This Row],[DATES]])","v":21}]
["2021-05-20","client22","Produit44",82.08,15,{"$f":"ventes[[#This Row],[PRIX UNITAIRE (FCFA)]]*ventes[[#This Row],[QUANTITE]]","v":1231.2},{"$f":"VLOOKUP(ventes[[#This Row],[CLIENTS]],localisations[],2,0)","v":"Canada"},{"$f":"VLOOKUP(ventes[[#This Row],[CLIENTS]],localisations[],3,0)","v":"Amérique"},{"$f":"TEXT(ventes[[#This Row],[DATES]],\"mmm\")","v":"mai"},{"$f":"WEEKNUM(ventes[[#This Row],[DATES]])","v":21}]
["2021-05-20","client27","Produit42",162,2,{"$f":"ventes[[#This Row],[PRIX UNITAIRE (FCFA)]]*ventes[[#This Row],[QUANTITE]]","v":324},{"$f":"VLOOKUP(ventes[[#This Row],[CLIENTS]],localisations[],2,0)","v":"Mexique"},{"$f":"VLOOKUP(ventes[[#This Row],[CLIENTS]],localisations[],3,0)","v":"Amérique"},{"$f":"TEXT(ventes[[#This Row],[DATES]],\"mmm\")","v":"mai"},{"$f":"WEEKNUM(ventes[[#This Row],[DATES]])","v":21}]
["2021-05-21","client33","Produit38",79.92,21,{"$f":"ventes[[#This Row],[PRIX UNITAIRE (FCFA)]]*ventes[[#This Row],[QUANTITE]]","v":1678.32},{"$f":"VLOOKUP(ventes[[#This Row],[CLIENTS]],localisations[],2,0)","v":"Philippines"},{"$f":"VLOOKUP(ventes[[#This Row],[CLIENTS]],localisations[],3,0)","v":"Asie"},{"$f":"TEXT(ventes[[#This Row],[DATES]],\"mmm\")","v":"mai"},{"$f":"WEEKNUM(ventes[[#This Row],[DATES]])","v":21}]
["2021-05-21","client19","Produit35",6.7,16,{"$f":"ventes[[#This Row],[PRIX UNITAIRE (FCFA)]]*ventes[[#This Row],[QUANTITE]]","v":107.2},{"$f":"VLOOKUP(ventes[[#This Row],[CLIENTS]],localisations[],2,0)","v":"Suisse"},{"$f":"VLOOKUP(ventes[[#This Row],[CLIENTS]],localisations[],3,0)","v":"Europe"},{"$f":"TEXT(ventes[[#This Row],[DATES]],\"mmm\")","v":"mai"},{"$f":"WEEKNUM(ventes[[#This Row],[DATES]])","v":21}]
["2021-05-22","client03","Produit15",15.719999999999999,12,{"$f":"ventes[[#This Row],[PRIX UNITAIRE (FCFA)]]*ventes[[#This Row],[QUANTITE]]","v":188.64},{"$f":"VLOOKUP(ventes[[#This Row],[CLIENTS]],localisations[],2,0)","v":"Côte d'Ivoire"},{"$f":"VLOOKUP(ventes[[#This Row],[CLIENTS]],localisations[],3,0)","v":"Afrique"},{"$f":"TEXT(ventes[[#This Row],[DATES]],\"mmm\")","v":"mai"},{"$f":"WEEKNUM(ventes[[#This Row],[DATES]])","v":21}]
["2021-05-22","client09","Produit22",141.57,24,{"$f":"ventes[[#This Row],[PRIX UNITAIRE (FCFA)]]*ventes[[#This Row],[QUANTITE]]","v":3397.68},{"$f":"VLOOKUP(ventes[[#This Row],[CLIENTS]],localisations[],2,0)","v":"Égypte"},{"$f":"VLOOKUP(ventes[[#This Row],[CLIENTS]],localisations[],3,0)","v":"Afrique"},{"$f":"TEXT(ventes[[#This Row],[DATES]],\"mmm\")","v":"mai"},{"$f":"WEEKNUM(ventes[[#This Row],[DATES]])","v":21}]
["2021-05-22","client19","Produit06",85.5,19,{"$f":"ventes[[#This Row],[PRIX UNITAIRE (FCFA)]]*ventes[[#This Row],[QUANTITE]]","v":1624.5},{"$f":"VLOOKUP(ventes[[#This Row],[CLIENTS]],localisations[],2,0)","v":"Suisse"},{"$f":"VLOOKUP(ventes[[#This Row],[CLIENTS]],localisations[],3,0)","v":"Europe"},{"$f":"TEXT(ventes[[#This Row],[DATES]],\"mmm\")","v":"mai"},{"$f":"WEEKNUM(ventes[[#This Row],[DATES]])","v":21}]
["2021-05-23","client18","Produit40",115.2,11,{"$f":"ventes[[#This Row],[PRIX UNITAIRE (FCFA)]]*ventes[[#This Row],[QUANTITE]]","v":1267.2},{"$f":"VLOOKUP(ventes[[#This Row],[CLIENTS]],localisations[],2,0)","v":"Belgique"},{"$f":"VLOOKUP(ventes[[#This Row],[CLIENTS]],localisations[],3,0)","v":"Europe"},{"$f":"TEXT(ventes[[#This Row],[DATES]],\"mmm\")","v":"mai"},{"$f":"WEEKNUM(ventes[[#This Row],[DATES]])","v":22}]
["2021-05-23","client28","Produit16",16.64,27,{"$f":"ventes[[#This Row],[PRIX UNITAIRE (FCFA)]]*ventes[[#This Row],[QUANTITE]]","v":449.28000000000003},{"$f":"VLOOKUP(ventes[[#This Row],[CLIENTS]],localisations[],2,0)","v":"États-Unis"},{"$f":"VLOOKUP(ventes[[#This Row],[CLIENTS]],localisations[],3,0)","v":"Amérique"},{"$f":"TEXT(ventes[[#This Row],[DATES]],\"mmm\")","v":"mai"},{"$f":"WEEKNUM(ventes[[#This Row],[DATES]])","v":22}]
["2021-05-24","client35","Produit26",24.66,21,{"$f":"ventes[[#This Row],[PRIX UNITAIRE (FCFA)]]*ventes[[#This Row],[QUANTITE]]","v":517.86},{"$f":"VLOOKUP(ventes[[#This Row],[CLIENTS]],localisations[],2,0)","v":"Malaisie"},{"$f":"VLOOKUP(ventes[[#This Row],[CLIENTS]],localisations[],3,0)","v":"Asie"},{"$f":"TEXT(ventes[[#This Row],[DATES]],\"mmm\")","v":"mai"},{"$f":"WEEKNUM(ventes[[#This Row],[DATES]])","v":22}]
["2021-05-25","client20","Produit02",142.80000000000001,7,{"$f":"ventes[[#This Row],[PRIX UNITAIRE (FCFA)]]*ventes[[#This Row],[QUANTITE]]","v":999.60000000000014},{"$f":"VLOOKUP(ventes[[#This Row],[CLIENTS]],localisations[],2,0)","v":"France"},{"$f":"VLOOKUP(ventes[[#This Row],[CLIENTS]],localisations[],3,0)","v":"Europe"},{"$f":"TEXT(ventes[[#This Row],[DATES]],\"mmm\")","v":"mai"},{"$f":"WEEKNUM(ventes[[#This Row],[DATES]])","v":22}]
["2021-05-25","client30","Produit18",49.21,37,{"$f":"ventes[[#This Row],[PRIX UNITAIRE (FCFA)]]*ventes[[#This Row],[QUANTITE]]","v":1820.77},{"$f":"VLOOKUP(ventes[[#This Row],[CLIENTS]],localisations[],2,0)","v":"Colombie"},{"$f":"VLOOKUP(ventes[[#This Row],[CLIENTS]],localisations[],3,0)","v":"Amérique"},{"$f":"TEXT(ventes[[#This Row],[DATES]],\"mmm\")","v":"mai"},{"$f":"WEEKNUM(ventes[[#This Row],[DATES]])","v":22}]
["2021-05-26","client03","Produit27",57.120000000000005,2,{"$f":"ventes[[#This Row],[PRIX UNITAIRE (FCFA)]]*ventes[[#This Row],[QUANTITE]]","v":114.24000000000001},{"$f":"VLOOKUP(ventes[[#This Row],[CLIENTS]],localisations[],2,0)","v":"Côte d'Ivoire"},{"$f":"VLOOKUP(ventes[[#This Row],[CLIENTS]],localisations[],3,0)","v":"Afrique"},{"$f":"TEXT(ventes[[#This Row],[DATES]],\"mmm\")","v":"mai"},{"$f":"WEEKNUM(ventes[[#This Row],[DATES]])","v":22}]
["2021-05-26","client05","Produit28",41.81,2,{"$f":"ventes[[#This Row],[PRIX UNITAIRE (FCFA)]]*ventes[[#This Row],[QUANTITE]]","v":83.62},{"$f":"VLOOKUP(ventes[[#This Row],[CLIENTS]],localisations[],2,0)","v":"Algérie"},{"$f":"VLOOKUP(ventes[[#This Row],[CLIENTS]],localisations[],3,0)","v":"Afrique"},{"$f":"TEXT(ventes[[#This Row],[DATES]],\"mmm\")","v":"mai"},{"$f":"WEEKNUM(ventes[[#This Row],[DATES]])","v":22}]
["2021-05-26","client14","Produit06",85.5,1,{"$f":"ventes[[#This Row],[PRIX UNITAIRE (FCFA)]]*ventes[[#This Row],[QUANTITE]]","v":85.5},{"$f":"VLOOKUP(ventes[[#This Row],[CLIENTS]],localisations[],2,0)","v":"Pays-Bas"},{"$f":"VLOOKUP(ventes[[#This Row],[CLIENTS]],localisations[],3,0)","v":"Europe"},{"$f":"TEXT(ventes[[#This Row],[DATES]],\"mmm\")","v":"mai"},{"$f":"WEEKNUM(ventes[[#This Row],[DATES]])","v":22}]
["2021-05-28","client03","Produit20",76.25,14,{"$f":"ventes[[#This Row],[PRIX UNITAIRE (FCFA)]]*ventes[[#This Row],[QUANTITE]]","v":1067.5},{"$f":"VLOOKUP(ventes[[#This Row],[CLIENTS]],localisations[],2,0)","v":"Côte d'Ivoire"},{"$f":"VLOOKUP(ventes[[#This Row],[CLIENTS]],localisations[],3,0)","v":"Afrique"},{"$f":"TEXT(ventes[[#This Row],[DATES]],\"mmm\")","v":"mai"},{"$f":"WEEKNUM(ventes[[#This Row],[DATES]])","v":22}]
["2021-05-28","client08","Produit29",53.11,4,{"$f":"ventes[[#This Row],[PRIX UNITAIRE (FCFA)]]*ventes[[#This Row],[QUANTITE]]","v":212.44},{"$f":"VLOOKUP(ventes[[#This Row],[CLIENTS]],localisations[],2,0)","v":"Maroc"},{"$f":"VLOOKUP(ventes[[#This Row],[CLIENTS]],localisations[],3,0)","v":"Afrique"},{"$f":"TEXT(ventes[[#This Row],[DATES]],\"mmm\")","v":"mai"},{"$f":"WEEKNUM(ventes[[#This Row],[DATES]])","v":22}]
["2021-05-28","client08","Produit10",164.28,9,{"$f":"ventes[[#This Row],[PRIX UNITAIRE (FCFA)]]*ventes[[#This Row],[QUANTITE]]","v":1478.52},{"$f":"VLOOKUP(ventes[[#This Row],[CLIENTS]],localisations[],2,0)","v":"Maroc"},{"$f":"VLOOKUP(ventes[[#This Row],[CLIENTS]],localisations[],3,0)","v":"Afrique"},{"$f":"TEXT(ventes[[#This Row],[DATES]],\"mmm\")","v":"mai"},{"$f":"WEEKNUM(ventes[[#This Row],[DATES]])","v":22}]
["2021-05-28","client09","Produit04",48.84,12,{"$f":"ventes[[#This Row],[PRIX UNITAIRE (FCFA)]]*ventes[[#This Row],[QUANTITE]]","v":586.08000000000004},{"$f":"VLOOKUP(ventes[[#This Row],[CLIENTS]],localisations[],2,0)","v":"Égypte"},{"$f":"VLOOKUP(ventes[[#This Row],[CLIENTS]],localisations[],3,0)","v":"Afrique"},{"$f":"TEXT(ventes[[#This Row],[DATES]],\"mmm\")","v":"mai"},{"$f":"WEEKNUM(ventes[[#This Row],[DATES]])","v":22}]
["2021-05-28","client27","Produit08",94.62,5,{"$f":"ventes[[#This Row],[PRIX UNITAIRE (FCFA)]]*ventes[[#This Row],[QUANTITE]]","v":473.1},{"$f":"VLOOKUP(ventes[[#This Row],[CLIENTS]],localisations[],2,0)","v":"Mexique"},{"$f":"VLOOKUP(ventes[[#This Row],[CLIENTS]],localisations[],3,0)","v":"Amérique"},{"$f":"TEXT(ventes[[#This Row],[DATES]],\"mmm\")","v":"mai"},{"$f":"WEEKNUM(ventes[[#This Row],[DATES]])","v":22}]
["2021-05-28","client30","Produit41",173.88,10,{"$f":"ventes[[#This Row],[PRIX UNITAIRE (FCFA)]]*ventes[[#This Row],[QUANTITE]]","v":1738.8},{"$f":"VLOOKUP(ventes[[#This Row],[CLIENTS]],localisations[],2,0)","v":"Colombie"},{"$f":"VLOOKUP(ventes[[#This Row],[CLIENTS]],localisations[],3,0)","v":"Amérique"},{"$f":"TEXT(ventes[[#This Row],[DATES]],\"mmm\")","v":"mai"},{"$f":"WEEKNUM(ventes[[#This Row],[DATES]])","v":22}]
["2021-05-28","client30","Produit39",42.55,17,{"$f":"ventes[[#This Row],[PRIX UNITAIRE (FCFA)]]*ventes[[#This Row],[QUANTITE]]","v":723.34999999999991},{"$f":"VLOOKUP(ventes[[#This Row],[CLIENTS]],localisations[],2,0)","v":"Colombie"},{"$f":"VLOOKUP(ventes[[#This Row],[CLIENTS]],localisations[],3,0)","v":"Amérique"},{"$f":"TEXT(ventes[[#This Row],[DATES]],\"mmm\")","v":"mai"},{"$f":"WEEKNUM(ventes[[#This Row],[DATES]])","v":22}]
["2021-05-30","client06","Produit05",155.61000000000001,4,{"$f":"ventes[[#This Row],[PRIX UNITAIRE (FCFA)]]*ventes[[#This Row],[QUANTITE]]","v":622.44000000000005},{"$f":"VLOOKUP(ventes[[#This Row],[CLIENTS]],localisations[],2,0)","v":"Afrique du Sud"},{"$f":"VLOOKUP(ventes[[#This Row],[CLIENTS]],localisations[],3,0)","v":"Afrique"},{"$f":"TEXT(ventes[[#This Row],[DATES]],\"mmm\")","v":"mai"},{"$f":"WEEKNUM(ventes[[#This Row],[DATES]])","v":23}]
["2021-05-30","client35","Produit23",149.46,13,{"$f":"ventes[[#This Row],[PRIX UNITAIRE (FCFA)]]*ventes[[#This Row],[QUANTITE]]","v":1942.98},{"$f":"VLOOKUP(ventes[[#This Row],[CLIENTS]],localisations[],2,0)","v":"Malaisie"},{"$f":"VLOOKUP(ventes[[#This Row],[CLIENTS]],localisations[],3,0)","v":"Asie"},{"$f":"TEXT(ventes[[#This Row],[DATES]],\"mmm\")","v":"mai"},{"$f":"WEEKNUM(ventes[[#This Row],[DATES]])","v":23}]
["2021-05-30","client20","Produit04",48.84,23,{"$f":"ventes[[#This Row],[PRIX UNITAIRE (FCFA)]]*ventes[[#This Row],[QUANTITE]]","v":1123.3200000000002},{"$f":"VLOOKUP(ventes[[#This Row],[CLIENTS]],localisations[],2,0)","v":"France"},{"$f":"VLOOKUP(ventes[[#This Row],[CLIENTS]],localisations[],3,0)","v":"Europe"},{"$f":"TEXT(ventes[[#This Row],[DATES]],\"mmm\")","v":"mai"},{"$f":"WEEKNUM(ventes[[#This Row],[DATES]])","v":23}]
["2021-05-30","client22","Produit13",122.08,6,{"$f":"ventes[[#This Row],[PRIX UNITAIRE (FCFA)]]*ventes[[#This Row],[QUANTITE]]","v":732.48},{"$f":"VLOOKUP(ventes[[#This Row],[CLIENTS]],localisations[],2,0)","v":"Canada"},{"$f":"VLOOKUP(ventes[[#This Row],[CLIENTS]],localisations[],3,0)","v":"Amérique"},{"$f":"TEXT(ventes[[#This Row],[DATES]],\"mmm\")","v":"mai"},{"$f":"WEEKNUM(ventes[[#This Row],[DATES]])","v":23}]
["2021-05-30","client27","Produit44",82.08,9,{"$f":"ventes[[#This Row],[PRIX UNITAIRE (FCFA)]]*ventes[[#This Row],[QUANTITE]]","v":738.72},{"$f":"VLOOKUP(ventes[[#This Row],[CLIENTS]],localisations[],2,0)","v":"Mexique"},{"$f":"VLOOKUP(ventes[[#This Row],[CLIENTS]],localisations[],3,0)","v":"Amérique"},{"$f":"TEXT(ventes[[#This Row],[DATES]],\"mmm\")","v":"mai"},{"$f":"WEEKNUM(ventes[[#This Row],[DATES]])","v":23}]
["2021-05-30","client28","Produit33",119.7,3,{"$f":"ventes[[#This Row],[PRIX UNITAIRE (FCFA)]]*ventes[[#This Row],[QUANTITE]]","v":359.1},{"$f":"VLOOKUP(ventes[[#This Row],[CLIENTS]],localisations[],2,0)","v":"États-Unis"},{"$f":"VLOOKUP(ventes[[#This Row],[CLIENTS]],localisations[],3,0)","v":"Amérique"},{"$f":"TEXT(ventes[[#This Row],[DATES]],\"mmm\")","v":"mai"},{"$f":"WEEKNUM(ventes[[#This Row],[DATES]])","v":23}]
["2021-06-02","client05","Produit27",57.120000000000005,15,{"$f":"ventes[[#This Row],[PRIX UNITAIRE (FCFA)]]*ventes[[#This Row],[QUANTITE]]","v":856.80000000000007},{"$f":"VLOOKUP(ventes[[#This Row],[CLIENTS]],localisations[],2,0)","v":"Algérie"},{"$f":"VLOOKUP(ventes[[#This Row],[CLIENTS]],localisations[],3,0)","v":"Afrique"},{"$f":"TEXT(ventes[[#This Row],[DATES]],\"mmm\")","v":"juin"},{"$f":"WEEKNUM(ventes[[#This Row],[DATES]])","v":23}]
["2021-06-03","client08","Produit39",42.55,32,{"$f":"ventes[[#This Row],[PRIX UNITAIRE (FCFA)]]*ventes[[#This Row],[QUANTITE]]","v":1361.6},{"$f":"VLOOKUP(ventes[[#This Row],[CLIENTS]],localisations[],2,0)","v":"Maroc"},{"$f":"VLOOKUP(ventes[[#This Row],[CLIENTS]],localisations[],3,0)","v":"Afrique"},{"$f":"TEXT(ventes[[#This Row],[DATES]],\"mmm\")","v":"juin"},{"$f":"WEEKNUM(ventes[[#This Row],[DATES]])","v":23}]
["2021-06-03","client15","Produit08",94.62,14,{"$f":"ventes[[#This Row],[PRIX UNITAIRE (FCFA)]]*ventes[[#This Row],[QUANTITE]]","v":1324.68},{"$f":"VLOOKUP(ventes[[#This Row],[CLIENTS]],localisations[],2,0)","v":"Allemagne"},{"$f":"VLOOKUP(ventes[[#This Row],[CLIENTS]],localisations[],3,0)","v":"Europe"},{"$f":"TEXT(ventes[[#This Row],[DATES]],\"mmm\")","v":"juin"},{"$f":"WEEKNUM(ventes[[#This Row],[DATES]])","v":23}]
["2021-06-03","client20","Produit21",162.54,10,{"$f":"ventes[[#This Row],[PRIX UNITAIRE (FCFA)]]*ventes[[#This Row],[QUANTITE]]","v":1625.3999999999999},{"$f":"VLOOKUP(ventes[[#This Row],[CLIENTS]],localisations[],2,0)","v":"France"},{"$f":"VLOOKUP(ventes[[#This Row],[CLIENTS]],localisations[],3,0)","v":"Europe"},{"$f":"TEXT(ventes[[#This Row],[DATES]],\"mmm\")","v":"juin"},{"$f":"WEEKNUM(ventes[[#This Row],[DATES]])","v":23}]
["2021-06-04","client06","Produit20",76.25,8,{"$f":"ventes[[#This Row],[PRIX UNITAIRE (FCFA)]]*ventes[[#This Row],[QUANTITE]]","v":610},{"$f":"VLOOKUP(ventes[[#This Row],[CLIENTS]],localisations[],2,0)","v":"Afrique du Sud"},{"$f":"VLOOKUP(ventes[[#This Row],[CLIENTS]],localisations[],3,0)","v":"Afrique"},{"$f":"TEXT(ventes[[#This Row],[DATES]],\"mmm\")","v":"juin"},{"$f":"WEEKNUM(ventes[[#This Row],[DATES]])","v":23}]
["2021-06-04","client11","Produit20",76.25,12,{"$f":"ventes[[#This Row],[PRIX UNITAIRE (FCFA)]]*ventes[[#This Row],[QUANTITE]]","v":915},{"$f":"VLOOKUP(ventes[[#This Row],[CLIENTS]],localisations[],2,0)","v":"Espagne"},{"$f":"VLOOKUP(ventes[[#This Row],[CLIENTS]],localisations[],3,0)","v":"Europe"},{"$f":"TEXT(ventes[[#This Row],[DATES]],\"mmm\")","v":"juin"},{"$f":"WEEKNUM(ventes[[#This Row],[DATES]])","v":23}]
["2021-06-04","client17","Produit16",16.64,30,{"$f":"ventes[[#This Row],[PRIX UNITAIRE (FCFA)]]*ventes[[#This Row],[QUANTITE]]","v":499.20000000000005},{"$f":"VLOOKUP(ventes[[#This Row],[CLIENTS]],localisations[],2,0)","v":"Suède"},{"$f":"VLOOKUP(ventes[[#This Row],[CLIENTS]],localisations[],3,0)","v":"Europe"},{"$f":"TEXT(ventes[[#This Row],[DATES]],\"mmm\")","v":"juin"},{"$f":"WEEKNUM(ventes[[#This Row],[DATES]])","v":23}]
["2021-06-05","client08","Produit22",141.57,15,{"$f":"ventes[[#This Row],[PRIX UNITAIRE (FCFA)]]*ventes[[#This Row],[QUANTITE]]","v":2123.5499999999997},{"$f":"VLOOKUP(ventes[[#This Row],[CLIENTS]],localisations[],2,0)","v":"Maroc"},{"$f":"VLOOKUP(ventes[[#This Row],[CLIENTS]],localisations[],3,0)","v":"Afrique"},{"$f":"TEXT(ventes[[#This Row],[DATES]],\"mmm\")","v":"juin"},{"$f":"WEEKNUM(ventes[[#This Row],[DATES]])","v":23}]
["2021-06-05","client08","Produit12",94.17,5,{"$f":"ventes[[#This Row],[PRIX UNITAIRE (FCFA)]]*ventes[[#This Row],[QUANTITE]]","v":470.85},{"$f":"VLOOKUP(ventes[[#This Row],[CLIENTS]],localisations[],2,0)","v":"Maroc"},{"$f":"VLOOKUP(ventes[[#This Row],[CLIENTS]],localisations[],3,0)","v":"Afrique"},{"$f":"TEXT(ventes[[#This Row],[DATES]],\"mmm\")","v":"juin"},{"$f":"WEEKNUM(ventes[[#This Row],[DATES]])","v":23}]
["2021-06-05","client16","Produit03",80.94,17,{"$f":"ventes[[#This Row],[PRIX UNITAIRE (FCFA)]]*ventes[[#This Row],[QUANTITE]]","v":1375.98},{"$f":"VLOOKUP(ventes[[#This Row],[CLIENTS]],localisations[],2,0)","v":"Royaume-Uni"},{"$f":"VLOOKUP(ventes[[#This Row],[CLIENTS]],localisations[],3,0)","v":"Europe"},{"$f":"TEXT(ventes[[#This Row],[DATES]],\"mmm\")","v":"juin"},{"$f":"WEEKNUM(ventes[[#This Row],[DATES]])","v":23}]
["2021-06-05","client20","Produit09",7.8599999999999994,32,{"$f":"ventes[[#This Row],[PRIX UNITAIRE (FCFA)]]*ventes[[#This Row],[QUANTITE]]","v":251.51999999999998},{"$f":"VLOOKUP(ventes[[#This Row],[CLIENTS]],localisations[],2,0)","v":"France"},{"$f":"VLOOKUP(ventes[[#This Row],[CLIENTS]],localisations[],3,0)","v":"Europe"},{"$f":"TEXT(ventes[[#This Row],[DATES]],\"mmm\")","v":"juin"},{"$f":"WEEKNUM(ventes[[#This Row],[DATES]])","v":23}]
["2021-06-05","client30","Produit35",6.7,10,{"$f":"ventes[[#This Row],[PRIX UNITAIRE (FCFA)]]*ventes[[#This Row],[QUANTITE]]","v":67},{"$f":"VLOOKUP(ventes[[#This Row],[CLIENTS]],localisations[],2,0)","v":"Colombie"},{"$f":"VLOOKUP(ventes[[#This Row],[CLIENTS]],localisations[],3,0)","v":"Amérique"},{"$f":"TEXT(ventes[[#This Row],[DATES]],\"mmm\")","v":"juin"},{"$f":"WEEKNUM(ventes[[#This Row],[DATES]])","v":23}]
["2021-06-06","client17","Produit33",119.7,6,{"$f":"ventes[[#This Row],[PRIX UNITAIRE (FCFA)]]*ventes[[#This Row],[QUANTITE]]","v":718.2},{"$f":"VLOOKUP(ventes[[#This Row],[CLIENTS]],localisations[],2,0)","v":"Suède"},{"$f":"VLOOKUP(ventes[[#This Row],[CLIENTS]],localisations[],3,0)","v":"Europe"},{"$f":"TEXT(ventes[[#This Row],[DATES]],\"mmm\")","v":"juin"},{"$f":"WEEKNUM(ventes[[#This Row],[DATES]])","v":24}]
["2021-06-06","client28","Produit01",103.88,33,{"$f":"ventes[[#This Row],[PRIX UNITAIRE (FCFA)]]*ventes[[#This Row],[QUANTITE]]","v":3428.04},{"$f":"VLOOKUP(ventes[[#This Row],[CLIENTS]],localisations[],2,0)","v":"États-Unis"},{"$f":"VLOOKUP(ventes[[#This Row],[CLIENTS]],localisations[],3,0)","v":"Amérique"},{"$f":"TEXT(ventes[[#This Row],[DATES]],\"mmm\")","v":"juin"},{"$f":"WEEKNUM(ventes[[#This Row],[DATES]])","v":24}]
["2021-06-08","client12","Produit28",41.81,11,{"$f":"ventes[[#This Row],[PRIX UNITAIRE (FCFA)]]*ventes[[#This Row],[QUANTITE]]","v":459.91},{"$f":"VLOOKUP(ventes[[#This Row],[CLIENTS]],localisations[],2,0)","v":"Pologne"},{"$f":"VLOOKUP(ventes[[#This Row],[CLIENTS]],localisations[],3,0)","v":"Europe"},{"$f":"TEXT(ventes[[#This Row],[DATES]],\"mmm\")","v":"juin"},{"$f":"WEEKNUM(ventes[[#This Row],[DATES]])","v":24}]
["2021-06-08","client23","Produit04",48.84,11,{"$f":"ventes[[#This Row],[PRIX UNITAIRE (FCFA)]]*ventes[[#This Row],[QUANTITE]]","v":537.24},{"$f":"VLOOKUP(ventes[[#This Row],[CLIENTS]],localisations[],2,0)","v":"Argentine"},{"$f":"VLOOKUP(ventes[[#This Row],[CLIENTS]],localisations[],3,0)","v":"Amérique"},{"$f":"TEXT(ventes[[#This Row],[DATES]],\"mmm\")","v":"juin"},{"$f":"WEEKNUM(ventes[[#This Row],[DATES]])","v":24}]
["2021-06-09","client21","Produit01",103.88,7,{"$f":"ventes[[#This Row],[PRIX UNITAIRE (FCFA)]]*ventes[[#This Row],[QUANTITE]]","v":727.16},{"$f":"VLOOKUP(ventes[[#This Row],[CLIENTS]],localisations[],2,0)","v":"Venezuela"},{"$f":"VLOOKUP(ventes[[#This Row],[CLIENTS]],localisations[],3,0)","v":"Amérique"},{"$f":"TEXT(ventes[[#This Row],[DATES]],\"mmm\")","v":"juin"},{"$f":"WEEKNUM(ventes[[#This Row],[DATES]])","v":24}]
["2021-06-09","client27","Produit40",115.2,32,{"$f":"ventes[[#This Row],[PRIX UNITAIRE (FCFA)]]*ventes[[#This Row],[QUANTITE]]","v":3686.4},{"$f":"VLOOKUP(ventes[[#This Row],[CLIENTS]],localisations[],2,0)","v":"Mexique"},{"$f":"VLOOKUP(ventes[[#This Row],[CLIENTS]],localisations[],3,0)","v":"Amérique"},{"$f":"TEXT(ventes[[#This Row],[DATES]],\"mmm\")","v":"juin"},{"$f":"WEEKNUM(ventes[[#This Row],[DATES]])","v":24}]
["2021-06-10","client02","Produit28",41.81,8,{"$f":"ventes[[#This Row],[PRIX UNITAIRE (FCFA)]]*ventes[[#This Row],[QUANTITE]]","v":334.48},{"$f":"VLOOKUP(ventes[[#This Row],[CLIENTS]],localisations[],2,0)","v":"Ghana"},{"$f":"VLOOKUP(ventes[[#This Row],[CLIENTS]],localisations[],3,0)","v":"Afrique"},{"$f":"TEXT(ventes[[#This Row],[DATES]],\"mmm\")","v":"juin"},{"$f":"WEEKNUM(ventes[[#This Row],[DATES]])","v":24}]
["2021-06-11","client33","Produit32",117.48,12,{"$f":"ventes[[#This Row],[PRIX UNITAIRE (FCFA)]]*ventes[[#This Row],[QUANTITE]]","v":1409.76},{"$f":"VLOOKUP(ventes[[#This Row],[CLIENTS]],localisations[],2,0)","v":"Philippines"},{"$f":"VLOOKUP(ventes[[#This Row],[CLIENTS]],localisations[],3,0)","v":"Asie"},{"$f":"TEXT(ventes[[#This Row],[DATES]],\"mmm\")","v":"juin"},{"$f":"WEEKNUM(ventes[[#This Row],[DATES]])","v":24}]
["2021-06-11","client33","Produit05",155.61000000000001,9,{"$f":"ventes[[#This Row],[PRIX UNITAIRE (FCFA)]]*ventes[[#This Row],[QUANTITE]]","v":1400.4900000000002},{"$f":"VLOOKUP(ventes[[#This Row],[CLIENTS]],localisations[],2,0)","v":"Philippines"},{"$f":"VLOOKUP(ventes[[#This Row],[CLIENTS]],localisations[],3,0)","v":"Asie"},{"$f":"TEXT(ventes[[#This Row],[DATES]],\"mmm\")","v":"juin"},{"$f":"WEEKNUM(ventes[[#This Row],[DATES]])","v":24}]
["2021-06-11","client15","Produit39",42.55,13,{"$f":"ventes[[#This Row],[PRIX UNITAIRE (FCFA)]]*ventes[[#This Row],[QUANTITE]]","v":553.15},{"$f":"VLOOKUP(ventes[[#This Row],[CLIENTS]],localisations[],2,0)","v":"Allemagne"},{"$f":"VLOOKUP(ventes[[#This Row],[CLIENTS]],localisations[],3,0)","v":"Europe"},{"$f":"TEXT(ventes[[#This Row],[DATES]],\"mmm\")","v":"juin"},{"$f":"WEEKNUM(ventes[[#This Row],[DATES]])","v":24}]
["2021-06-11","client26","Produit21",162.54,6,{"$f":"ventes[[#This Row],[PRIX UNITAIRE (FCFA)]]*ventes[[#This Row],[QUANTITE]]","v":975.24},{"$f":"VLOOKUP(ventes[[#This Row],[CLIENTS]],localisations[],2,0)","v":"Pérou"},{"$f":"VLOOKUP(ventes[[#This Row],[CLIENTS]],localisations[],3,0)","v":"Amérique"},{"$f":"TEXT(ventes[[#This Row],[DATES]],\"mmm\")","v":"juin"},{"$f":"WEEKNUM(ventes[[#This Row],[DATES]])","v":24}]
["2021-06-12","client17","Produit41",173.88,6,{"$f":"ventes[[#This Row],[PRIX UNITAIRE (FCFA)]]*ventes[[#This Row],[QUANTITE]]","v":1043.28},{"$f":"VLOOKUP(ventes[[#This Row],[CLIENTS]],localisations[],2,0)","v":"Suède"},{"$f":"VLOOKUP(ventes[[#This Row],[CLIENTS]],localisations[],3,0)","v":"Europe"},{"$f":"TEXT(ventes[[#This Row],[DATES]],\"mmm\")","v":"juin"},{"$f":"WEEKNUM(ventes[[#This Row],[DATES]])","v":24}]
["2021-06-13","client06","Produit26",24.66,6,{"$f":"ventes[[#This Row],[PRIX UNITAIRE (FCFA)]]*ventes[[#This Row],[QUANTITE]]","v":147.96},{"$f":"VLOOKUP(ventes[[#This Row],[CLIENTS]],localisations[],2,0)","v":"Afrique du Sud"},{"$f":"VLOOKUP(ventes[[#This Row],[CLIENTS]],localisations[],3,0)","v":"Afrique"},{"$f":"TEXT(ventes[[#This Row],[DATES]],\"mmm\")","v":"juin"},{"$f":"WEEKNUM(ventes[[#This Row],[DATES]])","v":25}]
["2021-06-13","client10","Produit15",15.719999999999999,3,{"$f":"ventes[[#This Row],[PRIX UNITAIRE (FCFA)]]*ventes[[#This Row],[QUANTITE]]","v":47.16},{"$f":"VLOOKUP(ventes[[#This Row],[CLIENTS]],localisations[],2,0)","v":"Nigeria"},{"$f":"VLOOKUP(ventes[[#This Row],[CLIENTS]],localisations[],3,0)","v":"Afrique"},{"$f":"TEXT(ventes[[#This Row],[DATES]],\"mmm\")","v":"juin"},{"$f":"WEEKNUM(ventes[[#This Row],[DATES]])","v":25}]
["2021-06-13","client16","Produit22",141.57,20,{"$f":"ventes[[#This Row],[PRIX UNITAIRE (FCFA)]]*ventes[[#This Row],[QUANTITE]]","v":2831.3999999999996},{"$f":"VLOOKUP(ventes[[#This Row],[CLIENTS]],localisations[],2,0)","v":"Royaume-Uni"},{"$f":"VLOOKUP(ventes[[#This Row],[CLIENTS]],localisations[],3,0)","v":"Europe"},{"$f":"TEXT(ventes[[#This Row],[DATES]],\"mmm\")","v":"juin"},{"$f":"WEEKNUM(ventes[[#This Row],[DATES]])","v":25}]
["2021-06-13","client25","Produit35",6.7,2,{"$f":"ventes[[#This Row],[PRIX UNITAIRE (FCFA)]]*ventes[[#This Row],[QUANTITE]]","v":13.4},{"$f":"VLOOKUP(ventes[[#This Row],[CLIENTS]],localisations[],2,0)","v":"Brésil"},{"$f":"VLOOKUP(ventes[[#This Row],[CLIENTS]],localisations[],3,0)","v":"Amérique"},{"$f":"TEXT(ventes[[#This Row],[DATES]],\"mmm\")","v":"juin"},{"$f":"WEEKNUM(ventes[[#This Row],[DATES]])","v":25}]
["2021-06-14","client06","Produit25",8.33,10,{"$f":"ventes[[#This Row],[PRIX UNITAIRE (FCFA)]]*ventes[[#This Row],[QUANTITE]]","v":83.3},{"$f":"VLOOKUP(ventes[[#This Row],[CLIENTS]],localisations[],2,0)","v":"Afrique du Sud"},{"$f":"VLOOKUP(ventes[[#This Row],[CLIENTS]],localisations[],3,0)","v":"Afrique"},{"$f":"TEXT(ventes[[#This Row],[DATES]],\"mmm\")","v":"juin"},{"$f":"WEEKNUM(ventes[[#This Row],[DATES]])","v":25}]
["2021-06-15","client30","Produit42",162,15,{"$f":"ventes[[#This Row],[PRIX UNITAIRE (FCFA)]]*ventes[[#This Row],[QUANTITE]]","v":2430},{"$f":"VLOOKUP(ventes[[#This Row],[CLIENTS]],localisations[],2,0)","v":"Colombie"},{"$f":"VLOOKUP(ventes[[#This Row],[CLIENTS]],localisations[],3,0)","v":"Amérique"},{"$f":"TEXT(ventes[[#This Row],[DATES]],\"mmm\")","v":"juin"},{"$f":"WEEKNUM(ventes[[#This Row],[DATES]])","v":25}]
["2021-06-16","client12","Produit19",210,5,{"$f":"ventes[[#This Row],[PRIX UNITAIRE (FCFA)]]*ventes[[#This Row],[QUANTITE]]","v":1050},{"$f":"VLOOKUP(ventes[[#This Row],[CLIENTS]],localisations[],2,0)","v":"Pologne"},{"$f":"VLOOKUP(ventes[[#This Row],[CLIENTS]],localisations[],3,0)","v":"Europe"},{"$f":"TEXT(ventes[[#This Row],[DATES]],\"mmm\")","v":"juin"},{"$f":"WEEKNUM(ventes[[#This Row],[DATES]])","v":25}]
["2021-06-16","client21","Produit39",42.55,11,{"$f":"ventes[[#This Row],[PRIX UNITAIRE (FCFA)]]*ventes[[#This Row],[QUANTITE]]","v":468.04999999999995},{"$f":"VLOOKUP(ventes[[#This Row],[CLIENTS]],localisations[],2,0)","v":"Venezuela"},{"$f":"VLOOKUP(ventes[[#This Row],[CLIENTS]],localisations[],3,0)","v":"Amérique"},{"$f":"TEXT(ventes[[#This Row],[DATES]],\"mmm\")","v":"juin"},{"$f":"WEEKNUM(ventes[[#This Row],[DATES]])","v":25}]
["2021-06-16","client22","Produit15",15.719999999999999,12,{"$f":"ventes[[#This Row],[PRIX UNITAIRE (FCFA)]]*ventes[[#This Row],[QUANTITE]]","v":188.64},{"$f":"VLOOKUP(ventes[[#This Row],[CLIENTS]],localisations[],2,0)","v":"Canada"},{"$f":"VLOOKUP(ventes[[#This Row],[CLIENTS]],localisations[],3,0)","v":"Amérique"},{"$f":"TEXT(ventes[[#This Row],[DATES]],\"mmm\")","v":"juin"},{"$f":"WEEKNUM(ventes[[#This Row],[DATES]])","v":25}]
["2021-06-16","client39","Produit29",53.11,15,{"$f":"ventes[[#This Row],[PRIX UNITAIRE (FCFA)]]*ventes[[#This Row],[QUANTITE]]","v":796.65},{"$f":"VLOOKUP(ventes[[#This Row],[CLIENTS]],localisations[],2,0)","v":"Pakistan"},{"$f":"VLOOKUP(ventes[[#This Row],[CLIENTS]],localisations[],3,0)","v":"Asie"},{"$f":"TEXT(ventes[[#This Row],[DATES]],\"mmm\")","v":"juin"},{"$f":"WEEKNUM(ventes[[#This Row],[DATES]])","v":25}]
["2021-06-16","client30","Produit01",103.88,26,{"$f":"ventes[[#This Row],[PRIX UNITAIRE (FCFA)]]*ventes[[#This Row],[QUANTITE]]","v":2700.88},{"$f":"VLOOKUP(ventes[[#This Row],[CLIENTS]],localisations[],2,0)","v":"Colombie"},{"$f":"VLOOKUP(ventes[[#This Row],[CLIENTS]],localisations[],3,0)","v":"Amérique"},{"$f":"TEXT(ventes[[#This Row],[DATES]],\"mmm\")","v":"juin"},{"$f":"WEEKNUM(ventes[[#This Row],[DATES]])","v":25}]
["2021-06-17","client12","Produit16",16.64,38,{"$f":"ventes[[#This Row],[PRIX UNITAIRE (FCFA)]]*ventes[[#This Row],[QUANTITE]]","v":632.32000000000005},{"$f":"VLOOKUP(ventes[[#This Row],[CLIENTS]],localisations[],2,0)","v":"Pologne"},{"$f":"VLOOKUP(ventes[[#This Row],[CLIENTS]],localisations[],3,0)","v":"Europe"},{"$f":"TEXT(ventes[[#This Row],[DATES]],\"mmm\")","v":"juin"},{"$f":"WEEKNUM(ventes[[#This Row],[DATES]])","v":25}]
["2021-06-17","client39","Produit19",210,24,{"$f":"ventes[[#This Row],[PRIX UNITAIRE (FCFA)]]*ventes[[#This Row],[QUANTITE]]","v":5040},{"$f":"VLOOKUP(ventes[[#This Row],[CLIENTS]],localisations[],2,0)","v":"Pakistan"},{"$f":"VLOOKUP(ventes[[#This Row],[CLIENTS]],localisations[],3,0)","v":"Asie"},{"$f":"TEXT(ventes[[#This Row],[DATES]],\"mmm\")","v":"juin"},{"$f":"WEEKNUM(ventes[[#This Row],[DATES]])","v":25}]
["2021-06-18","client33","Produit34",58.3,35,{"$f":"ventes[[#This Row],[PRIX UNITAIRE (FCFA)]]*ventes[[#This Row],[QUANTITE]]","v":2040.5},{"$f":"VLOOKUP(ventes[[#This Row],[CLIENTS]],localisations[],2,0)","v":"Philippines"},{"$f":"VLOOKUP(ventes[[#This Row],[CLIENTS]],localisations[],3,0)","v":"Asie"},{"$f":"TEXT(ventes[[#This Row],[DATES]],\"mmm\")","v":"juin"},{"$f":"WEEKNUM(ventes[[#This Row],[DATES]])","v":25}]
["2021-06-18","client11","Produit25",8.33,13,{"$f":"ventes[[#This Row],[PRIX UNITAIRE (FCFA)]]*ventes[[#This Row],[QUANTITE]]","v":108.29},{"$f":"VLOOKUP(ventes[[#This Row],[CLIENTS]],localisations[],2,0)","v":"Espagne"},{"$f":"VLOOKUP(ventes[[#This Row],[CLIENTS]],localisations[],3,0)","v":"Europe"},{"$f":"TEXT(ventes[[#This Row],[DATES]],\"mmm\")","v":"juin"},{"$f":"WEEKNUM(ventes[[#This Row],[DATES]])","v":25}]
["2021-06-18","client20","Produit13",122.08,5,{"$f":"ventes[[#This Row],[PRIX UNITAIRE (FCFA)]]*ventes[[#This Row],[QUANTITE]]","v":610.4},{"$f":"VLOOKUP(ventes[[#This Row],[CLIENTS]],localisations[],2,0)","v":"France"},{"$f":"VLOOKUP(ventes[[#This Row],[CLIENTS]],localisations[],3,0)","v":"Europe"},{"$f":"TEXT(ventes[[#This Row],[DATES]],\"mmm\")","v":"juin"},{"$f":"WEEKNUM(ventes[[#This Row],[DATES]])","v":25}]
["2021-06-18","client21","Produit32",117.48,8,{"$f":"ventes[[#This Row],[PRIX UNITAIRE (FCFA)]]*ventes[[#This Row],[QUANTITE]]","v":939.84},{"$f":"VLOOKUP(ventes[[#This Row],[CLIENTS]],localisations[],2,0)","v":"Venezuela"},{"$f":"VLOOKUP(ventes[[#This Row],[CLIENTS]],localisations[],3,0)","v":"Amérique"},{"$f":"TEXT(ventes[[#This Row],[DATES]],\"mmm\")","v":"juin"},{"$f":"WEEKNUM(ventes[[#This Row],[DATES]])","v":25}]
["2021-06-19","client09","Produit44",82.08,11,{"$f":"ventes[[#This Row],[PRIX UNITAIRE (FCFA)]]*ventes[[#This Row],[QUANTITE]]","v":902.88},{"$f":"VLOOKUP(ventes[[#This Row],[CLIENTS]],localisations[],2,0)","v":"Égypte"},{"$f":"VLOOKUP(ventes[[#This Row],[CLIENTS]],localisations[],3,0)","v":"Afrique"},{"$f":"TEXT(ventes[[#This Row],[DATES]],\"mmm\")","v":"juin"},{"$f":"WEEKNUM(ventes[[#This Row],[DATES]])","v":25}]
["2021-06-19","client14","Produit02",142.80000000000001,8,{"$f":"ventes[[#This Row],[PRIX UNITAIRE (FCFA)]]*ventes[[#This Row],[QUANTITE]]","v":1142.4000000000001},{"$f":"VLOOKUP(ventes[[#This Row],[CLIENTS]],localisations[],2,0)","v":"Pays-Bas"},{"$f":"VLOOKUP(ventes[[#This Row],[CLIENTS]],localisations[],3,0)","v":"Europe"},{"$f":"TEXT(ventes[[#This Row],[DATES]],\"mmm\")","v":"juin"},{"$f":"WEEKNUM(ventes[[#This Row],[DATES]])","v":25}]
["2021-06-19","client17","Produit41",173.88,5,{"$f":"ventes[[#This Row],[PRIX UNITAIRE (FCFA)]]*ventes[[#This Row],[QUANTITE]]","v":869.4},{"$f":"VLOOKUP(ventes[[#This Row],[CLIENTS]],localisations[],2,0)","v":"Suède"},{"$f":"VLOOKUP(ventes[[#This Row],[CLIENTS]],localisations[],3,0)","v":"Europe"},{"$f":"TEXT(ventes[[#This Row],[DATES]],\"mmm\")","v":"juin"},{"$f":"WEEKNUM(ventes[[#This Row],[DATES]])","v":25}]
["2021-06-20","client06","Produit16",16.64,1,{"$f":"ventes[[#This Row],[PRIX UNITAIRE (FCFA)]]*ventes[[#This Row],[QUANTITE]]","v":16.64},{"$f":"VLOOKUP(ventes[[#This Row],[CLIENTS]],localisations[],2,0)","v":"Afrique du Sud"},{"$f":"VLOOKUP(ventes[[#This Row],[CLIENTS]],localisations[],3,0)","v":"Afrique"},{"$f":"TEXT(ventes[[#This Row],[DATES]],\"mmm\")","v":"juin"},{"$f":"WEEKNUM(ventes[[#This Row],[DATES]])","v":26}]
["2021-06-20","client30","Produit11",48.4,30,{"$f":"ventes[[#This Row],[PRIX UNITAIRE (FCFA)]]*ventes[[#This Row],[QUANTITE]]","v":1452},{"$f":"VLOOKUP(ventes[[#This Row],[CLIENTS]],localisations[],2,0)","v":"Colombie"},{"$f":"VLOOKUP(ventes[[#This Row],[CLIENTS]],localisations[],3,0)","v":"Amérique"},{"$f":"TEXT(ventes[[#This Row],[DATES]],\"mmm\")","v":"juin"},{"$f":"WEEKNUM(ventes[[#This Row],[DATES]])","v":26}]
["2021-06-21","client33","Produit17",156.78,14,{"$f":"ventes[[#This Row],[PRIX UNITAIRE (FCFA)]]*ventes[[#This Row],[QUANTITE]]","v":2194.92},{"$f":"VLOOKUP(ventes[[#This Row],[CLIENTS]],localisations[],2,0)","v":"Philippines"},{"$f":"VLOOKUP(ventes[[#This Row],[CLIENTS]],localisations[],3,0)","v":"Asie"},{"$f":"TEXT(ventes[[#This Row],[DATES]],\"mmm\")","v":"juin"},{"$f":"WEEKNUM(ventes[[#This Row],[DATES]])","v":26}]
["2021-06-22","client01","Produit01",103.88,4,{"$f":"ventes[[#This Row],[PRIX UNITAIRE (FCFA)]]*ventes[[#This Row],[QUANTITE]]","v":415.52},{"$f":"VLOOKUP(ventes[[#This Row],[CLIENTS]],localisations[],2,0)","v":"Tunisie"},{"$f":"VLOOKUP(ventes[[#This Row],[CLIENTS]],localisations[],3,0)","v":"Afrique"},{"$f":"TEXT(ventes[[#This Row],[DATES]],\"mmm\")","v":"juin"},{"$f":"WEEKNUM(ventes[[#This Row],[DATES]])","v":26}]
["2021-06-22","client08","Produit40",115.2,10,{"$f":"ventes[[#This Row],[PRIX UNITAIRE (FCFA)]]*ventes[[#This Row],[QUANTITE]]","v":1152},{"$f":"VLOOKUP(ventes[[#This Row],[CLIENTS]],localisations[],2,0)","v":"Maroc"},{"$f":"VLOOKUP(ventes[[#This Row],[CLIENTS]],localisations[],3,0)","v":"Afrique"},{"$f":"TEXT(ventes[[#This Row],[DATES]],\"mmm\")","v":"juin"},{"$f":"WEEKNUM(ventes[[#This Row],[DATES]])","v":26}]
["2021-06-23","client15","Produit16",16.64,4,{"$f":"ventes[[#This Row],[PRIX UNITAIRE (FCFA)]]*ventes[[#This Row],[QUANTITE]]","v":66.56},{"$f":"VLOOKUP(ventes[[#This Row],[CLIENTS]],localisations[],2,0)","v":"Allemagne"},{"$f":"VLOOKUP(ventes[[#This Row],[CLIENTS]],localisations[],3,0)","v":"Europe"},{"$f":"TEXT(ventes[[#This Row],[DATES]],\"mmm\")","v":"juin"},{"$f":"WEEKNUM(ventes[[#This Row],[DATES]])","v":26}]
["2021-06-23","client25","Produit08",94.62,22,{"$f":"ventes[[#This Row],[PRIX UNITAIRE (FCFA)]]*ventes[[#This Row],[QUANTITE]]","v":2081.6400000000003},{"$f":"VLOOKUP(ventes[[#This Row],[CLIENTS]],localisations[],2,0)","v":"Brésil"},{"$f":"VLOOKUP(ventes[[#This Row],[CLIENTS]],localisations[],3,0)","v":"Amérique"},{"$f":"TEXT(ventes[[#This Row],[DATES]],\"mmm\")","v":"juin"},{"$f":"WEEKNUM(ventes[[#This Row],[DATES]])","v":26}]
["2021-06-23","client30","Produit04",48.84,8,{"$f":"ventes[[#This Row],[PRIX UNITAIRE (FCFA)]]*ventes[[#This Row],[QUANTITE]]","v":390.72},{"$f":"VLOOKUP(ventes[[#This Row],[CLIENTS]],localisations[],2,0)","v":"Colombie"},{"$f":"VLOOKUP(ventes[[#This Row],[CLIENTS]],localisations[],3,0)","v":"Amérique"},{"$f":"TEXT(ventes[[#This Row],[DATES]],\"mmm\")","v":"juin"},{"$f":"WEEKNUM(ventes[[#This Row],[DATES]])","v":26}]
["2021-06-24","client11","Produit40",115.2,10,{"$f":"ventes[[#This Row],[PRIX UNITAIRE (FCFA)]]*ventes[[#This Row],[QUANTITE]]","v":1152},{"$f":"VLOOKUP(ventes[[#This Row],[CLIENTS]],localisations[],2,0)","v":"Espagne"},{"$f":"VLOOKUP(ventes[[#This Row],[CLIENTS]],localisations[],3,0)","v":"Europe"},{"$f":"TEXT(ventes[[#This Row],[DATES]],\"mmm\")","v":"juin"},{"$f":"WEEKNUM(ventes[[#This Row],[DATES]])","v":26}]
["2021-06-24","client12","Produit11",48.4,13,{"$f":"ventes[[#This Row],[PRIX UNITAIRE (FCFA)]]*ventes[[#This Row],[QUANTITE]]","v":629.19999999999993},{"$f":"VLOOKUP(ventes[[#This Row],[CLIENTS]],localisations[],2,0)","v":"Pologne"},{"$f":"VLOOKUP(ventes[[#This Row],[CLIENTS]],localisations[],3,0)","v":"Europe"},{"$f":"TEXT(ventes[[#This Row],[DATES]],\"mmm\")","v":"juin"},{"$f":"WEEKNUM(ventes[[#This Row],[DATES]])","v":26}]
["2021-06-24","client22","Produit20",76.25,23,{"$f":"ventes[[#This Row],[PRIX UNITAIRE (FCFA)]]*ventes[[#This Row],[QUANTITE]]","v":1753.75},{"$f":"VLOOKUP(ventes[[#This Row],[CLIENTS]],localisations[],2,0)","v":"Canada"},{"$f":"VLOOKUP(ventes[[#This Row],[CLIENTS]],localisations[],3,0)","v":"Amérique"},{"$f":"TEXT(ventes[[#This Row],[DATES]],\"mmm\")","v":"juin"},{"$f":"WEEKNUM(ventes[[#This Row],[DATES]])","v":26}]
["2021-06-24","client28","Produit18",49.21,7,{"$f":"ventes[[#This Row],[PRIX UNITAIRE (FCFA)]]*ventes[[#This Row],[QUANTITE]]","v":344.47},{"$f":"VLOOKUP(ventes[[#This Row],[CLIENTS]],localisations[],2,0)","v":"États-Unis"},{"$f":"VLOOKUP(ventes[[#This Row],[CLIENTS]],localisations[],3,0)","v":"Amérique"},{"$f":"TEXT(ventes[[#This Row],[DATES]],\"mmm\")","v":"juin"},{"$f":"WEEKNUM(ventes[[#This Row],[DATES]])","v":26}]
["2021-06-25","client12","Produit12",94.17,7,{"$f":"ventes[[#This Row],[PRIX UNITAIRE (FCFA)]]*ventes[[#This Row],[QUANTITE]]","v":659.19},{"$f":"VLOOKUP(ventes[[#This Row],[CLIENTS]],localisations[],2,0)","v":"Pologne"},{"$f":"VLOOKUP(ventes[[#This Row],[CLIENTS]],localisations[],3,0)","v":"Europe"},{"$f":"TEXT(ventes[[#This Row],[DATES]],\"mmm\")","v":"juin"},{"$f":"WEEKNUM(ventes[[#This Row],[DATES]])","v":26}]
["2021-06-26","client06","Produit43",83.08,12,{"$f":"ventes[[#This Row],[PRIX UNITAIRE (FCFA)]]*ventes[[#This Row],[QUANTITE]]","v":996.96},{"$f":"VLOOKUP(ventes[[#This Row],[CLIENTS]],localisations[],2,0)","v":"Afrique du Sud"},{"$f":"VLOOKUP(ventes[[#This Row],[CLIENTS]],localisations[],3,0)","v":"Afrique"},{"$f":"TEXT(ventes[[#This Row],[DATES]],\"mmm\")","v":"juin"},{"$f":"WEEKNUM(ventes[[#This Row],[DATES]])","v":26}]
["2021-06-26","client26","Produit09",7.8599999999999994,7,{"$f":"ventes[[#This Row],[PRIX UNITAIRE (FCFA)]]*ventes[[#This Row],[QUANTITE]]","v":55.019999999999996},{"$f":"VLOOKUP(ventes[[#This Row],[CLIENTS]],localisations[],2,0)","v":"Pérou"},{"$f":"VLOOKUP(ventes[[#This Row],[CLIENTS]],localisations[],3,0)","v":"Amérique"},{"$f":"TEXT(ventes[[#This Row],[DATES]],\"mmm\")","v":"juin"},{"$f":"WEEKNUM(ventes[[#This Row],[DATES]])","v":26}]
["2021-06-26","client30","Produit34",58.3,4,{"$f":"ventes[[#This Row],[PRIX UNITAIRE (FCFA)]]*ventes[[#This Row],[QUANTITE]]","v":233.2},{"$f":"VLOOKUP(ventes[[#This Row],[CLIENTS]],localisations[],2,0)","v":"Colombie"},{"$f":"VLOOKUP(ventes[[#This Row],[CLIENTS]],localisations[],3,0)","v":"Amérique"},{"$f":"TEXT(ventes[[#This Row],[DATES]],\"mmm\")","v":"juin"},{"$f":"WEEKNUM(ventes[[#This Row],[DATES]])","v":26}]
["2021-06-27","client28","Produit05",155.61000000000001,11,{"$f":"ventes[[#This Row],[PRIX UNITAIRE (FCFA)]]*ventes[[#This Row],[QUANTITE]]","v":1711.71},{"$f":"VLOOKUP(ventes[[#This Row],[CLIENTS]],localisations[],2,0)","v":"États-Unis"},{"$f":"VLOOKUP(ventes[[#This Row],[CLIENTS]],localisations[],3,0)","v":"Amérique"},{"$f":"TEXT(ventes[[#This Row],[DATES]],\"mmm\")","v":"juin"},{"$f":"WEEKNUM(ventes[[#This Row],[DATES]])","v":27}]
["2021-06-28","client06","Produit21",162.54,2,{"$f":"ventes[[#This Row],[PRIX UNITAIRE (FCFA)]]*ventes[[#This Row],[QUANTITE]]","v":325.08},{"$f":"VLOOKUP(ventes[[#This Row],[CLIENTS]],localisations[],2,0)","v":"Afrique du Sud"},{"$f":"VLOOKUP(ventes[[#This Row],[CLIENTS]],localisations[],3,0)","v":"Afrique"},{"$f":"TEXT(ventes[[#This Row],[DATES]],\"mmm\")","v":"juin"},{"$f":"WEEKNUM(ventes[[#This Row],[DATES]])","v":27}]
["2021-06-28","client19","Produit35",6.7,7,{"$f":"ventes[[#This Row],[PRIX UNITAIRE (FCFA)]]*ventes[[#This Row],[QUANTITE]]","v":46.9},{"$f":"VLOOKUP(ventes[[#This Row],[CLIENTS]],localisations[],2,0)","v":"Suisse"},{"$f":"VLOOKUP(ventes[[#This Row],[CLIENTS]],localisations[],3,0)","v":"Europe"},{"$f":"TEXT(ventes[[#This Row],[DATES]],\"mmm\")","v":"juin"},{"$f":"WEEKNUM(ventes[[#This Row],[DATES]])","v":27}]
["2021-06-29","client17","Produit14",146.72,4,{"$f":"ventes[[#This Row],[PRIX UNITAIRE (FCFA)]]*ventes[[#This Row],[QUANTITE]]","v":586.88},{"$f":"VLOOKUP(ventes[[#This Row],[CLIENTS]],localisations[],2,0)","v":"Suède"},{"$f":"VLOOKUP(ventes[[#This Row],[CLIENTS]],localisations[],3,0)","v":"Europe"},{"$f":"TEXT(ventes[[#This Row],[DATES]],\"mmm\")","v":"juin"},{"$f":"WEEKNUM(ventes[[#This Row],[DATES]])","v":27}]
["2021-06-30","client14","Produit43",83.08,8,{"$f":"ventes[[#This Row],[PRIX UNITAIRE (FCFA)]]*ventes[[#This Row],[QUANTITE]]","v":664.64},{"$f":"VLOOKUP(ventes[[#This Row],[CLIENTS]],localisations[],2,0)","v":"Pays-Bas"},{"$f":"VLOOKUP(ventes[[#This Row],[CLIENTS]],localisations[],3,0)","v":"Europe"},{"$f":"TEXT(ventes[[#This Row],[DATES]],\"mmm\")","v":"juin"},{"$f":"WEEKNUM(ventes[[#This Row],[DATES]])","v":27}]
["2021-07-01","client01","Produit05",155.61000000000001,11,{"$f":"ventes[[#This Row],[PRIX UNITAIRE (FCFA)]]*ventes[[#This Row],[QUANTITE]]","v":1711.71},{"$f":"VLOOKUP(ventes[[#This Row],[CLIENTS]],localisations[],2,0)","v":"Tunisie"},{"$f":"VLOOKUP(ventes[[#This Row],[CLIENTS]],localisations[],3,0)","v":"Afrique"},{"$f":"TEXT(ventes[[#This Row],[DATES]],\"mmm\")","v":"juil"},{"$f":"WEEKNUM(ventes[[#This Row],[DATES]])","v":27}]
["2021-07-01","client30","Produit40",115.2,22,{"$f":"ventes[[#This Row],[PRIX UNITAIRE (FCFA)]]*ventes[[#This Row],[QUANTITE]]","v":2534.4},{"$f":"VLOOKUP(ventes[[#This Row],[CLIENTS]],localisations[],2,0)","v":"Colombie"},{"$f":"VLOOKUP(ventes[[#This Row],[CLIENTS]],localisations[],3,0)","v":"Amérique"},{"$f":"TEXT(ventes[[#This Row],[DATES]],\"mmm\")","v":"juil"},{"$f":"WEEKNUM(ventes[[#This Row],[DATES]])","v":27}]
["2021-07-02","client09","Produit10",164.28,11,{"$f":"ventes[[#This Row],[PRIX UNITAIRE (FCFA)]]*ventes[[#This Row],[QUANTITE]]","v":1807.08},{"$f":"VLOOKUP(ventes[[#This Row],[CLIENTS]],localisations[],2,0)","v":"Égypte"},{"$f":"VLOOKUP(ventes[[#This Row],[CLIENTS]],localisations[],3,0)","v":"Afrique"},{"$f":"TEXT(ventes[[#This Row],[DATES]],\"mmm\")","v":"juil"},{"$f":"WEEKNUM(ventes[[#This Row],[DATES]])","v":27}]
["2021-07-02","client35","Produit25",8.33,21,{"$f":"ventes[[#This Row],[PRIX UNITAIRE (FCFA)]]*ventes[[#This Row],[QUANTITE]]","v":174.93},{"$f":"VLOOKUP(ventes[[#This Row],[CLIENTS]],localisations[],2,0)","v":"Malaisie"},{"$f":"VLOOKUP(ventes[[#This Row],[CLIENTS]],localisations[],3,0)","v":"Asie"},{"$f":"TEXT(ventes[[#This Row],[DATES]],\"mmm\")","v":"juil"},{"$f":"WEEKNUM(ventes[[#This Row],[DATES]])","v":27}]
["2021-07-02","client22","Produit27",57.120000000000005,2,{"$f":"ventes[[#This Row],[PRIX UNITAIRE (FCFA)]]*ventes[[#This Row],[QUANTITE]]","v":114.24000000000001},{"$f":"VLOOKUP(ventes[[#This Row],[CLIENTS]],localisations[],2,0)","v":"Canada"},{"$f":"VLOOKUP(ventes[[#This Row],[CLIENTS]],localisations[],3,0)","v":"Amérique"},{"$f":"TEXT(ventes[[#This Row],[DATES]],\"mmm\")","v":"juil"},{"$f":"WEEKNUM(ventes[[#This Row],[DATES]])","v":27}]
["2021-07-03","client02","Produit03",80.94,8,{"$f":"ventes[[#This Row],[PRIX UNITAIRE (FCFA)]]*ventes[[#This Row],[QUANTITE]]","v":647.52},{"$f":"VLOOKUP(ventes[[#This Row],[CLIENTS]],localisations[],2,0)","v":"Ghana"},{"$f":"VLOOKUP(ventes[[#This Row],[CLIENTS]],localisations[],3,0)","v":"Afrique"},{"$f":"TEXT(ventes[[#This Row],[DATES]],\"mmm\")","v":"juil"},{"$f":"WEEKNUM(ventes[[#This Row],[DATES]])","v":27}]
["2021-07-03","client15","Produit33",119.7,15,{"$f":"ventes[[#This Row],[PRIX UNITAIRE (FCFA)]]*ventes[[#This Row],[QUANTITE]]","v":1795.5},{"$f":"VLOOKUP(ventes[[#This Row],[CLIENTS]],localisations[],2,0)","v":"Allemagne"},{"$f":"VLOOKUP(ventes[[#This Row],[CLIENTS]],localisations[],3,0)","v":"Europe"},{"$f":"TEXT(ventes[[#This Row],[DATES]],\"mmm\")","v":"juil"},{"$f":"WEEKNUM(ventes[[#This Row],[DATES]])","v":27}]
["2021-07-03","client21","Produit33",119.7,9,{"$f":"ventes[[#This Row],[PRIX UNITAIRE (FCFA)]]*ventes[[#This Row],[QUANTITE]]","v":1077.3},{"$f":"VLOOKUP(ventes[[#This Row],[CLIENTS]],localisations[],2,0)","v":"Venezuela"},{"$f":"VLOOKUP(ventes[[#This Row],[CLIENTS]],localisations[],3,0)","v":"Amérique"},{"$f":"TEXT(ventes[[#This Row],[DATES]],\"mmm\")","v":"juil"},{"$f":"WEEKNUM(ventes[[#This Row],[DATES]])","v":27}]
["2021-07-04","client22","Produit07",47.730000000000004,7,{"$f":"ventes[[#This Row],[PRIX UNITAIRE (FCFA)]]*ventes[[#This Row],[QUANTITE]]","v":334.11},{"$f":"VLOOKUP(ventes[[#This Row],[CLIENTS]],localisations[],2,0)","v":"Canada"},{"$f":"VLOOKUP(ventes[[#This Row],[CLIENTS]],localisations[],3,0)","v":"Amérique"},{"$f":"TEXT(ventes[[#This Row],[DATES]],\"mmm\")","v":"juil"},{"$f":"WEEKNUM(ventes[[#This Row],[DATES]])","v":28}]
["2021-07-04","client25","Produit41",173.88,7,{"$f":"ventes[[#This Row],[PRIX UNITAIRE (FCFA)]]*ventes[[#This Row],[QUANTITE]]","v":1217.1599999999999},{"$f":"VLOOKUP(ventes[[#This Row],[CLIENTS]],localisations[],2,0)","v":"Brésil"},{"$f":"VLOOKUP(ventes[[#This Row],[CLIENTS]],localisations[],3,0)","v":"Amérique"},{"$f":"TEXT(ventes[[#This Row],[DATES]],\"mmm\")","v":"juil"},{"$f":"WEEKNUM(ventes[[#This Row],[DATES]])","v":28}]
["2021-07-05","client05","Produit25",8.33,7,{"$f":"ventes[[#This Row],[PRIX UNITAIRE (FCFA)]]*ventes[[#This Row],[QUANTITE]]","v":58.31},{"$f":"VLOOKUP(ventes[[#This Row],[CLIENTS]],localisations[],2,0)","v":"Algérie"},{"$f":"VLOOKUP(ventes[[#This Row],[CLIENTS]],localisations[],3,0)","v":"Afrique"},{"$f":"TEXT(ventes[[#This Row],[DATES]],\"mmm\")","v":"juil"},{"$f":"WEEKNUM(ventes[[#This Row],[DATES]])","v":28}]
["2021-07-05","client17","Produit15",15.719999999999999,8,{"$f":"ventes[[#This Row],[PRIX UNITAIRE (FCFA)]]*ventes[[#This Row],[QUANTITE]]","v":125.75999999999999},{"$f":"VLOOKUP(ventes[[#This Row],[CLIENTS]],localisations[],2,0)","v":"Suède"},{"$f":"VLOOKUP(ventes[[#This Row],[CLIENTS]],localisations[],3,0)","v":"Europe"},{"$f":"TEXT(ventes[[#This Row],[DATES]],\"mmm\")","v":"juil"},{"$f":"WEEKNUM(ventes[[#This Row],[DATES]])","v":28}]
["2021-07-05","client21","Produit02",142.80000000000001,8,{"$f":"ventes[[#This Row],[PRIX UNITAIRE (FCFA)]]*ventes[[#This Row],[QUANTITE]]","v":1142.4000000000001},{"$f":"VLOOKUP(ventes[[#This Row],[CLIENTS]],localisations[],2,0)","v":"Venezuela"},{"$f":"VLOOKUP(ventes[[#This Row],[CLIENTS]],localisations[],3,0)","v":"Amérique"},{"$f":"TEXT(ventes[[#This Row],[DATES]],\"mmm\")","v":"juil"},{"$f":"WEEKNUM(ventes[[#This Row],[DATES]])","v":28}]
["2021-07-06","client05","Produit24",156.96,11,{"$f":"ventes[[#This Row],[PRIX UNITAIRE (FCFA)]]*ventes[[#This Row],[QUANTITE]]","v":1726.5600000000002},{"$f":"VLOOKUP(ventes[[#This Row],[CLIENTS]],localisations[],2,0)","v":"Algérie"},{"$f":"VLOOKUP(ventes[[#This Row],[CLIENTS]],localisations[],3,0)","v":"Afrique"},{"$f":"TEXT(ventes[[#This Row],[DATES]],\"mmm\")","v":"juil"},{"$f":"WEEKNUM(ventes[[#This Row],[DATES]])","v":28}]
["2021-07-06","client16","Produit41",173.88,15,{"$f":"ventes[[#This Row],[PRIX UNITAIRE (FCFA)]]*ventes[[#This Row],[QUANTITE]]","v":2608.1999999999998},{"$f":"VLOOKUP(ventes[[#This Row],[CLIENTS]],localisations[],2,0)","v":"Royaume-Uni"},{"$f":"VLOOKUP(ventes[[#This Row],[CLIENTS]],localisations[],3,0)","v":"Europe"},{"$f":"TEXT(ventes[[#This Row],[DATES]],\"mmm\")","v":"juil"},{"$f":"WEEKNUM(ventes[[#This Row],[DATES]])","v":28}]
["2021-07-06","client17","Produit41",173.88,2,{"$f":"ventes[[#This Row],[PRIX UNITAIRE (FCFA)]]*ventes[[#This Row],[QUANTITE]]","v":347.76},{"$f":"VLOOKUP(ventes[[#This Row],[CLIENTS]],localisations[],2,0)","v":"Suède"},{"$f":"VLOOKUP(ventes[[#This Row],[CLIENTS]],localisations[],3,0)","v":"Europe"},{"$f":"TEXT(ventes[[#This Row],[DATES]],\"mmm\")","v":"juil"},{"$f":"WEEKNUM(ventes[[#This Row],[DATES]])","v":28}]
["2021-07-08","client22","Produit18",49.21,2,{"$f":"ventes[[#This Row],[PRIX UNITAIRE (FCFA)]]*ventes[[#This Row],[QUANTITE]]","v":98.42},{"$f":"VLOOKUP(ventes[[#This Row],[CLIENTS]],localisations[],2,0)","v":"Canada"},{"$f":"VLOOKUP(ventes[[#This Row],[CLIENTS]],localisations[],3,0)","v":"Amérique"},{"$f":"TEXT(ventes[[#This Row],[DATES]],\"mmm\")","v":"juil"},{"$f":"WEEKNUM(ventes[[#This Row],[DATES]])","v":28}]
["2021-07-08","client28","Produit04",48.84,10,{"$f":"ventes[[#This Row],[PRIX UNITAIRE (FCFA)]]*ventes[[#This Row],[QUANTITE]]","v":488.40000000000003},{"$f":"VLOOKUP(ventes[[#This Row],[CLIENTS]],localisations[],2,0)","v":"États-Unis"},{"$f":"VLOOKUP(ventes[[#This Row],[CLIENTS]],localisations[],3,0)","v":"Amérique"},{"$f":"TEXT(ventes[[#This Row],[DATES]],\"mmm\")","v":"juil"},{"$f":"WEEKNUM(ventes[[#This Row],[DATES]])","v":28}]
["2021-07-09","client16","Produit06",85.5,11,{"$f":"ventes[[#This Row],[PRIX UNITAIRE (FCFA)]]*ventes[[#This Row],[QUANTITE]]","v":940.5},{"$f":"VLOOKUP(ventes[[#This Row],[CLIENTS]],localisations[],2,0)","v":"Royaume-Uni"},{"$f":"VLOOKUP(ventes[[#This Row],[CLIENTS]],localisations[],3,0)","v":"Europe"},{"$f":"TEXT(ventes[[#This Row],[DATES]],\"mmm\")","v":"juil"},{"$f":"WEEKNUM(ventes[[#This Row],[DATES]])","v":28}]
["2021-07-10","client07","Produit10",164.28,15,{"$f":"ventes[[#This Row],[PRIX UNITAIRE (FCFA)]]*ventes[[#This Row],[QUANTITE]]","v":2464.1999999999998},{"$f":"VLOOKUP(ventes[[#This Row],[CLIENTS]],localisations[],2,0)","v":"Éthiopie"},{"$f":"VLOOKUP(ventes[[#This Row],[CLIENTS]],localisations[],3,0)","v":"Afrique"},{"$f":"TEXT(ventes[[#This Row],[DATES]],\"mmm\")","v":"juil"},{"$f":"WEEKNUM(ventes[[#This Row],[DATES]])","v":28}]
["2021-07-10","client22","Produit32",117.48,12,{"$f":"ventes[[#This Row],[PRIX UNITAIRE (FCFA)]]*ventes[[#This Row],[QUANTITE]]","v":1409.76},{"$f":"VLOOKUP(ventes[[#This Row],[CLIENTS]],localisations[],2,0)","v":"Canada"},{"$f":"VLOOKUP(ventes[[#This Row],[CLIENTS]],localisations[],3,0)","v":"Amérique"},{"$f":"TEXT(ventes[[#This Row],[DATES]],\"mmm\")","v":"juil"},{"$f":"WEEKNUM(ventes[[#This Row],[DATES]])","v":28}]
["2021-07-10","client28","Produit34",58.3,6,{"$f":"ventes[[#This Row],[PRIX UNITAIRE (FCFA)]]*ventes[[#This Row],[QUANTITE]]","v":349.79999999999995},{"$f":"VLOOKUP(ventes[[#This Row],[CLIENTS]],localisations[],2,0)","v":"États-Unis"},{"$f":"VLOOKUP(ventes[[#This Row],[CLIENTS]],localisations[],3,0)","v":"Amérique"},{"$f":"TEXT(ventes[[#This Row],[DATES]],\"mmm\")","v":"juil"},{"$f":"WEEKNUM(ventes[[#This Row],[DATES]])","v":28}]
["2021-07-11","client30","Produit09",7.8599999999999994,4,{"$f":"ventes[[#This Row],[PRIX UNITAIRE (FCFA)]]*ventes[[#This Row],[QUANTITE]]","v":31.439999999999998},{"$f":"VLOOKUP(ventes[[#This Row],[CLIENTS]],localisations[],2,0)","v":"Colombie"},{"$f":"VLOOKUP(ventes[[#This Row],[CLIENTS]],localisations[],3,0)","v":"Amérique"},{"$f":"TEXT(ventes[[#This Row],[DATES]],\"mmm\")","v":"juil"},{"$f":"WEEKNUM(ventes[[#This Row],[DATES]])","v":29}]
["2021-07-12","client06","Produit28",41.81,12,{"$f":"ventes[[#This Row],[PRIX UNITAIRE (FCFA)]]*ventes[[#This Row],[QUANTITE]]","v":501.72},{"$f":"VLOOKUP(ventes[[#This Row],[CLIENTS]],localisations[],2,0)","v":"Afrique du Sud"},{"$f":"VLOOKUP(ventes[[#This Row],[CLIENTS]],localisations[],3,0)","v":"Afrique"},{"$f":"TEXT(ventes[[#This Row],[DATES]],\"mmm\")","v":"juil"},{"$f":"WEEKNUM(ventes[[#This Row],[DATES]])","v":29}]
["2021-07-12","client17","Produit39",42.55,4,{"$f":"ventes[[#This Row],[PRIX UNITAIRE (FCFA)]]*ventes[[#This Row],[QUANTITE]]","v":170.2},{"$f":"VLOOKUP(ventes[[#This Row],[CLIENTS]],localisations[],2,0)","v":"Suède"},{"$f":"VLOOKUP(ventes[[#This Row],[CLIENTS]],localisations[],3,0)","v":"Europe"},{"$f":"TEXT(ventes[[#This Row],[DATES]],\"mmm\")","v":"juil"},{"$f":"WEEKNUM(ventes[[#This Row],[DATES]])","v":29}]
["2021-07-13","client01","Produit19",210,1,{"$f":"ventes[[#This Row],[PRIX UNITAIRE (FCFA)]]*ventes[[#This Row],[QUANTITE]]","v":210},{"$f":"VLOOKUP(ventes[[#This Row],[CLIENTS]],localisations[],2,0)","v":"Tunisie"},{"$f":"VLOOKUP(ventes[[#This Row],[CLIENTS]],localisations[],3,0)","v":"Afrique"},{"$f":"TEXT(ventes[[#This Row],[DATES]],\"mmm\")","v":"juil"},{"$f":"WEEKNUM(ventes[[#This Row],[DATES]])","v":29}]
["2021-07-13","client21","Produit25",8.33,7,{"$f":"ventes[[#This Row],[PRIX UNITAIRE (FCFA)]]*ventes[[#This Row],[QUANTITE]]","v":58.31},{"$f":"VLOOKUP(ventes[[#This Row],[CLIENTS]],localisations[],2,0)","v":"Venezuela"},{"$f":"VLOOKUP(ventes[[#This Row],[CLIENTS]],localisations[],3,0)","v":"Amérique"},{"$f":"TEXT(ventes[[#This Row],[DATES]],\"mmm\")","v":"juil"},{"$f":"WEEKNUM(ventes[[#This Row],[DATES]])","v":29}]
["2021-07-13","client29","Produit22",141.57,5,{"$f":"ventes[[#This Row],[PRIX UNITAIRE (FCFA)]]*ventes[[#This Row],[QUANTITE]]","v":707.84999999999991},{"$f":"VLOOKUP(ventes[[#This Row],[CLIENTS]],localisations[],2,0)","v":"Chili"},{"$f":"VLOOKUP(ventes[[#This Row],[CLIENTS]],localisations[],3,0)","v":"Amérique"},{"$f":"TEXT(ventes[[#This Row],[DATES]],\"mmm\")","v":"juil"},{"$f":"WEEKNUM(ventes[[#This Row],[DATES]])","v":29}]
["2021-07-14","client02","Produit33",119.7,9,{"$f":"ventes[[#This Row],[PRIX UNITAIRE (FCFA)]]*ventes[[#This Row],[QUANTITE]]","v":1077.3},{"$f":"VLOOKUP(ventes[[#This Row],[CLIENTS]],localisations[],2,0)","v":"Ghana"},{"$f":"VLOOKUP(ventes[[#This Row],[CLIENTS]],localisations[],3,0)","v":"Afrique"},{"$f":"TEXT(ventes[[#This Row],[DATES]],\"mmm\")","v":"juil"},{"$f":"WEEKNUM(ventes[[#This Row],[DATES]])","v":29}]
["2021-07-14","client21","Produit12",94.17,13,{"$f":"ventes[[#This Row],[PRIX UNITAIRE (FCFA)]]*ventes[[#This Row],[QUANTITE]]","v":1224.21},{"$f":"VLOOKUP(ventes[[#This Row],[CLIENTS]],localisations[],2,0)","v":"Venezuela"},{"$f":"VLOOKUP(ventes[[#This Row],[CLIENTS]],localisations[],3,0)","v":"Amérique"},{"$f":"TEXT(ventes[[#This Row],[DATES]],\"mmm\")","v":"juil"},{"$f":"WEEKNUM(ventes[[#This Row],[DATES]])","v":29}]
["2021-07-15","client16","Produit43",83.08,18,{"$f":"ventes[[#This Row],[PRIX UNITAIRE (FCFA)]]*ventes[[#This Row],[QUANTITE]]","v":1495.44},{"$f":"VLOOKUP(ventes[[#This Row],[CLIENTS]],localisations[],2,0)","v":"Royaume-Uni"},{"$f":"VLOOKUP(ventes[[#This Row],[CLIENTS]],localisations[],3,0)","v":"Europe"},{"$f":"TEXT(ventes[[#This Row],[DATES]],\"mmm\")","v":"juil"},{"$f":"WEEKNUM(ventes[[#This Row],[DATES]])","v":29}]
["2021-07-15","client30","Produit04",48.84,2,{"$f":"ventes[[#This Row],[PRIX UNITAIRE (FCFA)]]*ventes[[#This Row],[QUANTITE]]","v":97.68},{"$f":"VLOOKUP(ventes[[#This Row],[CLIENTS]],localisations[],2,0)","v":"Colombie"},{"$f":"VLOOKUP(ventes[[#This Row],[CLIENTS]],localisations[],3,0)","v":"Amérique"},{"$f":"TEXT(ventes[[#This Row],[DATES]],\"mmm\")","v":"juil"},{"$f":"WEEKNUM(ventes[[#This Row],[DATES]])","v":29}]
["2021-07-16","client06","Produit32",117.48,33,{"$f":"ventes[[#This Row],[PRIX UNITAIRE (FCFA)]]*ventes[[#This Row],[QUANTITE]]","v":3876.84},{"$f":"VLOOKUP(ventes[[#This Row],[CLIENTS]],localisations[],2,0)","v":"Afrique du Sud"},{"$f":"VLOOKUP(ventes[[#This Row],[CLIENTS]],localisations[],3,0)","v":"Afrique"},{"$f":"TEXT(ventes[[#This Row],[DATES]],\"mmm\")","v":"juil"},{"$f":"WEEKNUM(ventes[[#This Row],[DATES]])","v":29}]
["2021-07-16","client10","Produit23",149.46,8,{"$f":"ventes[[#This Row],[PRIX UNITAIRE (FCFA)]]*ventes[[#This Row],[QUANTITE]]","v":1195.68},{"$f":"VLOOKUP(ventes[[#This Row],[CLIENTS]],localisations[],2,0)","v":"Nigeria"},{"$f":"VLOOKUP(ventes[[#This Row],[CLIENTS]],localisations[],3,0)","v":"Afrique"},{"$f":"TEXT(ventes[[#This Row],[DATES]],\"mmm\")","v":"juil"},{"$f":"WEEKNUM(ventes[[#This Row],[DATES]])","v":29}]
["2021-07-16","client11","Produit31",104.16,35,{"$f":"ventes[[#This Row],[PRIX UNITAIRE (FCFA)]]*ventes[[#This Row],[QUANTITE]]","v":3645.6},{"$f":"VLOOKUP(ventes[[#This Row],[CLIENTS]],localisations[],2,0)","v":"Espagne"},{"$f":"VLOOKUP(ventes[[#This Row],[CLIENTS]],localisations[],3,0)","v":"Europe"},{"$f":"TEXT(ventes[[#This Row],[DATES]],\"mmm\")","v":"juil"},{"$f":"WEEKNUM(ventes[[#This Row],[DATES]])","v":29}]
["2021-07-17","client08","Produit01",103.88,38,{"$f":"ventes[[#This Row],[PRIX UNITAIRE (FCFA)]]*ventes[[#This Row],[QUANTITE]]","v":3947.4399999999996},{"$f":"VLOOKUP(ventes[[#This Row],[CLIENTS]],localisations[],2,0)","v":"Maroc"},{"$f":"VLOOKUP(ventes[[#This Row],[CLIENTS]],localisations[],3,0)","v":"Afrique"},{"$f":"TEXT(ventes[[#This Row],[DATES]],\"mmm\")","v":"juil"},{"$f":"WEEKNUM(ventes[[#This Row],[DATES]])","v":29}]
["2021-07-17","client16","Produit22",141.57,18,{"$f":"ventes[[#This Row],[PRIX UNITAIRE (FCFA)]]*ventes[[#This Row],[QUANTITE]]","v":2548.2599999999998},{"$f":"VLOOKUP(ventes[[#This Row],[CLIENTS]],localisations[],2,0)","v":"Royaume-Uni"},{"$f":"VLOOKUP(ventes[[#This Row],[CLIENTS]],localisations[],3,0)","v":"Europe"},{"$f":"TEXT(ventes[[#This Row],[DATES]],\"mmm\")","v":"juil"},{"$f":"WEEKNUM(ventes[[#This Row],[DATES]])","v":29}]
["2021-07-17","client23","Produit23",149.46,30,{"$f":"ventes[[#This Row],[PRIX UNITAIRE (FCFA)]]*ventes[[#This Row],[QUANTITE]]","v":4483.8},{"$f":"VLOOKUP(ventes[[#This Row],[CLIENTS]],localisations[],2,0)","v":"Argentine"},{"$f":"VLOOKUP(ventes[[#This Row],[CLIENTS]],localisations[],3,0)","v":"Amérique"},{"$f":"TEXT(ventes[[#This Row],[DATES]],\"mmm\")","v":"juil"},{"$f":"WEEKNUM(ventes[[#This Row],[DATES]])","v":29}]
["2021-07-17","client24","Produit41",173.88,8,{"$f":"ventes[[#This Row],[PRIX UNITAIRE (FCFA)]]*ventes[[#This Row],[QUANTITE]]","v":1391.04},{"$f":"VLOOKUP(ventes[[#This Row],[CLIENTS]],localisations[],2,0)","v":"Équateur"},{"$f":"VLOOKUP(ventes[[#This Row],[CLIENTS]],localisations[],3,0)","v":"Amérique"},{"$f":"TEXT(ventes[[#This Row],[DATES]],\"mmm\")","v":"juil"},{"$f":"WEEKNUM(ventes[[#This Row],[DATES]])","v":29}]
["2021-07-18","client20","Produit27",57.120000000000005,14,{"$f":"ventes[[#This Row],[PRIX UNITAIRE (FCFA)]]*ventes[[#This Row],[QUANTITE]]","v":799.68000000000006},{"$f":"VLOOKUP(ventes[[#This Row],[CLIENTS]],localisations[],2,0)","v":"France"},{"$f":"VLOOKUP(ventes[[#This Row],[CLIENTS]],localisations[],3,0)","v":"Europe"},{"$f":"TEXT(ventes[[#This Row],[DATES]],\"mmm\")","v":"juil"},{"$f":"WEEKNUM(ventes[[#This Row],[DATES]])","v":30}]
["2021-07-18","client23","Produit10",164.28,12,{"$f":"ventes[[#This Row],[PRIX UNITAIRE (FCFA)]]*ventes[[#This Row],[QUANTITE]]","v":1971.3600000000001},{"$f":"VLOOKUP(ventes[[#This Row],[CLIENTS]],localisations[],2,0)","v":"Argentine"},{"$f":"VLOOKUP(ventes[[#This Row],[CLIENTS]],localisations[],3,0)","v":"Amérique"},{"$f":"TEXT(ventes[[#This Row],[DATES]],\"mmm\")","v":"juil"},{"$f":"WEEKNUM(ventes[[#This Row],[DATES]])","v":30}]
["2021-07-20","client35","Produit38",79.92,11,{"$f":"ventes[[#This Row],[PRIX UNITAIRE (FCFA)]]*ventes[[#This Row],[QUANTITE]]","v":879.12},{"$f":"VLOOKUP(ventes[[#This Row],[CLIENTS]],localisations[],2,0)","v":"Malaisie"},{"$f":"VLOOKUP(ventes[[#This Row],[CLIENTS]],localisations[],3,0)","v":"Asie"},{"$f":"TEXT(ventes[[#This Row],[DATES]],\"mmm\")","v":"juil"},{"$f":"WEEKNUM(ventes[[#This Row],[DATES]])","v":30}]
["2021-07-20","client19","Produit42",162,8,{"$f":"ventes[[#This Row],[PRIX UNITAIRE (FCFA)]]*ventes[[#This Row],[QUANTITE]]","v":1296},{"$f":"VLOOKUP(ventes[[#This Row],[CLIENTS]],localisations[],2,0)","v":"Suisse"},{"$f":"VLOOKUP(ventes[[#This Row],[CLIENTS]],localisations[],3,0)","v":"Europe"},{"$f":"TEXT(ventes[[#This Row],[DATES]],\"mmm\")","v":"juil"},{"$f":"WEEKNUM(ventes[[#This Row],[DATES]])","v":30}]
["2021-07-20","client29","Produit43",83.08,5,{"$f":"ventes[[#This Row],[PRIX UNITAIRE (FCFA)]]*ventes[[#This Row],[QUANTITE]]","v":415.4},{"$f":"VLOOKUP(ventes[[#This Row],[CLIENTS]],localisations[],2,0)","v":"Chili"},{"$f":"VLOOKUP(ventes[[#This Row],[CLIENTS]],localisations[],3,0)","v":"Amérique"},{"$f":"TEXT(ventes[[#This Row],[DATES]],\"mmm\")","v":"juil"},{"$f":"WEEKNUM(ventes[[#This Row],[DATES]])","v":30}]
["2021-07-21","client02","Produit29",53.11,15,{"$f":"ventes[[#This Row],[PRIX UNITAIRE (FCFA)]]*ventes[[#This Row],[QUANTITE]]","v":796.65},{"$f":"VLOOKUP(ventes[[#This Row],[CLIENTS]],localisations[],2,0)","v":"Ghana"},{"$f":"VLOOKUP(ventes[[#This Row],[CLIENTS]],localisations[],3,0)","v":"Afrique"},{"$f":"TEXT(ventes[[#This Row],[DATES]],\"mmm\")","v":"juil"},{"$f":"WEEKNUM(ventes[[#This Row],[DATES]])","v":30}]
["2021-07-22","client32","Produit28",41.81,5,{"$f":"ventes[[#This Row],[PRIX UNITAIRE (FCFA)]]*ventes[[#This Row],[QUANTITE]]","v":209.05},{"$f":"VLOOKUP(ventes[[#This Row],[CLIENTS]],localisations[],2,0)","v":"Indonésie"},{"$f":"VLOOKUP(ventes[[#This Row],[CLIENTS]],localisations[],3,0)","v":"Asie"},{"$f":"TEXT(ventes[[#This Row],[DATES]],\"mmm\")","v":"juil"},{"$f":"WEEKNUM(ventes[[#This Row],[DATES]])","v":30}]
["2021-07-22","client07","Produit24",156.96,14,{"$f":"ventes[[#This Row],[PRIX UNITAIRE (FCFA)]]*ventes[[#This Row],[QUANTITE]]","v":2197.44},{"$f":"VLOOKUP(ventes[[#This Row],[CLIENTS]],localisations[],2,0)","v":"Éthiopie"},{"$f":"VLOOKUP(ventes[[#This Row],[CLIENTS]],localisations[],3,0)","v":"Afrique"},{"$f":"TEXT(ventes[[#This Row],[DATES]],\"mmm\")","v":"juil"},{"$f":"WEEKNUM(ventes[[#This Row],[DATES]])","v":30}]
["2021-07-22","client10","Produit32",117.48,27,{"$f":"ventes[[#This Row],[PRIX UNITAIRE (FCFA)]]*ventes[[#This Row],[QUANTITE]]","v":3171.96},{"$f":"VLOOKUP(ventes[[#This Row],[CLIENTS]],localisations[],2,0)","v":"Nigeria"},{"$f":"VLOOKUP(ventes[[#This Row],[CLIENTS]],localisations[],3,0)","v":"Afrique"},{"$f":"TEXT(ventes[[#This Row],[DATES]],\"mmm\")","v":"juil"},{"$f":"WEEKNUM(ventes[[#This Row],[DATES]])","v":30}]
["2021-07-22","client15","Produit26",24.66,3,{"$f":"ventes[[#This Row],[PRIX UNITAIRE (FCFA)]]*ventes[[#This Row],[QUANTITE]]","v":73.98},{"$f":"VLOOKUP(ventes[[#This Row],[CLIENTS]],localisations[],2,0)","v":"Allemagne"},{"$f":"VLOOKUP(ventes[[#This Row],[CLIENTS]],localisations[],3,0)","v":"Europe"},{"$f":"TEXT(ventes[[#This Row],[DATES]],\"mmm\")","v":"juil"},{"$f":"WEEKNUM(ventes[[#This Row],[DATES]])","v":30}]
["2021-07-22","client18","Produit34",58.3,6,{"$f":"ventes[[#This Row],[PRIX UNITAIRE (FCFA)]]*ventes[[#This Row],[QUANTITE]]","v":349.79999999999995},{"$f":"VLOOKUP(ventes[[#This Row],[CLIENTS]],localisations[],2,0)","v":"Belgique"},{"$f":"VLOOKUP(ventes[[#This Row],[CLIENTS]],localisations[],3,0)","v":"Europe"},{"$f":"TEXT(ventes[[#This Row],[DATES]],\"mmm\")","v":"juil"},{"$f":"WEEKNUM(ventes[[#This Row],[DATES]])","v":30}]
["2021-07-23","client08","Produit18",49.21,2,{"$f":"ventes[[#This Row],[PRIX UNITAIRE (FCFA)]]*ventes[[#This Row],[QUANTITE]]","v":98.42},{"$f":"VLOOKUP(ventes[[#This Row],[CLIENTS]],localisations[],2,0)","v":"Maroc"},{"$f":"VLOOKUP(ventes[[#This Row],[CLIENTS]],localisations[],3,0)","v":"Afrique"},{"$f":"TEXT(ventes[[#This Row],[DATES]],\"mmm\")","v":"juil"},{"$f":"WEEKNUM(ventes[[#This Row],[DATES]])","v":30}]
["2021-07-23","client12","Produit43",83.08,9,{"$f":"ventes[[#This Row],[PRIX UNITAIRE (FCFA)]]*ventes[[#This Row],[QUANTITE]]","v":747.72},{"$f":"VLOOKUP(ventes[[#This Row],[CLIENTS]],localisations[],2,0)","v":"Pologne"},{"$f":"VLOOKUP(ventes[[#This Row],[CLIENTS]],localisations[],3,0)","v":"Europe"},{"$f":"TEXT(ventes[[#This Row],[DATES]],\"mmm\")","v":"juil"},{"$f":"WEEKNUM(ventes[[#This Row],[DATES]])","v":30}]
["2021-07-23","client13","Produit37",85.76,8,{"$f":"ventes[[#This Row],[PRIX UNITAIRE (FCFA)]]*ventes[[#This Row],[QUANTITE]]","v":686.08},{"$f":"VLOOKUP(ventes[[#This Row],[CLIENTS]],localisations[],2,0)","v":"Italie"},{"$f":"VLOOKUP(ventes[[#This Row],[CLIENTS]],localisations[],3,0)","v":"Europe"},{"$f":"TEXT(ventes[[#This Row],[DATES]],\"mmm\")","v":"juil"},{"$f":"WEEKNUM(ventes[[#This Row],[DATES]])","v":30}]
["2021-07-23","client24","Produit36",96.3,7,{"$f":"ventes[[#This Row],[PRIX UNITAIRE (FCFA)]]*ventes[[#This Row],[QUANTITE]]","v":674.1},{"$f":"VLOOKUP(ventes[[#This Row],[CLIENTS]],localisations[],2,0)","v":"Équateur"},{"$f":"VLOOKUP(ventes[[#This Row],[CLIENTS]],localisations[],3,0)","v":"Amérique"},{"$f":"TEXT(ventes[[#This Row],[DATES]],\"mmm\")","v":"juil"},{"$f":"WEEKNUM(ventes[[#This Row],[DATES]])","v":30}]
["2021-07-24","client09","Produit06",85.5,14,{"$f":"ventes[[#This Row],[PRIX UNITAIRE (FCFA)]]*ventes[[#This Row],[QUANTITE]]","v":1197},{"$f":"VLOOKUP(ventes[[#This Row],[CLIENTS]],localisations[],2,0)","v":"Égypte"},{"$f":"VLOOKUP(ventes[[#This Row],[CLIENTS]],localisations[],3,0)","v":"Afrique"},{"$f":"TEXT(ventes[[#This Row],[DATES]],\"mmm\")","v":"juil"},{"$f":"WEEKNUM(ventes[[#This Row],[DATES]])","v":30}]
["2021-07-24","client14","Produit09",7.8599999999999994,4,{"$f":"ventes[[#This Row],[PRIX UNITAIRE (FCFA)]]*ventes[[#This Row],[QUANTITE]]","v":31.439999999999998},{"$f":"VLOOKUP(ventes[[#This Row],[CLIENTS]],localisations[],2,0)","v":"Pays-Bas"},{"$f":"VLOOKUP(ventes[[#This Row],[CLIENTS]],localisations[],3,0)","v":"Europe"},{"$f":"TEXT(ventes[[#This Row],[DATES]],\"mmm\")","v":"juil"},{"$f":"WEEKNUM(ventes[[#This Row],[DATES]])","v":30}]
["2021-07-24","client25","Produit27",57.120000000000005,1,{"$f":"ventes[[#This Row],[PRIX UNITAIRE (FCFA)]]*ventes[[#This Row],[QUANTITE]]","v":57.120000000000005},{"$f":"VLOOKUP(ventes[[#This Row],[CLIENTS]],localisations[],2,0)","v":"Brésil"},{"$f":"VLOOKUP(ventes[[#This Row],[CLIENTS]],localisations[],3,0)","v":"Amérique"},{"$f":"TEXT(ventes[[#This Row],[DATES]],\"mmm\")","v":"juil"},{"$f":"WEEKNUM(ventes[[#This Row],[DATES]])","v":30}]
["2021-07-25","client13","Produit03",80.94,13,{"$f":"ventes[[#This Row],[PRIX UNITAIRE (FCFA)]]*ventes[[#This Row],[QUANTITE]]","v":1052.22},{"$f":"VLOOKUP(ventes[[#This Row],[CLIENTS]],localisations[],2,0)","v":"Italie"},{"$f":"VLOOKUP(ventes[[#This Row],[CLIENTS]],localisations[],3,0)","v":"Europe"},{"$f":"TEXT(ventes[[#This Row],[DATES]],\"mmm\")","v":"juil"},{"$f":"WEEKNUM(ventes[[#This Row],[DATES]])","v":31}]
["2021-07-25","client23","Produit44",82.08,2,{"$f":"ventes[[#This Row],[PRIX UNITAIRE (FCFA)]]*ventes[[#This Row],[QUANTITE]]","v":164.16},{"$f":"VLOOKUP(ventes[[#This Row],[CLIENTS]],localisations[],2,0)","v":"Argentine"},{"$f":"VLOOKUP(ventes[[#This Row],[CLIENTS]],localisations[],3,0)","v":"Amérique"},{"$f":"TEXT(ventes[[#This Row],[DATES]],\"mmm\")","v":"juil"},{"$f":"WEEKNUM(ventes[[#This Row],[DATES]])","v":31}]
["2021-07-25","client28","Produit17",156.78,12,{"$f":"ventes[[#This Row],[PRIX UNITAIRE (FCFA)]]*ventes[[#This Row],[QUANTITE]]","v":1881.3600000000001},{"$f":"VLOOKUP(ventes[[#This Row],[CLIENTS]],localisations[],2,0)","v":"États-Unis"},{"$f":"VLOOKUP(ventes[[#This Row],[CLIENTS]],localisations[],3,0)","v":"Amérique"},{"$f":"TEXT(ventes[[#This Row],[DATES]],\"mmm\")","v":"juil"},{"$f":"WEEKNUM(ventes[[#This Row],[DATES]])","v":31}]
["2021-07-26","client25","Produit26",24.66,1,{"$f":"ventes[[#This Row],[PRIX UNITAIRE (FCFA)]]*ventes[[#This Row],[QUANTITE]]","v":24.66},{"$f":"VLOOKUP(ventes[[#This Row],[CLIENTS]],localisations[],2,0)","v":"Brésil"},{"$f":"VLOOKUP(ventes[[#This Row],[CLIENTS]],localisations[],3,0)","v":"Amérique"},{"$f":"TEXT(ventes[[#This Row],[DATES]],\"mmm\")","v":"juil"},{"$f":"WEEKNUM(ventes[[#This Row],[DATES]])","v":31}]
["2021-07-26","client39","Produit03",80.94,10,{"$f":"ventes[[#This Row],[PRIX UNITAIRE (FCFA)]]*ventes[[#This Row],[QUANTITE]]","v":809.4},{"$f":"VLOOKUP(ventes[[#This Row],[CLIENTS]],localisations[],2,0)","v":"Pakistan"},{"$f":"VLOOKUP(ventes[[#This Row],[CLIENTS]],localisations[],3,0)","v":"Asie"},{"$f":"TEXT(ventes[[#This Row],[DATES]],\"mmm\")","v":"juil"},{"$f":"WEEKNUM(ventes[[#This Row],[DATES]])","v":31}]
["2021-07-27","client11","Produit34",58.3,25,{"$f":"ventes[[#This Row],[PRIX UNITAIRE (FCFA)]]*ventes[[#This Row],[QUANTITE]]","v":1457.5},{"$f":"VLOOKUP(ventes[[#This Row],[CLIENTS]],localisations[],2,0)","v":"Espagne"},{"$f":"VLOOKUP(ventes[[#This Row],[CLIENTS]],localisations[],3,0)","v":"Europe"},{"$f":"TEXT(ventes[[#This Row],[DATES]],\"mmm\")","v":"juil"},{"$f":"WEEKNUM(ventes[[#This Row],[DATES]])","v":31}]
["2021-07-27","client22","Produit36",96.3,38,{"$f":"ventes[[#This Row],[PRIX UNITAIRE (FCFA)]]*ventes[[#This Row],[QUANTITE]]","v":3659.4},{"$f":"VLOOKUP(ventes[[#This Row],[CLIENTS]],localisations[],2,0)","v":"Canada"},{"$f":"VLOOKUP(ventes[[#This Row],[CLIENTS]],localisations[],3,0)","v":"Amérique"},{"$f":"TEXT(ventes[[#This Row],[DATES]],\"mmm\")","v":"juil"},{"$f":"WEEKNUM(ventes[[#This Row],[DATES]])","v":31}]
["2021-07-29","client01","Produit30",201.28,37,{"$f":"ventes[[#This Row],[PRIX UNITAIRE (FCFA)]]*ventes[[#This Row],[QUANTITE]]","v":7447.36},{"$f":"VLOOKUP(ventes[[#This Row],[CLIENTS]],localisations[],2,0)","v":"Tunisie"},{"$f":"VLOOKUP(ventes[[#This Row],[CLIENTS]],localisations[],3,0)","v":"Afrique"},{"$f":"TEXT(ventes[[#This Row],[DATES]],\"mmm\")","v":"juil"},{"$f":"WEEKNUM(ventes[[#This Row],[DATES]])","v":31}]
["2021-07-29","client14","Produit44",82.08,15,{"$f":"ventes[[#This Row],[PRIX UNITAIRE (FCFA)]]*ventes[[#This Row],[QUANTITE]]","v":1231.2},{"$f":"VLOOKUP(ventes[[#This Row],[CLIENTS]],localisations[],2,0)","v":"Pays-Bas"},{"$f":"VLOOKUP(ventes[[#This Row],[CLIENTS]],localisations[],3,0)","v":"Europe"},{"$f":"TEXT(ventes[[#This Row],[DATES]],\"mmm\")","v":"juil"},{"$f":"WEEKNUM(ventes[[#This Row],[DATES]])","v":31}]
["2021-07-30","client12","Produit06",85.5,25,{"$f":"ventes[[#This Row],[PRIX UNITAIRE (FCFA)]]*ventes[[#This Row],[QUANTITE]]","v":2137.5},{"$f":"VLOOKUP(ventes[[#This Row],[CLIENTS]],localisations[],2,0)","v":"Pologne"},{"$f":"VLOOKUP(ventes[[#This Row],[CLIENTS]],localisations[],3,0)","v":"Europe"},{"$f":"TEXT(ventes[[#This Row],[DATES]],\"mmm\")","v":"juil"},{"$f":"WEEKNUM(ventes[[#This Row],[DATES]])","v":31}]
["2021-07-30","client28","Produit36",96.3,12,{"$f":"ventes[[#This Row],[PRIX UNITAIRE (FCFA)]]*ventes[[#This Row],[QUANTITE]]","v":1155.5999999999999},{"$f":"VLOOKUP(ventes[[#This Row],[CLIENTS]],localisations[],2,0)","v":"États-Unis"},{"$f":"VLOOKUP(ventes[[#This Row],[CLIENTS]],localisations[],3,0)","v":"Amérique"},{"$f":"TEXT(ventes[[#This Row],[DATES]],\"mmm\")","v":"juil"},{"$f":"WEEKNUM(ventes[[#This Row],[DATES]])","v":31}]
["2021-07-31","client10","Produit12",94.17,12,{"$f":"ventes[[#This Row],[PRIX UNITAIRE (FCFA)]]*ventes[[#This Row],[QUANTITE]]","v":1130.04},{"$f":"VLOOKUP(ventes[[#This Row],[CLIENTS]],localisations[],2,0)","v":"Nigeria"},{"$f":"VLOOKUP(ventes[[#This Row],[CLIENTS]],localisations[],3,0)","v":"Afrique"},{"$f":"TEXT(ventes[[#This Row],[DATES]],\"mmm\")","v":"juil"},{"$f":"WEEKNUM(ventes[[#This Row],[DATES]])","v":31}]
["2021-07-31","client24","Produit42",162,31,{"$f":"ventes[[#This Row],[PRIX UNITAIRE (FCFA)]]*ventes[[#This Row],[QUANTITE]]","v":5022},{"$f":"VLOOKUP(ventes[[#This Row],[CLIENTS]],localisations[],2,0)","v":"Équateur"},{"$f":"VLOOKUP(ventes[[#This Row],[CLIENTS]],localisations[],3,0)","v":"Amérique"},{"$f":"TEXT(ventes[[#This Row],[DATES]],\"mmm\")","v":"juil"},{"$f":"WEEKNUM(ventes[[#This Row],[DATES]])","v":31}]
["2021-08-01","client29","Produit01",103.88,11,{"$f":"ventes[[#This Row],[PRIX UNITAIRE (FCFA)]]*ventes[[#This Row],[QUANTITE]]","v":1142.6799999999998},{"$f":"VLOOKUP(ventes[[#This Row],[CLIENTS]],localisations[],2,0)","v":"Chili"},{"$f":"VLOOKUP(ventes[[#This Row],[CLIENTS]],localisations[],3,0)","v":"Amérique"},{"$f":"TEXT(ventes[[#This Row],[DATES]],\"mmm\")","v":"août"},{"$f":"WEEKNUM(ventes[[#This Row],[DATES]])","v":32}]
["2021-08-02","client16","Produit23",149.46,3,{"$f":"ventes[[#This Row],[PRIX UNITAIRE (FCFA)]]*ventes[[#This Row],[QUANTITE]]","v":448.38},{"$f":"VLOOKUP(ventes[[#This Row],[CLIENTS]],localisations[],2,0)","v":"Royaume-Uni"},{"$f":"VLOOKUP(ventes[[#This Row],[CLIENTS]],localisations[],3,0)","v":"Europe"},{"$f":"TEXT(ventes[[#This Row],[DATES]],\"mmm\")","v":"août"},{"$f":"WEEKNUM(ventes[[#This Row],[DATES]])","v":32}]
["2021-08-03","client08","Produit34",58.3,12,{"$f":"ventes[[#This Row],[PRIX UNITAIRE (FCFA)]]*ventes[[#This Row],[QUANTITE]]","v":699.59999999999991},{"$f":"VLOOKUP(ventes[[#This Row],[CLIENTS]],localisations[],2,0)","v":"Maroc"},{"$f":"VLOOKUP(ventes[[#This Row],[CLIENTS]],localisations[],3,0)","v":"Afrique"},{"$f":"TEXT(ventes[[#This Row],[DATES]],\"mmm\")","v":"août"},{"$f":"WEEKNUM(ventes[[#This Row],[DATES]])","v":32}]
["2021-08-03","client21","Produit22",141.57,13,{"$f":"ventes[[#This Row],[PRIX UNITAIRE (FCFA)]]*ventes[[#This Row],[QUANTITE]]","v":1840.4099999999999},{"$f":"VLOOKUP(ventes[[#This Row],[CLIENTS]],localisations[],2,0)","v":"Venezuela"},{"$f":"VLOOKUP(ventes[[#This Row],[CLIENTS]],localisations[],3,0)","v":"Amérique"},{"$f":"TEXT(ventes[[#This Row],[DATES]],\"mmm\")","v":"août"},{"$f":"WEEKNUM(ventes[[#This Row],[DATES]])","v":32}]
["2021-08-03","client21","Produit12",94.17,5,{"$f":"ventes[[#This Row],[PRIX UNITAIRE (FCFA)]]*ventes[[#This Row],[QUANTITE]]","v":470.85},{"$f":"VLOOKUP(ventes[[#This Row],[CLIENTS]],localisations[],2,0)","v":"Venezuela"},{"$f":"VLOOKUP(ventes[[#This Row],[CLIENTS]],localisations[],3,0)","v":"Amérique"},{"$f":"TEXT(ventes[[#This Row],[DATES]],\"mmm\")","v":"août"},{"$f":"WEEKNUM(ventes[[#This Row],[DATES]])","v":32}]
["2021-08-03","client39","Produit14",146.72,8,{"$f":"ventes[[#This Row],[PRIX UNITAIRE (FCFA)]]*ventes[[#This Row],[QUANTITE]]","v":1173.76},{"$f":"VLOOKUP(ventes[[#This Row],[CLIENTS]],localisations[],2,0)","v":"Pakistan"},{"$f":"VLOOKUP(ventes[[#This Row],[CLIENTS]],localisations[],3,0)","v":"Asie"},{"$f":"TEXT(ventes[[#This Row],[DATES]],\"mmm\")","v":"août"},{"$f":"WEEKNUM(ventes[[#This Row],[DATES]])","v":32}]
["2021-08-04","client02","Produit26",24.66,16,{"$f":"ventes[[#This Row],[PRIX UNITAIRE (FCFA)]]*ventes[[#This Row],[QUANTITE]]","v":394.56},{"$f":"VLOOKUP(ventes[[#This Row],[CLIENTS]],localisations[],2,0)","v":"Ghana"},{"$f":"VLOOKUP(ventes[[#This Row],[CLIENTS]],localisations[],3,0)","v":"Afrique"},{"$f":"TEXT(ventes[[#This Row],[DATES]],\"mmm\")","v":"août"},{"$f":"WEEKNUM(ventes[[#This Row],[DATES]])","v":32}]
["2021-08-05","client11","Produit28",41.81,14,{"$f":"ventes[[#This Row],[PRIX UNITAIRE (FCFA)]]*ventes[[#This Row],[QUANTITE]]","v":585.34},{"$f":"VLOOKUP(ventes[[#This Row],[CLIENTS]],localisations[],2,0)","v":"Espagne"},{"$f":"VLOOKUP(ventes[[#This Row],[CLIENTS]],localisations[],3,0)","v":"Europe"},{"$f":"TEXT(ventes[[#This Row],[DATES]],\"mmm\")","v":"août"},{"$f":"WEEKNUM(ventes[[#This Row],[DATES]])","v":32}]
["2021-08-06","client05","Produit37",85.76,1,{"$f":"ventes[[#This Row],[PRIX UNITAIRE (FCFA)]]*ventes[[#This Row],[QUANTITE]]","v":85.76},{"$f":"VLOOKUP(ventes[[#This Row],[CLIENTS]],localisations[],2,0)","v":"Algérie"},{"$f":"VLOOKUP(ventes[[#This Row],[CLIENTS]],localisations[],3,0)","v":"Afrique"},{"$f":"TEXT(ventes[[#This Row],[DATES]],\"mmm\")","v":"août"},{"$f":"WEEKNUM(ventes[[#This Row],[DATES]])","v":32}]
["2021-08-06","client21","Produit16",16.64,9,{"$f":"ventes[[#This Row],[PRIX UNITAIRE (FCFA)]]*ventes[[#This Row],[QUANTITE]]","v":149.76},{"$f":"VLOOKUP(ventes[[#This Row],[CLIENTS]],localisations[],2,0)","v":"Venezuela"},{"$f":"VLOOKUP(ventes[[#This Row],[CLIENTS]],localisations[],3,0)","v":"Amérique"},{"$f":"TEXT(ventes[[#This Row],[DATES]],\"mmm\")","v":"août"},{"$f":"WEEKNUM(ventes[[#This Row],[DATES]])","v":32}]
["2021-08-08","client04","Produit21",162.54,11,{"$f":"ventes[[#This Row],[PRIX UNITAIRE (FCFA)]]*ventes[[#This Row],[QUANTITE]]","v":1787.9399999999998},{"$f":"VLOOKUP(ventes[[#This Row],[CLIENTS]],localisations[],2,0)","v":"Sénégal"},{"$f":"VLOOKUP(ventes[[#This Row],[CLIENTS]],localisations[],3,0)","v":"Afrique"},{"$f":"TEXT(ventes[[#This Row],[DATES]],\"mmm\")","v":"août"},{"$f":"WEEKNUM(ventes[[#This Row],[DATES]])","v":33}]
["2021-08-08","client12","Produit32",117.48,12,{"$f":"ventes[[#This Row],[PRIX UNITAIRE (FCFA)]]*ventes[[#This Row],[QUANTITE]]","v":1409.76},{"$f":"VLOOKUP(ventes[[#This Row],[CLIENTS]],localisations[],2,0)","v":"Pologne"},{"$f":"VLOOKUP(ventes[[#This Row],[CLIENTS]],localisations[],3,0)","v":"Europe"},{"$f":"TEXT(ventes[[#This Row],[DATES]],\"mmm\")","v":"août"},{"$f":"WEEKNUM(ventes[[#This Row],[DATES]])","v":33}]
["2021-08-08","client15","Produit15",15.719999999999999,38,{"$f":"ventes[[#This Row],[PRIX UNITAIRE (FCFA)]]*ventes[[#This Row],[QUANTITE]]","v":597.3599999999999},{"$f":"VLOOKUP(ventes[[#This Row],[CLIENTS]],localisations[],2,0)","v":"Allemagne"},{"$f":"VLOOKUP(ventes[[#This Row],[CLIENTS]],localisations[],3,0)","v":"Europe"},{"$f":"TEXT(ventes[[#This Row],[DATES]],\"mmm\")","v":"août"},{"$f":"WEEKNUM(ventes[[#This Row],[DATES]])","v":33}]
["2021-08-08","client19","Produit16",16.64,2,{"$f":"ventes[[#This Row],[PRIX UNITAIRE (FCFA)]]*ventes[[#This Row],[QUANTITE]]","v":33.28},{"$f":"VLOOKUP(ventes[[#This Row],[CLIENTS]],localisations[],2,0)","v":"Suisse"},{"$f":"VLOOKUP(ventes[[#This Row],[CLIENTS]],localisations[],3,0)","v":"Europe"},{"$f":"TEXT(ventes[[#This Row],[DATES]],\"mmm\")","v":"août"},{"$f":"WEEKNUM(ventes[[#This Row],[DATES]])","v":33}]
["2021-08-10","client32","Produit38",79.92,38,{"$f":"ventes[[#This Row],[PRIX UNITAIRE (FCFA)]]*ventes[[#This Row],[QUANTITE]]","v":3036.96},{"$f":"VLOOKUP(ventes[[#This Row],[CLIENTS]],localisations[],2,0)","v":"Indonésie"},{"$f":"VLOOKUP(ventes[[#This Row],[CLIENTS]],localisations[],3,0)","v":"Asie"},{"$f":"TEXT(ventes[[#This Row],[DATES]],\"mmm\")","v":"août"},{"$f":"WEEKNUM(ventes[[#This Row],[DATES]])","v":33}]
["2021-08-10","client25","Produit05",155.61000000000001,4,{"$f":"ventes[[#This Row],[PRIX UNITAIRE (FCFA)]]*ventes[[#This Row],[QUANTITE]]","v":622.44000000000005},{"$f":"VLOOKUP(ventes[[#This Row],[CLIENTS]],localisations[],2,0)","v":"Brésil"},{"$f":"VLOOKUP(ventes[[#This Row],[CLIENTS]],localisations[],3,0)","v":"Amérique"},{"$f":"TEXT(ventes[[#This Row],[DATES]],\"mmm\")","v":"août"},{"$f":"WEEKNUM(ventes[[#This Row],[DATES]])","v":33}]
["2021-08-10","client29","Produit44",82.08,10,{"$f":"ventes[[#This Row],[PRIX UNITAIRE (FCFA)]]*ventes[[#This Row],[QUANTITE]]","v":820.8},{"$f":"VLOOKUP(ventes[[#This Row],[CLIENTS]],localisations[],2,0)","v":"Chili"},{"$f":"VLOOKUP(ventes[[#This Row],[CLIENTS]],localisations[],3,0)","v":"Amérique"},{"$f":"TEXT(ventes[[#This Row],[DATES]],\"mmm\")","v":"août"},{"$f":"WEEKNUM(ventes[[#This Row],[DATES]])","v":33}]
["2021-08-10","client30","Produit06",85.5,6,{"$f":"ventes[[#This Row],[PRIX UNITAIRE (FCFA)]]*ventes[[#This Row],[QUANTITE]]","v":513},{"$f":"VLOOKUP(ventes[[#This Row],[CLIENTS]],localisations[],2,0)","v":"Colombie"},{"$f":"VLOOKUP(ventes[[#This Row],[CLIENTS]],localisations[],3,0)","v":"Amérique"},{"$f":"TEXT(ventes[[#This Row],[DATES]],\"mmm\")","v":"août"},{"$f":"WEEKNUM(ventes[[#This Row],[DATES]])","v":33}]
["2021-08-11","client14","Produit23",149.46,4,{"$f":"ventes[[#This Row],[PRIX UNITAIRE (FCFA)]]*ventes[[#This Row],[QUANTITE]]","v":597.84},{"$f":"VLOOKUP(ventes[[#This Row],[CLIENTS]],localisations[],2,0)","v":"Pays-Bas"},{"$f":"VLOOKUP(ventes[[#This Row],[CLIENTS]],localisations[],3,0)","v":"Europe"},{"$f":"TEXT(ventes[[#This Row],[DATES]],\"mmm\")","v":"août"},{"$f":"WEEKNUM(ventes[[#This Row],[DATES]])","v":33}]
["2021-08-11","client17","Produit30",201.28,20,{"$f":"ventes[[#This Row],[PRIX UNITAIRE (FCFA)]]*ventes[[#This Row],[QUANTITE]]","v":4025.6},{"$f":"VLOOKUP(ventes[[#This Row],[CLIENTS]],localisations[],2,0)","v":"Suède"},{"$f":"VLOOKUP(ventes[[#This Row],[CLIENTS]],localisations[],3,0)","v":"Europe"},{"$f":"TEXT(ventes[[#This Row],[DATES]],\"mmm\")","v":"août"},{"$f":"WEEKNUM(ventes[[#This Row],[DATES]])","v":33}]
["2021-08-13","client14","Produit11",48.4,13,{"$f":"ventes[[#This Row],[PRIX UNITAIRE (FCFA)]]*ventes[[#This Row],[QUANTITE]]","v":629.19999999999993},{"$f":"VLOOKUP(ventes[[#This Row],[CLIENTS]],localisations[],2,0)","v":"Pays-Bas"},{"$f":"VLOOKUP(ventes[[#This Row],[CLIENTS]],localisations[],3,0)","v":"Europe"},{"$f":"TEXT(ventes[[#This Row],[DATES]],\"mmm\")","v":"août"},{"$f":"WEEKNUM(ventes[[#This Row],[DATES]])","v":33}]
["2021-08-13","client26","Produit27",57.120000000000005,9,{"$f":"ventes[[#This Row],[PRIX UNITAIRE (FCFA)]]*ventes[[#This Row],[QUANTITE]]","v":514.08000000000004},{"$f":"VLOOKUP(ventes[[#This Row],[CLIENTS]],localisations[],2,0)","v":"Pérou"},{"$f":"VLOOKUP(ventes[[#This Row],[CLIENTS]],localisations[],3,0)","v":"Amérique"},{"$f":"TEXT(ventes[[#This Row],[DATES]],\"mmm\")","v":"août"},{"$f":"WEEKNUM(ventes[[#This Row],[DATES]])","v":33}]
["2021-08-14","client02","Produit30",201.28,14,{"$f":"ventes[[#This Row],[PRIX UNITAIRE (FCFA)]]*ventes[[#This Row],[QUANTITE]]","v":2817.92},{"$f":"VLOOKUP(ventes[[#This Row],[CLIENTS]],localisations[],2,0)","v":"Ghana"},{"$f":"VLOOKUP(ventes[[#This Row],[CLIENTS]],localisations[],3,0)","v":"Afrique"},{"$f":"TEXT(ventes[[#This Row],[DATES]],\"mmm\")","v":"août"},{"$f":"WEEKNUM(ventes[[#This Row],[DATES]])","v":33}]
["2021-08-15","client14","Produit15",15.719999999999999,7,{"$f":"ventes[[#This Row],[PRIX UNITAIRE (FCFA)]]*ventes[[#This Row],[QUANTITE]]","v":110.03999999999999},{"$f":"VLOOKUP(ventes[[#This Row],[CLIENTS]],localisations[],2,0)","v":"Pays-Bas"},{"$f":"VLOOKUP(ventes[[#This Row],[CLIENTS]],localisations[],3,0)","v":"Europe"},{"$f":"TEXT(ventes[[#This Row],[DATES]],\"mmm\")","v":"août"},{"$f":"WEEKNUM(ventes[[#This Row],[DATES]])","v":34}]
["2021-08-15","client37","Produit11",48.4,10,{"$f":"ventes[[#This Row],[PRIX UNITAIRE (FCFA)]]*ventes[[#This Row],[QUANTITE]]","v":484},{"$f":"VLOOKUP(ventes[[#This Row],[CLIENTS]],localisations[],2,0)","v":"Inde"},{"$f":"VLOOKUP(ventes[[#This Row],[CLIENTS]],localisations[],3,0)","v":"Asie"},{"$f":"TEXT(ventes[[#This Row],[DATES]],\"mmm\")","v":"août"},{"$f":"WEEKNUM(ventes[[#This Row],[DATES]])","v":34}]
["2021-08-16","client09","Produit09",7.8599999999999994,31,{"$f":"ventes[[#This Row],[PRIX UNITAIRE (FCFA)]]*ventes[[#This Row],[QUANTITE]]","v":243.65999999999997},{"$f":"VLOOKUP(ventes[[#This Row],[CLIENTS]],localisations[],2,0)","v":"Égypte"},{"$f":"VLOOKUP(ventes[[#This Row],[CLIENTS]],localisations[],3,0)","v":"Afrique"},{"$f":"TEXT(ventes[[#This Row],[DATES]],\"mmm\")","v":"août"},{"$f":"WEEKNUM(ventes[[#This Row],[DATES]])","v":34}]
["2021-08-16","client20","Produit03",80.94,3,{"$f":"ventes[[#This Row],[PRIX UNITAIRE (FCFA)]]*ventes[[#This Row],[QUANTITE]]","v":242.82},{"$f":"VLOOKUP(ventes[[#This Row],[CLIENTS]],localisations[],2,0)","v":"France"},{"$f":"VLOOKUP(ventes[[#This Row],[CLIENTS]],localisations[],3,0)","v":"Europe"},{"$f":"TEXT(ventes[[#This Row],[DATES]],\"mmm\")","v":"août"},{"$f":"WEEKNUM(ventes[[#This Row],[DATES]])","v":34}]
["2021-08-16","client26","Produit13",122.08,1,{"$f":"ventes[[#This Row],[PRIX UNITAIRE (FCFA)]]*ventes[[#This Row],[QUANTITE]]","v":122.08},{"$f":"VLOOKUP(ventes[[#This Row],[CLIENTS]],localisations[],2,0)","v":"Pérou"},{"$f":"VLOOKUP(ventes[[#This Row],[CLIENTS]],localisations[],3,0)","v":"Amérique"},{"$f":"TEXT(ventes[[#This Row],[DATES]],\"mmm\")","v":"août"},{"$f":"WEEKNUM(ventes[[#This Row],[DATES]])","v":34}]
["2021-08-18","client11","Produit25",8.33,6,{"$f":"ventes[[#This Row],[PRIX UNITAIRE (FCFA)]]*ventes[[#This Row],[QUANTITE]]","v":49.980000000000004},{"$f":"VLOOKUP(ventes[[#This Row],[CLIENTS]],localisations[],2,0)","v":"Espagne"},{"$f":"VLOOKUP(ventes[[#This Row],[CLIENTS]],localisations[],3,0)","v":"Europe"},{"$f":"TEXT(ventes[[#This Row],[DATES]],\"mmm\")","v":"août"},{"$f":"WEEKNUM(ventes[[#This Row],[DATES]])","v":34}]
["2021-08-18","client20","Produit29",53.11,8,{"$f":"ventes[[#This Row],[PRIX UNITAIRE (FCFA)]]*ventes[[#This Row],[QUANTITE]]","v":424.88},{"$f":"VLOOKUP(ventes[[#This Row],[CLIENTS]],localisations[],2,0)","v":"France"},{"$f":"VLOOKUP(ventes[[#This Row],[CLIENTS]],localisations[],3,0)","v":"Europe"},{"$f":"TEXT(ventes[[#This Row],[DATES]],\"mmm\")","v":"août"},{"$f":"WEEKNUM(ventes[[#This Row],[DATES]])","v":34}]
["2021-08-18","client23","Produit29",53.11,19,{"$f":"ventes[[#This Row],[PRIX UNITAIRE (FCFA)]]*ventes[[#This Row],[QUANTITE]]","v":1009.09},{"$f":"VLOOKUP(ventes[[#This Row],[CLIENTS]],localisations[],2,0)","v":"Argentine"},{"$f":"VLOOKUP(ventes[[#This Row],[CLIENTS]],localisations[],3,0)","v":"Amérique"},{"$f":"TEXT(ventes[[#This Row],[DATES]],\"mmm\")","v":"août"},{"$f":"WEEKNUM(ventes[[#This Row],[DATES]])","v":34}]
["2021-08-18","client37","Produit10",164.28,2,{"$f":"ventes[[#This Row],[PRIX UNITAIRE (FCFA)]]*ventes[[#This Row],[QUANTITE]]","v":328.56},{"$f":"VLOOKUP(ventes[[#This Row],[CLIENTS]],localisations[],2,0)","v":"Inde"},{"$f":"VLOOKUP(ventes[[#This Row],[CLIENTS]],localisations[],3,0)","v":"Asie"},{"$f":"TEXT(ventes[[#This Row],[DATES]],\"mmm\")","v":"août"},{"$f":"WEEKNUM(ventes[[#This Row],[DATES]])","v":34}]
["2021-08-19","client04","Produit07",47.730000000000004,3,{"$f":"ventes[[#This Row],[PRIX UNITAIRE (FCFA)]]*ventes[[#This Row],[QUANTITE]]","v":143.19},{"$f":"VLOOKUP(ventes[[#This Row],[CLIENTS]],localisations[],2,0)","v":"Sénégal"},{"$f":"VLOOKUP(ventes[[#This Row],[CLIENTS]],localisations[],3,0)","v":"Afrique"},{"$f":"TEXT(ventes[[#This Row],[DATES]],\"mmm\")","v":"août"},{"$f":"WEEKNUM(ventes[[#This Row],[DATES]])","v":34}]
["2021-08-20","client02","Produit33",119.7,14,{"$f":"ventes[[#This Row],[PRIX UNITAIRE (FCFA)]]*ventes[[#This Row],[QUANTITE]]","v":1675.8},{"$f":"VLOOKUP(ventes[[#This Row],[CLIENTS]],localisations[],2,0)","v":"Ghana"},{"$f":"VLOOKUP(ventes[[#This Row],[CLIENTS]],localisations[],3,0)","v":"Afrique"},{"$f":"TEXT(ventes[[#This Row],[DATES]],\"mmm\")","v":"août"},{"$f":"WEEKNUM(ventes[[#This Row],[DATES]])","v":34}]
["2021-08-20","client04","Produit20",76.25,15,{"$f":"ventes[[#This Row],[PRIX UNITAIRE (FCFA)]]*ventes[[#This Row],[QUANTITE]]","v":1143.75},{"$f":"VLOOKUP(ventes[[#This Row],[CLIENTS]],localisations[],2,0)","v":"Sénégal"},{"$f":"VLOOKUP(ventes[[#This Row],[CLIENTS]],localisations[],3,0)","v":"Afrique"},{"$f":"TEXT(ventes[[#This Row],[DATES]],\"mmm\")","v":"août"},{"$f":"WEEKNUM(ventes[[#This Row],[DATES]])","v":34}]
["2021-08-20","client11","Produit23",149.46,13,{"$f":"ventes[[#This Row],[PRIX UNITAIRE (FCFA)]]*ventes[[#This Row],[QUANTITE]]","v":1942.98},{"$f":"VLOOKUP(ventes[[#This Row],[CLIENTS]],localisations[],2,0)","v":"Espagne"},{"$f":"VLOOKUP(ventes[[#This Row],[CLIENTS]],localisations[],3,0)","v":"Europe"},{"$f":"TEXT(ventes[[#This Row],[DATES]],\"mmm\")","v":"août"},{"$f":"WEEKNUM(ventes[[#This Row],[DATES]])","v":34}]
["2021-08-20","client15","Produit18",49.21,19,{"$f":"ventes[[#This Row],[PRIX UNITAIRE (FCFA)]]*ventes[[#This Row],[QUANTITE]]","v":934.99},{"$f":"VLOOKUP(ventes[[#This Row],[CLIENTS]],localisations[],2,0)","v":"Allemagne"},{"$f":"VLOOKUP(ventes[[#This Row],[CLIENTS]],localisations[],3,0)","v":"Europe"},{"$f":"TEXT(ventes[[#This Row],[DATES]],\"mmm\")","v":"août"},{"$f":"WEEKNUM(ventes[[#This Row],[DATES]])","v":34}]
["2021-08-20","client22","Produit31",104.16,9,{"$f":"ventes[[#This Row],[PRIX UNITAIRE (FCFA)]]*ventes[[#This Row],[QUANTITE]]","v":937.43999999999994},{"$f":"VLOOKUP(ventes[[#This Row],[CLIENTS]],localisations[],2,0)","v":"Canada"},{"$f":"VLOOKUP(ventes[[#This Row],[CLIENTS]],localisations[],3,0)","v":"Amérique"},{"$f":"TEXT(ventes[[#This Row],[DATES]],\"mmm\")","v":"août"},{"$f":"WEEKNUM(ventes[[#This Row],[DATES]])","v":34}]
["2021-08-20","client23","Produit28",41.81,13,{"$f":"ventes[[#This Row],[PRIX UNITAIRE (FCFA)]]*ventes[[#This Row],[QUANTITE]]","v":543.53},{"$f":"VLOOKUP(ventes[[#This Row],[CLIENTS]],localisations[],2,0)","v":"Argentine"},{"$f":"VLOOKUP(ventes[[#This Row],[CLIENTS]],localisations[],3,0)","v":"Amérique"},{"$f":"TEXT(ventes[[#This Row],[DATES]],\"mmm\")","v":"août"},{"$f":"WEEKNUM(ventes[[#This Row],[DATES]])","v":34}]
["2021-08-21","client23","Produit16",16.64,4,{"$f":"ventes[[#This Row],[PRIX UNITAIRE (FCFA)]]*ventes[[#This Row],[QUANTITE]]","v":66.56},{"$f":"VLOOKUP(ventes[[#This Row],[CLIENTS]],localisations[],2,0)","v":"Argentine"},{"$f":"VLOOKUP(ventes[[#This Row],[CLIENTS]],localisations[],3,0)","v":"Amérique"},{"$f":"TEXT(ventes[[#This Row],[DATES]],\"mmm\")","v":"août"},{"$f":"WEEKNUM(ventes[[#This Row],[DATES]])","v":34}]
["2021-08-22","client22","Produit05",155.61000000000001,19,{"$f":"ventes[[#This Row],[PRIX UNITAIRE (FCFA)]]*ventes[[#This Row],[QUANTITE]]","v":2956.59},{"$f":"VLOOKUP(ventes[[#This Row],[CLIENTS]],localisations[],2,0)","v":"Canada"},{"$f":"VLOOKUP(ventes[[#This Row],[CLIENTS]],localisations[],3,0)","v":"Amérique"},{"$f":"TEXT(ventes[[#This Row],[DATES]],\"mmm\")","v":"août"},{"$f":"WEEKNUM(ventes[[#This Row],[DATES]])","v":35}]
["2021-08-23","client06","Produit44",82.08,11,{"$f":"ventes[[#This Row],[PRIX UNITAIRE (FCFA)]]*ventes[[#This Row],[QUANTITE]]","v":902.88},{"$f":"VLOOKUP(ventes[[#This Row],[CLIENTS]],localisations[],2,0)","v":"Afrique du Sud"},{"$f":"VLOOKUP(ventes[[#This Row],[CLIENTS]],localisations[],3,0)","v":"Afrique"},{"$f":"TEXT(ventes[[#This Row],[DATES]],\"mmm\")","v":"août"},{"$f":"WEEKNUM(ventes[[#This Row],[DATES]])","v":35}]
["2021-08-23","client19","Produit29",53.11,14,{"$f":"ventes[[#This Row],[PRIX UNITAIRE (FCFA)]]*ventes[[#This Row],[QUANTITE]]","v":743.54},{"$f":"VLOOKUP(ventes[[#This Row],[CLIENTS]],localisations[],2,0)","v":"Suisse"},{"$f":"VLOOKUP(ventes[[#This Row],[CLIENTS]],localisations[],3,0)","v":"Europe"},{"$f":"TEXT(ventes[[#This Row],[DATES]],\"mmm\")","v":"août"},{"$f":"WEEKNUM(ventes[[#This Row],[DATES]])","v":35}]
["2021-08-24","client19","Produit05",155.61000000000001,5,{"$f":"ventes[[#This Row],[PRIX UNITAIRE (FCFA)]]*ventes[[#This Row],[QUANTITE]]","v":778.05000000000007},{"$f":"VLOOKUP(ventes[[#This Row],[CLIENTS]],localisations[],2,0)","v":"Suisse"},{"$f":"VLOOKUP(ventes[[#This Row],[CLIENTS]],localisations[],3,0)","v":"Europe"},{"$f":"TEXT(ventes[[#This Row],[DATES]],\"mmm\")","v":"août"},{"$f":"WEEKNUM(ventes[[#This Row],[DATES]])","v":35}]
["2021-08-25","client26","Produit41",173.88,38,{"$f":"ventes[[#This Row],[PRIX UNITAIRE (FCFA)]]*ventes[[#This Row],[QUANTITE]]","v":6607.44},{"$f":"VLOOKUP(ventes[[#This Row],[CLIENTS]],localisations[],2,0)","v":"Pérou"},{"$f":"VLOOKUP(ventes[[#This Row],[CLIENTS]],localisations[],3,0)","v":"Amérique"},{"$f":"TEXT(ventes[[#This Row],[DATES]],\"mmm\")","v":"août"},{"$f":"WEEKNUM(ventes[[#This Row],[DATES]])","v":35}]
["2021-08-26","client32","Produit34",58.3,21,{"$f":"ventes[[#This Row],[PRIX UNITAIRE (FCFA)]]*ventes[[#This Row],[QUANTITE]]","v":1224.3},{"$f":"VLOOKUP(ventes[[#This Row],[CLIENTS]],localisations[],2,0)","v":"Indonésie"},{"$f":"VLOOKUP(ventes[[#This Row],[CLIENTS]],localisations[],3,0)","v":"Asie"},{"$f":"TEXT(ventes[[#This Row],[DATES]],\"mmm\")","v":"août"},{"$f":"WEEKNUM(ventes[[#This Row],[DATES]])","v":35}]
["2021-08-26","client09","Produit39",42.55,4,{"$f":"ventes[[#This Row],[PRIX UNITAIRE (FCFA)]]*ventes[[#This Row],[QUANTITE]]","v":170.2},{"$f":"VLOOKUP(ventes[[#This Row],[CLIENTS]],localisations[],2,0)","v":"Égypte"},{"$f":"VLOOKUP(ventes[[#This Row],[CLIENTS]],localisations[],3,0)","v":"Afrique"},{"$f":"TEXT(ventes[[#This Row],[DATES]],\"mmm\")","v":"août"},{"$f":"WEEKNUM(ventes[[#This Row],[DATES]])","v":35}]
["2021-08-26","client12","Produit21",162.54,18,{"$f":"ventes[[#This Row],[PRIX UNITAIRE (FCFA)]]*ventes[[#This Row],[QUANTITE]]","v":2925.72},{"$f":"VLOOKUP(ventes[[#This Row],[CLIENTS]],localisations[],2,0)","v":"Pologne"},{"$f":"VLOOKUP(ventes[[#This Row],[CLIENTS]],localisations[],3,0)","v":"Europe"},{"$f":"TEXT(ventes[[#This Row],[DATES]],\"mmm\")","v":"août"},{"$f":"WEEKNUM(ventes[[#This Row],[DATES]])","v":35}]
["2021-08-26","client19","Produit37",85.76,8,{"$f":"ventes[[#This Row],[PRIX UNITAIRE (FCFA)]]*ventes[[#This Row],[QUANTITE]]","v":686.08},{"$f":"VLOOKUP(ventes[[#This Row],[CLIENTS]],localisations[],2,0)","v":"Suisse"},{"$f":"VLOOKUP(ventes[[#This Row],[CLIENTS]],localisations[],3,0)","v":"Europe"},{"$f":"TEXT(ventes[[#This Row],[DATES]],\"mmm\")","v":"août"},{"$f":"WEEKNUM(ventes[[#This Row],[DATES]])","v":35}]
["2021-08-26","client37","Produit19",210,13,{"$f":"ventes[[#This Row],[PRIX UNITAIRE (FCFA)]]*ventes[[#This Row],[QUANTITE]]","v":2730},{"$f":"VLOOKUP(ventes[[#This Row],[CLIENTS]],localisations[],2,0)","v":"Inde"},{"$f":"VLOOKUP(ventes[[#This Row],[CLIENTS]],localisations[],3,0)","v":"Asie"},{"$f":"TEXT(ventes[[#This Row],[DATES]],\"mmm\")","v":"août"},{"$f":"WEEKNUM(ventes[[#This Row],[DATES]])","v":35}]
["2021-08-26","client30","Produit09",7.8599999999999994,38,{"$f":"ventes[[#This Row],[PRIX UNITAIRE (FCFA)]]*ventes[[#This Row],[QUANTITE]]","v":298.67999999999995},{"$f":"VLOOKUP(ventes[[#This Row],[CLIENTS]],localisations[],2,0)","v":"Colombie"},{"$f":"VLOOKUP(ventes[[#This Row],[CLIENTS]],localisations[],3,0)","v":"Amérique"},{"$f":"TEXT(ventes[[#This Row],[DATES]],\"mmm\")","v":"août"},{"$f":"WEEKNUM(ventes[[#This Row],[DATES]])","v":35}]
["2021-08-27","client18","Produit39",42.55,15,{"$f":"ventes[[#This Row],[PRIX UNITAIRE (FCFA)]]*ventes[[#This Row],[QUANTITE]]","v":638.25},{"$f":"VLOOKUP(ventes[[#This Row],[CLIENTS]],localisations[],2,0)","v":"Belgique"},{"$f":"VLOOKUP(ventes[[#This Row],[CLIENTS]],localisations[],3,0)","v":"Europe"},{"$f":"TEXT(ventes[[#This Row],[DATES]],\"mmm\")","v":"août"},{"$f":"WEEKNUM(ventes[[#This Row],[DATES]])","v":35}]
["2021-08-28","client02","Produit10",164.28,20,{"$f":"ventes[[#This Row],[PRIX UNITAIRE (FCFA)]]*ventes[[#This Row],[QUANTITE]]","v":3285.6},{"$f":"VLOOKUP(ventes[[#This Row],[CLIENTS]],localisations[],2,0)","v":"Ghana"},{"$f":"VLOOKUP(ventes[[#This Row],[CLIENTS]],localisations[],3,0)","v":"Afrique"},{"$f":"TEXT(ventes[[#This Row],[DATES]],\"mmm\")","v":"août"},{"$f":"WEEKNUM(ventes[[#This Row],[DATES]])","v":35}]
["2021-08-28","client32","Produit05",155.61000000000001,9,{"$f":"ventes[[#This Row],[PRIX UNITAIRE (FCFA)]]*ventes[[#This Row],[QUANTITE]]","v":1400.4900000000002},{"$f":"VLOOKUP(ventes[[#This Row],[CLIENTS]],localisations[],2,0)","v":"Indonésie"},{"$f":"VLOOKUP(ventes[[#This Row],[CLIENTS]],localisations[],3,0)","v":"Asie"},{"$f":"TEXT(ventes[[#This Row],[DATES]],\"mmm\")","v":"août"},{"$f":"WEEKNUM(ventes[[#This Row],[DATES]])","v":35}]
["2021-08-28","client09","Produit39",42.55,5,{"$f":"ventes[[#This Row],[PRIX UNITAIRE (FCFA)]]*ventes[[#This Row],[QUANTITE]]","v":212.75},{"$f":"VLOOKUP(ventes[[#This Row],[CLIENTS]],localisations[],2,0)","v":"Égypte"},{"$f":"VLOOKUP(ventes[[#This Row],[CLIENTS]],localisations[],3,0)","v":"Afrique"},{"$f":"TEXT(ventes[[#This Row],[DATES]],\"mmm\")","v":"août"},{"$f":"WEEKNUM(ventes[[#This Row],[DATES]])","v":35}]
["2021-08-28","client11","Produit43",83.08,25,{"$f":"ventes[[#This Row],[PRIX UNITAIRE (FCFA)]]*ventes[[#This Row],[QUANTITE]]","v":2077},{"$f":"VLOOKUP(ventes[[#This Row],[CLIENTS]],localisations[],2,0)","v":"Espagne"},{"$f":"VLOOKUP(ventes[[#This Row],[CLIENTS]],localisations[],3,0)","v":"Europe"},{"$f":"TEXT(ventes[[#This Row],[DATES]],\"mmm\")","v":"août"},{"$f":"WEEKNUM(ventes[[#This Row],[DATES]])","v":35}]
["2021-08-28","client21","Produit37",85.76,22,{"$f":"ventes[[#This Row],[PRIX UNITAIRE (FCFA)]]*ventes[[#This Row],[QUANTITE]]","v":1886.72},{"$f":"VLOOKUP(ventes[[#This Row],[CLIENTS]],localisations[],2,0)","v":"Venezuela"},{"$f":"VLOOKUP(ventes[[#This Row],[CLIENTS]],localisations[],3,0)","v":"Amérique"},{"$f":"TEXT(ventes[[#This Row],[DATES]],\"mmm\")","v":"août"},{"$f":"WEEKNUM(ventes[[#This Row],[DATES]])","v":35}]
["2021-08-29","client07","Produit34",58.3,12,{"$f":"ventes[[#This Row],[PRIX UNITAIRE (FCFA)]]*ventes[[#This Row],[QUANTITE]]","v":699.59999999999991},{"$f":"VLOOKUP(ventes[[#This Row],[CLIENTS]],localisations[],2,0)","v":"Éthiopie"},{"$f":"VLOOKUP(ventes[[#This Row],[CLIENTS]],localisations[],3,0)","v":"Afrique"},{"$f":"TEXT(ventes[[#This Row],[DATES]],\"mmm\")","v":"août"},{"$f":"WEEKNUM(ventes[[#This Row],[DATES]])","v":36}]
["2021-08-30","client04","Produit06",85.5,6,{"$f":"ventes[[#This Row],[PRIX UNITAIRE (FCFA)]]*ventes[[#This Row],[QUANTITE]]","v":513},{"$f":"VLOOKUP(ventes[[#This Row],[CLIENTS]],localisations[],2,0)","v":"Sénégal"},{"$f":"VLOOKUP(ventes[[#This Row],[CLIENTS]],localisations[],3,0)","v":"Afrique"},{"$f":"TEXT(ventes[[#This Row],[DATES]],\"mmm\")","v":"août"},{"$f":"WEEKNUM(ventes[[#This Row],[DATES]])","v":36}]
["2021-08-30","client17","Produit13",122.08,13,{"$f":"ventes[[#This Row],[PRIX UNITAIRE (FCFA)]]*ventes[[#This Row],[QUANTITE]]","v":1587.04},{"$f":"VLOOKUP(ventes[[#This Row],[CLIENTS]],localisations[],2,0)","v":"Suède"},{"$f":"VLOOKUP(ventes[[#This Row],[CLIENTS]],localisations[],3,0)","v":"Europe"},{"$f":"TEXT(ventes[[#This Row],[DATES]],\"mmm\")","v":"août"},{"$f":"WEEKNUM(ventes[[#This Row],[DATES]])","v":36}]
["2021-08-30","client39","Produit25",8.33,5,{"$f":"ventes[[#This Row],[PRIX UNITAIRE (FCFA)]]*ventes[[#This Row],[QUANTITE]]","v":41.65},{"$f":"VLOOKUP(ventes[[#This Row],[CLIENTS]],localisations[],2,0)","v":"Pakistan"},{"$f":"VLOOKUP(ventes[[#This Row],[CLIENTS]],localisations[],3,0)","v":"Asie"},{"$f":"TEXT(ventes[[#This Row],[DATES]],\"mmm\")","v":"août"},{"$f":"WEEKNUM(ventes[[#This Row],[DATES]])","v":36}]
["2021-08-30","client30","Produit43",83.08,6,{"$f":"ventes[[#This Row],[PRIX UNITAIRE (FCFA)]]*ventes[[#This Row],[QUANTITE]]","v":498.48},{"$f":"VLOOKUP(ventes[[#This Row],[CLIENTS]],localisations[],2,0)","v":"Colombie"},{"$f":"VLOOKUP(ventes[[#This Row],[CLIENTS]],localisations[],3,0)","v":"Amérique"},{"$f":"TEXT(ventes[[#This Row],[DATES]],\"mmm\")","v":"août"},{"$f":"WEEKNUM(ventes[[#This Row],[DATES]])","v":36}]
["2021-08-31","client10","Produit01",103.88,2,{"$f":"ventes[[#This Row],[PRIX UNITAIRE (FCFA)]]*ventes[[#This Row],[QUANTITE]]","v":207.76},{"$f":"VLOOKUP(ventes[[#This Row],[CLIENTS]],localisations[],2,0)","v":"Nigeria"},{"$f":"VLOOKUP(ventes[[#This Row],[CLIENTS]],localisations[],3,0)","v":"Afrique"},{"$f":"TEXT(ventes[[#This Row],[DATES]],\"mmm\")","v":"août"},{"$f":"WEEKNUM(ventes[[#This Row],[DATES]])","v":36}]
["2021-08-31","client10","Produit15",15.719999999999999,13,{"$f":"ventes[[#This Row],[PRIX UNITAIRE (FCFA)]]*ventes[[#This Row],[QUANTITE]]","v":204.35999999999999},{"$f":"VLOOKUP(ventes[[#This Row],[CLIENTS]],localisations[],2,0)","v":"Nigeria"},{"$f":"VLOOKUP(ventes[[#This Row],[CLIENTS]],localisations[],3,0)","v":"Afrique"},{"$f":"TEXT(ventes[[#This Row],[DATES]],\"mmm\")","v":"août"},{"$f":"WEEKNUM(ventes[[#This Row],[DATES]])","v":36}]
["2021-08-31","client16","Produit35",6.7,11,{"$f":"ventes[[#This Row],[PRIX UNITAIRE (FCFA)]]*ventes[[#This Row],[QUANTITE]]","v":73.7},{"$f":"VLOOKUP(ventes[[#This Row],[CLIENTS]],localisations[],2,0)","v":"Royaume-Uni"},{"$f":"VLOOKUP(ventes[[#This Row],[CLIENTS]],localisations[],3,0)","v":"Europe"},{"$f":"TEXT(ventes[[#This Row],[DATES]],\"mmm\")","v":"août"},{"$f":"WEEKNUM(ventes[[#This Row],[DATES]])","v":36}]
["2021-08-31","client26","Produit21",162.54,6,{"$f":"ventes[[#This Row],[PRIX UNITAIRE (FCFA)]]*ventes[[#This Row],[QUANTITE]]","v":975.24},{"$f":"VLOOKUP(ventes[[#This Row],[CLIENTS]],localisations[],2,0)","v":"Pérou"},{"$f":"VLOOKUP(ventes[[#This Row],[CLIENTS]],localisations[],3,0)","v":"Amérique"},{"$f":"TEXT(ventes[[#This Row],[DATES]],\"mmm\")","v":"août"},{"$f":"WEEKNUM(ventes[[#This Row],[DATES]])","v":36}]
["2021-09-01","client05","Produit03",80.94,14,{"$f":"ventes[[#This Row],[PRIX UNITAIRE (FCFA)]]*ventes[[#This Row],[QUANTITE]]","v":1133.1599999999999},{"$f":"VLOOKUP(ventes[[#This Row],[CLIENTS]],localisations[],2,0)","v":"Algérie"},{"$f":"VLOOKUP(ventes[[#This Row],[CLIENTS]],localisations[],3,0)","v":"Afrique"},{"$f":"TEXT(ventes[[#This Row],[DATES]],\"mmm\")","v":"sept"},{"$f":"WEEKNUM(ventes[[#This Row],[DATES]])","v":36}]
["2021-09-01","client17","Produit24",156.96,1,{"$f":"ventes[[#This Row],[PRIX UNITAIRE (FCFA)]]*ventes[[#This Row],[QUANTITE]]","v":156.96},{"$f":"VLOOKUP(ventes[[#This Row],[CLIENTS]],localisations[],2,0)","v":"Suède"},{"$f":"VLOOKUP(ventes[[#This Row],[CLIENTS]],localisations[],3,0)","v":"Europe"},{"$f":"TEXT(ventes[[#This Row],[DATES]],\"mmm\")","v":"sept"},{"$f":"WEEKNUM(ventes[[#This Row],[DATES]])","v":36}]
["2021-09-01","client37","Produit15",15.719999999999999,11,{"$f":"ventes[[#This Row],[PRIX UNITAIRE (FCFA)]]*ventes[[#This Row],[QUANTITE]]","v":172.92},{"$f":"VLOOKUP(ventes[[#This Row],[CLIENTS]],localisations[],2,0)","v":"Inde"},{"$f":"VLOOKUP(ventes[[#This Row],[CLIENTS]],localisations[],3,0)","v":"Asie"},{"$f":"TEXT(ventes[[#This Row],[DATES]],\"mmm\")","v":"sept"},{"$f":"WEEKNUM(ventes[[#This Row],[DATES]])","v":36}]
["2021-09-03","client26","Produit41",173.88,8,{"$f":"ventes[[#This Row],[PRIX UNITAIRE (FCFA)]]*ventes[[#This Row],[QUANTITE]]","v":1391.04},{"$f":"VLOOKUP(ventes[[#This Row],[CLIENTS]],localisations[],2,0)","v":"Pérou"},{"$f":"VLOOKUP(ventes[[#This Row],[CLIENTS]],localisations[],3,0)","v":"Amérique"},{"$f":"TEXT(ventes[[#This Row],[DATES]],\"mmm\")","v":"sept"},{"$f":"WEEKNUM(ventes[[#This Row],[DATES]])","v":36}]
["2021-09-03","client29","Produit16",16.64,28,{"$f":"ventes[[#This Row],[PRIX UNITAIRE (FCFA)]]*ventes[[#This Row],[QUANTITE]]","v":465.92},{"$f":"VLOOKUP(ventes[[#This Row],[CLIENTS]],localisations[],2,0)","v":"Chili"},{"$f":"VLOOKUP(ventes[[#This Row],[CLIENTS]],localisations[],3,0)","v":"Amérique"},{"$f":"TEXT(ventes[[#This Row],[DATES]],\"mmm\")","v":"sept"},{"$f":"WEEKNUM(ventes[[#This Row],[DATES]])","v":36}]
["2021-09-04","client19","Produit35",6.7,1,{"$f":"ventes[[#This Row],[PRIX UNITAIRE (FCFA)]]*ventes[[#This Row],[QUANTITE]]","v":6.7},{"$f":"VLOOKUP(ventes[[#This Row],[CLIENTS]],localisations[],2,0)","v":"Suisse"},{"$f":"VLOOKUP(ventes[[#This Row],[CLIENTS]],localisations[],3,0)","v":"Europe"},{"$f":"TEXT(ventes[[#This Row],[DATES]],\"mmm\")","v":"sept"},{"$f":"WEEKNUM(ventes[[#This Row],[DATES]])","v":36}]
["2021-09-04","client22","Produit23",149.46,15,{"$f":"ventes[[#This Row],[PRIX UNITAIRE (FCFA)]]*ventes[[#This Row],[QUANTITE]]","v":2241.9},{"$f":"VLOOKUP(ventes[[#This Row],[CLIENTS]],localisations[],2,0)","v":"Canada"},{"$f":"VLOOKUP(ventes[[#This Row],[CLIENTS]],localisations[],3,0)","v":"Amérique"},{"$f":"TEXT(ventes[[#This Row],[DATES]],\"mmm\")","v":"sept"},{"$f":"WEEKNUM(ventes[[#This Row],[DATES]])","v":36}]
["2021-09-04","client25","Produit28",41.81,7,{"$f":"ventes[[#This Row],[PRIX UNITAIRE (FCFA)]]*ventes[[#This Row],[QUANTITE]]","v":292.67},{"$f":"VLOOKUP(ventes[[#This Row],[CLIENTS]],localisations[],2,0)","v":"Brésil"},{"$f":"VLOOKUP(ventes[[#This Row],[CLIENTS]],localisations[],3,0)","v":"Amérique"},{"$f":"TEXT(ventes[[#This Row],[DATES]],\"mmm\")","v":"sept"},{"$f":"WEEKNUM(ventes[[#This Row],[DATES]])","v":36}]
["2021-09-04","client25","Produit01",103.88,34,{"$f":"ventes[[#This Row],[PRIX UNITAIRE (FCFA)]]*ventes[[#This Row],[QUANTITE]]","v":3531.92},{"$f":"VLOOKUP(ventes[[#This Row],[CLIENTS]],localisations[],2,0)","v":"Brésil"},{"$f":"VLOOKUP(ventes[[#This Row],[CLIENTS]],localisations[],3,0)","v":"Amérique"},{"$f":"TEXT(ventes[[#This Row],[DATES]],\"mmm\")","v":"sept"},{"$f":"WEEKNUM(ventes[[#This Row],[DATES]])","v":36}]
["2021-09-04","client25","Produit02",142.80000000000001,1,{"$f":"ventes[[#This Row],[PRIX UNITAIRE (FCFA)]]*ventes[[#This Row],[QUANTITE]]","v":142.80000000000001},{"$f":"VLOOKUP(ventes[[#This Row],[CLIENTS]],localisations[],2,0)","v":"Brésil"},{"$f":"VLOOKUP(ventes[[#This Row],[CLIENTS]],localisations[],3,0)","v":"Amérique"},{"$f":"TEXT(ventes[[#This Row],[DATES]],\"mmm\")","v":"sept"},{"$f":"WEEKNUM(ventes[[#This Row],[DATES]])","v":36}]
["2021-09-05","client05","Produit32",117.48,1,{"$f":"ventes[[#This Row],[PRIX UNITAIRE (FCFA)]]*ventes[[#This Row],[QUANTITE]]","v":117.48},{"$f":"VLOOKUP(ventes[[#This Row],[CLIENTS]],localisations[],2,0)","v":"Algérie"},{"$f":"VLOOKUP(ventes[[#This Row],[CLIENTS]],localisations[],3,0)","v":"Afrique"},{"$f":"TEXT(ventes[[#This Row],[DATES]],\"mmm\")","v":"sept"},{"$f":"WEEKNUM(ventes[[#This Row],[DATES]])","v":37}]
["2021-09-05","client40","Produit07",47.730000000000004,35,{"$f":"ventes[[#This Row],[PRIX UNITAIRE (FCFA)]]*ventes[[#This Row],[QUANTITE]]","v":1670.5500000000002},{"$f":"VLOOKUP(ventes[[#This Row],[CLIENTS]],localisations[],2,0)","v":"Pakistan"},{"$f":"VLOOKUP(ventes[[#This Row],[CLIENTS]],localisations[],3,0)","v":"Asie"},{"$f":"TEXT(ventes[[#This Row],[DATES]],\"mmm\")","v":"sept"},{"$f":"WEEKNUM(ventes[[#This Row],[DATES]])","v":37}]
["2021-09-06","client15","Produit31",104.16,20,{"$f":"ventes[[#This Row],[PRIX UNITAIRE (FCFA)]]*ventes[[#This Row],[QUANTITE]]","v":2083.1999999999998},{"$f":"VLOOKUP(ventes[[#This Row],[CLIENTS]],localisations[],2,0)","v":"Allemagne"},{"$f":"VLOOKUP(ventes[[#This Row],[CLIENTS]],localisations[],3,0)","v":"Europe"},{"$f":"TEXT(ventes[[#This Row],[DATES]],\"mmm\")","v":"sept"},{"$f":"WEEKNUM(ventes[[#This Row],[DATES]])","v":37}]
["2021-09-06","client18","Produit05",155.61000000000001,12,{"$f":"ventes[[#This Row],[PRIX UNITAIRE (FCFA)]]*ventes[[#This Row],[QUANTITE]]","v":1867.3200000000002},{"$f":"VLOOKUP(ventes[[#This Row],[CLIENTS]],localisations[],2,0)","v":"Belgique"},{"$f":"VLOOKUP(ventes[[#This Row],[CLIENTS]],localisations[],3,0)","v":"Europe"},{"$f":"TEXT(ventes[[#This Row],[DATES]],\"mmm\")","v":"sept"},{"$f":"WEEKNUM(ventes[[#This Row],[DATES]])","v":37}]
["2021-09-07","client01","Produit19",210,5,{"$f":"ventes[[#This Row],[PRIX UNITAIRE (FCFA)]]*ventes[[#This Row],[QUANTITE]]","v":1050},{"$f":"VLOOKUP(ventes[[#This Row],[CLIENTS]],localisations[],2,0)","v":"Tunisie"},{"$f":"VLOOKUP(ventes[[#This Row],[CLIENTS]],localisations[],3,0)","v":"Afrique"},{"$f":"TEXT(ventes[[#This Row],[DATES]],\"mmm\")","v":"sept"},{"$f":"WEEKNUM(ventes[[#This Row],[DATES]])","v":37}]
["2021-09-08","client22","Produit12",94.17,23,{"$f":"ventes[[#This Row],[PRIX UNITAIRE (FCFA)]]*ventes[[#This Row],[QUANTITE]]","v":2165.91},{"$f":"VLOOKUP(ventes[[#This Row],[CLIENTS]],localisations[],2,0)","v":"Canada"},{"$f":"VLOOKUP(ventes[[#This Row],[CLIENTS]],localisations[],3,0)","v":"Amérique"},{"$f":"TEXT(ventes[[#This Row],[DATES]],\"mmm\")","v":"sept"},{"$f":"WEEKNUM(ventes[[#This Row],[DATES]])","v":37}]
["2021-09-09","client19","Produit03",80.94,3,{"$f":"ventes[[#This Row],[PRIX UNITAIRE (FCFA)]]*ventes[[#This Row],[QUANTITE]]","v":242.82},{"$f":"VLOOKUP(ventes[[#This Row],[CLIENTS]],localisations[],2,0)","v":"Suisse"},{"$f":"VLOOKUP(ventes[[#This Row],[CLIENTS]],localisations[],3,0)","v":"Europe"},{"$f":"TEXT(ventes[[#This Row],[DATES]],\"mmm\")","v":"sept"},{"$f":"WEEKNUM(ventes[[#This Row],[DATES]])","v":37}]
["2021-09-09","client20","Produit41",173.88,9,{"$f":"ventes[[#This Row],[PRIX UNITAIRE (FCFA)]]*ventes[[#This Row],[QUANTITE]]","v":1564.92},{"$f":"VLOOKUP(ventes[[#This Row],[CLIENTS]],localisations[],2,0)","v":"France"},{"$f":"VLOOKUP(ventes[[#This Row],[CLIENTS]],localisations[],3,0)","v":"Europe"},{"$f":"TEXT(ventes[[#This Row],[DATES]],\"mmm\")","v":"sept"},{"$f":"WEEKNUM(ventes[[#This Row],[DATES]])","v":37}]
["2021-09-09","client26","Produit44",82.08,4,{"$f":"ventes[[#This Row],[PRIX UNITAIRE (FCFA)]]*ventes[[#This Row],[QUANTITE]]","v":328.32},{"$f":"VLOOKUP(ventes[[#This Row],[CLIENTS]],localisations[],2,0)","v":"Pérou"},{"$f":"VLOOKUP(ventes[[#This Row],[CLIENTS]],localisations[],3,0)","v":"Amérique"},{"$f":"TEXT(ventes[[#This Row],[DATES]],\"mmm\")","v":"sept"},{"$f":"WEEKNUM(ventes[[#This Row],[DATES]])","v":37}]
["2021-09-09","client29","Produit11",48.4,26,{"$f":"ventes[[#This Row],[PRIX UNITAIRE (FCFA)]]*ventes[[#This Row],[QUANTITE]]","v":1258.3999999999999},{"$f":"VLOOKUP(ventes[[#This Row],[CLIENTS]],localisations[],2,0)","v":"Chili"},{"$f":"VLOOKUP(ventes[[#This Row],[CLIENTS]],localisations[],3,0)","v":"Amérique"},{"$f":"TEXT(ventes[[#This Row],[DATES]],\"mmm\")","v":"sept"},{"$f":"WEEKNUM(ventes[[#This Row],[DATES]])","v":37}]
["2021-09-10","client06","Produit38",79.92,4,{"$f":"ventes[[#This Row],[PRIX UNITAIRE (FCFA)]]*ventes[[#This Row],[QUANTITE]]","v":319.68},{"$f":"VLOOKUP(ventes[[#This Row],[CLIENTS]],localisations[],2,0)","v":"Afrique du Sud"},{"$f":"VLOOKUP(ventes[[#This Row],[CLIENTS]],localisations[],3,0)","v":"Afrique"},{"$f":"TEXT(ventes[[#This Row],[DATES]],\"mmm\")","v":"sept"},{"$f":"WEEKNUM(ventes[[#This Row],[DATES]])","v":37}]
["2021-09-10","client21","Produit01",103.88,9,{"$f":"ventes[[#This Row],[PRIX UNITAIRE (FCFA)]]*ventes[[#This Row],[QUANTITE]]","v":934.92},{"$f":"VLOOKUP(ventes[[#This Row],[CLIENTS]],localisations[],2,0)","v":"Venezuela"},{"$f":"VLOOKUP(ventes[[#This Row],[CLIENTS]],localisations[],3,0)","v":"Amérique"},{"$f":"TEXT(ventes[[#This Row],[DATES]],\"mmm\")","v":"sept"},{"$f":"WEEKNUM(ventes[[#This Row],[DATES]])","v":37}]
["2021-09-10","client23","Produit30",201.28,6,{"$f":"ventes[[#This Row],[PRIX UNITAIRE (FCFA)]]*ventes[[#This Row],[QUANTITE]]","v":1207.68},{"$f":"VLOOKUP(ventes[[#This Row],[CLIENTS]],localisations[],2,0)","v":"Argentine"},{"$f":"VLOOKUP(ventes[[#This Row],[CLIENTS]],localisations[],3,0)","v":"Amérique"},{"$f":"TEXT(ventes[[#This Row],[DATES]],\"mmm\")","v":"sept"},{"$f":"WEEKNUM(ventes[[#This Row],[DATES]])","v":37}]
["2021-09-10","client23","Produit26",24.66,2,{"$f":"ventes[[#This Row],[PRIX UNITAIRE (FCFA)]]*ventes[[#This Row],[QUANTITE]]","v":49.32},{"$f":"VLOOKUP(ventes[[#This Row],[CLIENTS]],localisations[],2,0)","v":"Argentine"},{"$f":"VLOOKUP(ventes[[#This Row],[CLIENTS]],localisations[],3,0)","v":"Amérique"},{"$f":"TEXT(ventes[[#This Row],[DATES]],\"mmm\")","v":"sept"},{"$f":"WEEKNUM(ventes[[#This Row],[DATES]])","v":37}]
["2021-09-10","client40","Produit35",6.7,15,{"$f":"ventes[[#This Row],[PRIX UNITAIRE (FCFA)]]*ventes[[#This Row],[QUANTITE]]","v":100.5},{"$f":"VLOOKUP(ventes[[#This Row],[CLIENTS]],localisations[],2,0)","v":"Pakistan"},{"$f":"VLOOKUP(ventes[[#This Row],[CLIENTS]],localisations[],3,0)","v":"Asie"},{"$f":"TEXT(ventes[[#This Row],[DATES]],\"mmm\")","v":"sept"},{"$f":"WEEKNUM(ventes[[#This Row],[DATES]])","v":37}]
["2021-09-11","client10","Produit01",103.88,6,{"$f":"ventes[[#This Row],[PRIX UNITAIRE (FCFA)]]*ventes[[#This Row],[QUANTITE]]","v":623.28},{"$f":"VLOOKUP(ventes[[#This Row],[CLIENTS]],localisations[],2,0)","v":"Nigeria"},{"$f":"VLOOKUP(ventes[[#This Row],[CLIENTS]],localisations[],3,0)","v":"Afrique"},{"$f":"TEXT(ventes[[#This Row],[DATES]],\"mmm\")","v":"sept"},{"$f":"WEEKNUM(ventes[[#This Row],[DATES]])","v":37}]
["2021-09-13","client39","Produit41",173.88,7,{"$f":"ventes[[#This Row],[PRIX UNITAIRE (FCFA)]]*ventes[[#This Row],[QUANTITE]]","v":1217.1599999999999},{"$f":"VLOOKUP(ventes[[#This Row],[CLIENTS]],localisations[],2,0)","v":"Pakistan"},{"$f":"VLOOKUP(ventes[[#This Row],[CLIENTS]],localisations[],3,0)","v":"Asie"},{"$f":"TEXT(ventes[[#This Row],[DATES]],\"mmm\")","v":"sept"},{"$f":"WEEKNUM(ventes[[#This Row],[DATES]])","v":38}]
["2021-09-14","client10","Produit29",53.11,3,{"$f":"ventes[[#This Row],[PRIX UNITAIRE (FCFA)]]*ventes[[#This Row],[QUANTITE]]","v":159.32999999999998},{"$f":"VLOOKUP(ventes[[#This Row],[CLIENTS]],localisations[],2,0)","v":"Nigeria"},{"$f":"VLOOKUP(ventes[[#This Row],[CLIENTS]],localisations[],3,0)","v":"Afrique"},{"$f":"TEXT(ventes[[#This Row],[DATES]],\"mmm\")","v":"sept"},{"$f":"WEEKNUM(ventes[[#This Row],[DATES]])","v":38}]
["2021-09-14","client22","Produit26",24.66,34,{"$f":"ventes[[#This Row],[PRIX UNITAIRE (FCFA)]]*ventes[[#This Row],[QUANTITE]]","v":838.44},{"$f":"VLOOKUP(ventes[[#This Row],[CLIENTS]],localisations[],2,0)","v":"Canada"},{"$f":"VLOOKUP(ventes[[#This Row],[CLIENTS]],localisations[],3,0)","v":"Amérique"},{"$f":"TEXT(ventes[[#This Row],[DATES]],\"mmm\")","v":"sept"},{"$f":"WEEKNUM(ventes[[#This Row],[DATES]])","v":38}]
["2021-09-14","client26","Produit11",48.4,27,{"$f":"ventes[[#This Row],[PRIX UNITAIRE (FCFA)]]*ventes[[#This Row],[QUANTITE]]","v":1306.8},{"$f":"VLOOKUP(ventes[[#This Row],[CLIENTS]],localisations[],2,0)","v":"Pérou"},{"$f":"VLOOKUP(ventes[[#This Row],[CLIENTS]],localisations[],3,0)","v":"Amérique"},{"$f":"TEXT(ventes[[#This Row],[DATES]],\"mmm\")","v":"sept"},{"$f":"WEEKNUM(ventes[[#This Row],[DATES]])","v":38}]
["2021-09-15","client04","Produit38",79.92,3,{"$f":"ventes[[#This Row],[PRIX UNITAIRE (FCFA)]]*ventes[[#This Row],[QUANTITE]]","v":239.76},{"$f":"VLOOKUP(ventes[[#This Row],[CLIENTS]],localisations[],2,0)","v":"Sénégal"},{"$f":"VLOOKUP(ventes[[#This Row],[CLIENTS]],localisations[],3,0)","v":"Afrique"},{"$f":"TEXT(ventes[[#This Row],[DATES]],\"mmm\")","v":"sept"},{"$f":"WEEKNUM(ventes[[#This Row],[DATES]])","v":38}]
["2021-09-15","client08","Produit42",162,14,{"$f":"ventes[[#This Row],[PRIX UNITAIRE (FCFA)]]*ventes[[#This Row],[QUANTITE]]","v":2268},{"$f":"VLOOKUP(ventes[[#This Row],[CLIENTS]],localisations[],2,0)","v":"Maroc"},{"$f":"VLOOKUP(ventes[[#This Row],[CLIENTS]],localisations[],3,0)","v":"Afrique"},{"$f":"TEXT(ventes[[#This Row],[DATES]],\"mmm\")","v":"sept"},{"$f":"WEEKNUM(ventes[[#This Row],[DATES]])","v":38}]
["2021-09-15","client10","Produit42",162,6,{"$f":"ventes[[#This Row],[PRIX UNITAIRE (FCFA)]]*ventes[[#This Row],[QUANTITE]]","v":972},{"$f":"VLOOKUP(ventes[[#This Row],[CLIENTS]],localisations[],2,0)","v":"Nigeria"},{"$f":"VLOOKUP(ventes[[#This Row],[CLIENTS]],localisations[],3,0)","v":"Afrique"},{"$f":"TEXT(ventes[[#This Row],[DATES]],\"mmm\")","v":"sept"},{"$f":"WEEKNUM(ventes[[#This Row],[DATES]])","v":38}]
["2021-09-15","client17","Produit37",85.76,15,{"$f":"ventes[[#This Row],[PRIX UNITAIRE (FCFA)]]*ventes[[#This Row],[QUANTITE]]","v":1286.4000000000001},{"$f":"VLOOKUP(ventes[[#This Row],[CLIENTS]],localisations[],2,0)","v":"Suède"},{"$f":"VLOOKUP(ventes[[#This Row],[CLIENTS]],localisations[],3,0)","v":"Europe"},{"$f":"TEXT(ventes[[#This Row],[DATES]],\"mmm\")","v":"sept"},{"$f":"WEEKNUM(ventes[[#This Row],[DATES]])","v":38}]
["2021-09-16","client11","Produit18",49.21,11,{"$f":"ventes[[#This Row],[PRIX UNITAIRE (FCFA)]]*ventes[[#This Row],[QUANTITE]]","v":541.31000000000006},{"$f":"VLOOKUP(ventes[[#This Row],[CLIENTS]],localisations[],2,0)","v":"Espagne"},{"$f":"VLOOKUP(ventes[[#This Row],[CLIENTS]],localisations[],3,0)","v":"Europe"},{"$f":"TEXT(ventes[[#This Row],[DATES]],\"mmm\")","v":"sept"},{"$f":"WEEKNUM(ventes[[#This Row],[DATES]])","v":38}]
["2021-09-17","client11","Produit10",164.28,12,{"$f":"ventes[[#This Row],[PRIX UNITAIRE (FCFA)]]*ventes[[#This Row],[QUANTITE]]","v":1971.3600000000001},{"$f":"VLOOKUP(ventes[[#This Row],[CLIENTS]],localisations[],2,0)","v":"Espagne"},{"$f":"VLOOKUP(ventes[[#This Row],[CLIENTS]],localisations[],3,0)","v":"Europe"},{"$f":"TEXT(ventes[[#This Row],[DATES]],\"mmm\")","v":"sept"},{"$f":"WEEKNUM(ventes[[#This Row],[DATES]])","v":38}]
["2021-09-18","client09","Produit31",104.16,22,{"$f":"ventes[[#This Row],[PRIX UNITAIRE (FCFA)]]*ventes[[#This Row],[QUANTITE]]","v":2291.52},{"$f":"VLOOKUP(ventes[[#This Row],[CLIENTS]],localisations[],2,0)","v":"Égypte"},{"$f":"VLOOKUP(ventes[[#This Row],[CLIENTS]],localisations[],3,0)","v":"Afrique"},{"$f":"TEXT(ventes[[#This Row],[DATES]],\"mmm\")","v":"sept"},{"$f":"WEEKNUM(ventes[[#This Row],[DATES]])","v":38}]
["2021-09-18","client22","Produit26",24.66,14,{"$f":"ventes[[#This Row],[PRIX UNITAIRE (FCFA)]]*ventes[[#This Row],[QUANTITE]]","v":345.24},{"$f":"VLOOKUP(ventes[[#This Row],[CLIENTS]],localisations[],2,0)","v":"Canada"},{"$f":"VLOOKUP(ventes[[#This Row],[CLIENTS]],localisations[],3,0)","v":"Amérique"},{"$f":"TEXT(ventes[[#This Row],[DATES]],\"mmm\")","v":"sept"},{"$f":"WEEKNUM(ventes[[#This Row],[DATES]])","v":38}]
["2021-09-19","client16","Produit33",119.7,8,{"$f":"ventes[[#This Row],[PRIX UNITAIRE (FCFA)]]*ventes[[#This Row],[QUANTITE]]","v":957.6},{"$f":"VLOOKUP(ventes[[#This Row],[CLIENTS]],localisations[],2,0)","v":"Royaume-Uni"},{"$f":"VLOOKUP(ventes[[#This Row],[CLIENTS]],localisations[],3,0)","v":"Europe"},{"$f":"TEXT(ventes[[#This Row],[DATES]],\"mmm\")","v":"sept"},{"$f":"WEEKNUM(ventes[[#This Row],[DATES]])","v":39}]
["2021-09-20","client02","Produit33",119.7,6,{"$f":"ventes[[#This Row],[PRIX UNITAIRE (FCFA)]]*ventes[[#This Row],[QUANTITE]]","v":718.2},{"$f":"VLOOKUP(ventes[[#This Row],[CLIENTS]],localisations[],2,0)","v":"Ghana"},{"$f":"VLOOKUP(ventes[[#This Row],[CLIENTS]],localisations[],3,0)","v":"Afrique"},{"$f":"TEXT(ventes[[#This Row],[DATES]],\"mmm\")","v":"sept"},{"$f":"WEEKNUM(ventes[[#This Row],[DATES]])","v":39}]
["2021-09-20","client12","Produit35",6.7,32,{"$f":"ventes[[#This Row],[PRIX UNITAIRE (FCFA)]]*ventes[[#This Row],[QUANTITE]]","v":214.4},{"$f":"VLOOKUP(ventes[[#This Row],[CLIENTS]],localisations[],2,0)","v":"Pologne"},{"$f":"VLOOKUP(ventes[[#This Row],[CLIENTS]],localisations[],3,0)","v":"Europe"},{"$f":"TEXT(ventes[[#This Row],[DATES]],\"mmm\")","v":"sept"},{"$f":"WEEKNUM(ventes[[#This Row],[DATES]])","v":39}]
["2021-09-20","client26","Produit01",103.88,10,{"$f":"ventes[[#This Row],[PRIX UNITAIRE (FCFA)]]*ventes[[#This Row],[QUANTITE]]","v":1038.8},{"$f":"VLOOKUP(ventes[[#This Row],[CLIENTS]],localisations[],2,0)","v":"Pérou"},{"$f":"VLOOKUP(ventes[[#This Row],[CLIENTS]],localisations[],3,0)","v":"Amérique"},{"$f":"TEXT(ventes[[#This Row],[DATES]],\"mmm\")","v":"sept"},{"$f":"WEEKNUM(ventes[[#This Row],[DATES]])","v":39}]
["2021-09-21","client09","Produit36",96.3,35,{"$f":"ventes[[#This Row],[PRIX UNITAIRE (FCFA)]]*ventes[[#This Row],[QUANTITE]]","v":3370.5},{"$f":"VLOOKUP(ventes[[#This Row],[CLIENTS]],localisations[],2,0)","v":"Égypte"},{"$f":"VLOOKUP(ventes[[#This Row],[CLIENTS]],localisations[],3,0)","v":"Afrique"},{"$f":"TEXT(ventes[[#This Row],[DATES]],\"mmm\")","v":"sept"},{"$f":"WEEKNUM(ventes[[#This Row],[DATES]])","v":39}]
["2021-09-21","client14","Produit02",142.80000000000001,32,{"$f":"ventes[[#This Row],[PRIX UNITAIRE (FCFA)]]*ventes[[#This Row],[QUANTITE]]","v":4569.6000000000004},{"$f":"VLOOKUP(ventes[[#This Row],[CLIENTS]],localisations[],2,0)","v":"Pays-Bas"},{"$f":"VLOOKUP(ventes[[#This Row],[CLIENTS]],localisations[],3,0)","v":"Europe"},{"$f":"TEXT(ventes[[#This Row],[DATES]],\"mmm\")","v":"sept"},{"$f":"WEEKNUM(ventes[[#This Row],[DATES]])","v":39}]
["2021-09-21","client19","Produit20",76.25,7,{"$f":"ventes[[#This Row],[PRIX UNITAIRE (FCFA)]]*ventes[[#This Row],[QUANTITE]]","v":533.75},{"$f":"VLOOKUP(ventes[[#This Row],[CLIENTS]],localisations[],2,0)","v":"Suisse"},{"$f":"VLOOKUP(ventes[[#This Row],[CLIENTS]],localisations[],3,0)","v":"Europe"},{"$f":"TEXT(ventes[[#This Row],[DATES]],\"mmm\")","v":"sept"},{"$f":"WEEKNUM(ventes[[#This Row],[DATES]])","v":39}]
["2021-09-21","client21","Produit26",24.66,5,{"$f":"ventes[[#This Row],[PRIX UNITAIRE (FCFA)]]*ventes[[#This Row],[QUANTITE]]","v":123.3},{"$f":"VLOOKUP(ventes[[#This Row],[CLIENTS]],localisations[],2,0)","v":"Venezuela"},{"$f":"VLOOKUP(ventes[[#This Row],[CLIENTS]],localisations[],3,0)","v":"Amérique"},{"$f":"TEXT(ventes[[#This Row],[DATES]],\"mmm\")","v":"sept"},{"$f":"WEEKNUM(ventes[[#This Row],[DATES]])","v":39}]
["2021-09-21","client29","Produit18",49.21,14,{"$f":"ventes[[#This Row],[PRIX UNITAIRE (FCFA)]]*ventes[[#This Row],[QUANTITE]]","v":688.94},{"$f":"VLOOKUP(ventes[[#This Row],[CLIENTS]],localisations[],2,0)","v":"Chili"},{"$f":"VLOOKUP(ventes[[#This Row],[CLIENTS]],localisations[],3,0)","v":"Amérique"},{"$f":"TEXT(ventes[[#This Row],[DATES]],\"mmm\")","v":"sept"},{"$f":"WEEKNUM(ventes[[#This Row],[DATES]])","v":39}]
["2021-09-22","client05","Produit21",162.54,21,{"$f":"ventes[[#This Row],[PRIX UNITAIRE (FCFA)]]*ventes[[#This Row],[QUANTITE]]","v":3413.3399999999997},{"$f":"VLOOKUP(ventes[[#This Row],[CLIENTS]],localisations[],2,0)","v":"Algérie"},{"$f":"VLOOKUP(ventes[[#This Row],[CLIENTS]],localisations[],3,0)","v":"Afrique"},{"$f":"TEXT(ventes[[#This Row],[DATES]],\"mmm\")","v":"sept"},{"$f":"WEEKNUM(ventes[[#This Row],[DATES]])","v":39}]
["2021-09-22","client20","Produit04",48.84,14,{"$f":"ventes[[#This Row],[PRIX UNITAIRE (FCFA)]]*ventes[[#This Row],[QUANTITE]]","v":683.76},{"$f":"VLOOKUP(ventes[[#This Row],[CLIENTS]],localisations[],2,0)","v":"France"},{"$f":"VLOOKUP(ventes[[#This Row],[CLIENTS]],localisations[],3,0)","v":"Europe"},{"$f":"TEXT(ventes[[#This Row],[DATES]],\"mmm\")","v":"sept"},{"$f":"WEEKNUM(ventes[[#This Row],[DATES]])","v":39}]
["2021-09-22","client37","Produit02",142.80000000000001,4,{"$f":"ventes[[#This Row],[PRIX UNITAIRE (FCFA)]]*ventes[[#This Row],[QUANTITE]]","v":571.20000000000005},{"$f":"VLOOKUP(ventes[[#This Row],[CLIENTS]],localisations[],2,0)","v":"Inde"},{"$f":"VLOOKUP(ventes[[#This Row],[CLIENTS]],localisations[],3,0)","v":"Asie"},{"$f":"TEXT(ventes[[#This Row],[DATES]],\"mmm\")","v":"sept"},{"$f":"WEEKNUM(ventes[[#This Row],[DATES]])","v":39}]
["2021-09-22","client40","Produit40",115.2,2,{"$f":"ventes[[#This Row],[PRIX UNITAIRE (FCFA)]]*ventes[[#This Row],[QUANTITE]]","v":230.4},{"$f":"VLOOKUP(ventes[[#This Row],[CLIENTS]],localisations[],2,0)","v":"Pakistan"},{"$f":"VLOOKUP(ventes[[#This Row],[CLIENTS]],localisations[],3,0)","v":"Asie"},{"$f":"TEXT(ventes[[#This Row],[DATES]],\"mmm\")","v":"sept"},{"$f":"WEEKNUM(ventes[[#This Row],[DATES]])","v":39}]
["2021-09-22","client40","Produit43",83.08,12,{"$f":"ventes[[#This Row],[PRIX UNITAIRE (FCFA)]]*ventes[[#This Row],[QUANTITE]]","v":996.96},{"$f":"VLOOKUP(ventes[[#This Row],[CLIENTS]],localisations[],2,0)","v":"Pakistan"},{"$f":"VLOOKUP(ventes[[#This Row],[CLIENTS]],localisations[],3,0)","v":"Asie"},{"$f":"TEXT(ventes[[#This Row],[DATES]],\"mmm\")","v":"sept"},{"$f":"WEEKNUM(ventes[[#This Row],[DATES]])","v":39}]
["2021-09-23","client12","Produit12",94.17,12,{"$f":"ventes[[#This Row],[PRIX UNITAIRE (FCFA)]]*ventes[[#This Row],[QUANTITE]]","v":1130.04},{"$f":"VLOOKUP(ventes[[#This Row],[CLIENTS]],localisations[],2,0)","v":"Pologne"},{"$f":"VLOOKUP(ventes[[#This Row],[CLIENTS]],localisations[],3,0)","v":"Europe"},{"$f":"TEXT(ventes[[#This Row],[DATES]],\"mmm\")","v":"sept"},{"$f":"WEEKNUM(ventes[[#This Row],[DATES]])","v":39}]
["2021-09-23","client23","Produit21",162.54,7,{"$f":"ventes[[#This Row],[PRIX UNITAIRE (FCFA)]]*ventes[[#This Row],[QUANTITE]]","v":1137.78},{"$f":"VLOOKUP(ventes[[#This Row],[CLIENTS]],localisations[],2,0)","v":"Argentine"},{"$f":"VLOOKUP(ventes[[#This Row],[CLIENTS]],localisations[],3,0)","v":"Amérique"},{"$f":"TEXT(ventes[[#This Row],[DATES]],\"mmm\")","v":"sept"},{"$f":"WEEKNUM(ventes[[#This Row],[DATES]])","v":39}]
["2021-09-23","client26","Produit18",49.21,12,{"$f":"ventes[[#This Row],[PRIX UNITAIRE (FCFA)]]*ventes[[#This Row],[QUANTITE]]","v":590.52},{"$f":"VLOOKUP(ventes[[#This Row],[CLIENTS]],localisations[],2,0)","v":"Pérou"},{"$f":"VLOOKUP(ventes[[#This Row],[CLIENTS]],localisations[],3,0)","v":"Amérique"},{"$f":"TEXT(ventes[[#This Row],[DATES]],\"mmm\")","v":"sept"},{"$f":"WEEKNUM(ventes[[#This Row],[DATES]])","v":39}]
["2021-09-24","client06","Produit32",117.48,34,{"$f":"ventes[[#This Row],[PRIX UNITAIRE (FCFA)]]*ventes[[#This Row],[QUANTITE]]","v":3994.32},{"$f":"VLOOKUP(ventes[[#This Row],[CLIENTS]],localisations[],2,0)","v":"Afrique du Sud"},{"$f":"VLOOKUP(ventes[[#This Row],[CLIENTS]],localisations[],3,0)","v":"Afrique"},{"$f":"TEXT(ventes[[#This Row],[DATES]],\"mmm\")","v":"sept"},{"$f":"WEEKNUM(ventes[[#This Row],[DATES]])","v":39}]
["2021-09-24","client10","Produit32",117.48,8,{"$f":"ventes[[#This Row],[PRIX UNITAIRE (FCFA)]]*ventes[[#This Row],[QUANTITE]]","v":939.84},{"$f":"VLOOKUP(ventes[[#This Row],[CLIENTS]],localisations[],2,0)","v":"Nigeria"},{"$f":"VLOOKUP(ventes[[#This Row],[CLIENTS]],localisations[],3,0)","v":"Afrique"},{"$f":"TEXT(ventes[[#This Row],[DATES]],\"mmm\")","v":"sept"},{"$f":"WEEKNUM(ventes[[#This Row],[DATES]])","v":39}]
["2021-09-24","client14","Produit32",117.48,14,{"$f":"ventes[[#This Row],[PRIX UNITAIRE (FCFA)]]*ventes[[#This Row],[QUANTITE]]","v":1644.72},{"$f":"VLOOKUP(ventes[[#This Row],[CLIENTS]],localisations[],2,0)","v":"Pays-Bas"},{"$f":"VLOOKUP(ventes[[#This Row],[CLIENTS]],localisations[],3,0)","v":"Europe"},{"$f":"TEXT(ventes[[#This Row],[DATES]],\"mmm\")","v":"sept"},{"$f":"WEEKNUM(ventes[[#This Row],[DATES]])","v":39}]
["2021-09-25","client12","Produit03",80.94,31,{"$f":"ventes[[#This Row],[PRIX UNITAIRE (FCFA)]]*ventes[[#This Row],[QUANTITE]]","v":2509.14},{"$f":"VLOOKUP(ventes[[#This Row],[CLIENTS]],localisations[],2,0)","v":"Pologne"},{"$f":"VLOOKUP(ventes[[#This Row],[CLIENTS]],localisations[],3,0)","v":"Europe"},{"$f":"TEXT(ventes[[#This Row],[DATES]],\"mmm\")","v":"sept"},{"$f":"WEEKNUM(ventes[[#This Row],[DATES]])","v":39}]
["2021-09-27","client04","Produit34",58.3,1,{"$f":"ventes[[#This Row],[PRIX UNITAIRE (FCFA)]]*ventes[[#This Row],[QUANTITE]]","v":58.3},{"$f":"VLOOKUP(ventes[[#This Row],[CLIENTS]],localisations[],2,0)","v":"Sénégal"},{"$f":"VLOOKUP(ventes[[#This Row],[CLIENTS]],localisations[],3,0)","v":"Afrique"},{"$f":"TEXT(ventes[[#This Row],[DATES]],\"mmm\")","v":"sept"},{"$f":"WEEKNUM(ventes[[#This Row],[DATES]])","v":40}]
["2021-09-27","client05","Produit05",155.61000000000001,11,{"$f":"ventes[[#This Row],[PRIX UNITAIRE (FCFA)]]*ventes[[#This Row],[QUANTITE]]","v":1711.71},{"$f":"VLOOKUP(ventes[[#This Row],[CLIENTS]],localisations[],2,0)","v":"Algérie"},{"$f":"VLOOKUP(ventes[[#This Row],[CLIENTS]],localisations[],3,0)","v":"Afrique"},{"$f":"TEXT(ventes[[#This Row],[DATES]],\"mmm\")","v":"sept"},{"$f":"WEEKNUM(ventes[[#This Row],[DATES]])","v":40}]
["2021-09-27","client17","Produit36",96.3,4,{"$f":"ventes[[#This Row],[PRIX UNITAIRE (FCFA)]]*ventes[[#This Row],[QUANTITE]]","v":385.2},{"$f":"VLOOKUP(ventes[[#This Row],[CLIENTS]],localisations[],2,0)","v":"Suède"},{"$f":"VLOOKUP(ventes[[#This Row],[CLIENTS]],localisations[],3,0)","v":"Europe"},{"$f":"TEXT(ventes[[#This Row],[DATES]],\"mmm\")","v":"sept"},{"$f":"WEEKNUM(ventes[[#This Row],[DATES]])","v":40}]
["2021-09-27","client18","Produit38",79.92,3,{"$f":"ventes[[#This Row],[PRIX UNITAIRE (FCFA)]]*ventes[[#This Row],[QUANTITE]]","v":239.76},{"$f":"VLOOKUP(ventes[[#This Row],[CLIENTS]],localisations[],2,0)","v":"Belgique"},{"$f":"VLOOKUP(ventes[[#This Row],[CLIENTS]],localisations[],3,0)","v":"Europe"},{"$f":"TEXT(ventes[[#This Row],[DATES]],\"mmm\")","v":"sept"},{"$f":"WEEKNUM(ventes[[#This Row],[DATES]])","v":40}]
["2021-09-27","client23","Produit41",173.88,23,{"$f":"ventes[[#This Row],[PRIX UNITAIRE (FCFA)]]*ventes[[#This Row],[QUANTITE]]","v":3999.24},{"$f":"VLOOKUP(ventes[[#This Row],[CLIENTS]],localisations[],2,0)","v":"Argentine"},{"$f":"VLOOKUP(ventes[[#This Row],[CLIENTS]],localisations[],3,0)","v":"Amérique"},{"$f":"TEXT(ventes[[#This Row],[DATES]],\"mmm\")","v":"sept"},{"$f":"WEEKNUM(ventes[[#This Row],[DATES]])","v":40}]
["2021-09-27","client40","Produit44",82.08,9,{"$f":"ventes[[#This Row],[PRIX UNITAIRE (FCFA)]]*ventes[[#This Row],[QUANTITE]]","v":738.72},{"$f":"VLOOKUP(ventes[[#This Row],[CLIENTS]],localisations[],2,0)","v":"Pakistan"},{"$f":"VLOOKUP(ventes[[#This Row],[CLIENTS]],localisations[],3,0)","v":"Asie"},{"$f":"TEXT(ventes[[#This Row],[DATES]],\"mmm\")","v":"sept"},{"$f":"WEEKNUM(ventes[[#This Row],[DATES]])","v":40}]
["2021-09-29","client25","Produit34",58.3,13,{"$f":"ventes[[#This Row],[PRIX UNITAIRE (FCFA)]]*ventes[[#This Row],[QUANTITE]]","v":757.9},{"$f":"VLOOKUP(ventes[[#This Row],[CLIENTS]],localisations[],2,0)","v":"Brésil"},{"$f":"VLOOKUP(ventes[[#This Row],[CLIENTS]],localisations[],3,0)","v":"Amérique"},{"$f":"TEXT(ventes[[#This Row],[DATES]],\"mmm\")","v":"sept"},{"$f":"WEEKNUM(ventes[[#This Row],[DATES]])","v":40}]
["2021-09-30","client01","Produit14",146.72,9,{"$f":"ventes[[#This Row],[PRIX UNITAIRE (FCFA)]]*ventes[[#This Row],[QUANTITE]]","v":1320.48},{"$f":"VLOOKUP(ventes[[#This Row],[CLIENTS]],localisations[],2,0)","v":"Tunisie"},{"$f":"VLOOKUP(ventes[[#This Row],[CLIENTS]],localisations[],3,0)","v":"Afrique"},{"$f":"TEXT(ventes[[#This Row],[DATES]],\"mmm\")","v":"sept"},{"$f":"WEEKNUM(ventes[[#This Row],[DATES]])","v":40}]
["2021-09-30","client37","Produit06",85.5,5,{"$f":"ventes[[#This Row],[PRIX UNITAIRE (FCFA)]]*ventes[[#This Row],[QUANTITE]]","v":427.5},{"$f":"VLOOKUP(ventes[[#This Row],[CLIENTS]],localisations[],2,0)","v":"Inde"},{"$f":"VLOOKUP(ventes[[#This Row],[CLIENTS]],localisations[],3,0)","v":"Asie"},{"$f":"TEXT(ventes[[#This Row],[DATES]],\"mmm\")","v":"sept"},{"$f":"WEEKNUM(ventes[[#This Row],[DATES]])","v":40}]
["2021-10-01","client29","Produit30",201.28,14,{"$f":"ventes[[#This Row],[PRIX UNITAIRE (FCFA)]]*ventes[[#This Row],[QUANTITE]]","v":2817.92},{"$f":"VLOOKUP(ventes[[#This Row],[CLIENTS]],localisations[],2,0)","v":"Chili"},{"$f":"VLOOKUP(ventes[[#This Row],[CLIENTS]],localisations[],3,0)","v":"Amérique"},{"$f":"TEXT(ventes[[#This Row],[DATES]],\"mmm\")","v":"oct"},{"$f":"WEEKNUM(ventes[[#This Row],[DATES]])","v":40}]
["2021-10-02","client08","Produit14",146.72,15,{"$f":"ventes[[#This Row],[PRIX UNITAIRE (FCFA)]]*ventes[[#This Row],[QUANTITE]]","v":2200.8000000000002},{"$f":"VLOOKUP(ventes[[#This Row],[CLIENTS]],localisations[],2,0)","v":"Maroc"},{"$f":"VLOOKUP(ventes[[#This Row],[CLIENTS]],localisations[],3,0)","v":"Afrique"},{"$f":"TEXT(ventes[[#This Row],[DATES]],\"mmm\")","v":"oct"},{"$f":"WEEKNUM(ventes[[#This Row],[DATES]])","v":40}]
["2021-10-02","client11","Produit02",142.80000000000001,22,{"$f":"ventes[[#This Row],[PRIX UNITAIRE (FCFA)]]*ventes[[#This Row],[QUANTITE]]","v":3141.6000000000004},{"$f":"VLOOKUP(ventes[[#This Row],[CLIENTS]],localisations[],2,0)","v":"Espagne"},{"$f":"VLOOKUP(ventes[[#This Row],[CLIENTS]],localisations[],3,0)","v":"Europe"},{"$f":"TEXT(ventes[[#This Row],[DATES]],\"mmm\")","v":"oct"},{"$f":"WEEKNUM(ventes[[#This Row],[DATES]])","v":40}]
["2021-10-03","client32","Produit19",210,9,{"$f":"ventes[[#This Row],[PRIX UNITAIRE (FCFA)]]*ventes[[#This Row],[QUANTITE]]","v":1890},{"$f":"VLOOKUP(ventes[[#This Row],[CLIENTS]],localisations[],2,0)","v":"Indonésie"},{"$f":"VLOOKUP(ventes[[#This Row],[CLIENTS]],localisations[],3,0)","v":"Asie"},{"$f":"TEXT(ventes[[#This Row],[DATES]],\"mmm\")","v":"oct"},{"$f":"WEEKNUM(ventes[[#This Row],[DATES]])","v":41}]
["2021-10-03","client06","Produit41",173.88,23,{"$f":"ventes[[#This Row],[PRIX UNITAIRE (FCFA)]]*ventes[[#This Row],[QUANTITE]]","v":3999.24},{"$f":"VLOOKUP(ventes[[#This Row],[CLIENTS]],localisations[],2,0)","v":"Afrique du Sud"},{"$f":"VLOOKUP(ventes[[#This Row],[CLIENTS]],localisations[],3,0)","v":"Afrique"},{"$f":"TEXT(ventes[[#This Row],[DATES]],\"mmm\")","v":"oct"},{"$f":"WEEKNUM(ventes[[#This Row],[DATES]])","v":41}]
["2021-10-03","client14","Produit11",48.4,5,{"$f":"ventes[[#This Row],[PRIX UNITAIRE (FCFA)]]*ventes[[#This Row],[QUANTITE]]","v":242},{"$f":"VLOOKUP(ventes[[#This Row],[CLIENTS]],localisations[],2,0)","v":"Pays-Bas"},{"$f":"VLOOKUP(ventes[[#This Row],[CLIENTS]],localisations[],3,0)","v":"Europe"},{"$f":"TEXT(ventes[[#This Row],[DATES]],\"mmm\")","v":"oct"},{"$f":"WEEKNUM(ventes[[#This Row],[DATES]])","v":41}]
["2021-10-04","client22","Produit07",47.730000000000004,15,{"$f":"ventes[[#This Row],[PRIX UNITAIRE (FCFA)]]*ventes[[#This Row],[QUANTITE]]","v":715.95},{"$f":"VLOOKUP(ventes[[#This Row],[CLIENTS]],localisations[],2,0)","v":"Canada"},{"$f":"VLOOKUP(ventes[[#This Row],[CLIENTS]],localisations[],3,0)","v":"Amérique"},{"$f":"TEXT(ventes[[#This Row],[DATES]],\"mmm\")","v":"oct"},{"$f":"WEEKNUM(ventes[[#This Row],[DATES]])","v":41}]
["2021-10-05","client23","Produit24",156.96,36,{"$f":"ventes[[#This Row],[PRIX UNITAIRE (FCFA)]]*ventes[[#This Row],[QUANTITE]]","v":5650.56},{"$f":"VLOOKUP(ventes[[#This Row],[CLIENTS]],localisations[],2,0)","v":"Argentine"},{"$f":"VLOOKUP(ventes[[#This Row],[CLIENTS]],localisations[],3,0)","v":"Amérique"},{"$f":"TEXT(ventes[[#This Row],[DATES]],\"mmm\")","v":"oct"},{"$f":"WEEKNUM(ventes[[#This Row],[DATES]])","v":41}]
["2021-10-05","client26","Produit24",156.96,23,{"$f":"ventes[[#This Row],[PRIX UNITAIRE (FCFA)]]*ventes[[#This Row],[QUANTITE]]","v":3610.0800000000004},{"$f":"VLOOKUP(ventes[[#This Row],[CLIENTS]],localisations[],2,0)","v":"Pérou"},{"$f":"VLOOKUP(ventes[[#This Row],[CLIENTS]],localisations[],3,0)","v":"Amérique"},{"$f":"TEXT(ventes[[#This Row],[DATES]],\"mmm\")","v":"oct"},{"$f":"WEEKNUM(ventes[[#This Row],[DATES]])","v":41}]
["2021-10-06","client04","Produit35",6.7,1,{"$f":"ventes[[#This Row],[PRIX UNITAIRE (FCFA)]]*ventes[[#This Row],[QUANTITE]]","v":6.7},{"$f":"VLOOKUP(ventes[[#This Row],[CLIENTS]],localisations[],2,0)","v":"Sénégal"},{"$f":"VLOOKUP(ventes[[#This Row],[CLIENTS]],localisations[],3,0)","v":"Afrique"},{"$f":"TEXT(ventes[[#This Row],[DATES]],\"mmm\")","v":"oct"},{"$f":"WEEKNUM(ventes[[#This Row],[DATES]])","v":41}]
["2021-10-06","client11","Produit08",94.62,23,{"$f":"ventes[[#This Row],[PRIX UNITAIRE (FCFA)]]*ventes[[#This Row],[QUANTITE]]","v":2176.2600000000002},{"$f":"VLOOKUP(ventes[[#This Row],[CLIENTS]],localisations[],2,0)","v":"Espagne"},{"$f":"VLOOKUP(ventes[[#This Row],[CLIENTS]],localisations[],3,0)","v":"Europe"},{"$f":"TEXT(ventes[[#This Row],[DATES]],\"mmm\")","v":"oct"},{"$f":"WEEKNUM(ventes[[#This Row],[DATES]])","v":41}]
["2021-10-06","client12","Produit43",83.08,17,{"$f":"ventes[[#This Row],[PRIX UNITAIRE (FCFA)]]*ventes[[#This Row],[QUANTITE]]","v":1412.36},{"$f":"VLOOKUP(ventes[[#This Row],[CLIENTS]],localisations[],2,0)","v":"Pologne"},{"$f":"VLOOKUP(ventes[[#This Row],[CLIENTS]],localisations[],3,0)","v":"Europe"},{"$f":"TEXT(ventes[[#This Row],[DATES]],\"mmm\")","v":"oct"},{"$f":"WEEKNUM(ventes[[#This Row],[DATES]])","v":41}]
["2021-10-06","client15","Produit21",162.54,10,{"$f":"ventes[[#This Row],[PRIX UNITAIRE (FCFA)]]*ventes[[#This Row],[QUANTITE]]","v":1625.3999999999999},{"$f":"VLOOKUP(ventes[[#This Row],[CLIENTS]],localisations[],2,0)","v":"Allemagne"},{"$f":"VLOOKUP(ventes[[#This Row],[CLIENTS]],localisations[],3,0)","v":"Europe"},{"$f":"TEXT(ventes[[#This Row],[DATES]],\"mmm\")","v":"oct"},{"$f":"WEEKNUM(ventes[[#This Row],[DATES]])","v":41}]
["2021-10-06","client18","Produit36",96.3,12,{"$f":"ventes[[#This Row],[PRIX UNITAIRE (FCFA)]]*ventes[[#This Row],[QUANTITE]]","v":1155.5999999999999},{"$f":"VLOOKUP(ventes[[#This Row],[CLIENTS]],localisations[],2,0)","v":"Belgique"},{"$f":"VLOOKUP(ventes[[#This Row],[CLIENTS]],localisations[],3,0)","v":"Europe"},{"$f":"TEXT(ventes[[#This Row],[DATES]],\"mmm\")","v":"oct"},{"$f":"WEEKNUM(ventes[[#This Row],[DATES]])","v":41}]
["2021-10-06","client40","Produit35",6.7,1,{"$f":"ventes[[#This Row],[PRIX UNITAIRE (FCFA)]]*ventes[[#This Row],[QUANTITE]]","v":6.7},{"$f":"VLOOKUP(ventes[[#This Row],[CLIENTS]],localisations[],2,0)","v":"Pakistan"},{"$f":"VLOOKUP(ventes[[#This Row],[CLIENTS]],localisations[],3,0)","v":"Asie"},{"$f":"TEXT(ventes[[#This Row],[DATES]],\"mmm\")","v":"oct"},{"$f":"WEEKNUM(ventes[[#This Row],[DATES]])","v":41}]
["2021-10-07","client15","Produit26",24.66,6,{"$f":"ventes[[#This Row],[PRIX UNITAIRE (FCFA)]]*ventes[[#This Row],[QUANTITE]]","v":147.96},{"$f":"VLOOKUP(ventes[[#This Row],[CLIENTS]],localisations[],2,0)","v":"Allemagne"},{"$f":"VLOOKUP(ventes[[#This Row],[CLIENTS]],localisations[],3,0)","v":"Europe"},{"$f":"TEXT(ventes[[#This Row],[DATES]],\"mmm\")","v":"oct"},{"$f":"WEEKNUM(ventes[[#This Row],[DATES]])","v":41}]
["2021-10-09","client01","Produit38",79.92,14,{"$f":"ventes[[#This Row],[PRIX UNITAIRE (FCFA)]]*ventes[[#This Row],[QUANTITE]]","v":1118.8800000000001},{"$f":"VLOOKUP(ventes[[#This Row],[CLIENTS]],localisations[],2,0)","v":"Tunisie"},{"$f":"VLOOKUP(ventes[[#This Row],[CLIENTS]],localisations[],3,0)","v":"Afrique"},{"$f":"TEXT(ventes[[#This Row],[DATES]],\"mmm\")","v":"oct"},{"$f":"WEEKNUM(ventes[[#This Row],[DATES]])","v":41}]
["2021-10-09","client02","Produit38",79.92,5,{"$f":"ventes[[#This Row],[PRIX UNITAIRE (FCFA)]]*ventes[[#This Row],[QUANTITE]]","v":399.6},{"$f":"VLOOKUP(ventes[[#This Row],[CLIENTS]],localisations[],2,0)","v":"Ghana"},{"$f":"VLOOKUP(ventes[[#This Row],[CLIENTS]],localisations[],3,0)","v":"Afrique"},{"$f":"TEXT(ventes[[#This Row],[DATES]],\"mmm\")","v":"oct"},{"$f":"WEEKNUM(ventes[[#This Row],[DATES]])","v":41}]
["2021-10-09","client14","Produit32",117.48,11,{"$f":"ventes[[#This Row],[PRIX UNITAIRE (FCFA)]]*ventes[[#This Row],[QUANTITE]]","v":1292.28},{"$f":"VLOOKUP(ventes[[#This Row],[CLIENTS]],localisations[],2,0)","v":"Pays-Bas"},{"$f":"VLOOKUP(ventes[[#This Row],[CLIENTS]],localisations[],3,0)","v":"Europe"},{"$f":"TEXT(ventes[[#This Row],[DATES]],\"mmm\")","v":"oct"},{"$f":"WEEKNUM(ventes[[#This Row],[DATES]])","v":41}]
["2021-10-10","client04","Produit35",6.7,14,{"$f":"ventes[[#This Row],[PRIX UNITAIRE (FCFA)]]*ventes[[#This Row],[QUANTITE]]","v":93.8},{"$f":"VLOOKUP(ventes[[#This Row],[CLIENTS]],localisations[],2,0)","v":"Sénégal"},{"$f":"VLOOKUP(ventes[[#This Row],[CLIENTS]],localisations[],3,0)","v":"Afrique"},{"$f":"TEXT(ventes[[#This Row],[DATES]],\"mmm\")","v":"oct"},{"$f":"WEEKNUM(ventes[[#This Row],[DATES]])","v":42}]
["2021-10-10","client04","Produit19",210,9,{"$f":"ventes[[#This Row],[PRIX UNITAIRE (FCFA)]]*ventes[[#This Row],[QUANTITE]]","v":1890},{"$f":"VLOOKUP(ventes[[#This Row],[CLIENTS]],localisations[],2,0)","v":"Sénégal"},{"$f":"VLOOKUP(ventes[[#This Row],[CLIENTS]],localisations[],3,0)","v":"Afrique"},{"$f":"TEXT(ventes[[#This Row],[DATES]],\"mmm\")","v":"oct"},{"$f":"WEEKNUM(ventes[[#This Row],[DATES]])","v":42}]
["2021-10-10","client15","Produit44",82.08,12,{"$f":"ventes[[#This Row],[PRIX UNITAIRE (FCFA)]]*ventes[[#This Row],[QUANTITE]]","v":984.96},{"$f":"VLOOKUP(ventes[[#This Row],[CLIENTS]],localisations[],2,0)","v":"Allemagne"},{"$f":"VLOOKUP(ventes[[#This Row],[CLIENTS]],localisations[],3,0)","v":"Europe"},{"$f":"TEXT(ventes[[#This Row],[DATES]],\"mmm\")","v":"oct"},{"$f":"WEEKNUM(ventes[[#This Row],[DATES]])","v":42}]
["2021-10-11","client23","Produit08",94.62,10,{"$f":"ventes[[#This Row],[PRIX UNITAIRE (FCFA)]]*ventes[[#This Row],[QUANTITE]]","v":946.2},{"$f":"VLOOKUP(ventes[[#This Row],[CLIENTS]],localisations[],2,0)","v":"Argentine"},{"$f":"VLOOKUP(ventes[[#This Row],[CLIENTS]],localisations[],3,0)","v":"Amérique"},{"$f":"TEXT(ventes[[#This Row],[DATES]],\"mmm\")","v":"oct"},{"$f":"WEEKNUM(ventes[[#This Row],[DATES]])","v":42}]
["2021-10-11","client25","Produit11",48.4,15,{"$f":"ventes[[#This Row],[PRIX UNITAIRE (FCFA)]]*ventes[[#This Row],[QUANTITE]]","v":726},{"$f":"VLOOKUP(ventes[[#This Row],[CLIENTS]],localisations[],2,0)","v":"Brésil"},{"$f":"VLOOKUP(ventes[[#This Row],[CLIENTS]],localisations[],3,0)","v":"Amérique"},{"$f":"TEXT(ventes[[#This Row],[DATES]],\"mmm\")","v":"oct"},{"$f":"WEEKNUM(ventes[[#This Row],[DATES]])","v":42}]
["2021-10-12","client16","Produit27",57.120000000000005,8,{"$f":"ventes[[#This Row],[PRIX UNITAIRE (FCFA)]]*ventes[[#This Row],[QUANTITE]]","v":456.96000000000004},{"$f":"VLOOKUP(ventes[[#This Row],[CLIENTS]],localisations[],2,0)","v":"Royaume-Uni"},{"$f":"VLOOKUP(ventes[[#This Row],[CLIENTS]],localisations[],3,0)","v":"Europe"},{"$f":"TEXT(ventes[[#This Row],[DATES]],\"mmm\")","v":"oct"},{"$f":"WEEKNUM(ventes[[#This Row],[DATES]])","v":42}]
["2021-10-13","client02","Produit02",142.80000000000001,15,{"$f":"ventes[[#This Row],[PRIX UNITAIRE (FCFA)]]*ventes[[#This Row],[QUANTITE]]","v":2142},{"$f":"VLOOKUP(ventes[[#This Row],[CLIENTS]],localisations[],2,0)","v":"Ghana"},{"$f":"VLOOKUP(ventes[[#This Row],[CLIENTS]],localisations[],3,0)","v":"Afrique"},{"$f":"TEXT(ventes[[#This Row],[DATES]],\"mmm\")","v":"oct"},{"$f":"WEEKNUM(ventes[[#This Row],[DATES]])","v":42}]
["2021-10-13","client18","Produit38",79.92,18,{"$f":"ventes[[#This Row],[PRIX UNITAIRE (FCFA)]]*ventes[[#This Row],[QUANTITE]]","v":1438.56},{"$f":"VLOOKUP(ventes[[#This Row],[CLIENTS]],localisations[],2,0)","v":"Belgique"},{"$f":"VLOOKUP(ventes[[#This Row],[CLIENTS]],localisations[],3,0)","v":"Europe"},{"$f":"TEXT(ventes[[#This Row],[DATES]],\"mmm\")","v":"oct"},{"$f":"WEEKNUM(ventes[[#This Row],[DATES]])","v":42}]
["2021-10-14","client07","Produit44",82.08,15,{"$f":"ventes[[#This Row],[PRIX UNITAIRE (FCFA)]]*ventes[[#This Row],[QUANTITE]]","v":1231.2},{"$f":"VLOOKUP(ventes[[#This Row],[CLIENTS]],localisations[],2,0)","v":"Éthiopie"},{"$f":"VLOOKUP(ventes[[#This Row],[CLIENTS]],localisations[],3,0)","v":"Afrique"},{"$f":"TEXT(ventes[[#This Row],[DATES]],\"mmm\")","v":"oct"},{"$f":"WEEKNUM(ventes[[#This Row],[DATES]])","v":42}]
["2021-10-15","client10","Produit15",15.719999999999999,10,{"$f":"ventes[[#This Row],[PRIX UNITAIRE (FCFA)]]*ventes[[#This Row],[QUANTITE]]","v":157.19999999999999},{"$f":"VLOOKUP(ventes[[#This Row],[CLIENTS]],localisations[],2,0)","v":"Nigeria"},{"$f":"VLOOKUP(ventes[[#This Row],[CLIENTS]],localisations[],3,0)","v":"Afrique"},{"$f":"TEXT(ventes[[#This Row],[DATES]],\"mmm\")","v":"oct"},{"$f":"WEEKNUM(ventes[[#This Row],[DATES]])","v":42}]
["2021-10-16","client21","Produit36",96.3,3,{"$f":"ventes[[#This Row],[PRIX UNITAIRE (FCFA)]]*ventes[[#This Row],[QUANTITE]]","v":288.89999999999998},{"$f":"VLOOKUP(ventes[[#This Row],[CLIENTS]],localisations[],2,0)","v":"Venezuela"},{"$f":"VLOOKUP(ventes[[#This Row],[CLIENTS]],localisations[],3,0)","v":"Amérique"},{"$f":"TEXT(ventes[[#This Row],[DATES]],\"mmm\")","v":"oct"},{"$f":"WEEKNUM(ventes[[#This Row],[DATES]])","v":42}]
["2021-10-16","client25","Produit24",156.96,18,{"$f":"ventes[[#This Row],[PRIX UNITAIRE (FCFA)]]*ventes[[#This Row],[QUANTITE]]","v":2825.28},{"$f":"VLOOKUP(ventes[[#This Row],[CLIENTS]],localisations[],2,0)","v":"Brésil"},{"$f":"VLOOKUP(ventes[[#This Row],[CLIENTS]],localisations[],3,0)","v":"Amérique"},{"$f":"TEXT(ventes[[#This Row],[DATES]],\"mmm\")","v":"oct"},{"$f":"WEEKNUM(ventes[[#This Row],[DATES]])","v":42}]
["2021-10-16","client26","Produit44",82.08,18,{"$f":"ventes[[#This Row],[PRIX UNITAIRE (FCFA)]]*ventes[[#This Row],[QUANTITE]]","v":1477.44},{"$f":"VLOOKUP(ventes[[#This Row],[CLIENTS]],localisations[],2,0)","v":"Pérou"},{"$f":"VLOOKUP(ventes[[#This Row],[CLIENTS]],localisations[],3,0)","v":"Amérique"},{"$f":"TEXT(ventes[[#This Row],[DATES]],\"mmm\")","v":"oct"},{"$f":"WEEKNUM(ventes[[#This Row],[DATES]])","v":42}]
["2021-10-17","client25","Produit01",103.88,13,{"$f":"ventes[[#This Row],[PRIX UNITAIRE (FCFA)]]*ventes[[#This Row],[QUANTITE]]","v":1350.44},{"$f":"VLOOKUP(ventes[[#This Row],[CLIENTS]],localisations[],2,0)","v":"Brésil"},{"$f":"VLOOKUP(ventes[[#This Row],[CLIENTS]],localisations[],3,0)","v":"Amérique"},{"$f":"TEXT(ventes[[#This Row],[DATES]],\"mmm\")","v":"oct"},{"$f":"WEEKNUM(ventes[[#This Row],[DATES]])","v":43}]
["2021-10-18","client01","Produit42",162,31,{"$f":"ventes[[#This Row],[PRIX UNITAIRE (FCFA)]]*ventes[[#This Row],[QUANTITE]]","v":5022},{"$f":"VLOOKUP(ventes[[#This Row],[CLIENTS]],localisations[],2,0)","v":"Tunisie"},{"$f":"VLOOKUP(ventes[[#This Row],[CLIENTS]],localisations[],3,0)","v":"Afrique"},{"$f":"TEXT(ventes[[#This Row],[DATES]],\"mmm\")","v":"oct"},{"$f":"WEEKNUM(ventes[[#This Row],[DATES]])","v":43}]
["2021-10-18","client32","Produit08",94.62,11,{"$f":"ventes[[#This Row],[PRIX UNITAIRE (FCFA)]]*ventes[[#This Row],[QUANTITE]]","v":1040.8200000000002},{"$f":"VLOOKUP(ventes[[#This Row],[CLIENTS]],localisations[],2,0)","v":"Indonésie"},{"$f":"VLOOKUP(ventes[[#This Row],[CLIENTS]],localisations[],3,0)","v":"Asie"},{"$f":"TEXT(ventes[[#This Row],[DATES]],\"mmm\")","v":"oct"},{"$f":"WEEKNUM(ventes[[#This Row],[DATES]])","v":43}]
["2021-10-18","client09","Produit03",80.94,6,{"$f":"ventes[[#This Row],[PRIX UNITAIRE (FCFA)]]*ventes[[#This Row],[QUANTITE]]","v":485.64},{"$f":"VLOOKUP(ventes[[#This Row],[CLIENTS]],localisations[],2,0)","v":"Égypte"},{"$f":"VLOOKUP(ventes[[#This Row],[CLIENTS]],localisations[],3,0)","v":"Afrique"},{"$f":"TEXT(ventes[[#This Row],[DATES]],\"mmm\")","v":"oct"},{"$f":"WEEKNUM(ventes[[#This Row],[DATES]])","v":43}]
["2021-10-18","client33","Produit25",8.33,16,{"$f":"ventes[[#This Row],[PRIX UNITAIRE (FCFA)]]*ventes[[#This Row],[QUANTITE]]","v":133.28},{"$f":"VLOOKUP(ventes[[#This Row],[CLIENTS]],localisations[],2,0)","v":"Philippines"},{"$f":"VLOOKUP(ventes[[#This Row],[CLIENTS]],localisations[],3,0)","v":"Asie"},{"$f":"TEXT(ventes[[#This Row],[DATES]],\"mmm\")","v":"oct"},{"$f":"WEEKNUM(ventes[[#This Row],[DATES]])","v":43}]
["2021-10-18","client23","Produit25",8.33,6,{"$f":"ventes[[#This Row],[PRIX UNITAIRE (FCFA)]]*ventes[[#This Row],[QUANTITE]]","v":49.980000000000004},{"$f":"VLOOKUP(ventes[[#This Row],[CLIENTS]],localisations[],2,0)","v":"Argentine"},{"$f":"VLOOKUP(ventes[[#This Row],[CLIENTS]],localisations[],3,0)","v":"Amérique"},{"$f":"TEXT(ventes[[#This Row],[DATES]],\"mmm\")","v":"oct"},{"$f":"WEEKNUM(ventes[[#This Row],[DATES]])","v":43}]
["2021-10-18","client23","Produit21",162.54,13,{"$f":"ventes[[#This Row],[PRIX UNITAIRE (FCFA)]]*ventes[[#This Row],[QUANTITE]]","v":2113.02},{"$f":"VLOOKUP(ventes[[#This Row],[CLIENTS]],localisations[],2,0)","v":"Argentine"},{"$f":"VLOOKUP(ventes[[#This Row],[CLIENTS]],localisations[],3,0)","v":"Amérique"},{"$f":"TEXT(ventes[[#This Row],[DATES]],\"mmm\")","v":"oct"},{"$f":"WEEKNUM(ventes[[#This Row],[DATES]])","v":43}]
["2021-10-22","client04","Produit11",48.4,7,{"$f":"ventes[[#This Row],[PRIX UNITAIRE (FCFA)]]*ventes[[#This Row],[QUANTITE]]","v":338.8},{"$f":"VLOOKUP(ventes[[#This Row],[CLIENTS]],localisations[],2,0)","v":"Sénégal"},{"$f":"VLOOKUP(ventes[[#This Row],[CLIENTS]],localisations[],3,0)","v":"Afrique"},{"$f":"TEXT(ventes[[#This Row],[DATES]],\"mmm\")","v":"oct"},{"$f":"WEEKNUM(ventes[[#This Row],[DATES]])","v":43}]
["2021-10-22","client06","Produit09",7.8599999999999994,1,{"$f":"ventes[[#This Row],[PRIX UNITAIRE (FCFA)]]*ventes[[#This Row],[QUANTITE]]","v":7.8599999999999994},{"$f":"VLOOKUP(ventes[[#This Row],[CLIENTS]],localisations[],2,0)","v":"Afrique du Sud"},{"$f":"VLOOKUP(ventes[[#This Row],[CLIENTS]],localisations[],3,0)","v":"Afrique"},{"$f":"TEXT(ventes[[#This Row],[DATES]],\"mmm\")","v":"oct"},{"$f":"WEEKNUM(ventes[[#This Row],[DATES]])","v":43}]
["2021-10-22","client08","Produit24",156.96,13,{"$f":"ventes[[#This Row],[PRIX UNITAIRE (FCFA)]]*ventes[[#This Row],[QUANTITE]]","v":2040.48},{"$f":"VLOOKUP(ventes[[#This Row],[CLIENTS]],localisations[],2,0)","v":"Maroc"},{"$f":"VLOOKUP(ventes[[#This Row],[CLIENTS]],localisations[],3,0)","v":"Afrique"},{"$f":"TEXT(ventes[[#This Row],[DATES]],\"mmm\")","v":"oct"},{"$f":"WEEKNUM(ventes[[#This Row],[DATES]])","v":43}]
["2021-10-22","client11","Produit32",117.48,34,{"$f":"ventes[[#This Row],[PRIX UNITAIRE (FCFA)]]*ventes[[#This Row],[QUANTITE]]","v":3994.32},{"$f":"VLOOKUP(ventes[[#This Row],[CLIENTS]],localisations[],2,0)","v":"Espagne"},{"$f":"VLOOKUP(ventes[[#This Row],[CLIENTS]],localisations[],3,0)","v":"Europe"},{"$f":"TEXT(ventes[[#This Row],[DATES]],\"mmm\")","v":"oct"},{"$f":"WEEKNUM(ventes[[#This Row],[DATES]])","v":43}]
["2021-10-22","client17","Produit39",42.55,24,{"$f":"ventes[[#This Row],[PRIX UNITAIRE (FCFA)]]*ventes[[#This Row],[QUANTITE]]","v":1021.1999999999999},{"$f":"VLOOKUP(ventes[[#This Row],[CLIENTS]],localisations[],2,0)","v":"Suède"},{"$f":"VLOOKUP(ventes[[#This Row],[CLIENTS]],localisations[],3,0)","v":"Europe"},{"$f":"TEXT(ventes[[#This Row],[DATES]],\"mmm\")","v":"oct"},{"$f":"WEEKNUM(ventes[[#This Row],[DATES]])","v":43}]
["2021-10-23","client22","Produit24",156.96,14,{"$f":"ventes[[#This Row],[PRIX UNITAIRE (FCFA)]]*ventes[[#This Row],[QUANTITE]]","v":2197.44},{"$f":"VLOOKUP(ventes[[#This Row],[CLIENTS]],localisations[],2,0)","v":"Canada"},{"$f":"VLOOKUP(ventes[[#This Row],[CLIENTS]],localisations[],3,0)","v":"Amérique"},{"$f":"TEXT(ventes[[#This Row],[DATES]],\"mmm\")","v":"oct"},{"$f":"WEEKNUM(ventes[[#This Row],[DATES]])","v":43}]
["2021-10-24","client33","Produit36",96.3,22,{"$f":"ventes[[#This Row],[PRIX UNITAIRE (FCFA)]]*ventes[[#This Row],[QUANTITE]]","v":2118.6},{"$f":"VLOOKUP(ventes[[#This Row],[CLIENTS]],localisations[],2,0)","v":"Philippines"},{"$f":"VLOOKUP(ventes[[#This Row],[CLIENTS]],localisations[],3,0)","v":"Asie"},{"$f":"TEXT(ventes[[#This Row],[DATES]],\"mmm\")","v":"oct"},{"$f":"WEEKNUM(ventes[[#This Row],[DATES]])","v":44}]
["2021-10-24","client23","Produit11",48.4,3,{"$f":"ventes[[#This Row],[PRIX UNITAIRE (FCFA)]]*ventes[[#This Row],[QUANTITE]]","v":145.19999999999999},{"$f":"VLOOKUP(ventes[[#This Row],[CLIENTS]],localisations[],2,0)","v":"Argentine"},{"$f":"VLOOKUP(ventes[[#This Row],[CLIENTS]],localisations[],3,0)","v":"Amérique"},{"$f":"TEXT(ventes[[#This Row],[DATES]],\"mmm\")","v":"oct"},{"$f":"WEEKNUM(ventes[[#This Row],[DATES]])","v":44}]
["2021-10-24","client23","Produit25",8.33,21,{"$f":"ventes[[#This Row],[PRIX UNITAIRE (FCFA)]]*ventes[[#This Row],[QUANTITE]]","v":174.93},{"$f":"VLOOKUP(ventes[[#This Row],[CLIENTS]],localisations[],2,0)","v":"Argentine"},{"$f":"VLOOKUP(ventes[[#This Row],[CLIENTS]],localisations[],3,0)","v":"Amérique"},{"$f":"TEXT(ventes[[#This Row],[DATES]],\"mmm\")","v":"oct"},{"$f":"WEEKNUM(ventes[[#This Row],[DATES]])","v":44}]
["2021-10-24","client40","Produit33",119.7,4,{"$f":"ventes[[#This Row],[PRIX UNITAIRE (FCFA)]]*ventes[[#This Row],[QUANTITE]]","v":478.8},{"$f":"VLOOKUP(ventes[[#This Row],[CLIENTS]],localisations[],2,0)","v":"Pakistan"},{"$f":"VLOOKUP(ventes[[#This Row],[CLIENTS]],localisations[],3,0)","v":"Asie"},{"$f":"TEXT(ventes[[#This Row],[DATES]],\"mmm\")","v":"oct"},{"$f":"WEEKNUM(ventes[[#This Row],[DATES]])","v":44}]
["2021-10-25","client15","Produit44",82.08,9,{"$f":"ventes[[#This Row],[PRIX UNITAIRE (FCFA)]]*ventes[[#This Row],[QUANTITE]]","v":738.72},{"$f":"VLOOKUP(ventes[[#This Row],[CLIENTS]],localisations[],2,0)","v":"Allemagne"},{"$f":"VLOOKUP(ventes[[#This Row],[CLIENTS]],localisations[],3,0)","v":"Europe"},{"$f":"TEXT(ventes[[#This Row],[DATES]],\"mmm\")","v":"oct"},{"$f":"WEEKNUM(ventes[[#This Row],[DATES]])","v":44}]
["2021-10-25","client22","Produit01",103.88,18,{"$f":"ventes[[#This Row],[PRIX UNITAIRE (FCFA)]]*ventes[[#This Row],[QUANTITE]]","v":1869.84},{"$f":"VLOOKUP(ventes[[#This Row],[CLIENTS]],localisations[],2,0)","v":"Canada"},{"$f":"VLOOKUP(ventes[[#This Row],[CLIENTS]],localisations[],3,0)","v":"Amérique"},{"$f":"TEXT(ventes[[#This Row],[DATES]],\"mmm\")","v":"oct"},{"$f":"WEEKNUM(ventes[[#This Row],[DATES]])","v":44}]
["2021-10-26","client07","Produit04",48.84,6,{"$f":"ventes[[#This Row],[PRIX UNITAIRE (FCFA)]]*ventes[[#This Row],[QUANTITE]]","v":293.04000000000002},{"$f":"VLOOKUP(ventes[[#This Row],[CLIENTS]],localisations[],2,0)","v":"Éthiopie"},{"$f":"VLOOKUP(ventes[[#This Row],[CLIENTS]],localisations[],3,0)","v":"Afrique"},{"$f":"TEXT(ventes[[#This Row],[DATES]],\"mmm\")","v":"oct"},{"$f":"WEEKNUM(ventes[[#This Row],[DATES]])","v":44}]
["2021-10-28","client37","Produit08",94.62,1,{"$f":"ventes[[#This Row],[PRIX UNITAIRE (FCFA)]]*ventes[[#This Row],[QUANTITE]]","v":94.62},{"$f":"VLOOKUP(ventes[[#This Row],[CLIENTS]],localisations[],2,0)","v":"Inde"},{"$f":"VLOOKUP(ventes[[#This Row],[CLIENTS]],localisations[],3,0)","v":"Asie"},{"$f":"TEXT(ventes[[#This Row],[DATES]],\"mmm\")","v":"oct"},{"$f":"WEEKNUM(ventes[[#This Row],[DATES]])","v":44}]
["2021-10-28","client25","Produit35",6.7,39,{"$f":"ventes[[#This Row],[PRIX UNITAIRE (FCFA)]]*ventes[[#This Row],[QUANTITE]]","v":261.3},{"$f":"VLOOKUP(ventes[[#This Row],[CLIENTS]],localisations[],2,0)","v":"Brésil"},{"$f":"VLOOKUP(ventes[[#This Row],[CLIENTS]],localisations[],3,0)","v":"Amérique"},{"$f":"TEXT(ventes[[#This Row],[DATES]],\"mmm\")","v":"oct"},{"$f":"WEEKNUM(ventes[[#This Row],[DATES]])","v":44}]
["2021-10-29","client10","Produit02",142.80000000000001,23,{"$f":"ventes[[#This Row],[PRIX UNITAIRE (FCFA)]]*ventes[[#This Row],[QUANTITE]]","v":3284.4},{"$f":"VLOOKUP(ventes[[#This Row],[CLIENTS]],localisations[],2,0)","v":"Nigeria"},{"$f":"VLOOKUP(ventes[[#This Row],[CLIENTS]],localisations[],3,0)","v":"Afrique"},{"$f":"TEXT(ventes[[#This Row],[DATES]],\"mmm\")","v":"oct"},{"$f":"WEEKNUM(ventes[[#This Row],[DATES]])","v":44}]
["2021-10-29","client14","Produit38",79.92,14,{"$f":"ventes[[#This Row],[PRIX UNITAIRE (FCFA)]]*ventes[[#This Row],[QUANTITE]]","v":1118.8800000000001},{"$f":"VLOOKUP(ventes[[#This Row],[CLIENTS]],localisations[],2,0)","v":"Pays-Bas"},{"$f":"VLOOKUP(ventes[[#This Row],[CLIENTS]],localisations[],3,0)","v":"Europe"},{"$f":"TEXT(ventes[[#This Row],[DATES]],\"mmm\")","v":"oct"},{"$f":"WEEKNUM(ventes[[#This Row],[DATES]])","v":44}]
["2021-10-30","client01","Produit30",201.28,30,{"$f":"ventes[[#This Row],[PRIX UNITAIRE (FCFA)]]*ventes[[#This Row],[QUANTITE]]","v":6038.4},{"$f":"VLOOKUP(ventes[[#This Row],[CLIENTS]],localisations[],2,0)","v":"Tunisie"},{"$f":"VLOOKUP(ventes[[#This Row],[CLIENTS]],localisations[],3,0)","v":"Afrique"},{"$f":"TEXT(ventes[[#This Row],[DATES]],\"mmm\")","v":"oct"},{"$f":"WEEKNUM(ventes[[#This Row],[DATES]])","v":44}]
["2021-10-30","client15","Produit25",8.33,37,{"$f":"ventes[[#This Row],[PRIX UNITAIRE (FCFA)]]*ventes[[#This Row],[QUANTITE]]","v":308.20999999999998},{"$f":"VLOOKUP(ventes[[#This Row],[CLIENTS]],localisations[],2,0)","v":"Allemagne"},{"$f":"VLOOKUP(ventes[[#This Row],[CLIENTS]],localisations[],3,0)","v":"Europe"},{"$f":"TEXT(ventes[[#This Row],[DATES]],\"mmm\")","v":"oct"},{"$f":"WEEKNUM(ventes[[#This Row],[DATES]])","v":44}]
["2021-10-30","client16","Produit42",162,3,{"$f":"ventes[[#This Row],[PRIX UNITAIRE (FCFA)]]*ventes[[#This Row],[QUANTITE]]","v":486},{"$f":"VLOOKUP(ventes[[#This Row],[CLIENTS]],localisations[],2,0)","v":"Royaume-Uni"},{"$f":"VLOOKUP(ventes[[#This Row],[CLIENTS]],localisations[],3,0)","v":"Europe"},{"$f":"TEXT(ventes[[#This Row],[DATES]],\"mmm\")","v":"oct"},{"$f":"WEEKNUM(ventes[[#This Row],[DATES]])","v":44}]
["2021-10-30","client26","Produit09",7.8599999999999994,6,{"$f":"ventes[[#This Row],[PRIX UNITAIRE (FCFA)]]*ventes[[#This Row],[QUANTITE]]","v":47.16},{"$f":"VLOOKUP(ventes[[#This Row],[CLIENTS]],localisations[],2,0)","v":"Pérou"},{"$f":"VLOOKUP(ventes[[#This Row],[CLIENTS]],localisations[],3,0)","v":"Amérique"},{"$f":"TEXT(ventes[[#This Row],[DATES]],\"mmm\")","v":"oct"},{"$f":"WEEKNUM(ventes[[#This Row],[DATES]])","v":44}]
["2021-10-31","client01","Produit38",79.92,8,{"$f":"ventes[[#This Row],[PRIX UNITAIRE (FCFA)]]*ventes[[#This Row],[QUANTITE]]","v":639.36},{"$f":"VLOOKUP(ventes[[#This Row],[CLIENTS]],localisations[],2,0)","v":"Tunisie"},{"$f":"VLOOKUP(ventes[[#This Row],[CLIENTS]],localisations[],3,0)","v":"Afrique"},{"$f":"TEXT(ventes[[#This Row],[DATES]],\"mmm\")","v":"oct"},{"$f":"WEEKNUM(ventes[[#This Row],[DATES]])","v":45}]
["2021-10-31","client07","Produit21",162.54,6,{"$f":"ventes[[#This Row],[PRIX UNITAIRE (FCFA)]]*ventes[[#This Row],[QUANTITE]]","v":975.24},{"$f":"VLOOKUP(ventes[[#This Row],[CLIENTS]],localisations[],2,0)","v":"Éthiopie"},{"$f":"VLOOKUP(ventes[[#This Row],[CLIENTS]],localisations[],3,0)","v":"Afrique"},{"$f":"TEXT(ventes[[#This Row],[DATES]],\"mmm\")","v":"oct"},{"$f":"WEEKNUM(ventes[[#This Row],[DATES]])","v":45}]
["2021-11-01","client05","Produit12",94.17,15,{"$f":"ventes[[#This Row],[PRIX UNITAIRE (FCFA)]]*ventes[[#This Row],[QUANTITE]]","v":1412.55},{"$f":"VLOOKUP(ventes[[#This Row],[CLIENTS]],localisations[],2,0)","v":"Algérie"},{"$f":"VLOOKUP(ventes[[#This Row],[CLIENTS]],localisations[],3,0)","v":"Afrique"},{"$f":"TEXT(ventes[[#This Row],[DATES]],\"mmm\")","v":"nov"},{"$f":"WEEKNUM(ventes[[#This Row],[DATES]])","v":45}]
["2021-11-02","client14","Produit15",15.719999999999999,15,{"$f":"ventes[[#This Row],[PRIX UNITAIRE (FCFA)]]*ventes[[#This Row],[QUANTITE]]","v":235.79999999999998},{"$f":"VLOOKUP(ventes[[#This Row],[CLIENTS]],localisations[],2,0)","v":"Pays-Bas"},{"$f":"VLOOKUP(ventes[[#This Row],[CLIENTS]],localisations[],3,0)","v":"Europe"},{"$f":"TEXT(ventes[[#This Row],[DATES]],\"mmm\")","v":"nov"},{"$f":"WEEKNUM(ventes[[#This Row],[DATES]])","v":45}]
["2021-11-02","client22","Produit35",6.7,5,{"$f":"ventes[[#This Row],[PRIX UNITAIRE (FCFA)]]*ventes[[#This Row],[QUANTITE]]","v":33.5},{"$f":"VLOOKUP(ventes[[#This Row],[CLIENTS]],localisations[],2,0)","v":"Canada"},{"$f":"VLOOKUP(ventes[[#This Row],[CLIENTS]],localisations[],3,0)","v":"Amérique"},{"$f":"TEXT(ventes[[#This Row],[DATES]],\"mmm\")","v":"nov"},{"$f":"WEEKNUM(ventes[[#This Row],[DATES]])","v":45}]
["2021-11-02","client23","Produit30",201.28,15,{"$f":"ventes[[#This Row],[PRIX UNITAIRE (FCFA)]]*ventes[[#This Row],[QUANTITE]]","v":3019.2},{"$f":"VLOOKUP(ventes[[#This Row],[CLIENTS]],localisations[],2,0)","v":"Argentine"},{"$f":"VLOOKUP(ventes[[#This Row],[CLIENTS]],localisations[],3,0)","v":"Amérique"},{"$f":"TEXT(ventes[[#This Row],[DATES]],\"mmm\")","v":"nov"},{"$f":"WEEKNUM(ventes[[#This Row],[DATES]])","v":45}]
["2021-11-03","client06","Produit20",76.25,11,{"$f":"ventes[[#This Row],[PRIX UNITAIRE (FCFA)]]*ventes[[#This Row],[QUANTITE]]","v":838.75},{"$f":"VLOOKUP(ventes[[#This Row],[CLIENTS]],localisations[],2,0)","v":"Afrique du Sud"},{"$f":"VLOOKUP(ventes[[#This Row],[CLIENTS]],localisations[],3,0)","v":"Afrique"},{"$f":"TEXT(ventes[[#This Row],[DATES]],\"mmm\")","v":"nov"},{"$f":"WEEKNUM(ventes[[#This Row],[DATES]])","v":45}]
["2021-11-03","client20","Produit13",122.08,12,{"$f":"ventes[[#This Row],[PRIX UNITAIRE (FCFA)]]*ventes[[#This Row],[QUANTITE]]","v":1464.96},{"$f":"VLOOKUP(ventes[[#This Row],[CLIENTS]],localisations[],2,0)","v":"France"},{"$f":"VLOOKUP(ventes[[#This Row],[CLIENTS]],localisations[],3,0)","v":"Europe"},{"$f":"TEXT(ventes[[#This Row],[DATES]],\"mmm\")","v":"nov"},{"$f":"WEEKNUM(ventes[[#This Row],[DATES]])","v":45}]
["2021-11-04","client10","Produit08",94.62,10,{"$f":"ventes[[#This Row],[PRIX UNITAIRE (FCFA)]]*ventes[[#This Row],[QUANTITE]]","v":946.2},{"$f":"VLOOKUP(ventes[[#This Row],[CLIENTS]],localisations[],2,0)","v":"Nigeria"},{"$f":"VLOOKUP(ventes[[#This Row],[CLIENTS]],localisations[],3,0)","v":"Afrique"},{"$f":"TEXT(ventes[[#This Row],[DATES]],\"mmm\")","v":"nov"},{"$f":"WEEKNUM(ventes[[#This Row],[DATES]])","v":45}]
["2021-11-05","client14","Produit19",210,15,{"$f":"ventes[[#This Row],[PRIX UNITAIRE (FCFA)]]*ventes[[#This Row],[QUANTITE]]","v":3150},{"$f":"VLOOKUP(ventes[[#This Row],[CLIENTS]],localisations[],2,0)","v":"Pays-Bas"},{"$f":"VLOOKUP(ventes[[#This Row],[CLIENTS]],localisations[],3,0)","v":"Europe"},{"$f":"TEXT(ventes[[#This Row],[DATES]],\"mmm\")","v":"nov"},{"$f":"WEEKNUM(ventes[[#This Row],[DATES]])","v":45}]
["2021-11-06","client01","Produit43",83.08,13,{"$f":"ventes[[#This Row],[PRIX UNITAIRE (FCFA)]]*ventes[[#This Row],[QUANTITE]]","v":1080.04},{"$f":"VLOOKUP(ventes[[#This Row],[CLIENTS]],localisations[],2,0)","v":"Tunisie"},{"$f":"VLOOKUP(ventes[[#This Row],[CLIENTS]],localisations[],3,0)","v":"Afrique"},{"$f":"TEXT(ventes[[#This Row],[DATES]],\"mmm\")","v":"nov"},{"$f":"WEEKNUM(ventes[[#This Row],[DATES]])","v":45}]
["2021-11-06","client05","Produit42",162,13,{"$f":"ventes[[#This Row],[PRIX UNITAIRE (FCFA)]]*ventes[[#This Row],[QUANTITE]]","v":2106},{"$f":"VLOOKUP(ventes[[#This Row],[CLIENTS]],localisations[],2,0)","v":"Algérie"},{"$f":"VLOOKUP(ventes[[#This Row],[CLIENTS]],localisations[],3,0)","v":"Afrique"},{"$f":"TEXT(ventes[[#This Row],[DATES]],\"mmm\")","v":"nov"},{"$f":"WEEKNUM(ventes[[#This Row],[DATES]])","v":45}]
["2021-11-06","client18","Produit36",96.3,10,{"$f":"ventes[[#This Row],[PRIX UNITAIRE (FCFA)]]*ventes[[#This Row],[QUANTITE]]","v":963},{"$f":"VLOOKUP(ventes[[#This Row],[CLIENTS]],localisations[],2,0)","v":"Belgique"},{"$f":"VLOOKUP(ventes[[#This Row],[CLIENTS]],localisations[],3,0)","v":"Europe"},{"$f":"TEXT(ventes[[#This Row],[DATES]],\"mmm\")","v":"nov"},{"$f":"WEEKNUM(ventes[[#This Row],[DATES]])","v":45}]
["2021-11-06","client21","Produit15",15.719999999999999,13,{"$f":"ventes[[#This Row],[PRIX UNITAIRE (FCFA)]]*ventes[[#This Row],[QUANTITE]]","v":204.35999999999999},{"$f":"VLOOKUP(ventes[[#This Row],[CLIENTS]],localisations[],2,0)","v":"Venezuela"},{"$f":"VLOOKUP(ventes[[#This Row],[CLIENTS]],localisations[],3,0)","v":"Amérique"},{"$f":"TEXT(ventes[[#This Row],[DATES]],\"mmm\")","v":"nov"},{"$f":"WEEKNUM(ventes[[#This Row],[DATES]])","v":45}]
["2021-11-07","client14","Produit30",201.28,11,{"$f":"ventes[[#This Row],[PRIX UNITAIRE (FCFA)]]*ventes[[#This Row],[QUANTITE]]","v":2214.08},{"$f":"VLOOKUP(ventes[[#This Row],[CLIENTS]],localisations[],2,0)","v":"Pays-Bas"},{"$f":"VLOOKUP(ventes[[#This Row],[CLIENTS]],localisations[],3,0)","v":"Europe"},{"$f":"TEXT(ventes[[#This Row],[DATES]],\"mmm\")","v":"nov"},{"$f":"WEEKNUM(ventes[[#This Row],[DATES]])","v":46}]
["2021-11-07","client37","Produit05",155.61000000000001,3,{"$f":"ventes[[#This Row],[PRIX UNITAIRE (FCFA)]]*ventes[[#This Row],[QUANTITE]]","v":466.83000000000004},{"$f":"VLOOKUP(ventes[[#This Row],[CLIENTS]],localisations[],2,0)","v":"Inde"},{"$f":"VLOOKUP(ventes[[#This Row],[CLIENTS]],localisations[],3,0)","v":"Asie"},{"$f":"TEXT(ventes[[#This Row],[DATES]],\"mmm\")","v":"nov"},{"$f":"WEEKNUM(ventes[[#This Row],[DATES]])","v":46}]
["2021-11-07","client29","Produit40",115.2,13,{"$f":"ventes[[#This Row],[PRIX UNITAIRE (FCFA)]]*ventes[[#This Row],[QUANTITE]]","v":1497.6000000000001},{"$f":"VLOOKUP(ventes[[#This Row],[CLIENTS]],localisations[],2,0)","v":"Chili"},{"$f":"VLOOKUP(ventes[[#This Row],[CLIENTS]],localisations[],3,0)","v":"Amérique"},{"$f":"TEXT(ventes[[#This Row],[DATES]],\"mmm\")","v":"nov"},{"$f":"WEEKNUM(ventes[[#This Row],[DATES]])","v":46}]
["2021-11-08","client33","Produit07",47.730000000000004,15,{"$f":"ventes[[#This Row],[PRIX UNITAIRE (FCFA)]]*ventes[[#This Row],[QUANTITE]]","v":715.95},{"$f":"VLOOKUP(ventes[[#This Row],[CLIENTS]],localisations[],2,0)","v":"Philippines"},{"$f":"VLOOKUP(ventes[[#This Row],[CLIENTS]],localisations[],3,0)","v":"Asie"},{"$f":"TEXT(ventes[[#This Row],[DATES]],\"mmm\")","v":"nov"},{"$f":"WEEKNUM(ventes[[#This Row],[DATES]])","v":46}]
["2021-11-08","client13","Produit36",96.3,11,{"$f":"ventes[[#This Row],[PRIX UNITAIRE (FCFA)]]*ventes[[#This Row],[QUANTITE]]","v":1059.3},{"$f":"VLOOKUP(ventes[[#This Row],[CLIENTS]],localisations[],2,0)","v":"Italie"},{"$f":"VLOOKUP(ventes[[#This Row],[CLIENTS]],localisations[],3,0)","v":"Europe"},{"$f":"TEXT(ventes[[#This Row],[DATES]],\"mmm\")","v":"nov"},{"$f":"WEEKNUM(ventes[[#This Row],[DATES]])","v":46}]
["2021-11-08","client20","Produit19",210,10,{"$f":"ventes[[#This Row],[PRIX UNITAIRE (FCFA)]]*ventes[[#This Row],[QUANTITE]]","v":2100},{"$f":"VLOOKUP(ventes[[#This Row],[CLIENTS]],localisations[],2,0)","v":"France"},{"$f":"VLOOKUP(ventes[[#This Row],[CLIENTS]],localisations[],3,0)","v":"Europe"},{"$f":"TEXT(ventes[[#This Row],[DATES]],\"mmm\")","v":"nov"},{"$f":"WEEKNUM(ventes[[#This Row],[DATES]])","v":46}]
["2021-11-08","client25","Produit18",49.21,26,{"$f":"ventes[[#This Row],[PRIX UNITAIRE (FCFA)]]*ventes[[#This Row],[QUANTITE]]","v":1279.46},{"$f":"VLOOKUP(ventes[[#This Row],[CLIENTS]],localisations[],2,0)","v":"Brésil"},{"$f":"VLOOKUP(ventes[[#This Row],[CLIENTS]],localisations[],3,0)","v":"Amérique"},{"$f":"TEXT(ventes[[#This Row],[DATES]],\"mmm\")","v":"nov"},{"$f":"WEEKNUM(ventes[[#This Row],[DATES]])","v":46}]
["2021-11-08","client26","Produit12",94.17,10,{"$f":"ventes[[#This Row],[PRIX UNITAIRE (FCFA)]]*ventes[[#This Row],[QUANTITE]]","v":941.7},{"$f":"VLOOKUP(ventes[[#This Row],[CLIENTS]],localisations[],2,0)","v":"Pérou"},{"$f":"VLOOKUP(ventes[[#This Row],[CLIENTS]],localisations[],3,0)","v":"Amérique"},{"$f":"TEXT(ventes[[#This Row],[DATES]],\"mmm\")","v":"nov"},{"$f":"WEEKNUM(ventes[[#This Row],[DATES]])","v":46}]
["2021-11-09","client21","Produit11",48.4,6,{"$f":"ventes[[#This Row],[PRIX UNITAIRE (FCFA)]]*ventes[[#This Row],[QUANTITE]]","v":290.39999999999998},{"$f":"VLOOKUP(ventes[[#This Row],[CLIENTS]],localisations[],2,0)","v":"Venezuela"},{"$f":"VLOOKUP(ventes[[#This Row],[CLIENTS]],localisations[],3,0)","v":"Amérique"},{"$f":"TEXT(ventes[[#This Row],[DATES]],\"mmm\")","v":"nov"},{"$f":"WEEKNUM(ventes[[#This Row],[DATES]])","v":46}]
["2021-11-09","client21","Produit27",57.120000000000005,8,{"$f":"ventes[[#This Row],[PRIX UNITAIRE (FCFA)]]*ventes[[#This Row],[QUANTITE]]","v":456.96000000000004},{"$f":"VLOOKUP(ventes[[#This Row],[CLIENTS]],localisations[],2,0)","v":"Venezuela"},{"$f":"VLOOKUP(ventes[[#This Row],[CLIENTS]],localisations[],3,0)","v":"Amérique"},{"$f":"TEXT(ventes[[#This Row],[DATES]],\"mmm\")","v":"nov"},{"$f":"WEEKNUM(ventes[[#This Row],[DATES]])","v":46}]
["2021-11-10","client04","Produit18",49.21,7,{"$f":"ventes[[#This Row],[PRIX UNITAIRE (FCFA)]]*ventes[[#This Row],[QUANTITE]]","v":344.47},{"$f":"VLOOKUP(ventes[[#This Row],[CLIENTS]],localisations[],2,0)","v":"Sénégal"},{"$f":"VLOOKUP(ventes[[#This Row],[CLIENTS]],localisations[],3,0)","v":"Afrique"},{"$f":"TEXT(ventes[[#This Row],[DATES]],\"mmm\")","v":"nov"},{"$f":"WEEKNUM(ventes[[#This Row],[DATES]])","v":46}]
["2021-11-10","client08","Produit42",162,6,{"$f":"ventes[[#This Row],[PRIX UNITAIRE (FCFA)]]*ventes[[#This Row],[QUANTITE]]","v":972},{"$f":"VLOOKUP(ventes[[#This Row],[CLIENTS]],localisations[],2,0)","v":"Maroc"},{"$f":"VLOOKUP(ventes[[#This Row],[CLIENTS]],localisations[],3,0)","v":"Afrique"},{"$f":"TEXT(ventes[[#This Row],[DATES]],\"mmm\")","v":"nov"},{"$f":"WEEKNUM(ventes[[#This Row],[DATES]])","v":46}]
["2021-11-11","client35","Produit40",115.2,12,{"$f":"ventes[[#This Row],[PRIX UNITAIRE (FCFA)]]*ventes[[#This Row],[QUANTITE]]","v":1382.4},{"$f":"VLOOKUP(ventes[[#This Row],[CLIENTS]],localisations[],2,0)","v":"Malaisie"},{"$f":"VLOOKUP(ventes[[#This Row],[CLIENTS]],localisations[],3,0)","v":"Asie"},{"$f":"TEXT(ventes[[#This Row],[DATES]],\"mmm\")","v":"nov"},{"$f":"WEEKNUM(ventes[[#This Row],[DATES]])","v":46}]
["2021-11-11","client25","Produit38",79.92,16,{"$f":"ventes[[#This Row],[PRIX UNITAIRE (FCFA)]]*ventes[[#This Row],[QUANTITE]]","v":1278.72},{"$f":"VLOOKUP(ventes[[#This Row],[CLIENTS]],localisations[],2,0)","v":"Brésil"},{"$f":"VLOOKUP(ventes[[#This Row],[CLIENTS]],localisations[],3,0)","v":"Amérique"},{"$f":"TEXT(ventes[[#This Row],[DATES]],\"mmm\")","v":"nov"},{"$f":"WEEKNUM(ventes[[#This Row],[DATES]])","v":46}]
["2021-11-12","client02","Produit35",6.7,6,{"$f":"ventes[[#This Row],[PRIX UNITAIRE (FCFA)]]*ventes[[#This Row],[QUANTITE]]","v":40.200000000000003},{"$f":"VLOOKUP(ventes[[#This Row],[CLIENTS]],localisations[],2,0)","v":"Ghana"},{"$f":"VLOOKUP(ventes[[#This Row],[CLIENTS]],localisations[],3,0)","v":"Afrique"},{"$f":"TEXT(ventes[[#This Row],[DATES]],\"mmm\")","v":"nov"},{"$f":"WEEKNUM(ventes[[#This Row],[DATES]])","v":46}]
["2021-11-12","client26","Produit10",164.28,3,{"$f":"ventes[[#This Row],[PRIX UNITAIRE (FCFA)]]*ventes[[#This Row],[QUANTITE]]","v":492.84000000000003},{"$f":"VLOOKUP(ventes[[#This Row],[CLIENTS]],localisations[],2,0)","v":"Pérou"},{"$f":"VLOOKUP(ventes[[#This Row],[CLIENTS]],localisations[],3,0)","v":"Amérique"},{"$f":"TEXT(ventes[[#This Row],[DATES]],\"mmm\")","v":"nov"},{"$f":"WEEKNUM(ventes[[#This Row],[DATES]])","v":46}]
["2021-11-13","client13","Produit27",57.120000000000005,10,{"$f":"ventes[[#This Row],[PRIX UNITAIRE (FCFA)]]*ventes[[#This Row],[QUANTITE]]","v":571.20000000000005},{"$f":"VLOOKUP(ventes[[#This Row],[CLIENTS]],localisations[],2,0)","v":"Italie"},{"$f":"VLOOKUP(ventes[[#This Row],[CLIENTS]],localisations[],3,0)","v":"Europe"},{"$f":"TEXT(ventes[[#This Row],[DATES]],\"mmm\")","v":"nov"},{"$f":"WEEKNUM(ventes[[#This Row],[DATES]])","v":46}]
["2021-11-14","client10","Produit02",142.80000000000001,1,{"$f":"ventes[[#This Row],[PRIX UNITAIRE (FCFA)]]*ventes[[#This Row],[QUANTITE]]","v":142.80000000000001},{"$f":"VLOOKUP(ventes[[#This Row],[CLIENTS]],localisations[],2,0)","v":"Nigeria"},{"$f":"VLOOKUP(ventes[[#This Row],[CLIENTS]],localisations[],3,0)","v":"Afrique"},{"$f":"TEXT(ventes[[#This Row],[DATES]],\"mmm\")","v":"nov"},{"$f":"WEEKNUM(ventes[[#This Row],[DATES]])","v":47}]
["2021-11-15","client01","Produit27",57.120000000000005,36,{"$f":"ventes[[#This Row],[PRIX UNITAIRE (FCFA)]]*ventes[[#This Row],[QUANTITE]]","v":2056.3200000000002},{"$f":"VLOOKUP(ventes[[#This Row],[CLIENTS]],localisations[],2,0)","v":"Tunisie"},{"$f":"VLOOKUP(ventes[[#This Row],[CLIENTS]],localisations[],3,0)","v":"Afrique"},{"$f":"TEXT(ventes[[#This Row],[DATES]],\"mmm\")","v":"nov"},{"$f":"WEEKNUM(ventes[[#This Row],[DATES]])","v":47}]
["2021-11-15","client22","Produit12",94.17,14,{"$f":"ventes[[#This Row],[PRIX UNITAIRE (FCFA)]]*ventes[[#This Row],[QUANTITE]]","v":1318.38},{"$f":"VLOOKUP(ventes[[#This Row],[CLIENTS]],localisations[],2,0)","v":"Canada"},{"$f":"VLOOKUP(ventes[[#This Row],[CLIENTS]],localisations[],3,0)","v":"Amérique"},{"$f":"TEXT(ventes[[#This Row],[DATES]],\"mmm\")","v":"nov"},{"$f":"WEEKNUM(ventes[[#This Row],[DATES]])","v":47}]
["2021-11-16","client22","Produit17",156.78,8,{"$f":"ventes[[#This Row],[PRIX UNITAIRE (FCFA)]]*ventes[[#This Row],[QUANTITE]]","v":1254.24},{"$f":"VLOOKUP(ventes[[#This Row],[CLIENTS]],localisations[],2,0)","v":"Canada"},{"$f":"VLOOKUP(ventes[[#This Row],[CLIENTS]],localisations[],3,0)","v":"Amérique"},{"$f":"TEXT(ventes[[#This Row],[DATES]],\"mmm\")","v":"nov"},{"$f":"WEEKNUM(ventes[[#This Row],[DATES]])","v":47}]
["2021-11-17","client31","Produit38",79.92,33,{"$f":"ventes[[#This Row],[PRIX UNITAIRE (FCFA)]]*ventes[[#This Row],[QUANTITE]]","v":2637.36},{"$f":"VLOOKUP(ventes[[#This Row],[CLIENTS]],localisations[],2,0)","v":"Corée du Sud"},{"$f":"VLOOKUP(ventes[[#This Row],[CLIENTS]],localisations[],3,0)","v":"Asie"},{"$f":"TEXT(ventes[[#This Row],[DATES]],\"mmm\")","v":"nov"},{"$f":"WEEKNUM(ventes[[#This Row],[DATES]])","v":47}]
["2021-11-18","client06","Produit44",82.08,18,{"$f":"ventes[[#This Row],[PRIX UNITAIRE (FCFA)]]*ventes[[#This Row],[QUANTITE]]","v":1477.44},{"$f":"VLOOKUP(ventes[[#This Row],[CLIENTS]],localisations[],2,0)","v":"Afrique du Sud"},{"$f":"VLOOKUP(ventes[[#This Row],[CLIENTS]],localisations[],3,0)","v":"Afrique"},{"$f":"TEXT(ventes[[#This Row],[DATES]],\"mmm\")","v":"nov"},{"$f":"WEEKNUM(ventes[[#This Row],[DATES]])","v":47}]
["2021-11-18","client21","Produit34",58.3,8,{"$f":"ventes[[#This Row],[PRIX UNITAIRE (FCFA)]]*ventes[[#This Row],[QUANTITE]]","v":466.4},{"$f":"VLOOKUP(ventes[[#This Row],[CLIENTS]],localisations[],2,0)","v":"Venezuela"},{"$f":"VLOOKUP(ventes[[#This Row],[CLIENTS]],localisations[],3,0)","v":"Amérique"},{"$f":"TEXT(ventes[[#This Row],[DATES]],\"mmm\")","v":"nov"},{"$f":"WEEKNUM(ventes[[#This Row],[DATES]])","v":47}]
["2021-11-18","client38","Produit39",42.55,4,{"$f":"ventes[[#This Row],[PRIX UNITAIRE (FCFA)]]*ventes[[#This Row],[QUANTITE]]","v":170.2},{"$f":"VLOOKUP(ventes[[#This Row],[CLIENTS]],localisations[],2,0)","v":"Pakistan"},{"$f":"VLOOKUP(ventes[[#This Row],[CLIENTS]],localisations[],3,0)","v":"Asie"},{"$f":"TEXT(ventes[[#This Row],[DATES]],\"mmm\")","v":"nov"},{"$f":"WEEKNUM(ventes[[#This Row],[DATES]])","v":47}]
["2021-11-19","client28","Produit18",49.21,4,{"$f":"ventes[[#This Row],[PRIX UNITAIRE (FCFA)]]*ventes[[#This Row],[QUANTITE]]","v":196.84},{"$f":"VLOOKUP(ventes[[#This Row],[CLIENTS]],localisations[],2,0)","v":"États-Unis"},{"$f":"VLOOKUP(ventes[[#This Row],[CLIENTS]],localisations[],3,0)","v":"Amérique"},{"$f":"TEXT(ventes[[#This Row],[DATES]],\"mmm\")","v":"nov"},{"$f":"WEEKNUM(ventes[[#This Row],[DATES]])","v":47}]
["2021-11-20","client10","Produit08",94.62,11,{"$f":"ventes[[#This Row],[PRIX UNITAIRE (FCFA)]]*ventes[[#This Row],[QUANTITE]]","v":1040.8200000000002},{"$f":"VLOOKUP(ventes[[#This Row],[CLIENTS]],localisations[],2,0)","v":"Nigeria"},{"$f":"VLOOKUP(ventes[[#This Row],[CLIENTS]],localisations[],3,0)","v":"Afrique"},{"$f":"TEXT(ventes[[#This Row],[DATES]],\"mmm\")","v":"nov"},{"$f":"WEEKNUM(ventes[[#This Row],[DATES]])","v":47}]
["2021-11-20","client36","Produit22",141.57,34,{"$f":"ventes[[#This Row],[PRIX UNITAIRE (FCFA)]]*ventes[[#This Row],[QUANTITE]]","v":4813.38},{"$f":"VLOOKUP(ventes[[#This Row],[CLIENTS]],localisations[],2,0)","v":"Vietnam"},{"$f":"VLOOKUP(ventes[[#This Row],[CLIENTS]],localisations[],3,0)","v":"Asie"},{"$f":"TEXT(ventes[[#This Row],[DATES]],\"mmm\")","v":"nov"},{"$f":"WEEKNUM(ventes[[#This Row],[DATES]])","v":47}]
["2021-11-20","client28","Produit34",58.3,14,{"$f":"ventes[[#This Row],[PRIX UNITAIRE (FCFA)]]*ventes[[#This Row],[QUANTITE]]","v":816.19999999999993},{"$f":"VLOOKUP(ventes[[#This Row],[CLIENTS]],localisations[],2,0)","v":"États-Unis"},{"$f":"VLOOKUP(ventes[[#This Row],[CLIENTS]],localisations[],3,0)","v":"Amérique"},{"$f":"TEXT(ventes[[#This Row],[DATES]],\"mmm\")","v":"nov"},{"$f":"WEEKNUM(ventes[[#This Row],[DATES]])","v":47}]
["2021-11-21","client31","Produit06",85.5,1,{"$f":"ventes[[#This Row],[PRIX UNITAIRE (FCFA)]]*ventes[[#This Row],[QUANTITE]]","v":85.5},{"$f":"VLOOKUP(ventes[[#This Row],[CLIENTS]],localisations[],2,0)","v":"Corée du Sud"},{"$f":"VLOOKUP(ventes[[#This Row],[CLIENTS]],localisations[],3,0)","v":"Asie"},{"$f":"TEXT(ventes[[#This Row],[DATES]],\"mmm\")","v":"nov"},{"$f":"WEEKNUM(ventes[[#This Row],[DATES]])","v":48}]
["2021-11-21","client33","Produit41",173.88,24,{"$f":"ventes[[#This Row],[PRIX UNITAIRE (FCFA)]]*ventes[[#This Row],[QUANTITE]]","v":4173.12},{"$f":"VLOOKUP(ventes[[#This Row],[CLIENTS]],localisations[],2,0)","v":"Philippines"},{"$f":"VLOOKUP(ventes[[#This Row],[CLIENTS]],localisations[],3,0)","v":"Asie"},{"$f":"TEXT(ventes[[#This Row],[DATES]],\"mmm\")","v":"nov"},{"$f":"WEEKNUM(ventes[[#This Row],[DATES]])","v":48}]
["2021-11-21","client08","Produit20",76.25,6,{"$f":"ventes[[#This Row],[PRIX UNITAIRE (FCFA)]]*ventes[[#This Row],[QUANTITE]]","v":457.5},{"$f":"VLOOKUP(ventes[[#This Row],[CLIENTS]],localisations[],2,0)","v":"Maroc"},{"$f":"VLOOKUP(ventes[[#This Row],[CLIENTS]],localisations[],3,0)","v":"Afrique"},{"$f":"TEXT(ventes[[#This Row],[DATES]],\"mmm\")","v":"nov"},{"$f":"WEEKNUM(ventes[[#This Row],[DATES]])","v":48}]
["2021-11-21","client19","Produit42",162,10,{"$f":"ventes[[#This Row],[PRIX UNITAIRE (FCFA)]]*ventes[[#This Row],[QUANTITE]]","v":1620},{"$f":"VLOOKUP(ventes[[#This Row],[CLIENTS]],localisations[],2,0)","v":"Suisse"},{"$f":"VLOOKUP(ventes[[#This Row],[CLIENTS]],localisations[],3,0)","v":"Europe"},{"$f":"TEXT(ventes[[#This Row],[DATES]],\"mmm\")","v":"nov"},{"$f":"WEEKNUM(ventes[[#This Row],[DATES]])","v":48}]
["2021-11-21","client39","Produit14",146.72,1,{"$f":"ventes[[#This Row],[PRIX UNITAIRE (FCFA)]]*ventes[[#This Row],[QUANTITE]]","v":146.72},{"$f":"VLOOKUP(ventes[[#This Row],[CLIENTS]],localisations[],2,0)","v":"Pakistan"},{"$f":"VLOOKUP(ventes[[#This Row],[CLIENTS]],localisations[],3,0)","v":"Asie"},{"$f":"TEXT(ventes[[#This Row],[DATES]],\"mmm\")","v":"nov"},{"$f":"WEEKNUM(ventes[[#This Row],[DATES]])","v":48}]
["2021-11-22","client23","Produit17",156.78,35,{"$f":"ventes[[#This Row],[PRIX UNITAIRE (FCFA)]]*ventes[[#This Row],[QUANTITE]]","v":5487.3},{"$f":"VLOOKUP(ventes[[#This Row],[CLIENTS]],localisations[],2,0)","v":"Argentine"},{"$f":"VLOOKUP(ventes[[#This Row],[CLIENTS]],localisations[],3,0)","v":"Amérique"},{"$f":"TEXT(ventes[[#This Row],[DATES]],\"mmm\")","v":"nov"},{"$f":"WEEKNUM(ventes[[#This Row],[DATES]])","v":48}]
["2021-11-23","client16","Produit36",96.3,12,{"$f":"ventes[[#This Row],[PRIX UNITAIRE (FCFA)]]*ventes[[#This Row],[QUANTITE]]","v":1155.5999999999999},{"$f":"VLOOKUP(ventes[[#This Row],[CLIENTS]],localisations[],2,0)","v":"Royaume-Uni"},{"$f":"VLOOKUP(ventes[[#This Row],[CLIENTS]],localisations[],3,0)","v":"Europe"},{"$f":"TEXT(ventes[[#This Row],[DATES]],\"mmm\")","v":"nov"},{"$f":"WEEKNUM(ventes[[#This Row],[DATES]])","v":48}]
["2021-11-25","client13","Produit04",48.84,5,{"$f":"ventes[[#This Row],[PRIX UNITAIRE (FCFA)]]*ventes[[#This Row],[QUANTITE]]","v":244.20000000000002},{"$f":"VLOOKUP(ventes[[#This Row],[CLIENTS]],localisations[],2,0)","v":"Italie"},{"$f":"VLOOKUP(ventes[[#This Row],[CLIENTS]],localisations[],3,0)","v":"Europe"},{"$f":"TEXT(ventes[[#This Row],[DATES]],\"mmm\")","v":"nov"},{"$f":"WEEKNUM(ventes[[#This Row],[DATES]])","v":48}]
["2021-11-25","client23","Produit03",80.94,10,{"$f":"ventes[[#This Row],[PRIX UNITAIRE (FCFA)]]*ventes[[#This Row],[QUANTITE]]","v":809.4},{"$f":"VLOOKUP(ventes[[#This Row],[CLIENTS]],localisations[],2,0)","v":"Argentine"},{"$f":"VLOOKUP(ventes[[#This Row],[CLIENTS]],localisations[],3,0)","v":"Amérique"},{"$f":"TEXT(ventes[[#This Row],[DATES]],\"mmm\")","v":"nov"},{"$f":"WEEKNUM(ventes[[#This Row],[DATES]])","v":48}]
["2021-11-25","client23","Produit16",16.64,14,{"$f":"ventes[[#This Row],[PRIX UNITAIRE (FCFA)]]*ventes[[#This Row],[QUANTITE]]","v":232.96},{"$f":"VLOOKUP(ventes[[#This Row],[CLIENTS]],localisations[],2,0)","v":"Argentine"},{"$f":"VLOOKUP(ventes[[#This Row],[CLIENTS]],localisations[],3,0)","v":"Amérique"},{"$f":"TEXT(ventes[[#This Row],[DATES]],\"mmm\")","v":"nov"},{"$f":"WEEKNUM(ventes[[#This Row],[DATES]])","v":48}]
["2021-11-26","client16","Produit09",7.8599999999999994,25,{"$f":"ventes[[#This Row],[PRIX UNITAIRE (FCFA)]]*ventes[[#This Row],[QUANTITE]]","v":196.5},{"$f":"VLOOKUP(ventes[[#This Row],[CLIENTS]],localisations[],2,0)","v":"Royaume-Uni"},{"$f":"VLOOKUP(ventes[[#This Row],[CLIENTS]],localisations[],3,0)","v":"Europe"},{"$f":"TEXT(ventes[[#This Row],[DATES]],\"mmm\")","v":"nov"},{"$f":"WEEKNUM(ventes[[#This Row],[DATES]])","v":48}]
["2021-11-26","client21","Produit32",117.48,5,{"$f":"ventes[[#This Row],[PRIX UNITAIRE (FCFA)]]*ventes[[#This Row],[QUANTITE]]","v":587.4},{"$f":"VLOOKUP(ventes[[#This Row],[CLIENTS]],localisations[],2,0)","v":"Venezuela"},{"$f":"VLOOKUP(ventes[[#This Row],[CLIENTS]],localisations[],3,0)","v":"Amérique"},{"$f":"TEXT(ventes[[#This Row],[DATES]],\"mmm\")","v":"nov"},{"$f":"WEEKNUM(ventes[[#This Row],[DATES]])","v":48}]
["2021-11-27","client35","Produit12",94.17,8,{"$f":"ventes[[#This Row],[PRIX UNITAIRE (FCFA)]]*ventes[[#This Row],[QUANTITE]]","v":753.36},{"$f":"VLOOKUP(ventes[[#This Row],[CLIENTS]],localisations[],2,0)","v":"Malaisie"},{"$f":"VLOOKUP(ventes[[#This Row],[CLIENTS]],localisations[],3,0)","v":"Asie"},{"$f":"TEXT(ventes[[#This Row],[DATES]],\"mmm\")","v":"nov"},{"$f":"WEEKNUM(ventes[[#This Row],[DATES]])","v":48}]
["2021-11-27","client35","Produit34",58.3,15,{"$f":"ventes[[#This Row],[PRIX UNITAIRE (FCFA)]]*ventes[[#This Row],[QUANTITE]]","v":874.5},{"$f":"VLOOKUP(ventes[[#This Row],[CLIENTS]],localisations[],2,0)","v":"Malaisie"},{"$f":"VLOOKUP(ventes[[#This Row],[CLIENTS]],localisations[],3,0)","v":"Asie"},{"$f":"TEXT(ventes[[#This Row],[DATES]],\"mmm\")","v":"nov"},{"$f":"WEEKNUM(ventes[[#This Row],[DATES]])","v":48}]
["2021-11-27","client15","Produit33",119.7,28,{"$f":"ventes[[#This Row],[PRIX UNITAIRE (FCFA)]]*ventes[[#This Row],[QUANTITE]]","v":3351.6},{"$f":"VLOOKUP(ventes[[#This Row],[CLIENTS]],localisations[],2,0)","v":"Allemagne"},{"$f":"VLOOKUP(ventes[[#This Row],[CLIENTS]],localisations[],3,0)","v":"Europe"},{"$f":"TEXT(ventes[[#This Row],[DATES]],\"mmm\")","v":"nov"},{"$f":"WEEKNUM(ventes[[#This Row],[DATES]])","v":48}]
["2021-11-27","client16","Produit35",6.7,28,{"$f":"ventes[[#This Row],[PRIX UNITAIRE (FCFA)]]*ventes[[#This Row],[QUANTITE]]","v":187.6},{"$f":"VLOOKUP(ventes[[#This Row],[CLIENTS]],localisations[],2,0)","v":"Royaume-Uni"},{"$f":"VLOOKUP(ventes[[#This Row],[CLIENTS]],localisations[],3,0)","v":"Europe"},{"$f":"TEXT(ventes[[#This Row],[DATES]],\"mmm\")","v":"nov"},{"$f":"WEEKNUM(ventes[[#This Row],[DATES]])","v":48}]
["2021-11-27","client19","Produit22",141.57,37,{"$f":"ventes[[#This Row],[PRIX UNITAIRE (FCFA)]]*ventes[[#This Row],[QUANTITE]]","v":5238.09},{"$f":"VLOOKUP(ventes[[#This Row],[CLIENTS]],localisations[],2,0)","v":"Suisse"},{"$f":"VLOOKUP(ventes[[#This Row],[CLIENTS]],localisations[],3,0)","v":"Europe"},{"$f":"TEXT(ventes[[#This Row],[DATES]],\"mmm\")","v":"nov"},{"$f":"WEEKNUM(ventes[[#This Row],[DATES]])","v":48}]
["2021-11-28","client05","Produit28",41.81,9,{"$f":"ventes[[#This Row],[PRIX UNITAIRE (FCFA)]]*ventes[[#This Row],[QUANTITE]]","v":376.29},{"$f":"VLOOKUP(ventes[[#This Row],[CLIENTS]],localisations[],2,0)","v":"Algérie"},{"$f":"VLOOKUP(ventes[[#This Row],[CLIENTS]],localisations[],3,0)","v":"Afrique"},{"$f":"TEXT(ventes[[#This Row],[DATES]],\"mmm\")","v":"nov"},{"$f":"WEEKNUM(ventes[[#This Row],[DATES]])","v":49}]
["2021-11-28","client08","Produit40",115.2,2,{"$f":"ventes[[#This Row],[PRIX UNITAIRE (FCFA)]]*ventes[[#This Row],[QUANTITE]]","v":230.4},{"$f":"VLOOKUP(ventes[[#This Row],[CLIENTS]],localisations[],2,0)","v":"Maroc"},{"$f":"VLOOKUP(ventes[[#This Row],[CLIENTS]],localisations[],3,0)","v":"Afrique"},{"$f":"TEXT(ventes[[#This Row],[DATES]],\"mmm\")","v":"nov"},{"$f":"WEEKNUM(ventes[[#This Row],[DATES]])","v":49}]
["2021-11-28","client14","Produit31",104.16,8,{"$f":"ventes[[#This Row],[PRIX UNITAIRE (FCFA)]]*ventes[[#This Row],[QUANTITE]]","v":833.28},{"$f":"VLOOKUP(ventes[[#This Row],[CLIENTS]],localisations[],2,0)","v":"Pays-Bas"},{"$f":"VLOOKUP(ventes[[#This Row],[CLIENTS]],localisations[],3,0)","v":"Europe"},{"$f":"TEXT(ventes[[#This Row],[DATES]],\"mmm\")","v":"nov"},{"$f":"WEEKNUM(ventes[[#This Row],[DATES]])","v":49}]
["2021-11-30","client02","Produit39",42.55,15,{"$f":"ventes[[#This Row],[PRIX UNITAIRE (FCFA)]]*ventes[[#This Row],[QUANTITE]]","v":638.25},{"$f":"VLOOKUP(ventes[[#This Row],[CLIENTS]],localisations[],2,0)","v":"Ghana"},{"$f":"VLOOKUP(ventes[[#This Row],[CLIENTS]],localisations[],3,0)","v":"Afrique"},{"$f":"TEXT(ventes[[#This Row],[DATES]],\"mmm\")","v":"nov"},{"$f":"WEEKNUM(ventes[[#This Row],[DATES]])","v":49}]
["2021-11-30","client33","Produit15",15.719999999999999,2,{"$f":"ventes[[#This Row],[PRIX UNITAIRE (FCFA)]]*ventes[[#This Row],[QUANTITE]]","v":31.439999999999998},{"$f":"VLOOKUP(ventes[[#This Row],[CLIENTS]],localisations[],2,0)","v":"Philippines"},{"$f":"VLOOKUP(ventes[[#This Row],[CLIENTS]],localisations[],3,0)","v":"Asie"},{"$f":"TEXT(ventes[[#This Row],[DATES]],\"mmm\")","v":"nov"},{"$f":"WEEKNUM(ventes[[#This Row],[DATES]])","v":49}]
["2021-12-02","client17","Produit16",16.64,10,{"$f":"ventes[[#This Row],[PRIX UNITAIRE (FCFA)]]*ventes[[#This Row],[QUANTITE]]","v":166.4},{"$f":"VLOOKUP(ventes[[#This Row],[CLIENTS]],localisations[],2,0)","v":"Suède"},{"$f":"VLOOKUP(ventes[[#This Row],[CLIENTS]],localisations[],3,0)","v":"Europe"},{"$f":"TEXT(ventes[[#This Row],[DATES]],\"mmm\")","v":"déc"},{"$f":"WEEKNUM(ventes[[#This Row],[DATES]])","v":49}]
["2021-12-03","client16","Produit19",210,8,{"$f":"ventes[[#This Row],[PRIX UNITAIRE (FCFA)]]*ventes[[#This Row],[QUANTITE]]","v":1680},{"$f":"VLOOKUP(ventes[[#This Row],[CLIENTS]],localisations[],2,0)","v":"Royaume-Uni"},{"$f":"VLOOKUP(ventes[[#This Row],[CLIENTS]],localisations[],3,0)","v":"Europe"},{"$f":"TEXT(ventes[[#This Row],[DATES]],\"mmm\")","v":"déc"},{"$f":"WEEKNUM(ventes[[#This Row],[DATES]])","v":49}]
["2021-12-03","client36","Produit34",58.3,2,{"$f":"ventes[[#This Row],[PRIX UNITAIRE (FCFA)]]*ventes[[#This Row],[QUANTITE]]","v":116.6},{"$f":"VLOOKUP(ventes[[#This Row],[CLIENTS]],localisations[],2,0)","v":"Vietnam"},{"$f":"VLOOKUP(ventes[[#This Row],[CLIENTS]],localisations[],3,0)","v":"Asie"},{"$f":"TEXT(ventes[[#This Row],[DATES]],\"mmm\")","v":"déc"},{"$f":"WEEKNUM(ventes[[#This Row],[DATES]])","v":49}]
["2021-12-03","client38","Produit28",41.81,5,{"$f":"ventes[[#This Row],[PRIX UNITAIRE (FCFA)]]*ventes[[#This Row],[QUANTITE]]","v":209.05},{"$f":"VLOOKUP(ventes[[#This Row],[CLIENTS]],localisations[],2,0)","v":"Pakistan"},{"$f":"VLOOKUP(ventes[[#This Row],[CLIENTS]],localisations[],3,0)","v":"Asie"},{"$f":"TEXT(ventes[[#This Row],[DATES]],\"mmm\")","v":"déc"},{"$f":"WEEKNUM(ventes[[#This Row],[DATES]])","v":49}]
["2021-12-04","client31","Produit04",48.84,32,{"$f":"ventes[[#This Row],[PRIX UNITAIRE (FCFA)]]*ventes[[#This Row],[QUANTITE]]","v":1562.88},{"$f":"VLOOKUP(ventes[[#This Row],[CLIENTS]],localisations[],2,0)","v":"Corée du Sud"},{"$f":"VLOOKUP(ventes[[#This Row],[CLIENTS]],localisations[],3,0)","v":"Asie"},{"$f":"TEXT(ventes[[#This Row],[DATES]],\"mmm\")","v":"déc"},{"$f":"WEEKNUM(ventes[[#This Row],[DATES]])","v":49}]
["2021-12-04","client02","Produit44",82.08,15,{"$f":"ventes[[#This Row],[PRIX UNITAIRE (FCFA)]]*ventes[[#This Row],[QUANTITE]]","v":1231.2},{"$f":"VLOOKUP(ventes[[#This Row],[CLIENTS]],localisations[],2,0)","v":"Ghana"},{"$f":"VLOOKUP(ventes[[#This Row],[CLIENTS]],localisations[],3,0)","v":"Afrique"},{"$f":"TEXT(ventes[[#This Row],[DATES]],\"mmm\")","v":"déc"},{"$f":"WEEKNUM(ventes[[#This Row],[DATES]])","v":49}]
["2021-12-04","client11","Produit26",24.66,10,{"$f":"ventes[[#This Row],[PRIX UNITAIRE (FCFA)]]*ventes[[#This Row],[QUANTITE]]","v":246.6},{"$f":"VLOOKUP(ventes[[#This Row],[CLIENTS]],localisations[],2,0)","v":"Espagne"},{"$f":"VLOOKUP(ventes[[#This Row],[CLIENTS]],localisations[],3,0)","v":"Europe"},{"$f":"TEXT(ventes[[#This Row],[DATES]],\"mmm\")","v":"déc"},{"$f":"WEEKNUM(ventes[[#This Row],[DATES]])","v":49}]
["2021-12-05","client11","Produit25",8.33,12,{"$f":"ventes[[#This Row],[PRIX UNITAIRE (FCFA)]]*ventes[[#This Row],[QUANTITE]]","v":99.960000000000008},{"$f":"VLOOKUP(ventes[[#This Row],[CLIENTS]],localisations[],2,0)","v":"Espagne"},{"$f":"VLOOKUP(ventes[[#This Row],[CLIENTS]],localisations[],3,0)","v":"Europe"},{"$f":"TEXT(ventes[[#This Row],[DATES]],\"mmm\")","v":"déc"},{"$f":"WEEKNUM(ventes[[#This Row],[DATES]])","v":50}]
["2021-12-05","client18","Produit04",48.84,15,{"$f":"ventes[[#This Row],[PRIX UNITAIRE (FCFA)]]*ventes[[#This Row],[QUANTITE]]","v":732.6},{"$f":"VLOOKUP(ventes[[#This Row],[CLIENTS]],localisations[],2,0)","v":"Belgique"},{"$f":"VLOOKUP(ventes[[#This Row],[CLIENTS]],localisations[],3,0)","v":"Europe"},{"$f":"TEXT(ventes[[#This Row],[DATES]],\"mmm\")","v":"déc"},{"$f":"WEEKNUM(ventes[[#This Row],[DATES]])","v":50}]
["2021-12-05","client19","Produit10",164.28,1,{"$f":"ventes[[#This Row],[PRIX UNITAIRE (FCFA)]]*ventes[[#This Row],[QUANTITE]]","v":164.28},{"$f":"VLOOKUP(ventes[[#This Row],[CLIENTS]],localisations[],2,0)","v":"Suisse"},{"$f":"VLOOKUP(ventes[[#This Row],[CLIENTS]],localisations[],3,0)","v":"Europe"},{"$f":"TEXT(ventes[[#This Row],[DATES]],\"mmm\")","v":"déc"},{"$f":"WEEKNUM(ventes[[#This Row],[DATES]])","v":50}]
["2021-12-07","client07","Produit38",79.92,5,{"$f":"ventes[[#This Row],[PRIX UNITAIRE (FCFA)]]*ventes[[#This Row],[QUANTITE]]","v":399.6},{"$f":"VLOOKUP(ventes[[#This Row],[CLIENTS]],localisations[],2,0)","v":"Éthiopie"},{"$f":"VLOOKUP(ventes[[#This Row],[CLIENTS]],localisations[],3,0)","v":"Afrique"},{"$f":"TEXT(ventes[[#This Row],[DATES]],\"mmm\")","v":"déc"},{"$f":"WEEKNUM(ventes[[#This Row],[DATES]])","v":50}]
["2021-12-07","client14","Produit16",16.64,13,{"$f":"ventes[[#This Row],[PRIX UNITAIRE (FCFA)]]*ventes[[#This Row],[QUANTITE]]","v":216.32},{"$f":"VLOOKUP(ventes[[#This Row],[CLIENTS]],localisations[],2,0)","v":"Pays-Bas"},{"$f":"VLOOKUP(ventes[[#This Row],[CLIENTS]],localisations[],3,0)","v":"Europe"},{"$f":"TEXT(ventes[[#This Row],[DATES]],\"mmm\")","v":"déc"},{"$f":"WEEKNUM(ventes[[#This Row],[DATES]])","v":50}]
["2021-12-07","client25","Produit38",79.92,12,{"$f":"ventes[[#This Row],[PRIX UNITAIRE (FCFA)]]*ventes[[#This Row],[QUANTITE]]","v":959.04},{"$f":"VLOOKUP(ventes[[#This Row],[CLIENTS]],localisations[],2,0)","v":"Brésil"},{"$f":"VLOOKUP(ventes[[#This Row],[CLIENTS]],localisations[],3,0)","v":"Amérique"},{"$f":"TEXT(ventes[[#This Row],[DATES]],\"mmm\")","v":"déc"},{"$f":"WEEKNUM(ventes[[#This Row],[DATES]])","v":50}]
["2021-12-07","client39","Produit06",85.5,27,{"$f":"ventes[[#This Row],[PRIX UNITAIRE (FCFA)]]*ventes[[#This Row],[QUANTITE]]","v":2308.5},{"$f":"VLOOKUP(ventes[[#This Row],[CLIENTS]],localisations[],2,0)","v":"Pakistan"},{"$f":"VLOOKUP(ventes[[#This Row],[CLIENTS]],localisations[],3,0)","v":"Asie"},{"$f":"TEXT(ventes[[#This Row],[DATES]],\"mmm\")","v":"déc"},{"$f":"WEEKNUM(ventes[[#This Row],[DATES]])","v":50}]
["2021-12-07","client40","Produit13",122.08,8,{"$f":"ventes[[#This Row],[PRIX UNITAIRE (FCFA)]]*ventes[[#This Row],[QUANTITE]]","v":976.64},{"$f":"VLOOKUP(ventes[[#This Row],[CLIENTS]],localisations[],2,0)","v":"Pakistan"},{"$f":"VLOOKUP(ventes[[#This Row],[CLIENTS]],localisations[],3,0)","v":"Asie"},{"$f":"TEXT(ventes[[#This Row],[DATES]],\"mmm\")","v":"déc"},{"$f":"WEEKNUM(ventes[[#This Row],[DATES]])","v":50}]
["2021-12-08","client19","Produit41",173.88,32,{"$f":"ventes[[#This Row],[PRIX UNITAIRE (FCFA)]]*ventes[[#This Row],[QUANTITE]]","v":5564.16},{"$f":"VLOOKUP(ventes[[#This Row],[CLIENTS]],localisations[],2,0)","v":"Suisse"},{"$f":"VLOOKUP(ventes[[#This Row],[CLIENTS]],localisations[],3,0)","v":"Europe"},{"$f":"TEXT(ventes[[#This Row],[DATES]],\"mmm\")","v":"déc"},{"$f":"WEEKNUM(ventes[[#This Row],[DATES]])","v":50}]
["2021-12-08","client28","Produit44",82.08,14,{"$f":"ventes[[#This Row],[PRIX UNITAIRE (FCFA)]]*ventes[[#This Row],[QUANTITE]]","v":1149.1199999999999},{"$f":"VLOOKUP(ventes[[#This Row],[CLIENTS]],localisations[],2,0)","v":"États-Unis"},{"$f":"VLOOKUP(ventes[[#This Row],[CLIENTS]],localisations[],3,0)","v":"Amérique"},{"$f":"TEXT(ventes[[#This Row],[DATES]],\"mmm\")","v":"déc"},{"$f":"WEEKNUM(ventes[[#This Row],[DATES]])","v":50}]
["2021-12-09","client16","Produit07",47.730000000000004,16,{"$f":"ventes[[#This Row],[PRIX UNITAIRE (FCFA)]]*ventes[[#This Row],[QUANTITE]]","v":763.68000000000006},{"$f":"VLOOKUP(ventes[[#This Row],[CLIENTS]],localisations[],2,0)","v":"Royaume-Uni"},{"$f":"VLOOKUP(ventes[[#This Row],[CLIENTS]],localisations[],3,0)","v":"Europe"},{"$f":"TEXT(ventes[[#This Row],[DATES]],\"mmm\")","v":"déc"},{"$f":"WEEKNUM(ventes[[#This Row],[DATES]])","v":50}]
["2021-12-10","client16","Produit17",156.78,6,{"$f":"ventes[[#This Row],[PRIX UNITAIRE (FCFA)]]*ventes[[#This Row],[QUANTITE]]","v":940.68000000000006},{"$f":"VLOOKUP(ventes[[#This Row],[CLIENTS]],localisations[],2,0)","v":"Royaume-Uni"},{"$f":"VLOOKUP(ventes[[#This Row],[CLIENTS]],localisations[],3,0)","v":"Europe"},{"$f":"TEXT(ventes[[#This Row],[DATES]],\"mmm\")","v":"déc"},{"$f":"WEEKNUM(ventes[[#This Row],[DATES]])","v":50}]
["2021-12-10","client40","Produit37",85.76,19,{"$f":"ventes[[#This Row],[PRIX UNITAIRE (FCFA)]]*ventes[[#This Row],[QUANTITE]]","v":1629.44},{"$f":"VLOOKUP(ventes[[#This Row],[CLIENTS]],localisations[],2,0)","v":"Pakistan"},{"$f":"VLOOKUP(ventes[[#This Row],[CLIENTS]],localisations[],3,0)","v":"Asie"},{"$f":"TEXT(ventes[[#This Row],[DATES]],\"mmm\")","v":"déc"},{"$f":"WEEKNUM(ventes[[#This Row],[DATES]])","v":50}]
["2021-12-11","client32","Produit14",146.72,10,{"$f":"ventes[[#This Row],[PRIX UNITAIRE (FCFA)]]*ventes[[#This Row],[QUANTITE]]","v":1467.2},{"$f":"VLOOKUP(ventes[[#This Row],[CLIENTS]],localisations[],2,0)","v":"Indonésie"},{"$f":"VLOOKUP(ventes[[#This Row],[CLIENTS]],localisations[],3,0)","v":"Asie"},{"$f":"TEXT(ventes[[#This Row],[DATES]],\"mmm\")","v":"déc"},{"$f":"WEEKNUM(ventes[[#This Row],[DATES]])","v":50}]
["2021-12-11","client14","Produit27",57.120000000000005,5,{"$f":"ventes[[#This Row],[PRIX UNITAIRE (FCFA)]]*ventes[[#This Row],[QUANTITE]]","v":285.60000000000002},{"$f":"VLOOKUP(ventes[[#This Row],[CLIENTS]],localisations[],2,0)","v":"Pays-Bas"},{"$f":"VLOOKUP(ventes[[#This Row],[CLIENTS]],localisations[],3,0)","v":"Europe"},{"$f":"TEXT(ventes[[#This Row],[DATES]],\"mmm\")","v":"déc"},{"$f":"WEEKNUM(ventes[[#This Row],[DATES]])","v":50}]
["2021-12-11","client23","Produit13",122.08,9,{"$f":"ventes[[#This Row],[PRIX UNITAIRE (FCFA)]]*ventes[[#This Row],[QUANTITE]]","v":1098.72},{"$f":"VLOOKUP(ventes[[#This Row],[CLIENTS]],localisations[],2,0)","v":"Argentine"},{"$f":"VLOOKUP(ventes[[#This Row],[CLIENTS]],localisations[],3,0)","v":"Amérique"},{"$f":"TEXT(ventes[[#This Row],[DATES]],\"mmm\")","v":"déc"},{"$f":"WEEKNUM(ventes[[#This Row],[DATES]])","v":50}]
["2021-12-12","client18","Produit41",173.88,10,{"$f":"ventes[[#This Row],[PRIX UNITAIRE (FCFA)]]*ventes[[#This Row],[QUANTITE]]","v":1738.8},{"$f":"VLOOKUP(ventes[[#This Row],[CLIENTS]],localisations[],2,0)","v":"Belgique"},{"$f":"VLOOKUP(ventes[[#This Row],[CLIENTS]],localisations[],3,0)","v":"Europe"},{"$f":"TEXT(ventes[[#This Row],[DATES]],\"mmm\")","v":"déc"},{"$f":"WEEKNUM(ventes[[#This Row],[DATES]])","v":51}]
["2021-12-12","client19","Produit30",201.28,9,{"$f":"ventes[[#This Row],[PRIX UNITAIRE (FCFA)]]*ventes[[#This Row],[QUANTITE]]","v":1811.52},{"$f":"VLOOKUP(ventes[[#This Row],[CLIENTS]],localisations[],2,0)","v":"Suisse"},{"$f":"VLOOKUP(ventes[[#This Row],[CLIENTS]],localisations[],3,0)","v":"Europe"},{"$f":"TEXT(ventes[[#This Row],[DATES]],\"mmm\")","v":"déc"},{"$f":"WEEKNUM(ventes[[#This Row],[DATES]])","v":51}]
["2021-12-14","client32","Produit12",94.17,6,{"$f":"ventes[[#This Row],[PRIX UNITAIRE (FCFA)]]*ventes[[#This Row],[QUANTITE]]","v":565.02},{"$f":"VLOOKUP(ventes[[#This Row],[CLIENTS]],localisations[],2,0)","v":"Indonésie"},{"$f":"VLOOKUP(ventes[[#This Row],[CLIENTS]],localisations[],3,0)","v":"Asie"},{"$f":"TEXT(ventes[[#This Row],[DATES]],\"mmm\")","v":"déc"},{"$f":"WEEKNUM(ventes[[#This Row],[DATES]])","v":51}]
["2021-12-14","client13","Produit42",162,4,{"$f":"ventes[[#This Row],[PRIX UNITAIRE (FCFA)]]*ventes[[#This Row],[QUANTITE]]","v":648},{"$f":"VLOOKUP(ventes[[#This Row],[CLIENTS]],localisations[],2,0)","v":"Italie"},{"$f":"VLOOKUP(ventes[[#This Row],[CLIENTS]],localisations[],3,0)","v":"Europe"},{"$f":"TEXT(ventes[[#This Row],[DATES]],\"mmm\")","v":"déc"},{"$f":"WEEKNUM(ventes[[#This Row],[DATES]])","v":51}]
["2021-12-14","client28","Produit05",155.61000000000001,4,{"$f":"ventes[[#This Row],[PRIX UNITAIRE (FCFA)]]*ventes[[#This Row],[QUANTITE]]","v":622.44000000000005},{"$f":"VLOOKUP(ventes[[#This Row],[CLIENTS]],localisations[],2,0)","v":"États-Unis"},{"$f":"VLOOKUP(ventes[[#This Row],[CLIENTS]],localisations[],3,0)","v":"Amérique"},{"$f":"TEXT(ventes[[#This Row],[DATES]],\"mmm\")","v":"déc"},{"$f":"WEEKNUM(ventes[[#This Row],[DATES]])","v":51}]
["2021-12-15","client33","Produit30",201.28,33,{"$f":"ventes[[#This Row],[PRIX UNITAIRE (FCFA)]]*ventes[[#This Row],[QUANTITE]]","v":6642.24},{"$f":"VLOOKUP(ventes[[#This Row],[CLIENTS]],localisations[],2,0)","v":"Philippines"},{"$f":"VLOOKUP(ventes[[#This Row],[CLIENTS]],localisations[],3,0)","v":"Asie"},{"$f":"TEXT(ventes[[#This Row],[DATES]],\"mmm\")","v":"déc"},{"$f":"WEEKNUM(ventes[[#This Row],[DATES]])","v":51}]
["2021-12-15","client14","Produit09",7.8599999999999994,13,{"$f":"ventes[[#This Row],[PRIX UNITAIRE (FCFA)]]*ventes[[#This Row],[QUANTITE]]","v":102.17999999999999},{"$f":"VLOOKUP(ventes[[#This Row],[CLIENTS]],localisations[],2,0)","v":"Pays-Bas"},{"$f":"VLOOKUP(ventes[[#This Row],[CLIENTS]],localisations[],3,0)","v":"Europe"},{"$f":"TEXT(ventes[[#This Row],[DATES]],\"mmm\")","v":"déc"},{"$f":"WEEKNUM(ventes[[#This Row],[DATES]])","v":51}]
["2021-12-15","client23","Produit16",16.64,6,{"$f":"ventes[[#This Row],[PRIX UNITAIRE (FCFA)]]*ventes[[#This Row],[QUANTITE]]","v":99.84},{"$f":"VLOOKUP(ventes[[#This Row],[CLIENTS]],localisations[],2,0)","v":"Argentine"},{"$f":"VLOOKUP(ventes[[#This Row],[CLIENTS]],localisations[],3,0)","v":"Amérique"},{"$f":"TEXT(ventes[[#This Row],[DATES]],\"mmm\")","v":"déc"},{"$f":"WEEKNUM(ventes[[#This Row],[DATES]])","v":51}]
["2021-12-16","client19","Produit10",164.28,9,{"$f":"ventes[[#This Row],[PRIX UNITAIRE (FCFA)]]*ventes[[#This Row],[QUANTITE]]","v":1478.52},{"$f":"VLOOKUP(ventes[[#This Row],[CLIENTS]],localisations[],2,0)","v":"Suisse"},{"$f":"VLOOKUP(ventes[[#This Row],[CLIENTS]],localisations[],3,0)","v":"Europe"},{"$f":"TEXT(ventes[[#This Row],[DATES]],\"mmm\")","v":"déc"},{"$f":"WEEKNUM(ventes[[#This Row],[DATES]])","v":51}]
["2021-12-17","client04","Produit26",24.66,20,{"$f":"ventes[[#This Row],[PRIX UNITAIRE (FCFA)]]*ventes[[#This Row],[QUANTITE]]","v":493.2},{"$f":"VLOOKUP(ventes[[#This Row],[CLIENTS]],localisations[],2,0)","v":"Sénégal"},{"$f":"VLOOKUP(ventes[[#This Row],[CLIENTS]],localisations[],3,0)","v":"Afrique"},{"$f":"TEXT(ventes[[#This Row],[DATES]],\"mmm\")","v":"déc"},{"$f":"WEEKNUM(ventes[[#This Row],[DATES]])","v":51}]
["2021-12-18","client08","Produit22",141.57,8,{"$f":"ventes[[#This Row],[PRIX UNITAIRE (FCFA)]]*ventes[[#This Row],[QUANTITE]]","v":1132.56},{"$f":"VLOOKUP(ventes[[#This Row],[CLIENTS]],localisations[],2,0)","v":"Maroc"},{"$f":"VLOOKUP(ventes[[#This Row],[CLIENTS]],localisations[],3,0)","v":"Afrique"},{"$f":"TEXT(ventes[[#This Row],[DATES]],\"mmm\")","v":"déc"},{"$f":"WEEKNUM(ventes[[#This Row],[DATES]])","v":51}]
["2021-12-18","client23","Produit03",80.94,2,{"$f":"ventes[[#This Row],[PRIX UNITAIRE (FCFA)]]*ventes[[#This Row],[QUANTITE]]","v":161.88},{"$f":"VLOOKUP(ventes[[#This Row],[CLIENTS]],localisations[],2,0)","v":"Argentine"},{"$f":"VLOOKUP(ventes[[#This Row],[CLIENTS]],localisations[],3,0)","v":"Amérique"},{"$f":"TEXT(ventes[[#This Row],[DATES]],\"mmm\")","v":"déc"},{"$f":"WEEKNUM(ventes[[#This Row],[DATES]])","v":51}]
["2021-12-19","client07","Produit35",6.7,20,{"$f":"ventes[[#This Row],[PRIX UNITAIRE (FCFA)]]*ventes[[#This Row],[QUANTITE]]","v":134},{"$f":"VLOOKUP(ventes[[#This Row],[CLIENTS]],localisations[],2,0)","v":"Éthiopie"},{"$f":"VLOOKUP(ventes[[#This Row],[CLIENTS]],localisations[],3,0)","v":"Afrique"},{"$f":"TEXT(ventes[[#This Row],[DATES]],\"mmm\")","v":"déc"},{"$f":"WEEKNUM(ventes[[#This Row],[DATES]])","v":52}]
["2021-12-19","client33","Produit44",82.08,7,{"$f":"ventes[[#This Row],[PRIX UNITAIRE (FCFA)]]*ventes[[#This Row],[QUANTITE]]","v":574.55999999999995},{"$f":"VLOOKUP(ventes[[#This Row],[CLIENTS]],localisations[],2,0)","v":"Philippines"},{"$f":"VLOOKUP(ventes[[#This Row],[CLIENTS]],localisations[],3,0)","v":"Asie"},{"$f":"TEXT(ventes[[#This Row],[DATES]],\"mmm\")","v":"déc"},{"$f":"WEEKNUM(ventes[[#This Row],[DATES]])","v":52}]
["2021-12-19","client33","Produit09",7.8599999999999994,11,{"$f":"ventes[[#This Row],[PRIX UNITAIRE (FCFA)]]*ventes[[#This Row],[QUANTITE]]","v":86.46},{"$f":"VLOOKUP(ventes[[#This Row],[CLIENTS]],localisations[],2,0)","v":"Philippines"},{"$f":"VLOOKUP(ventes[[#This Row],[CLIENTS]],localisations[],3,0)","v":"Asie"},{"$f":"TEXT(ventes[[#This Row],[DATES]],\"mmm\")","v":"déc"},{"$f":"WEEKNUM(ventes[[#This Row],[DATES]])","v":52}]
["2021-12-19","client14","Produit29",53.11,3,{"$f":"ventes[[#This Row],[PRIX UNITAIRE (FCFA)]]*ventes[[#This Row],[QUANTITE]]","v":159.32999999999998},{"$f":"VLOOKUP(ventes[[#This Row],[CLIENTS]],localisations[],2,0)","v":"Pays-Bas"},{"$f":"VLOOKUP(ventes[[#This Row],[CLIENTS]],localisations[],3,0)","v":"Europe"},{"$f":"TEXT(ventes[[#This Row],[DATES]],\"mmm\")","v":"déc"},{"$f":"WEEKNUM(ventes[[#This Row],[DATES]])","v":52}]
["2021-12-19","client15","Produit11",48.4,14,{"$f":"ventes[[#This Row],[PRIX UNITAIRE (FCFA)]]*ventes[[#This Row],[QUANTITE]]","v":677.6},{"$f":"VLOOKUP(ventes[[#This Row],[CLIENTS]],localisations[],2,0)","v":"Allemagne"},{"$f":"VLOOKUP(ventes[[#This Row],[CLIENTS]],localisations[],3,0)","v":"Europe"},{"$f":"TEXT(ventes[[#This Row],[DATES]],\"mmm\")","v":"déc"},{"$f":"WEEKNUM(ventes[[#This Row],[DATES]])","v":52}]
["2021-12-19","client16","Produit23",149.46,12,{"$f":"ventes[[#This Row],[PRIX UNITAIRE (FCFA)]]*ventes[[#This Row],[QUANTITE]]","v":1793.52},{"$f":"VLOOKUP(ventes[[#This Row],[CLIENTS]],localisations[],2,0)","v":"Royaume-Uni"},{"$f":"VLOOKUP(ventes[[#This Row],[CLIENTS]],localisations[],3,0)","v":"Europe"},{"$f":"TEXT(ventes[[#This Row],[DATES]],\"mmm\")","v":"déc"},{"$f":"WEEKNUM(ventes[[#This Row],[DATES]])","v":52}]
["2021-12-19","client19","Produit23",149.46,13,{"$f":"ventes[[#This Row],[PRIX UNITAIRE (FCFA)]]*ventes[[#This Row],[QUANTITE]]","v":1942.98},{"$f":"VLOOKUP(ventes[[#This Row],[CLIENTS]],localisations[],2,0)","v":"Suisse"},{"$f":"VLOOKUP(ventes[[#This Row],[CLIENTS]],localisations[],3,0)","v":"Europe"},{"$f":"TEXT(ventes[[#This Row],[DATES]],\"mmm\")","v":"déc"},{"$f":"WEEKNUM(ventes[[#This Row],[DATES]])","v":52}]
["2021-12-19","client25","Produit11",48.4,10,{"$f":"ventes[[#This Row],[PRIX UNITAIRE (FCFA)]]*ventes[[#This Row],[QUANTITE]]","v":484},{"$f":"VLOOKUP(ventes[[#This Row],[CLIENTS]],localisations[],2,0)","v":"Brésil"},{"$f":"VLOOKUP(ventes[[#This Row],[CLIENTS]],localisations[],3,0)","v":"Amérique"},{"$f":"TEXT(ventes[[#This Row],[DATES]],\"mmm\")","v":"déc"},{"$f":"WEEKNUM(ventes[[#This Row],[DATES]])","v":52}]
["2021-12-20","client05","Produit12",94.17,14,{"$f":"ventes[[#This Row],[PRIX UNITAIRE (FCFA)]]*ventes[[#This Row],[QUANTITE]]","v":1318.38},{"$f":"VLOOKUP(ventes[[#This Row],[CLIENTS]],localisations[],2,0)","v":"Algérie"},{"$f":"VLOOKUP(ventes[[#This Row],[CLIENTS]],localisations[],3,0)","v":"Afrique"},{"$f":"TEXT(ventes[[#This Row],[DATES]],\"mmm\")","v":"déc"},{"$f":"WEEKNUM(ventes[[#This Row],[DATES]])","v":52}]
["2021-12-20","client18","Produit35",6.7,24,{"$f":"ventes[[#This Row],[PRIX UNITAIRE (FCFA)]]*ventes[[#This Row],[QUANTITE]]","v":160.80000000000001},{"$f":"VLOOKUP(ventes[[#This Row],[CLIENTS]],localisations[],2,0)","v":"Belgique"},{"$f":"VLOOKUP(ventes[[#This Row],[CLIENTS]],localisations[],3,0)","v":"Europe"},{"$f":"TEXT(ventes[[#This Row],[DATES]],\"mmm\")","v":"déc"},{"$f":"WEEKNUM(ventes[[#This Row],[DATES]])","v":52}]
["2021-12-21","client04","Produit06",85.5,10,{"$f":"ventes[[#This Row],[PRIX UNITAIRE (FCFA)]]*ventes[[#This Row],[QUANTITE]]","v":855},{"$f":"VLOOKUP(ventes[[#This Row],[CLIENTS]],localisations[],2,0)","v":"Sénégal"},{"$f":"VLOOKUP(ventes[[#This Row],[CLIENTS]],localisations[],3,0)","v":"Afrique"},{"$f":"TEXT(ventes[[#This Row],[DATES]],\"mmm\")","v":"déc"},{"$f":"WEEKNUM(ventes[[#This Row],[DATES]])","v":52}]
["2021-12-21","client35","Produit26",24.66,10,{"$f":"ventes[[#This Row],[PRIX UNITAIRE (FCFA)]]*ventes[[#This Row],[QUANTITE]]","v":246.6},{"$f":"VLOOKUP(ventes[[#This Row],[CLIENTS]],localisations[],2,0)","v":"Malaisie"},{"$f":"VLOOKUP(ventes[[#This Row],[CLIENTS]],localisations[],3,0)","v":"Asie"},{"$f":"TEXT(ventes[[#This Row],[DATES]],\"mmm\")","v":"déc"},{"$f":"WEEKNUM(ventes[[#This Row],[DATES]])","v":52}]
["2021-12-21","client13","Produit20",76.25,16,{"$f":"ventes[[#This Row],[PRIX UNITAIRE (FCFA)]]*ventes[[#This Row],[QUANTITE]]","v":1220},{"$f":"VLOOKUP(ventes[[#This Row],[CLIENTS]],localisations[],2,0)","v":"Italie"},{"$f":"VLOOKUP(ventes[[#This Row],[CLIENTS]],localisations[],3,0)","v":"Europe"},{"$f":"TEXT(ventes[[#This Row],[DATES]],\"mmm\")","v":"déc"},{"$f":"WEEKNUM(ventes[[#This Row],[DATES]])","v":52}]
["2021-12-21","client19","Produit22",141.57,16,{"$f":"ventes[[#This Row],[PRIX UNITAIRE (FCFA)]]*ventes[[#This Row],[QUANTITE]]","v":2265.12},{"$f":"VLOOKUP(ventes[[#This Row],[CLIENTS]],localisations[],2,0)","v":"Suisse"},{"$f":"VLOOKUP(ventes[[#This Row],[CLIENTS]],localisations[],3,0)","v":"Europe"},{"$f":"TEXT(ventes[[#This Row],[DATES]],\"mmm\")","v":"déc"},{"$f":"WEEKNUM(ventes[[#This Row],[DATES]])","v":52}]
["2021-12-22","client34","Produit41",173.88,35,{"$f":"ventes[[#This Row],[PRIX UNITAIRE (FCFA)]]*ventes[[#This Row],[QUANTITE]]","v":6085.8},{"$f":"VLOOKUP(ventes[[#This Row],[CLIENTS]],localisations[],2,0)","v":"Japon"},{"$f":"VLOOKUP(ventes[[#This Row],[CLIENTS]],localisations[],3,0)","v":"Asie"},{"$f":"TEXT(ventes[[#This Row],[DATES]],\"mmm\")","v":"déc"},{"$f":"WEEKNUM(ventes[[#This Row],[DATES]])","v":52}]
["2021-12-22","client35","Produit42",162,5,{"$f":"ventes[[#This Row],[PRIX UNITAIRE (FCFA)]]*ventes[[#This Row],[QUANTITE]]","v":810},{"$f":"VLOOKUP(ventes[[#This Row],[CLIENTS]],localisations[],2,0)","v":"Malaisie"},{"$f":"VLOOKUP(ventes[[#This Row],[CLIENTS]],localisations[],3,0)","v":"Asie"},{"$f":"TEXT(ventes[[#This Row],[DATES]],\"mmm\")","v":"déc"},{"$f":"WEEKNUM(ventes[[#This Row],[DATES]])","v":52}]
["2021-12-24","client13","Produit36",96.3,8,{"$f":"ventes[[#This Row],[PRIX UNITAIRE (FCFA)]]*ventes[[#This Row],[QUANTITE]]","v":770.4},{"$f":"VLOOKUP(ventes[[#This Row],[CLIENTS]],localisations[],2,0)","v":"Italie"},{"$f":"VLOOKUP(ventes[[#This Row],[CLIENTS]],localisations[],3,0)","v":"Europe"},{"$f":"TEXT(ventes[[#This Row],[DATES]],\"mmm\")","v":"déc"},{"$f":"WEEKNUM(ventes[[#This Row],[DATES]])","v":52}]
["2021-12-24","client21","Produit42",162,8,{"$f":"ventes[[#This Row],[PRIX UNITAIRE (FCFA)]]*ventes[[#This Row],[QUANTITE]]","v":1296},{"$f":"VLOOKUP(ventes[[#This Row],[CLIENTS]],localisations[],2,0)","v":"Venezuela"},{"$f":"VLOOKUP(ventes[[#This Row],[CLIENTS]],localisations[],3,0)","v":"Amérique"},{"$f":"TEXT(ventes[[#This Row],[DATES]],\"mmm\")","v":"déc"},{"$f":"WEEKNUM(ventes[[#This Row],[DATES]])","v":52}]
["2021-12-25","client02","Produit11",48.4,29,{"$f":"ventes[[#This Row],[PRIX UNITAIRE (FCFA)]]*ventes[[#This Row],[QUANTITE]]","v":1403.6},{"$f":"VLOOKUP(ventes[[#This Row],[CLIENTS]],localisations[],2,0)","v":"Ghana"},{"$f":"VLOOKUP(ventes[[#This Row],[CLIENTS]],localisations[],3,0)","v":"Afrique"},{"$f":"TEXT(ventes[[#This Row],[DATES]],\"mmm\")","v":"déc"},{"$f":"WEEKNUM(ventes[[#This Row],[DATES]])","v":52}]
["2021-12-25","client02","Produit25",8.33,39,{"$f":"ventes[[#This Row],[PRIX UNITAIRE (FCFA)]]*ventes[[#This Row],[QUANTITE]]","v":324.87},{"$f":"VLOOKUP(ventes[[#This Row],[CLIENTS]],localisations[],2,0)","v":"Ghana"},{"$f":"VLOOKUP(ventes[[#This Row],[CLIENTS]],localisations[],3,0)","v":"Afrique"},{"$f":"TEXT(ventes[[#This Row],[DATES]],\"mmm\")","v":"déc"},{"$f":"WEEKNUM(ventes[[#This Row],[DATES]])","v":52}]
["2021-12-25","client05","Produit40",115.2,15,{"$f":"ventes[[#This Row],[PRIX UNITAIRE (FCFA)]]*ventes[[#This Row],[QUANTITE]]","v":1728},{"$f":"VLOOKUP(ventes[[#This Row],[CLIENTS]],localisations[],2,0)","v":"Algérie"},{"$f":"VLOOKUP(ventes[[#This Row],[CLIENTS]],localisations[],3,0)","v":"Afrique"},{"$f":"TEXT(ventes[[#This Row],[DATES]],\"mmm\")","v":"déc"},{"$f":"WEEKNUM(ventes[[#This Row],[DATES]])","v":52}]
["2021-12-26","client25","Produit41",173.88,14,{"$f":"ventes[[#This Row],[PRIX UNITAIRE (FCFA)]]*ventes[[#This Row],[QUANTITE]]","v":2434.3199999999997},{"$f":"VLOOKUP(ventes[[#This Row],[CLIENTS]],localisations[],2,0)","v":"Brésil"},{"$f":"VLOOKUP(ventes[[#This Row],[CLIENTS]],localisations[],3,0)","v":"Amérique"},{"$f":"TEXT(ventes[[#This Row],[DATES]],\"mmm\")","v":"déc"},{"$f":"WEEKNUM(ventes[[#This Row],[DATES]])","v":53}]
["2021-12-26","client38","Produit37",85.76,36,{"$f":"ventes[[#This Row],[PRIX UNITAIRE (FCFA)]]*ventes[[#This Row],[QUANTITE]]","v":3087.36},{"$f":"VLOOKUP(ventes[[#This Row],[CLIENTS]],localisations[],2,0)","v":"Pakistan"},{"$f":"VLOOKUP(ventes[[#This Row],[CLIENTS]],localisations[],3,0)","v":"Asie"},{"$f":"TEXT(ventes[[#This Row],[DATES]],\"mmm\")","v":"déc"},{"$f":"WEEKNUM(ventes[[#This Row],[DATES]])","v":53}]
["2021-12-27","client38","Produit10",164.28,26,{"$f":"ventes[[#This Row],[PRIX UNITAIRE (FCFA)]]*ventes[[#This Row],[QUANTITE]]","v":4271.28},{"$f":"VLOOKUP(ventes[[#This Row],[CLIENTS]],localisations[],2,0)","v":"Pakistan"},{"$f":"VLOOKUP(ventes[[#This Row],[CLIENTS]],localisations[],3,0)","v":"Asie"},{"$f":"TEXT(ventes[[#This Row],[DATES]],\"mmm\")","v":"déc"},{"$f":"WEEKNUM(ventes[[#This Row],[DATES]])","v":53}]
["2021-12-27","client40","Produit29",53.11,14,{"$f":"ventes[[#This Row],[PRIX UNITAIRE (FCFA)]]*ventes[[#This Row],[QUANTITE]]","v":743.54},{"$f":"VLOOKUP(ventes[[#This Row],[CLIENTS]],localisations[],2,0)","v":"Pakistan"},{"$f":"VLOOKUP(ventes[[#This Row],[CLIENTS]],localisations[],3,0)","v":"Asie"},{"$f":"TEXT(ventes[[#This Row],[DATES]],\"mmm\")","v":"déc"},{"$f":"WEEKNUM(ventes[[#This Row],[DATES]])","v":53}]
["2021-12-28","client34","Produit29",53.11,6,{"$f":"ventes[[#This Row],[PRIX UNITAIRE (FCFA)]]*ventes[[#This Row],[QUANTITE]]","v":318.65999999999997},{"$f":"VLOOKUP(ventes[[#This Row],[CLIENTS]],localisations[],2,0)","v":"Japon"},{"$f":"VLOOKUP(ventes[[#This Row],[CLIENTS]],localisations[],3,0)","v":"Asie"},{"$f":"TEXT(ventes[[#This Row],[DATES]],\"mmm\")","v":"déc"},{"$f":"WEEKNUM(ventes[[#This Row],[DATES]])","v":53}]
["2021-12-29","client31","Produit08",94.62,15,{"$f":"ventes[[#This Row],[PRIX UNITAIRE (FCFA)]]*ventes[[#This Row],[QUANTITE]]","v":1419.3000000000002},{"$f":"VLOOKUP(ventes[[#This Row],[CLIENTS]],localisations[],2,0)","v":"Corée du Sud"},{"$f":"VLOOKUP(ventes[[#This Row],[CLIENTS]],localisations[],3,0)","v":"Asie"},{"$f":"TEXT(ventes[[#This Row],[DATES]],\"mmm\")","v":"déc"},{"$f":"WEEKNUM(ventes[[#This Row],[DATES]])","v":53}]
["2021-12-29","client02","Produit06",85.5,26,{"$f":"ventes[[#This Row],[PRIX UNITAIRE (FCFA)]]*ventes[[#This Row],[QUANTITE]]","v":2223},{"$f":"VLOOKUP(ventes[[#This Row],[CLIENTS]],localisations[],2,0)","v":"Ghana"},{"$f":"VLOOKUP(ventes[[#This Row],[CLIENTS]],localisations[],3,0)","v":"Afrique"},{"$f":"TEXT(ventes[[#This Row],[DATES]],\"mmm\")","v":"déc"},{"$f":"WEEKNUM(ventes[[#This Row],[DATES]])","v":53}]
["2021-12-29","client36","Produit42",162,1,{"$f":"ventes[[#This Row],[PRIX UNITAIRE (FCFA)]]*ventes[[#This Row],[QUANTITE]]","v":162},{"$f":"VLOOKUP(ventes[[#This Row],[CLIENTS]],localisations[],2,0)","v":"Vietnam"},{"$f":"VLOOKUP(ventes[[#This Row],[CLIENTS]],localisations[],3,0)","v":"Asie"},{"$f":"TEXT(ventes[[#This Row],[DATES]],\"mmm\")","v":"déc"},{"$f":"WEEKNUM(ventes[[#This Row],[DATES]])","v":53}]
["2021-12-30","client31","Produit10",164.28,13,{"$f":"ventes[[#This Row],[PRIX UNITAIRE (FCFA)]]*ventes[[#This Row],[QUANTITE]]","v":2135.64},{"$f":"VLOOKUP(ventes[[#This Row],[CLIENTS]],localisations[],2,0)","v":"Corée du Sud"},{"$f":"VLOOKUP(ventes[[#This Row],[CLIENTS]],localisations[],3,0)","v":"Asie"},{"$f":"TEXT(ventes[[#This Row],[DATES]],\"mmm\")","v":"déc"},{"$f":"WEEKNUM(ventes[[#This Row],[DATES]])","v":53}]
["2021-12-30","client33","Produit41",173.88,14,{"$f":"ventes[[#This Row],[PRIX UNITAIRE (FCFA)]]*ventes[[#This Row],[QUANTITE]]","v":2434.3199999999997},{"$f":"VLOOKUP(ventes[[#This Row],[CLIENTS]],localisations[],2,0)","v":"Philippines"},{"$f":"VLOOKUP(ventes[[#This Row],[CLIENTS]],localisations[],3,0)","v":"Asie"},{"$f":"TEXT(ventes[[#This Row],[DATES]],\"mmm\")","v":"déc"},{"$f":"WEEKNUM(ventes[[#This Row],[DATES]])","v":53}]
["2021-12-30","client21","Produit30",201.28,31,{"$f":"ventes[[#This Row],[PRIX UNITAIRE (FCFA)]]*ventes[[#This Row],[QUANTITE]]","v":6239.68},{"$f":"VLOOKUP(ventes[[#This Row],[CLIENTS]],localisations[],2,0)","v":"Venezuela"},{"$f":"VLOOKUP(ventes[[#This Row],[CLIENTS]],localisations[],3,0)","v":"Amérique"},{"$f":"TEXT(ventes[[#This Row],[DATES]],\"mmm\")","v":"déc"},{"$f":"WEEKNUM(ventes[[#This Row],[DATES]])","v":53}]

{"sheet":"Localisations","index":1,"n_rows":41,"n_cols":3,"rows_kept":41,"cut":false,"hidden":false,"merged":[]}
["Clients","Pays","Région "]
["Client01","Tunisie","Afrique"]
["Client02","Ghana","Afrique"]
["Client03","Côte d'Ivoire","Afrique"]
["Client04","Sénégal","Afrique"]
["Client05","Algérie","Afrique"]
["Client06","Afrique du Sud","Afrique"]
["Client07","Éthiopie","Afrique"]
["Client08","Maroc","Afrique"]
["Client09","Égypte","Afrique"]
["Client10","Nigeria","Afrique"]
["Client11","Espagne","Europe"]
["Client12","Pologne","Europe"]
["Client13","Italie","Europe"]
["Client14","Pays-Bas","Europe"]
["Client15","Allemagne","Europe"]
["Client16","Royaume-Uni","Europe"]
["Client17","Suède","Europe"]
["Client18","Belgique","Europe"]
["Client19","Suisse","Europe"]
["Client20","France","Europe"]
["Client21","Venezuela","Amérique"]
["Client22","Canada","Amérique"]
["Client23","Argentine","Amérique"]
["Client24","Équateur","Amérique"]
["Client25","Brésil","Amérique"]
["Client26","Pérou","Amérique"]
["Client27","Mexique","Amérique"]
["Client28","États-Unis","Amérique"]
["Client29","Chili","Amérique"]
["Client30","Colombie","Amérique"]
["Client31","Corée du Sud","Asie"]
["Client32","Indonésie","Asie"]
["Client33","Philippines","Asie"]
["Client34","Japon","Asie"]
["Client35","Malaisie","Asie"]
["Client36","Vietnam","Asie"]
["Client37","Inde","Asie"]
["Client38","Pakistan","Asie"]
["Client39","Pakistan","Asie"]
["Client40","Pakistan","Asie"]

{"sheet":"Objectifs","index":2,"n_rows":13,"n_cols":6,"rows_kept":13,"cut":false,"hidden":false,"merged":[]}
["numero_mois","Mois","Objectif financier","Chiffre d'Affaires"," En dessous","Au dessus"]
[1,"janv",90000,{"$f":"VLOOKUP(Tableau3[[#This Row],[Mois]],Analyses!C:D,2,0)","v":92118.789999999964},{"$f":"IF(Tableau3[[#This Row],[Chiffre d''Affaires]]<Tableau3[[#This Row],[Objectif financier]],Tableau3[[#This Row],[Chiffre d''Affaires]],\"#NA\")","v":"#NA"},{"$f":"IF(Tableau3[[#This Row],[Chiffre d''Affaires]]>=Tableau3[[#This Row],[Objectif financier]],Tableau3[[#This Row],[Chiffre d''Affaires]],\"#NA\")","v":92118.789999999964}]
[2,"févr",100000,{"$f":"VLOOKUP(Tableau3[[#This Row],[Mois]],Analyses!C:D,2,0)","v":91137.049999999988},{"$f":"IF(Tableau3[[#This Row],[Chiffre d''Affaires]]<Tableau3[[#This Row],[Objectif financier]],Tableau3[[#This Row],[Chiffre d''Affaires]],\"#NA\")","v":91137.049999999988},{"$f":"IF(Tableau3[[#This Row],[Chiffre d''Affaires]]>=Tableau3[[#This Row],[Objectif financier]],Tableau3[[#This Row],[Chiffre d''Affaires]],\"#NA\")","v":"#NA"}]
[3,"mars",100000,{"$f":"VLOOKUP(Tableau3[[#This Row],[Mois]],Analyses!C:D,2,0)","v":97920.72},{"$f":"IF(Tableau3[[#This Row],[Chiffre d''Affaires]]<Tableau3[[#This Row],[Objectif financier]],Tableau3[[#This Row],[Chiffre d''Affaires]],\"#NA\")","v":97920.72},{"$f":"IF(Tableau3[[#This Row],[Chiffre d''Affaires]]>=Tableau3[[#This Row],[Objectif financier]],Tableau3[[#This Row],[Chiffre d''Affaires]],\"#NA\")","v":"#NA"}]
[4,"avr",100000,{"$f":"VLOOKUP(Tableau3[[#This Row],[Mois]],Analyses!C:D,2,0)","v":72320.89},{"$f":"IF(Tableau3[[#This Row],[Chiffre d''Affaires]]<Tableau3[[#This Row],[Objectif financier]],Tableau3[[#This Row],[Chiffre d''Affaires]],\"#NA\")","v":72320.89},{"$f":"IF(Tableau3[[#This Row],[Chiffre d''Affaires]]>=Tableau3[[#This Row],[Objectif financier]],Tableau3[[#This Row],[Chiffre d''Affaires]],\"#NA\")","v":"#NA"}]
[5,"mai",90000,{"$f":"VLOOKUP(Tableau3[[#This Row],[Mois]],Analyses!C:D,2,0)","v":70511.75999999998},{"$f":"IF(Tableau3[[#This Row],[Chiffre d''Affaires]]<Tableau3[[#This Row],[Objectif financier]],Tableau3[[#This Row],[Chiffre d''Affaires]],\"#NA\")","v":70511.75999999998},{"$f":"IF(Tableau3[[#This Row],[Chiffre d''Affaires]]>=Tableau3[[#This Row],[Objectif financier]],Tableau3[[#This Row],[Chiffre d''Affaires]],\"#NA\")","v":"#NA"}]
[6,"juin",80000,{"$f":"VLOOKUP(Tableau3[[#This Row],[Mois]],Analyses!C:D,2,0)","v":66727.399999999994},{"$f":"IF(Tableau3[[#This Row],[Chiffre d''Affaires]]<Tableau3[[#This Row],[Objectif financier]],Tableau3[[#This Row],[Chiffre d''Affaires]],\"#NA\")","v":66727.399999999994},{"$f":"IF(Tableau3[[#This Row],[Chiffre d''Affaires]]>=Tableau3[[#This Row],[Objectif financier]],Tableau3[[#This Row],[Chiffre d''Affaires]],\"#NA\")","v":"#NA"}]
[7,"juil",95000,{"$f":"VLOOKUP(Tableau3[[#This Row],[Mois]],Analyses!C:D,2,0)","v":92661.550000000017},{"$f":"IF(Tableau3[[#This Row],[Chiffre d''Affaires]]<Tableau3[[#This Row],[Objectif financier]],Tableau3[[#This Row],[Chiffre d''Affaires]],\"#NA\")","v":92661.550000000017},{"$f":"IF(Tableau3[[#This Row],[Chiffre d''Affaires]]>=Tableau3[[#This Row],[Objectif financier]],Tableau3[[#This Row],[Chiffre d''Affaires]],\"#NA\")","v":"#NA"}]
[8,"août",90000,{"$f":"VLOOKUP(Tableau3[[#This Row],[Mois]],Analyses!C:D,2,0)","v":69125.749999999985},{"$f":"IF(Tableau3[[#This Row],[Chiffre d''Affaires]]<Tableau3[[#This Row],[Objectif financier]],Tableau3[[#This Row],[Chiffre d''Affaires]],\"#NA\")","v":69125.749999999985},{"$f":"IF(Tableau3[[#This Row],[Chiffre d''Affaires]]>=Tableau3[[#This Row],[Objectif financier]],Tableau3[[#This Row],[Chiffre d''Affaires]],\"#NA\")","v":"#NA"}]
[9,"sept",90000,{"$f":"VLOOKUP(Tableau3[[#This Row],[Mois]],Analyses!C:D,2,0)","v":78253.529999999984},{"$f":"IF(Tableau3[[#This Row],[Chiffre d''Affaires]]<Tableau3[[#This Row],[Objectif financier]],Tableau3[[#This Row],[Chiffre d''Affaires]],\"#NA\")","v":78253.529999999984},{"$f":"IF(Tableau3[[#This Row],[Chiffre d''Affaires]]>=Tableau3[[#This Row],[Objectif financier]],Tableau3[[#This Row],[Chiffre d''Affaires]],\"#NA\")","v":"#NA"}]
[10,"oct",80000,{"$f":"VLOOKUP(Tableau3[[#This Row],[Mois]],Analyses!C:D,2,0)","v":87136.37},{"$f":"IF(Tableau3[[#This Row],[Chiffre d''Affaires]]<Tableau3[[#This Row],[Objectif financier]],Tableau3[[#This Row],[Chiffre d''Affaires]],\"#NA\")","v":"#NA"},{"$f":"IF(Tableau3[[#This Row],[Chiffre d''Affaires]]>=Tableau3[[#This Row],[Objectif financier]],Tableau3[[#This Row],[Chiffre d''Affaires]],\"#NA\")","v":87136.37}]
[11,"nov",80000,{"$f":"VLOOKUP(Tableau3[[#This Row],[Mois]],Analyses!C:D,2,0)","v":75659.86},{"$f":"IF(Tableau3[[#This Row],[Chiffre d''Affaires]]<Tableau3[[#This Row],[Objectif financier]],Tableau3[[#This Row],[Chiffre d''Affaires]],\"#NA\")","v":75659.86},{"$f":"IF(Tableau3[[#This Row],[Chiffre d''Affaires]]>=Tableau3[[#This Row],[Objectif financier]],Tableau3[[#This Row],[Chiffre d''Affaires]],\"#NA\")","v":"#NA"}]
[12,"déc",110000,{"$f":"VLOOKUP(Tableau3[[#This Row],[Mois]],Analyses!C:D,2,0)","v":89270.59},{"$f":"IF(Tableau3[[#This Row],[Chiffre d''Affaires]]<Tableau3[[#This Row],[Objectif financier]],Tableau3[[#This Row],[Chiffre d''Affaires]],\"#NA\")","v":89270.59},{"$f":"IF(Tableau3[[#This Row],[Chiffre d''Affaires]]>=Tableau3[[#This Row],[Objectif financier]],Tableau3[[#This Row],[Chiffre d''Affaires]],\"#NA\")","v":"#NA"}]

{"sheet":"Analyses","index":3,"n_rows":55,"n_cols":22,"rows_kept":55,"cut":false,"hidden":false,"merged":[]}
[]
["Chiffre d'Affaires Global",null,"Mois","Chiffre d'Affaires",null,"Sémaine de l'année","Chiffre d'Affaires",null,"Clients","Chiffre d'Affaires",null,"Produits","Chiffre d'Affaires",null,"Région","Chiffre d'Affaires",null,"Pays","Chiffre d'Affaires"]
[982844.25999999919,null,"janv",92118.789999999964,null,1,5179.59,null,"client33",60929.149999999994,null,"Produit10",34991.64,null,"Afrique",228837.42000000013,null,"Afrique du Sud",33252.920000000006]
[null,null,"févr",91137.049999999988,null,2,21116.729999999996,null,"client22",45112.94999999999,null,"Produit42",38232,null,"Amérique",294506.85000000009,null,"Algérie",23913.72,null,{"$f":"OFFSET(R2,1,0,COUNTA(R3:R42),2)","v":"Afrique du Sud"},33252.920000000006]
[null,null,"mars",97920.72,null,3,14261.190000000004,null,"client23",43062.83,null,"Produit05",38591.280000000006,null,"Asie",187387.62,null,"Allemagne",33187.040000000008,null,"Algérie",23913.72]
[{"$f":"OFFSET(A2,1,0,1,1)","v":982844.25999999919},null,"avr",72320.89,null,4,11433.2,null,null,null,null,"Produit21",39659.759999999995,null,"Europe",272112.37000000011,null,"Argentine",43062.83,null,"Allemagne",33187.040000000008]
[null,null,"mai",70511.75999999998,null,5,33727.55000000001,null,null,null,null,"Produit32",40883.039999999994,null,null,null,null,"Belgique",16353.01,null,"Argentine",43062.83]
[null,null,"juin",66727.399999999994,null,6,34794.820000000007,null,{"$f":"I3","v":"client33"},{"$f":"J3","v":60929.149999999994},null,"Produit22",41055.299999999996,null,null,null,null,"Brésil",39653.929999999993,null,"Belgique",16353.01]
[null,null,"juil",92661.550000000017,null,7,32107.100000000006,null,{"$f":"I4","v":"client22"},{"$f":"J4","v":45112.94999999999},null,"Produit19",41580,null,null,null,null,"Canada",45112.94999999999,null,"Brésil",39653.929999999993]
[null,null,"août",69125.749999999985,null,8,11777.67,null,"client23",43062.83,null,"Produit24",49599.360000000008,null,null,null,null,"Chili",24862.519999999997,null,"Canada",45112.94999999999]
[null,null,"sept",78253.529999999984,null,9,17571.589999999997,null,null,null,null,"Produit41",57554.28,null,null,null,null,"Colombie",35431.860000000008,null,"Chili",24862.519999999997]
[null,null,"oct",87136.37,null,10,17413.299999999996,null,null,null,null,"Produit30",57968.639999999992,null,null,null,null,"Corée du Sud",17704.34,null,"Colombie",35431.860000000008]
[null,null,"nov",75659.86,null,11,18811.389999999996,null,null,null,null,null,null,null,null,null,null,"Côte d'Ivoire",7541.72,null,"Corée du Sud",17704.34]
[null,null,"déc",89270.59,null,12,29446.460000000003,null,null,null,null,null,null,null,null,null,null,"Égypte",24159.03,null,"Côte d'Ivoire",7541.72]
[null,null,null,null,null,13,22723.600000000002,null,null,null,null,{"$f":"L3","v":"Produit10"},34991.64,null,null,null,null,"Équateur",13549.7,null,"Égypte",24159.03]
[null,null,null,null,null,14,13729.810000000001,null,null,null,null,"Produit42",38232,null,null,null,null,"Espagne",30344.9,null,"Équateur",13549.7]
[null,null,null,null,null,15,27820.09,null,null,null,null,"Produit05",38591.280000000006,null,null,null,null,"États-Unis",14337.400000000003,null,"Espagne",30344.9]
[null,null,null,null,null,16,9407.51,null,null,null,null,"Produit21",39659.759999999995,null,null,null,null,"Éthiopie",8394.32,null,"États-Unis",14337.400000000003]
[null,null,null,null,null,17,22127.300000000003,null,null,null,null,"Produit32",40883.039999999994,null,null,null,null,"France",26437.860000000004,null,"Éthiopie",8394.32]
[null,null,null,null,null,18,11809.4,null,null,null,null,"Produit22",41055.299999999996,null,null,null,null,"Ghana",31336.229999999992,null,"France",26437.860000000004]
[null,null,null,null,null,19,12750.539999999997,null,null,null,null,"Produit19",41580,null,null,null,null,"Inde",5519.83,null,"Ghana",31336.229999999992]
[null,null,null,null,null,20,19691.759999999998,null,null,null,null,"Produit24",49599.360000000008,null,null,null,null,"Indonésie",15829.48,null,"Inde",5519.83]
[null,null,null,null,null,21,19171.71,null,null,null,null,"Produit41",57554.28,null,null,null,null,"Italie",6251.4,null,"Indonésie",15829.48]
[null,null,null,null,null,22,11617.86,null,null,null,null,"Produit30",57968.639999999992,null,null,null,null,"Japon",10923.66,null,"Italie",6251.4]
[null,null,null,null,null,23,17000.620000000003,null,null,null,null,null,null,null,null,null,null,"Malaisie",13827.74,null,"Japon",10923.66]
[null,null,null,null,null,24,15273.349999999999,null,null,null,null,null,null,null,null,null,null,"Maroc",24311.18,null,"Malaisie",13827.74]
[null,null,null,null,null,25,23043.470000000005,null,null,null,null,null,null,null,null,null,null,"Mexique",14192.22,null,"Maroc",24311.18]
[null,null,null,null,null,26,13593.79,null,null,null,null,null,null,null,null,null,null,"Nigeria",14222.83,null,"Mexique",14192.22]
[null,null,null,null,null,27,13197.89,null,null,null,null,null,null,null,null,null,null,"Pakistan",34502.94,null,"Nigeria",14222.83]
[null,null,null,null,null,28,13311.339999999998,null,null,null,null,null,null,null,null,null,null,"Pays-Bas",30826.78,null,"Pakistan",34502.94]
[null,null,null,null,null,29,26662.809999999998,null,null,null,null,null,null,null,null,null,null,"Pérou",31495.420000000002,null,"Pays-Bas",30826.78]
[null,null,null,null,null,30,15652.32,null,null,null,null,null,null,null,null,null,null,"Philippines",60929.149999999994,null,"Pérou",31495.420000000002]
[null,null,null,null,null,31,27172.400000000001,null,null,null,null,null,null,null,null,null,null,"Pologne",34247.450000000004,null,"Philippines",60929.149999999994]
[null,null,null,null,null,32,6991.1000000000013,null,null,null,null,null,null,null,null,null,null,"Royaume-Uni",39185.31,null,"Pologne",34247.450000000004]
[null,null,null,null,null,33,17406.18,null,null,null,null,null,null,null,null,null,null,"Sénégal",21712.2,null,"Royaume-Uni",39185.31]
[null,null,null,null,null,34,10403.35,null,null,null,null,null,null,null,null,null,null,"Suède",16605.59,null,"Sénégal",21712.2]
[null,null,null,null,null,35,29524.29,null,null,null,null,null,null,null,null,null,null,"Suisse",38673.030000000006,null,"Suède",16605.59]
[null,null,null,null,null,36,14336.82,null,null,null,null,null,null,null,null,null,null,"Tunisie",39993.270000000004,null,"Suisse",38673.030000000006]
[null,null,null,null,null,37,15584.3,null,null,null,null,null,null,null,null,null,null,"Venezuela",32808.019999999997,null,"Tunisie",39993.270000000004]
[null,null,null,null,null,38,13437.32,null,null,null,null,null,null,null,null,null,null,"Vietnam",28150.48,null,"Venezuela",32808.019999999997]
[null,null,null,null,null,39,30057.11,null,null,null,null,null,null,null,null,null,null,null,null,null,"Vietnam",28150.48]
[null,null,null,null,null,40,17799.129999999997]
[null,null,null,null,null,41,25449.57]
[null,null,null,null,null,42,14658.500000000002]
[null,null,null,null,null,43,19795.28]
[null,null,null,null,null,44,17458.100000000002]
[null,null,null,null,null,45,17068.960000000003]
[null,null,null,null,null,46,16104.110000000002]
[null,null,null,null,null,47,16390.38]
[null,null,null,null,null,48,25601.349999999995]
[null,null,null,null,null,49,7322.39]
[null,null,null,null,null,50,18755.54]
[null,null,null,null,null,51,15496.2]
[null,null,null,null,null,52,24337.019999999997]
[null,null,null,null,null,53,25469.1]

{"sheet":"Tableau de Bord","index":4,"n_rows":0,"n_cols":0,"rows_kept":0,"cut":false,"hidden":false,"merged":[]}